Workbook

Sheet dist check list (hidden)
C2: Final spot check | D2: Spell Check | E2: Check locked/unlocked cells | F2: Protect sheet | G2: All text displayed | H2: Make sure all fields are enterable | I2: compare to 2022 tool?
A3: Tab | B3: Policy & Definitions | C3: ZL | D3: ZL | E3: ZL | F3: ZL | G3: ZL | H3: ZL | I3: ZL
A4: Tab | B4: Project Notes | C4: ZL | D4: ZL | E4: ZL | F4: ZL | G4: ZL | H4: ZL | I4: ZL
A5: Tab | B5: Screening Tool | C5: ZL | D5: ZL | E5: ZL | F5: ZL | G5: ZL | H5: ZL | I5: ZL
A6: Tab | B6: Measures | C6: ZL | D6: ZL | E6: ZL | F6: ZL | G6: ZL | H6: ZL | I6: ZL
A7: Tab | B7: Message | C7: ZL | D7: ZL | E7: ZL | F7: ZL | G7: ZL | H7: ZL | I7: ZL
A8: Tab | B8: Version | C8: ZL | D8: ZL | E8: ZL | F8: ZL | G8: ZL | H8: ZL | I8: ZL
A9: Tab | B9: Default On Peak | C9: ZL | D9: ZL | E9: ZL | F9: ZL | G9: ZL | H9: ZL | I9: ZL
A10: Tab | B10: ID Weighted Life | C10: ZL | D10: ZL | E10: ZL | F10: ZL | G10: ZL | H10: ZL | I10: ZL
A11: Tab | B11: Default Output long | C11: ZL | D11: ZL | E11: ZL | F11: ZL | G11: ZL | H11: ZL | I11: ZL
A12: Tab | B12: Default Output short | C12: ZL | D12: ZL | E12: ZL | F12: ZL | G12: ZL | H12: ZL | I12: ZL
A13: Tab | B13: NGRID | C13: ZL | D13: ZL | E13: ZL | F13: ZL | G13: ZL | H13: ZL | I13: ZL
A14: Tab | B14: Scratch | C14: ZL | D14: ZL | E14: ZL | F14: ZL | G14: ZL | H14: ZL | I14: ZL
A15: Tab | B15: Screening | C15: ZL | D15: ZL | E15: ZL | F15: ZL | G15: ZL | H15: ZL | I15: ZL
A16: Tab | B16: dynamic tables | C16: ZL | D16: ZL | E16: ZL | F16: ZL | G16: ZL | H16: ZL | I16: ZL
A17: Tab | B17: Value Table | C17: ZL | D17: ZL | E17: ZL | F17: ZL | G17: ZL | H17: ZL | I17: ZL
A18: Tab | B18: MMBtu and GHG | C18: ZL | D18: ZL | E18: ZL | F18: ZL | G18: ZL | H18: ZL | I18: ZL
A20: Before Distribution:
B21: Hide red tabs
B22: protect each sheet
B23: protect workbook
B24: update file name
B25: make sure fields on input tab are merged as needed
B26: check final policies included
B27: make sure dynamic tables reference full, final measure table
B28: make sure all references are for full table
B29: protect sheets, but make sure can adjust columns, formatting, rows, lists, etc.
B30: do NOT protect worksheet- user can add worksheets
B31: make sure units for fossil fuels are correct throughout
B32: clear all inputs
A35: Suggestions for Next Year
A36: From DNV via Erik Mellon | B36: Custom screening tool (CST) uses correct measure life assumptions with few exceptions. The evaluation team determined that the CST lifetime savings calculations correctly followed the Framework guidance for dual baseline lifetime savings at the measure and project (all measure) level. The combination of program and measure type led to the correct measure event type. However, the CST classified add-on measures as a single baseline only, while the Baseline Framework requires dual baseline treatment for add-on measures with an EUL that exceeds 2/3 the RUL of the host equipment.
B37: Inconsistency in EULs used by the CST, the eTRM, and the TRM. When the team compared the EUL estimates being used by the CST, the eTRM, and the TRM for selected measures, they found some inconsistencies. Similar inconsistencies were found for the AMLs. For example, the CST EUL is less than the eTRM for chillers, while greater for furnaces.
B38: Align the tool EUL with the new EUL. This would change the OYF being applied to it. Check that measure lives for tracking match the AMLs.
B39: Add MF Initiative to the Tool
B40: Add Gas Leak Repairs
B41: Remove all Rhode Island references
B42: Add Gasoline and Diesel Environmental Compliance to value tables and work into the screening tab
B43: Make an NEI lookup mirroring the BC model for easier updating
B44: Clean up the MMBtu and GHG tab
B45: Update the % Summer value on the Measures tab to align with the BC model

Sheet Version
A1: This tab used to record the version changes only related to the tool.
A2: Version Name: | B2: 2025 Statewide Custom Screening Tool
A3: Version N°: | B3: =MAX(B7:B19) -> 1.1
A4: Version Date: | B4: 2025-03-29
A5: Last Revised by: | B5: Jerry Song
A6: Revision History
A7: 2025-03-18 | B7: 1 | C7: Major updates from 2024 tool include: - Updated avoided cost tables - Change to NEI calculations - all Annual $ savings will be calculated using default values. No longer accepting custom values. - Removed Wastewater savings as they will no longer contribute to benefits. Wastewater savings are assumed in the Water savings benefit. - Added new allocation logic depending on whether a measure is an electrification measure - Removed dated results fields from Screening Tool tab - Added "PA Results" tab that divides each ECM betwen PAs - Updated Default Loadshapes to allow user to select a loadshape rather than calculate a default
A8: 2025-03-28 | B8: 1.01 | C8: Bug Fixes: - fix to payback calculation - fix to allow negative on-peak values
A9: 2025-05-29 | B9: 1.1 | C9: Added net benefit estimates Added additional Results calculations to the "PA Results" tab Bug Fixes: - Fixed on-peak savings percent for ECMs 2-10

Sheet Policy & Definitions
A1: Screening Policy Version Tracking
A2: Policy Version | B2: 2025 Final v1.1
A3: Policy Revision Date | B3: 2025-05-29
A4: Policy Last Updated by | B4: Jerry Song, National Grid
A6: Tab Explanation:
A7: This section provides a uniform policy for using the custom screening tool. The objective for creating this tool is to provide a uniform basis for services, especially in the case of dual fuel projects in shared territories, and to ensure fair allocation of costs and benefits between PAs. The scope of the custom screening tool does not extend to determining what projects a PA will or will not pursue in the interest of their customers and programs. It is understood and acceptable that ultimately it is the PA’s prerogative as to whether or not to pay an incentive to a customer or move forward with a project, however, these common policies are to be used as standard practice when using the screening tool. The spirit of the policy is to ensure projects are screened using uniform methods across the state and to provide a guideline for interpreting the screening results. The policy does not extend into decision making beyond screening. This tab also includes definitions and examples for various terms and fields throughout the tool, including various inputs, tabs, and results.
A9: Category | B9: Topic | C9: Description | D9: Example/Explanation | E9: index for sorting purposes | F9: NOTE FOR REVIEWERS
A10: Disclaimer | B10: Use of screening results | C10: Results of the screening tool are not binding on any party. The PA is not obligated to provide an incentive for any measure at any time and may consider other factors outside of the screening tool results when making decisions on how to proceed, or not proceed, with a project. Savings entered into the tool are not necessarily vetted, approved, or guaranteed by the PA. | E10: 1
A11: Disclaimer | B11: Disclaimer | C11: Ultimately it is the prerogative of the PA to decide the amount of incentive that will be offered to the customer | E11: 1
A12: Policy | B12: Screening projects in shared territory | C12: Projects in shared territories should only be screened once. As a default, the electric PA should take the lead. | E12: 2
A13: Policy | B13: Screening measures together | C13: In order to ensure the PAs are uniformly bundling measures for screening we will also use a common criterion for what measures can be bundled for the purposes of screening. For screening purposes, measures screened together must be for one customer at one contiguous location AND implemented at approximately the same time. | D13: Measures for a single college campus can be screened together, even if there are multiple meters and buildings. Different campuses for the same college may not be screened together. Multiple locations of a franchise may not be screened together, even if they are in the same town. If a customer has a long term plan to install measures over a number of years, the out year projects should not be bundled with more immediate projects. | E13: 2 | F13: updated to include timing component for installed measures.
A14: Policy | B14: BCR Results | C14: The PAs agree that a bundle of measures may be eligible for incentives as long as the full project is cost effective. Individual measures that have a BCR < 1 may get an incentive as long as the total package of measures is cost effective. | D14: Example 1- the user enters three ECMs into the screening tool including Lighting, EMS retrocommissioning, and Building Shell. The Building Shell measure returns a BCR < 1, however the combined bundled project returns a BCR > 1. An incentive for the Building Shell measure may be offered. Example 2 - the same measures as above are entered into the screening tool. The Building Shell measure has a BCR < 1 AND the full project has a BCR < 1. The user excludes the Building Shell measure from the screening, and the new bundled project (Lighting and EMS retrocommissioning) returns BCR > 1. An incentive may be offered for the Lighting and retrocommissioning measures. | E14: 2
A15: Policy | B15: Payback Results | C15: The PAs have agreed that there is no payback requirement for measure or project level results. The measure payback does not need to be less than the measure life, however, the screening tool does provide simple payback information that can be used as a data point in determining appropriate incentive levels. | E15: 2
A16: Policy | B16: Gross Savings | C16: Projects should always be screened using gross savings estimates. especially when determining the gas and electric allocation percentages. All numbers entered into the screening tool should be project specific. | D16: Evaluation determined values, such as realization rates, free-ridership, deemed savings, prescriptive non-energy impacts, etc. should not be used in custom project screening. Instead, savings entered into the screening tool should match the original estimate of savings from the TA vendor or other custom analysis. | E16: 2
A17: Policy | B17: Electrification Allocations | C17: Starting in 2025 special allocation rules apply for all custom electrification projects. | D17: Displacing Natural Gas - All project information (savings, penalties costs, and incentives) of any electrification project displacing natural gas will be divided between the gas and electric PAs, with gas PA recieving 38% of all information and the electric PA recieving 62% of the information. Displacing Delivered Fuels - All project information (savings, penalties costs, and incentives) of any electrification project displacing oil, propane, diesel, or gasoline will go completely to the electric PAs. | E17: 2
A18: Policy | B18: Fuel Switching - Delivered Fuels | C18: For more detailed guidelines regarding the appropriate baseline fuel and equipment type for fuel switching projects, please refer to the EM&V Policy Memo attached to the 2022-2024 plan as Attachment D. | E18: 2
A19: Policy | B19: Fuel Switching - Project Boundaries | C19: Savings and penalties for custom fuel switching projects should be calculated at the site level. Projects should not be screened with the consideration of how the energy was generated or transported to the customer. | E19: 2
A20: Policy | B20: Prescriptive and Upstream Savings | C20: Prescriptive savings should never be included in screening a custom project. If a custom analysis has been performed on a measure that is also available prescriptively, that may be used in screening. Upstream eligible measures (but not savings) may be included for screening whole building analyses. | D20: Prescriptive measure savings have been determined cost effective on average, not for a specific customer, and therefore are not appropriate to be used in the custom screening tool. Some measures that are available for a prescriptive measure may be handled instead through a custom path, using custom savings calculations, and may then be included in a custom project. However, by following the custom path these measures should not receive a prescriptive rebate. Example 1 - An Integrated Design project will consider lighting using LPD in their model. It is possible that measures installed on site will be eligible for upstream or downstream incentives. While savings may not be double counted, it is appropriate to include the modeled LPD to determine project cost effectiveness. Example 2 - Deemed savings for low-flow shower heads should not be included in custom project screening. | E20: 2
A21: Policy | B21: Allocation of savings and costs | C21: Allocation of cost and savings for non-electrification ECMs is determined based on the provided energy savings and resulting benefits, which is used to determine the Benefit Split | D21: - Projects with no positive gas savings - Electric Only - all information goes to Electric PA - Projects with only gas savings - Gas Only - all information goes to the Gas PA - Projects with both gas and electric or delivered fuel savings -ECM Allocation - energy savings will go to the appropriate PA, all other information will be allocated with ECM specific allocations | E21: 2
A22: Policy | B22: Benefit Split | C22: The Benefit Split takes into account the $ benefits (based on avoided costs) of the savings and/or penalties of both electric and gas savings. The % Electric Benefit is the ratio of the total electric benefits (including energy and capacity) compared to the total benefits of gas and electric savings/penalties. The % Gas Benefit is the ratio of the total gas benefits compared to the total benefits of gas and electric savings/penalties. | E22: 2
A23: Dual Baseline Explanation | B23: Dual Baseline Concept | C23: The traditional "retrofit" project assumes that the savings between the existing, operational system and the installed, high efficiency system are appropriate for the full measure life of the installed measure. However, in many cases the retrofit occurs on equipment that is already well into its expected useful life. It is therefore likely that the existing equipment would naturally fail at some point in the future and require the customer to repair or replace it. A Dual Baseline approach accounts for the natural replacement of the existing equipment through some high level, non project specific assumptions. The dual baseline methods applied in the Custom Screening Tool for 2020 and beyond discount future project savings and costs. | D23: The Dual Baseline concept and general baseline framework used for evaluation is given in the MA C&I Baseline Document (2017). The full framework can be found: http://ma-eeac.org/wordpress/wp-content/uploads/MA-Commercial-and-Industrial-Baseline-Framework.pdf Please reach out to the evaluation team at your Program Administrator with questions. | E23: 3
A24: Dual Baseline Explanation | B24: Calculating Dual Baseline for Custom | C24: In order to simplify the delivery and savings development of dual baseline savings and projects, all dual baseline adjustments for custom projects are made at a high level using non-site specific assumptions. All engineering analysis and TA studies for dual baseline savings should continue to develop First Year Savings estimates per traditional retrofit methods (comparing the existing equipment and installed equipment). | D24: The Custom Screening Tool will calculate an Equivalent Measure Life and an adjusted incremental cost value. Both the Equivalent Measure Life and the adjusted Incremental costs should be tracked for the project. See definitions below for more information. | E24: 3
A25: Dual Baseline Explanation | B25: First Year Savings | C25: The first year savings of a dual baseline project are calculated as the difference between the consumption of the existing equipment and the consumption of the installed equipment. This is the same method currently used to calculate savings for a traditional retrofit project. | E25: 3
A26: Dual Baseline Explanation | B26: Out Year Savings | C26: The out year savings of a dual baseline project are calculated using an assumed, non-site specific Out Year Factor (OYF). The Out Year Savings represents the difference between the consumption of a future standard efficiency option and the consumption of the installed, high efficiency equipment. | E26: 3
A27: Dual Baseline Explanation | B27: Cost considerations | C27: Each Dual Baseline project has a discount to the savings occurring in the Our Year period, however, there is also a financial benefit to the customer that can be credited to the project. The Screening Tool will calculate a "Deferment Credit" that will be removed from the Proposed Cost, helping to increase the cost effectiveness of the project. | E27: 3
A28: Dual Baseline Explanation | B28: Measure Life considerations | C28: For tracking purposes, the PAs have decided to use the "Equivalent Measure Life" (EML) for dual baseline projects. The EML is a calculated measure life that will produce dual baseline lifetime savings when multiplied by the first year savings estimate. The EML will be calculated by the tool and will be slightly lower than the Estimated Useful Life the user selects on the Screening Tool tab. | E28: 3
A29: Dual Baseline Explanation | B29: Tracking Dual Baseline Projects | C29: Dual Baseline projects are tracked in all PA tracking systems by entering the First Year Savings as the project's Gross Savings estimates and entering the Equivalent Measure Life as the project measure life. | D29: Each PA may have additional tracking requirements | E29: 3
A30: Screening Tool Tab | B30: Measure Label | C30: Custom short description of measure code. Will be used as header in other sections of the tool, like the Default Output tab and the Project Notes tab. | E30: 4
A31: Screening Tool Tab | B31: Dual Baseline Applicable? | C31: Indicates if dual baseline adjustments will apply to the ECM based on the selected combination of initiative and measure. Dual baseline adjustments effectively discount both the costs and the savings associated with the measure in the outer years of the project measure life. All adjustments are made by the tool and do not require any additional input by the user. | D31: Starting in 2019, the Custom Screening Tool includes considerations for dual baselines for certain Retrofit projects, as identified by the MA Evaluation Framework. The dual baseline approach accounts for the project baseline at the time of the initial early replacement AND at the time of the assumed natural failure of the existing equipment. Dual baseline adjustments are made to savings and to costs, often creating a more cost effective measure, although with reduced lifetime savings. | E31: 4
A32: Screening Tool Tab | B32: Include in project (Input) | C32: Select "1" to include measure in project level screening. Select "0" to exclude the measure. | E32: 4
A33: Screening Tool Tab | B33: Initiative (Input) | C33: The Initiative selection will inform the measure code options available for project screening. Initiatives are from the 2022-2024 MAPlan and also has an option for Small Business which is meant only for projects going through the small business pathway. | D33: The list below describes the three Initiatives (plus small business) and when each initiative should be selected in the screening tool. C&I New Building & Major Renovations - This initiative should be selected for all measures and projects installed as part of ground up construction, including additions, and for all major renovations of existing facilities. C&I New and Replacement Equipment - This initiative should be selected for measures that are new to an existing facility (such as additional process lines) or for replacement of failed equipment. These are purchases the customer would need to make with or without program intervention. C&I Existing Building Retrofit - This initiative should be selected for measures or projects that address existing, operable equipment that is generally (not always) younger than the expected useful life of the equipment. Examples may be an early replacement of an existing piece of equipment or add on controls to existing equipment. Retrofit measures are optional upgrades for the customer. Note that as of 2019, retrofit measures may be subject to dual baseline considerations. Small Business - This should be selected if a project is being process through the small business program as the measures, measure lives and NEIs correspond to the Turnkey line items of the statewide Benefit Cost Model. | E33: 4
A34: Screening Tool Tab | B34: Primary Fuel Saved (Input) | C34: Selection should be made based on primary energy savings of the measure. This field will inform the measure dropdown options. | D34: Primary Fuel Savings should be selected based on positive savings. "Dual" should be selected when there are positive gas and positive electric energy savings. | E34: 4
A35: Screening Tool Tab | B35: Measure (Input) | C35: Available measures determined by the Project Type and Primary Fuel Saved. If desired measure is not on the drop down menu, please reexamine your prior project selections. If measure is still not available, please select "Other" | D35: The measure drop down options are dependent on the primary fuel saved and project type. For example, Boiler is not a valid option for Electric projects and Integrated Design is not available for Existing Building Retrofit project types. | E35: 4
A36: Screening Tool Tab | B36: Estimated Useful Life (Input) | C36: The Estimated Useful Life (EUL) is the estimated time, on average, a given type of equipment will be installed and operational. Note that as of 2019 the measure life options are the same for both Lost Opportunity projects and Retrofit Projects. The drop down includes default EUL options based on measure and project type selected. | D36: Available measure life options depend on the measure and core initiative Measure life options based on evaluation studies. Note that for dual baseline applicable measures the EUL will not be used directly for screening or tracking, but will be used along with other dual baseline factors to produce an Equivalent Measure Life (EML) for the project. The user does not need to update this field based on the dual baseline adjustments | E36: 4
A37: Screening Tool Tab | B37: Override Life (Input) | C37: If desired measure life is not available, insert appropriate measure life here. Please keep in mind the measure life should be the average length of time this type of equipment is installed and operation. | E37: 4
A38: Screening Tool Tab | B38: Proposed Cost (Input) | C38: Proposed costs should include costs associated with the proposed, high efficiency measure. Should include labor costs for Existing Building Retrofit measures. | E38: 4
A39: Screening Tool Tab | B39: Baseline Cost (Input) | C39: Baseline costs should include costs associated with the baseline efficiency measure. Baseline costs are zero for Existing Building Retrofit measures. | E39: 4
A40: Screening Tool Tab | B40: Gross Electric Energy Savings (Input) | C40: Should include gross electric energy changes, whether positive savings or negative penalties. | D40: Gross savings indicates that evaluation results, such as realization rates and Net-to-Gross considerations, are not included in the estimate. Project should be screened with the best estimate available for site specific energy changes. | E40: 4
A41: Screening Tool Tab | B41: % Summer On Peak (Input) | C41: % of electric energy savings that occur between 7am-11pm, M-F, June-Sept, excluding holidays. Period represents approximately 1,380 hours. | D41: Default value available on the "OnPeakDefault" tab. Default value calculated if the Measure and Gross Electric Energy savings are entered on the Inputs tab and the % On Peak value is entered on the "OnPeakDefaults" tab. | E41: 4
A42: Screening Tool Tab | B42: % Summer Off Peak (Input) | C42: % of electric energy savings that occur between June-Sept outside of the Summer On Peak Period. Period represents approximately 1,550 hours. | D42: Default value available on the "OnPeakDefault" tab. Default value calculated if the Measure and Gross Electric Energy savings are entered on the Inputs tab and the % On Peak value is entered on the "OnPeakDefaults" tab. | E42: 4
A43: Screening Tool Tab | B43: % Winter On Peak (Input) | C43: % of electric energy savings that occur between 7am-11pm, M-F, Oct-May, excluding holidays. Period represents approximately 2,600 hours. | D43: Default value available on the "OnPeakDefault" tab. Default value calculated if the Measure and Gross Electric Energy savings are entered on the Inputs tab and the % On Peak value is entered on the "OnPeakDefaults" tab. | E43: 4
A44: Screening Tool Tab | B44: % Winter Off Peak (Input) | C44: % of energy savings that occur between Oct-May outside of the Winter On Peak hours. Period represents approximately 3,230 hours. | D44: Default value available on the "OnPeakDefault" tab. Default value calculated if the Measure and Gross Electric Energy savings are entered on the Inputs tab and the % On Peak value is entered on the "OnPeakDefaults" tab. | E44: 4
A45: Screening Tool Tab | B45: Summer Peak kW (Input) | C45: Average kW savings that occur over the ISO-NE Summer Peak Demand period (1pm-5pm, M-F, June-August, holidays excluded). Note that demand savings are average over the period. Ensure savings are discounted appropriately for operational shutdowns. | D45: Default value available on the "OnPeakDefault" tab. Default value calculated if the Measure and Gross Electric Energy savings are entered on the Inputs tab and the % On Peak value is entered on the "OnPeakDefaults" tab. | E45: 4
A46: Screening Tool Tab | B46: Winter Peak kW (Input) | C46: Average kW savings that occur over the ISO-NE Winter Peak Demand period (5p-7pm, M-F, Dec and Jan, holidays excluded). Note that demand savings are average over the period. Ensure savings are discounted appropriately for operational shutdowns. | D46: Default value available on the "OnPeakDefault" tab. Default value calculated if the Measure and Gross Electric Energy savings are entered on the Inputs tab and the % On Peak value is entered on the "OnPeakDefaults" tab. | E46: 4
A47: Screening Tool Tab | B47: Heating Season (Input) | C47: Gross gas therms usage changes that occur primarily in the heating season (winter months). Should include gross natural gas energy changes, whether positive savings or negative penalties. | D47: Should be used for projects with changes in gas usage that primarily occur during the winter, such as HVAC controls, boilers, and ERV. | E47: 4
A48: Screening Tool Tab | B48: Year Round (Input) | C48: Gross gas base load therms usage changes, such as DHW or an industrial process that occurs year round. Should include gross natural gas energy changes, whether positive savings or negative penalties. | D48: Should be used for projects with changes in gas usage that occur fairly evenly throughout the year, such as DHW and industrial process measures. | E48: 4
A49: Screening Tool Tab | B49: Other (Input) | C49: Gross gas therms usage changes that do not fall under the Heating Season or Year Round categories. Should include gross natural gas energy changes, whether positive savings or negative penalties. | D49: Should only be used if gas use changes do not fit either of the other two gas categories. | E49: 4
A50: Screening Tool Tab | B50: #2 Oil (Input) | C50: Gross annual C&I #2 Oil usage changes in MMBtu. Note the units are in MMBtu, NOT gallons of oil. | D50: Savings for other oil types should be converted to a dollar value and entered as an annual dollar savings. | E50: 4
A51: Screening Tool Tab | B51: Propane (Input) | C51: Gross annual propane usage changes in MMBtu. | E51: 4
A52: Screening Tool Tab | B52: Water (Input) | C52: Gross annual water changes in gallons. | E52: 4
A53: Screening Tool Tab | B53: Wood (Input) | C53: Gross annual wood changes in MMBtu.
A54: Screening Tool Tab | B54: Motor Gasoline (Input) | C54: Gross annual gasoline changes in MMBtu.
A55: Screening Tool Tab | B55: Motor Diesel (Input) | C55: Gross annual motor diesel changes in MMBtu.
A56: Screening Tool Tab | B56: Sewer (Input) | C56: Site specific input REMOVED for 2025 - Gross annual sewer changes in gallons. The avoided costs used to calculate project benefits for water savings assumes some sewage savings | D56: Sewer savings are most often equivalent to changes in Water usage. | E56: 4
A57: Screening Tool Tab | B57: Annual $ Savings (Input) | C57: Site specific input REMOVED for 2025 - Gross annual dollar savings or penalties incurred by the customer, not including savings on energy bills. Starting in 2025 this will be calculated by the tool using evaluation results. | D57: Does not include savings on energy bills. Typical annual dollar savings include O&M savings for retrofit lighting projects and O&M penalties for CHP projects. | E57: 4
A58: Screening Tool Tab | B58: One Time $ Savings (Input) | C58: Site specific input REMOVED for 2025 - Gross one time dollar savings or penalties incurred by the customer. Starting in 2025 this will be calculated by the tool using evaluation results. | D58: Does not include cost differences between installed and baseline equipment. Could include increase in property value due to installation of measure (if site specific value can be quantified and documented). | E58: 4
A59: Screening Tool Tab | B59: Out Year Factor (OYF) | C59: Assumed value based on the initiative and measure selected for the project. The OYF only applies to dual baseline measures. While the first year savings for a retrofit measure compares the consumption of the existing equipment to the consumption of the installed equipment, the out year savings represent the savings between the "standard equipment" that may be installed at the natural point of failure of the existing equipment and the installed equipment. The OYF is applied to the first year savings estimate, provided by the user, to estimate the out year savings. | D59: The OYF default is 0.90, which gives a slight discount to the out year savings. The OYF is not meant to be project specific, but a high level adjustment to account for dual baseline effects in the MA programs. The OYF is applied to both savings and costs. Select lighting and lighting control measures have different OYF as of 2020. | E59: 4
A60: Screening Tool Tab | B60: Remaining Useful Life Factor (RULF) | C60: The remaining useful life factor is an a factor used to estimate the number of years until the natural failure of existing equipment. The RULF is only applicable for dual baseline measures. | D60: Assumed to be 1/3 of the installed equipment Estimated Useful Life | E60: 4
A61: Screening Tool Tab | B61: Discount Rate | C61: The Discount Rate is used as an input in calculating the deferment credit related to dual baseline projects. | D61: Assumed to be 20% for all dual baseline measures, which approximates typical C&I customer investment considerations. | E61: 4
A62: Screening Tool Tab | B62: Deferment Credit ($) (Calculated) | C62: The deferment credit for a dual baseline project represents the present value of the deferred cost of replacing the existing equipment at its natural failure at some point in the future. | E62: 4
A63: Screening Tool Tab | B63: Measure Life for Tracking (Calculated) | C63: The Measure Life for Tracking is an adjusted measure life used to screen and track dual baseline projects. It is calculated based on the Effective Useful Life (selected by the user in the Measure Input section), the OYF, and the RULF. The measure savings do not affect the EML. The EML multiplied by the First Year Savings of the project will calculate the appropriate dual baseline lifetime savings. PAs should use the Measure Life for Tracking within their tracking system as the project measure life. | D63: When screening a project, the custom screening tool will calculate a Measure Life for Tracking and automatically use that value for screening purposes. The PA should use the calculated value in their tracking system when tracking the custom project. | E63: 4
A64: Screening Tool Tab | B64: Heat Pump Tons for Tracking (Calculated) | C64: Starting in 2025 the screening tool is calculating "Heat Pump Tons for Tracking" value that is derived for each project based on evaluation study data. The value does NOT represent nameplate or site specific HP capacity, it is a way to standardize tonnage to apply evaluation results in a standard way across all custom heat pump projects. | D64: PAs should track the Het Pump Tons for Tracking in their tracking systems and use this value to report "Tonnage" to the DPU on these projects | E64: 4
A65: Screening Tool Tab | B65: Adjusted Cost (Calculated) | C65: The Adjusted Costs for a dual baseline project is calculated as the Proposed Cost of the installed equipment minus the Deferment Credit. The Adjusted Cost is used for the measure BC test and will likely result in a more cost effective project. | D65: When screening a project, the custom screening tool will calculate a the adjusted costs and automatically use that value for screening purposes. The tool user does not need to update the Measure Input for the measure costs. The PA should use the calculated adjusted costs in their tracking system when tracking the custom project. | E65: 4
A66: Screening Tool Tab | B66: Lifetime Savings (Calculated) | C66: Total savings of a specific input over the life of the measure. Calculation will use the Override Measure Life if it has been populated. | D66: Note that when applicable, the lifetime savings will be calculated using the EML (for dual baseline projects) | E66: 4
A67: Screening Tool Tab | B67: Calculated - Measure BCR (Calculated) | C67: A Benefit Cost Ratio is calculated for each measure. The Measure BCR is the total Benefit of the measure based on the inputs and associated avoided costs, and the total measure costs. Positive and negative inputs are considered. | E67: 4
A68: Screening Tool Tab | B68: Project BCR - All Measures (Calculated) | C68: The "All Measures" BCR is calculated based on all measures with the Measure Information section populated. Positive and negative inputs are considered. | E68: 4
A69: Screening Tool Tab | B69: Project BCR - Selected Measures (Calculated) | C69: The "Selected Measures" BCR is calculated using only the measures with Measure Information populated and that have a "1" for the "Include in Project" field. Positive and negative inputs are considered. | E69: 4
A70: Screening Tool Tab | B70: Measure - All Fuels Lifetime MMBtu Savings (Calculated) | C70: The total Lifetime MMBtu is calculated for each measure. This value is the combination of all energy sources impacted by the measure converted to MMBtu. Positive and negative inputs are considered. For regulatory purposes, the electric MMBtu value corresponds to the source of the generation, so it is not the standard 3.412 MWh/MMBtu. The value will vary depending on measure life and load shape as the grid mix changes year over year and between peak and off peak and throughout the year.
A71: Screening Tool Tab | B71: Project All Measures - All Fuels Lifetime MMBtu Savings (Calculated) | C71: The "All Measures" total Lifetime MMBtu is calculated based on all measures with the Measure Information section populated. Positive and negative inputs are considered.
A72: Screening Tool Tab | B72: Project Selected Measures - All Fuels Lifetime MMBtu Savings (Calculated) | C72: The "Selected Measures" total Lifetime MMBtu is calculated using only the measures with Measure Information populated and that have a "1" for the "Include in Project" field. Positive and negative inputs are considered.
A73: Screening Tool Tab | B73: Measure - 2030 Total Avoided CO2e (Metric Tons) (Calculated) | C73: The 2030 Total Avoided CO2e value is calculated for each measure. This measure is a combination of all energy sources impacted by the measure. The CO2 associated with those energy sources are converted to CO2e based on values from the Massachusetts EEA in their letter establishing the CO2 goals for the Mass Save program sponsors. Only measures with measure lives long enough to still be counted in 2030 are considered. For measures with measure lives that end in 2030, only half of the annual savings are counted. Positive and negative inputs are considered.
A74: Screening Tool Tab | B74: Project All Measures - 2030 Total Avoided CO2e (Metric Tons) (Calculated) | C74: The "All Measures" 2030 Total Avoided CO2e is calculated based on all measures with the Measure Information section populated. Positive and negative inputs are considered.
A75: Screening Tool Tab | B75: Project Selected Measures - 2030 Total Avoided CO2e (Metric Tons) (Calculated) | C75: The "Selected Measures" 2030 Total Avoided CO2e is calculated using only the measures with Measure Information populated and that have a "1" for the "Include in Project" field. Positive and negative inputs are considered.
A76: Screening Tool Tab | B76: Payback Gas (Calculated) | C76: The simple gas payback compares the annual bill savings for natural gas to the measure(s) costs. Annual bill savings based on the rates entered in the "Project Inputs" section of the Inputs tab. Positive and negative inputs considered. | D76: Default gas rate of $1.548/therm for 2023 | E76: 4
A77: Screening Tool Tab | B77: Payback Electric (Calculated) | C77: The simple electric payback compares the annual energy bill savings for electricity to the measure(s) costs. Does not include demand rate savings. Annual bill savings based on the rates entered in the "Project Inputs" section of the Inputs tab. Positive and negative inputs considered. | D77: Default kWh rate of $0.311/kWh for 2023 | E77: 4
A78: Screening Tool Tab | B78: Payback Total (Calculated) | C78: The simple Total payback includes bill savings for natural gas, electricity, and all entered NEIs. Annual bill savings based on the rates entered in the "Project Inputs" section of the Inputs tab. Positive and negative inputs considered. | E78: 4
A79: Additional Tabs | B79: PA Results | C79: Added in 2025 - provides the savings and results for each ECM divided between the Gas and Electric PAs as follows: - Electrification Measures - With Gas Displacement - Gas Elx - use a pre-determined allocation and divide all savings (gas savings, costs, electric penalties) with those allocations. - With Delivered Fuel Displacement - Non-Gas Elx - all information goes to the Electric PA - Non Electrification Measures will be divided as follows: - Projects with no positive gas savings - Electric Only - all information goes to Electric PA - Projects with only gas savings - Gas Only - all information goes to the Gas PA - Projects with both gas and electric savings -ECM Allocation - energy savings will go to the appropriate PA, all other information will be allocated with ECM specific allocations | E79: 5
A80: Additional Tabs | B80: Default Loadshapes | C80: Tool that calculates Electric Energy Load shapes and Default Peak Demand savings. Formulas used in this tab were formerly embedded as automated macros calculations in prior versions of the Dual Fuel Screening Tool. | D80: Note - % On Peak value entered directly on this tab instead of on the Inputs tab | E80: 5
A81: Additional Tabs | B81: Project Notes | C81: Includes space for general and ECM specific notes. "Location" may be used to indicate where a specific ECM is installed. Location is required to populate the National Grid upload file. | E81: 5
A82: Special Policy | B82: Mass Save Whole Buildings Approach | C82: Mass Save Whole Building Approach policies are determined by the New Construction Program Subcommittee. These policies finalized in August, 2017. The NC Subcommittee should be consulted for most recent policy decisions before screening. | D82: Further information about the program policies can be directed to Kim Cullinane, Eversource (kim.cullinane@eversource.com) or Denise Rouleau, National Grid (Denise.Rouleau@nationalgrid.com) | E82: 6 | F82: Whole Building Policy needs review and update. Sent to Kim and Denise on 3/25. Kim signed off on policies on 4/1/19
A83: Special Policy | B83: Mass Save Whole Buildings Approach | C83: Certain ECMs should not be included as part of a Whole Building project model and should always be handled prescriptively: - Compressed Air - Kitchen Equipment (gas or electric) - ECMs related to parking garages that are physically separate from the modeled building - Exterior Lighting - Process savings in industrial buildings Note that Networked Lighting Controls will be captured within energy models and should be considered for Whole Building savings | D83: Excluded measures may be eligible for prescriptive savings. | E83: 6
A84: Special Policy | B84: Mass Save Whole Buildings Approach | C84: Energy models should reflect the design of the building | D84: Include ECMs with verifiable savings, low/no cost and negative incremental cost items. Include any energy penalties associated with the design (as with high window to wall ratio) | E84: 6
A85: Special Policy | B85: Mass Save Whole Buildings Approach | C85: Incremental costs provided by the vendor as part of the TA reports should be based on RS Means or vendor's best estimates based on experience | E85: 6
A86: Special Policy | B86: Mass Save Whole Buildings Approach | C86: Only the comprehensive run that reflects total interactive energy savings and total incremental costs shall be screened | E86: 6
A87: Special Policy | B87: Mass Save Whole Buildings Approach | C87: An individual measure shall not be removed from the calculation because its payback is longer than its measure life | E87: 6
A88: Special Policy | B88: Mass Save Whole Buildings Approach | C88: An individual measure shall not be removed from the calculation because it individually does not pass the BCR | E88: 6
A89: Special Policy | B89: Mass Save Whole Buildings Approach | C89: Measures need only be removed from the calculation if the overall project BCR is less than one | E89: 6
A90: Special Policy | B90: Mass Save Whole Buildings Approach | C90: If an ECM must be removed from the model, the PA will remove it during the screening process | E90: 6
A91: Special Policy | B91: Mass Save Whole Buildings Approach | C91: Use the Project weighted measure life based on gas and electric savings for screening. For tracking purposes the PAs should use the appropriate measure life for the savings they are claiming. See column to the right for examples. The goal is to match the savings with the appropriate measure life, so the total lifetime savings of the project is correct, no matter who is claiming the savings. Policy finalized on 4/28/17 by members of the New Construction Program Subcommittee with input by Whitney Brougher. | D91: 1- Project split into Gas and Electric components, claimed separately. In this case, the gas savings should be coupled with the Weighted Gas Measure Life, and the Electric savings should be coupled with the Weighted Electric Measure Life. 2- Each measure is claimed individually. In this case no weighted measure life would be used. Instead the appropriate individual measure life would be coupled to the corresponding savings. | E91: 6
A92: Special Policy | B92: Mass Save Whole Buildings Approach | C92: Screen the project as a single measure using the interactive savings output from the whole building simulation and the ID weighted measure life. All electric and gas savings and penalties should be included. | E92: 6
A93: Special Policy | B93: Mass Save Whole Buildings Approach | C93: Upstream measures will continue to be included in whole building projects | D93: PAs should do due diligence to ensure no double counting of measure savings. | E93: 6

Sheet update notes (hidden)
A2: Tab | B2: update | C2: status | D2: note from
A3: Screening | B3: Removed RI from the screening tab | C3: done | D3: WB
A4: Screening | B4: Removed initiative table | C4: done | D4: WB
A5: Screening Tool | B5: Removed initiative table | C5: done | D5: WB
A6: Measures | B6: added column for HP NEI value | C6: done | D6: WB
A7: Screening | B7: moved the NEI calculation up to the "Savings" section. Updated the benefit calculation to reference that calculated value rather than calculate the NEI within the benefit formula | C7: done | D7: WB
A8: Screening Tool | B8: grey out and hide sewer, annual NEI, one time NEI fields | C8: done | D8: WB
A9: Default Loadshapes | B9: New tab - brings in measure and annual kWh, allows user to select loadshape and will populate loadshape and kw estimates | C9: done | D9: WB
A10: Default Loadshapes | B10: to do - double check loadshapes, they don't all add to 100% | C10: to do | D10: JS
A11: Measures | B11: Update ML and measure list | C11: to do | D11: JS
A12: Measures | B12: Update NEI values | C12: to do | D12: JS
A13: Screening | B13: suggest removing greyed out rows- they aren't necessary or referenced elsewhere. | C13: to do | D13: WB
A14: Screening | B14: Scott left a note on cell E75 that furtehr testing is needed to make sure the formula is working | C14: done | D14: WB
A15: Screening and Value tables | B15: The BC model uses uncleared capacity values for HPs and cleared capacity for other things. The CST uses an average value right now. To align more closely with the BC model we could update to match. It looks like uncleared has higher benefits, but with HPs having a summer kW penalty it would make them less cost effective (larger negative benefit) | C15: do | D15: WB
A16: Screening Tool | B16: check/update conditional formating for the results and loadshape | C16: done
A17: Screening | B17: The electric SCC benefits were being included in the NEI benefit total- moved them to the electric benefit total | C17: done
A18: Screening and Screening tool | B18: HP allocation - ALL custom elx will be split 62/38 | C18: done
A19: AESC | B19: update the distribution values for each PA | C19: done except for muni value
A20: Measures | B20: rather than hardcoding measure descriptions into formulas on Screening to see if it's wx or elx, added column to measures tab | C20: done | D20: WB
A21: Measures | B21: suggest removing boilers and furnaces, at least HVAC?
A22: Screening and MMBTu and GHG tabs | B22: Consolidated MMBTu and GHG calcs to the screening tab | C22: done | D22: WB
A23: Screening Tool | B23: The lifetime MWh calculation doesn't reference the override ML. Switch to reference the Adjusted measure life from the Screening tab | C23: done | D23: WB
A24: MMBtu-CO2 Tables | B24: added to update existing tab | C24: done | D24: WB
A25: Screening | B25: added MMBTu and CO2 Calcs directly to this tab | C25: done | D25: WB
A26: Measures | B26: Added column for HP kwh to ton conversion and tied into the screening tab. Values not updated until the measure categories are updated | C26: done | D26: WB
A27: screening Tool | B27: include Wood savings | C27: done | D27: JS
B28: check if lifetime MMBtu actually used, may change it or remove it. Ryan W follow up on that | D28: RW
B29: Ryan W to follow up with eval about HP NEI questions - make sure we understand logic of the NEIs, applying the conversion to the penalty | D29: RW
B30: if MLP -elx should go 100% to gas PA | C30: done | D30: WB
B31: Check the total allocations | C31: done | D31: WB
B32: check the +/- signs on the loadshape and kW | C32: Done | D32: JS
B33: provide the allocated savings | C33: done | D33: WB

Sheet TROUBLESHOOTING (hidden)
A1: Notes for whoever is maintaining the tool
A3: Dynamic Drop Down issues
B4: If the wrong values are populating in the drop downs
B5: 1 | C5: Reselect the inititiave, fuel, measure, measure life - could be that an earlier field (like initiative) was changed and the measure is no longer valid
B6: 2 | C6: If that doesn't work there may be an issue with the Data Validation that populates the Measure and Measure Life dropdowns
C7: What's happening - the drop down lists are popualted using a named list "uniqueMeasurex" and "uniqueLifex", where x corresponds to the ECM number.
C8: Those named lists are populated from the "dynamic tables" tab where there is a list of valid measures and list of valid measure lives based on prior selections
C9: When the Screening tool tab is unlocked and cells in row 37 and 38 are dragged over to adjacent cells the uniqueMeasurex and uniqueLifex references will also be dragged over
C10: This will result in, for example the Measure drop down for ECM 2 referencing uniqueMeasure1, which will provide the measure list for ECM 1.
B11: 3 | C11: To correct- check each data validation list reference to make sure the references correspond to the relevant ECM #

Sheet Project Notes
A1: Tab Explanation:
A2: This tab is intended to collect project notes for the whole project and/or for each individual ECM. Measure location may be used to notate where the measure is physically located, or other identifying information, particularly if a given measure code is used more than once in the screening. Note for National Grid automated upload, Measure Location must be populated.
A4: Project Screened On (from Screening Tool): | B4: ='Screening Tool'!C13 -> 00:00:00
A5: Project Version #:
B8: Project Notes | H8: Measure Location
A9: General
A13: ='Screening Tool'!D33 -> ECM 1
A15: ='Screening Tool'!E33 -> ECM 2
A17: ='Screening Tool'!F33 -> ECM 3
A19: ='Screening Tool'!G33 -> ECM 4
A21: ='Screening Tool'!H33 -> ECM 5
A23: ='Screening Tool'!I33 -> ECM 6
A25: ='Screening Tool'!J33 -> ECM 7
A27: ='Screening Tool'!K33 -> ECM 8
A29: ='Screening Tool'!L33 -> ECM 9
A31: ='Screening Tool'!M33 -> ECM 10

Sheet Screening Tool
A1: Tab Explanation and Notes (click box left to show/hide)
A2: This tab includes all project and measure inputs used to calculate cost effectiveness.
A3: Usability Notes: - Selecting any cell in column C (input descriptions) will provide a definition or explanation of the input. Further definitions available on the "Policy & Definitions" tab - Tab Explanation, Project Description, Energy Rate, and Measure and Results Overview sections can be hidden by clicking the squares to the left of the row numbers. Similarly, the columns with project results (columns N-P) can be hidden by clicking on the box above the column letters - Error messages indicate an issue with the inputs that will result in incorrect results (BCR or allocation) - Screening Messages indicate there is a potential issue with the inputs, but does not necessarily mean the inputs are incorrect - "Selected Measures Project" includes results of measures that have a "1" indicating they should be included in the project. "All Measures Project" includes all measures with Measure Information populated. - Drop down menu text is very small- zoom in to spreadsheet to increase size (bottom right corner of excel window) - Measures can be quickly cleared by selecting inputs from the "Measure Inputs" area and deleting
A4: Formatting notes: - If "0" is selected for a measure, indicating it will not be included in the project screening, all associated measure text will turn grey. - Measure and Project BCR results will be highlighted red if they are < 1 - Measure Total Payback will be highlighted red if the payback is greater than the measure life
A5: Project and Customer Information (click box to left to show/hide) | N5: Retail Rates
B6: Project Description | G6: Customer | I6: Electric PA | K6: Gas PA | N6: Electric Rate ($/kWh) | P6: 0.224
E7: Company Name | I7: National Grid Electric - MA | K7: Eversource Gas (former Columbia) | N7: Gas Rate ($/therm) | P7: 1.284
B8: Existing or Base Case Condition Description | E8: Contact Name | N8: Oil Rate ($/MMBtu)
E9: Contact Email | N9: Propane Rate ($/MMBtu)
B10: Proposed Description | E10: Contact Phone Number | N10: Motor Diesel Rate ($/MMBtu)
E11: Account #(s) | N11: Gasoline Rate ($/MMBtu)
B12: Project Screened by | E12: Application # | N12: Water Rate ($/gal)
B13: Project Screened on | E13: TA Vendor | N13: Wood Rate ($/MMBtu)
A16: Measure and Result Overview (click box to left to show/hide)
D17: =D33 -> ECM 1 | E17: ECM 2 | F17: ECM 3 | G17: ECM 4 | H17: ECM 5 | I17: ECM 6 | J17: ECM 7 | K17: ECM 8 | L17: ECM 9 | M17: ECM 10 | N17: Selected Measures Project | O17: All Measures Project
B18: Review Information | C18: Measure Code | D18: =IF(D37<>"",VLOOKUP(D37,Measures!$C$7:$D$841,2,FALSE),"") ->  | E18: =IF(E37<>"",VLOOKUP(E37,Measures!$C$7:$D$841,2,FALSE),"") ->  | F18: =IF(F37<>"",VLOOKUP(F37,Measures!$C$7:$D$841,2,FALSE),"") ->  | G18: =IF(G37<>"",VLOOKUP(G37,Measures!$C$7:$D$841,2,FALSE),"") ->  | H18: =IF(H37<>"",VLOOKUP(H37,Measures!$C$7:$D$841,2,FALSE),"") ->  | I18: =IF(I37<>"",VLOOKUP(I37,Measures!$C$7:$D$841,2,FALSE),"") ->  | J18: =IF(J37<>"",VLOOKUP(J37,Measures!$C$7:$D$841,2,FALSE),"") ->  | K18: =IF(K37<>"",VLOOKUP(K37,Measures!$C$7:$D$841,2,FALSE),"") ->  | L18: =IF(L37<>"",VLOOKUP(L37,Measures!$C$7:$D$841,2,FALSE),"") ->  | M18: =IF(M37<>"",VLOOKUP(M37,Measures!$C$7:$D$841,2,FALSE),"") -> 
C19: Active Errors or Notes (Click for more info) | D19: =IF(D81>0,"Error",IF(D82>0,"Note","None")) -> None | E19: =IF(E81>0,"Error",IF(E82>0,"Note","None")) -> None | F19: None | G19: None | H19: None | I19: None | J19: None | K19: None | L19: None | M19: None
C20: Dual Baseline Applicable? | D20: =Screening!E26 -> 0 | E20: =Screening!F26 -> 0 | F20: =Screening!G26 -> 0 | G20: =Screening!H26 -> 0 | H20: =Screening!I26 -> 0 | I20: =Screening!J26 -> 0 | J20: =Screening!K26 -> 0 | K20: =Screening!L26 -> 0 | L20: =Screening!M26 -> 0 | M20: =Screening!N26 -> 0
B21: Eligibility Considerations | C21: BCR | D21: =Screening!E77 -> 0 | E21: =Screening!F77 -> 0 | F21: =Screening!G77 -> 0 | G21: =Screening!H77 -> 0 | H21: =Screening!I77 -> 0 | I21: =Screening!J77 -> 0 | J21: =Screening!K77 -> 0 | K21: =Screening!L77 -> 0 | L21: =Screening!M77 -> 0 | M21: =Screening!N77 -> 0 | N21: =Screening!O77 -> 0 | O21: =Screening!P77 -> 0
C22: All Fuels Lifetime Savings (Site MMBtu) | D22: =Screening!E109 -> 0 | E22: =Screening!F109 -> 0 | F22: =Screening!G109 -> 0 | G22: =Screening!H109 -> 0 | H22: =Screening!I109 -> 0 | I22: =Screening!J109 -> 0 | J22: =Screening!K109 -> 0 | K22: =Screening!L109 -> 0 | L22: =Screening!M109 -> 0 | M22: =Screening!N109 -> 0 | N22: =Screening!O109 -> 0 | O22: =Screening!P109 -> 0
C23: 2030 Total Avoided CO2e (Source Metric Tons) | D23: =Screening!E118 -> 0 | E23: =Screening!F118 -> 0 | F23: =Screening!G118 -> 0 | G23: =Screening!H118 -> 0 | H23: =Screening!I118 -> 0 | I23: =Screening!J118 -> 0 | J23: =Screening!K118 -> 0 | K23: =Screening!L118 -> 0 | L23: =Screening!M118 -> 0 | M23: =Screening!N118 -> 0 | N23: =Screening!O118 -> 0 | O23: =Screening!P118 -> 0
C24: Total Lifetime CO2e (Source Metric Tons) | D24: =Screening!E118*Screening!E29 -> 0 | E24: =Screening!F118*Screening!F29 -> 0 | F24: =Screening!G118*Screening!G29 -> 0 | G24: =Screening!H118*Screening!H29 -> 0 | H24: =Screening!I118*Screening!I29 -> 0 | I24: =Screening!J118*Screening!J29 -> 0 | J24: =Screening!K118*Screening!K29 -> 0 | K24: =Screening!L118*Screening!L29 -> 0 | L24: =Screening!M118*Screening!M29 -> 0 | M24: =Screening!N118*Screening!N29 -> 0
C25: Total Payback | D25: =Screening!E92 -> 0 | E25: =Screening!F92 -> 0 | F25: =Screening!G92 -> 0 | G25: =Screening!H92 -> 0 | H25: =Screening!I92 -> 0 | I25: =Screening!J92 -> 0 | J25: =Screening!K92 -> 0 | K25: =Screening!L92 -> 0 | L25: =Screening!M92 -> 0 | M25: =Screening!N92 -> 0 | N25: =Screening!O92 -> 0 | O25: =Screening!P92 -> 0
B26: Project Tracking Information | C26: Heat Pump Tons for Tracking | D26: =Screening!E23 ->  | E26: =Screening!F23 ->  | F26: =Screening!G23 ->  | G26: =Screening!H23 ->  | H26: =Screening!I23 ->  | I26: =Screening!J23 ->  | J26: =Screening!K23 ->  | K26: =Screening!L23 ->  | L26: =Screening!M23 ->  | M26: =Screening!N23 ->  | N26: =Screening!O23 -> 0
B27: (Adjustments made to provided project data that should be used for tracking purposes.) | C27: Measure Life for Tracking | D27: =IF(D34=1,Screening!E28,"") ->  | E27: =IF(E34=1,Screening!F28,"") ->  | F27: =IF(F34=1,Screening!G28,"") ->  | G27: =IF(G34=1,Screening!H28,"") ->  | H27: =IF(H34=1,Screening!I28,"") ->  | I27: =IF(I34=1,Screening!J28,"") ->  | J27: =IF(J34=1,Screening!K28,"") ->  | K27: =IF(K34=1,Screening!L28,"") ->  | L27: =IF(L34=1,Screening!M28,"") ->  | M27: =IF(M34=1,Screening!N28,"") -> 
C28: Allocation Type | D28: =IF(Screening!E17=0,"",Screening!E78) ->  | E28: =IF(Screening!F17=0,"",Screening!F78) ->  | F28: =IF(Screening!G17=0,"",Screening!G78) ->  | G28: =IF(Screening!H17=0,"",Screening!H78) ->  | H28: =IF(Screening!I17=0,"",Screening!I78) ->  | I28: =IF(Screening!J17=0,"",Screening!J78) ->  | J28: =IF(Screening!K17=0,"",Screening!K78) ->  | K28: =IF(Screening!L17=0,"",Screening!L78) ->  | L28: =IF(Screening!M17=0,"",Screening!M78) ->  | M28: =IF(Screening!N17=0,"",Screening!N78) -> 
C29: % Electric Allocation | D29: =IF(Screening!E17=0,"",Screening!E79) ->  | E29: =IF(Screening!F17=0,"",Screening!F79) ->  | F29: =IF(Screening!G17=0,"",Screening!G79) ->  | G29: =IF(Screening!H17=0,"",Screening!H79) ->  | H29: =IF(Screening!I17=0,"",Screening!I79) ->  | I29: =IF(Screening!J17=0,"",Screening!J79) ->  | J29: =IF(Screening!K17=0,"",Screening!K79) ->  | K29: =IF(Screening!L17=0,"",Screening!L79) ->  | L29: =IF(Screening!M17=0,"",Screening!M79) ->  | M29: =IF(Screening!N17=0,"",Screening!N79) ->  | N29: =Screening!O79 -> 0 | O29: =Screening!P79 -> 0
C30: % Gas Allocation | D30: =IF(Screening!E17=0,"",Screening!E80) ->  | E30: =IF(Screening!F17=0,"",Screening!F80) ->  | F30: =IF(Screening!G17=0,"",Screening!G80) ->  | G30: =IF(Screening!H17=0,"",Screening!H80) ->  | H30: =IF(Screening!I17=0,"",Screening!I80) ->  | I30: =IF(Screening!J17=0,"",Screening!J80) ->  | J30: =IF(Screening!K17=0,"",Screening!K80) ->  | K30: =IF(Screening!L17=0,"",Screening!L80) ->  | L30: =IF(Screening!M17=0,"",Screening!M80) ->  | M30: =IF(Screening!N17=0,"",Screening!N80) ->  | N30: =Screening!O80 -> 0 | O30: =Screening!P80 -> 0
C31: Adjusted Total/Incremental Cost | D31: =IF(D34=1,Screening!E42,"") ->  | E31: =IF(E34=1,Screening!F42,"") ->  | F31: =IF(F34=1,Screening!G42,"") ->  | G31: =IF(G34=1,Screening!H42,"") ->  | H31: =IF(H34=1,Screening!I42,"") ->  | I31: =IF(I34=1,Screening!J42,"") ->  | J31: =IF(J34=1,Screening!K42,"") ->  | K31: =IF(K34=1,Screening!L42,"") ->  | L31: =IF(L34=1,Screening!M42,"") ->  | M31: =IF(M34=1,Screening!N42,"") ->  | N31: =SUMPRODUCT('Screening Tool'!D31:M31,Screening!E16:N16) -> 0 | O31: =SUM(D31:M31) -> 0
A32: Measure Inputs - First Year Savings
B33: Measure Information | C33: Measure Label | D33: ECM 1 | E33: ECM 2 | F33: ECM 3 | G33: ECM 4 | H33: ECM 5 | I33: ECM 6 | J33: ECM 7 | K33: ECM 8 | L33: ECM 9 | M33: ECM 10 | P33: Measure Information
C34: Include in project | G34: 0 | H34: 0 | I34: 0 | J34: 0 | K34: 0 | L34: 0 | M34: 0 | N34: =SUM(D34:M34)&" ECMs Included" -> 0 ECMs Included | O34: =COUNT(D38:M38)&" ECMs Total" -> 0 ECMs Total
C35: Initiative
C36: Primary Saved Fuel
C37: Measure
C38: Estimated Useful Life (Years)
C39: Override Life (Optional)
B40: Measure Costs | C40: Proposed Cost ($) | N40: =SUMPRODUCT(D40:M40,Screening!$E$16:$N$16) -> 0 | O40: =SUM(D40:M40) -> 0 | P40: Measure Costs
C41: Value of Federal/State Tax Credits ($) | N41: =SUMPRODUCT(D41:M41,Screening!$E$16:$N$16) -> 0 | O41: =SUM(D41:M41) -> 0
C42: Baseline Cost ($) | N42: =SUMPRODUCT(D42:M42,Screening!$E$16:$N$16) -> 0 | O42: =SUM(D42:M42) -> 0
B43: Gross Electric Energy | C43: Energy (kWh) | N43: =SUMPRODUCT(D43:M43,Screening!$E$16:$N$16) -> 0 | O43: =SUM(D43:M43) -> 0 | P43: Gross Electric Energy
B44: (Savings and Penalties) | C44: % Summer On Peak
C45: % Summer Off Peak
C46: % Winter On Peak
C47: % Winter Off Peak
B48: Gross Electric Capacity | C48: Summer Peak kW | N48: =SUMPRODUCT(D48:M48,Screening!$E$16:$N$16) -> 0 | O48: =SUM(D48:M48) -> 0 | P48: Gross Electric Capacity
B49: (Savings and Penalties) | C49: Winter Peak kW | N49: =SUMPRODUCT(D49:M49,Screening!$E$16:$N$16) -> 0 | O49: 0
B50: Gross Natural Gas | C50: Heating Season (Therms) | N50: =SUMPRODUCT(D50:M50,Screening!$E$16:$N$16) -> 0 | O50: 0 | P50: Gross Natural Gas
B51: (Savings and Penalties) | C51: Year Round (Therms) | N51: =SUMPRODUCT(D51:M51,Screening!$E$16:$N$16) -> 0 | O51: 0
C52: Other (Therms) | N52: =SUMPRODUCT(D52:M52,Screening!$E$16:$N$16) -> 0 | O52: 0
B53: Gross Non-Electric Non-Gas | C53: #2 Oil (MMBtu) | N53: =SUMPRODUCT(D53:M53,Screening!$E$16:$N$16) -> 0 | O53: 0 | P53: Gross Non-Electric Non-Gas
B54: (Savings and Penalties) | C54: Propane (MMBtu) | N54: =SUMPRODUCT(D54:M54,Screening!$E$16:$N$16) -> 0 | O54: 0
C55: Motor Diesel (MMBtu) | N55: =SUMPRODUCT(D55:M55,Screening!$E$16:$N$16) -> 0 | O55: 0
C56: Motor Gasoline (MMBtu) | N56: =SUMPRODUCT(D56:M56,Screening!$E$16:$N$16) -> 0 | O56: 0
C57: Water (Gallons) | N57: =SUMPRODUCT(D57:M57,Screening!$E$16:$N$16) -> 0 | O57: 0
C58: Wood (MMBtu) | N58: =SUMPRODUCT(D58:M58,Screening!$E$16:$N$16) -> 0 | O58: 0
C59: Non-Energy CO2e (Metric Tons) | N59: =SUMPRODUCT(D59:M59,Screening!$E$16:$N$16) -> 0 | O59: 0
A60: Errors and Messages
B61: Type | C61: Issue (Click on the Issue to jump to data entry) | D61: Active Messages | N61: Suggested Fix
B62: Project Considerations | C62: Select PA to produce results | D62: =IF(OR('Screening Tool'!I7="",'Screening Tool'!K7=""),"Active","") ->  | N62: Populate PAs for results
C63: Project BCR is less than 1 | D63: =IF(N21<1,"Active","") -> Active | N63: Review and revise the project to increase the BCR
B64: ECM Errors | C64: Entered fuel savings do not correspond to chosen Primary Fuel Saved selection | D64: =IF(D38<>"",IF(OR(AND(D36="Gas",SUM(D50:D52)=0),AND(D36="Electric",SUM(D43,D48:D49)=0)),"Active",""),"") ->  | N64: Align provided energy savings with Primary Fuel Saved. Dual should be selected when there are positive gas and electric savings.
B65: (Errors indicate inputs are incomplete or may contain errors that produce incorrect results.) | C65: Loadshape values must be populated and add up to 100% | D65: =IF(AND(D38<>"",D43<>""),IF(OR(SUM(D44:D47)=0,AND(SUM(D44:D47)<>0,SUM(D44:D47)<>1)),"Active",""),"") ->  | N65: Adjust loadshape
C66: Select Initiative and Primary Fuel Saved to populate Measure options | D66: =IF(AND(D34<>0,D35="",D36=""),"Active","") ->  | N66: Re-select Initiative and Primary Fuel Saved, then select Measure
C67: "Include In Project" field is blank | D67: =IF(D38<>"",IF(D34<>"","","Active"),"") ->  | N67: Populate field
C68: Retrofit type projects should have zero Baseline Costs. | D68: =IF(AND(D38<>"",OR(D35="Existing Building Retrofit",D35="Small Business")),IF(D42<>0,"Active",""),"") ->  | N68: Update the Initiative or remove baseline costs
C69: Measure or Measure Life not available for Initiative and Fuel Savings Type | D69: =IF(AND(D38<>"",('dynamic tables'!B11+'dynamic tables'!L11)>=1),"Active","") ->  | E69: =IF(AND(E38<>"",('dynamic tables'!C11+'dynamic tables'!M11)>=1),"Active","") ->  | F69: =IF(AND(F38<>"",('dynamic tables'!D11+'dynamic tables'!N11)>=1),"Active","") ->  | G69: =IF(AND(G38<>"",('dynamic tables'!E11+'dynamic tables'!O11)>=1),"Active","") ->  | H69: =IF(AND(H38<>"",('dynamic tables'!F11+'dynamic tables'!P11)>=1),"Active","") ->  | I69: =IF(AND(I38<>"",('dynamic tables'!G11+'dynamic tables'!Q11)>=1),"Active","") ->  | J69: =IF(AND(J38<>"",('dynamic tables'!H11+'dynamic tables'!R11)>=1),"Active","") ->  | K69: =IF(AND(K38<>"",('dynamic tables'!I11+'dynamic tables'!S11)>=1),"Active","") ->  | L69: =IF(AND(L38<>"",('dynamic tables'!J11+'dynamic tables'!T11)>=1),"Active","") ->  | M69: =IF(AND(M38<>"",('dynamic tables'!K11+'dynamic tables'!U11)>=1),"Active","") ->  | N69: Re-select Measure and Measure Life. If error persists- reach out to the tool owner to resolve.
B70: ECM Notes | C70: More than one Natural Gas Savings field used | D70: =IF(D38<>"",IF(SUM(OR(D50="",D50=0),OR(D51="",D51=0),OR(D52="",D52=0))<=1,"Active",""),"") ->  | N70: Most projects only use one savings type
B71: (ECM notes indicate potentially missing data or flag projects as using dual baseline) | C71: Provide energy savings to populate allocation | D71: =IF(AND(D34=1,Screening!E17<>1),"Active","") ->  | E71: =IF(AND(E34=1,Screening!F17<>1),"Active","") ->  | F71: =IF(AND(F34=1,Screening!G17<>1),"Active","") ->  | G71: =IF(AND(G34=1,Screening!H17<>1),"Active","") ->  | H71: =IF(AND(H34=1,Screening!I17<>1),"Active","") ->  | I71: =IF(AND(I34=1,Screening!J17<>1),"Active","") ->  | J71: =IF(AND(J34=1,Screening!K17<>1),"Active","") ->  | K71: =IF(AND(K34=1,Screening!L17<>1),"Active","") ->  | L71: =IF(AND(L34=1,Screening!M17<>1),"Active","") ->  | M71: =IF(AND(M34=1,Screening!N17<>1),"Active","") ->  | N71: Provide energy savings to display allocations
C72: Provide Retail Rates for Payback Estimate | D72: =IF(AND(D34=1,OR(D34*D25=0,COUNTBLANK($P$6:$P$12)=8)),"Active","") ->  | N72: Payback can only be provided when retail rates are entered by the user.
C73: Dual Baseline Applied | D73: =IF(D20=1,"Active","") ->  | N73: Informational only
C74: Proposed Costs are less than or equal to Baseline Costs | D74: =IF(D38<>"",IF(D40<=D42,"Active",""),"") ->  | N74: Typically the installed measure is more expensive than the baseline option.
B75: ECM Eligibility Considerations | C75: Simple Total Payback is longer than measure life | D75: =IF(D38<>"",IF(D25>Screening!E25,"Click to Review",""),"") ->  | E75: =IF(E38<>"",IF(E25>Screening!F25,"Click to Review",""),"") ->  | F75: =IF(F38<>"",IF(F25>Screening!G25,"Click to Review",""),"") ->  | G75: =IF(G38<>"",IF(G25>Screening!H25,"Click to Review",""),"") ->  | H75: =IF(H38<>"",IF(H25>Screening!I25,"Click to Review",""),"") ->  | I75: =IF(I38<>"",IF(I25>Screening!J25,"Click to Review",""),"") ->  | J75: =IF(J38<>"",IF(J25>Screening!K25,"Click to Review",""),"") ->  | K75: =IF(K38<>"",IF(K25>Screening!L25,"Click to Review",""),"") ->  | L75: =IF(L38<>"",IF(L25>Screening!M25,"Click to Review",""),"") ->  | M75: =IF(M38<>"",IF(M25>Screening!N25,"Click to Review",""),"") -> 
B76: (ECM Eligibility Considerations indicate specific ECMs may not be eligible for incentives) | C76: Negative lifetime MMBtu savings | D76: =IF(D38<>"",IF(D22<0,"Active",""),"") -> 
C77: Measure BCR is less than one | D77: =IF(D38<>"",IF(D21<1,"Active",""),"") -> 
C78: Negative Measure Payback | D78: =IF(D38<>"",IF(D25<0,"Active",""),"") -> 
C79: Negative avoided CO2 | D79: =IF(D38<>"",IF(D23<0,"Active",""),"") -> 
C81: Error | D81: =COUNTIF(D64:D69,"Active") -> 0 | E81: 0 | F81: 0 | G81: 0 | H81: 0 | I81: 0 | J81: 0 | K81: 0 | L81: 0 | M81: 0
C82: Note | D82: =COUNTIF(D70:D79,"Active") -> 0 | E82: =COUNTIF(E70:E79,"Active") -> 0 | F82: 0 | G82: 0 | H82: 0 | I82: 0 | J82: 0 | K82: 0 | L82: 0 | M82: 0

Sheet Screening (hidden)
A1: Tab Explanation: | G1: Reference to Measures Tab
A2: This tab includes all formulas and calculations converting savings into benefits and calculating measure and project results. | G2: Reference to Benefits Tab
A3: Note on formatting - greyed out columns are not included in project (blank or have "0"). | G3: Reference for MMBTu-CO2 Tables tab
A4: Last updated by Whitney Brougher, 2025
A6: PA Value Table: | B6: Values_MA
A8: Output Display name: | B8: Massachusetts 2025 Custom Screening Tool Output
C10: =IF(OR(D35=0,SUM(D44,D51:D57)=0,SUM(D45:D48)<>1),"",Screening!E78) -> 
D14: Index | E14: ='Screening Tool'!D33 -> ECM 1 | F14: ='Screening Tool'!E33 -> ECM 2 | G14: ='Screening Tool'!F33 -> ECM 3 | H14: ='Screening Tool'!G33 -> ECM 4 | I14: ='Screening Tool'!H33 -> ECM 5 | J14: ='Screening Tool'!I33 -> ECM 6 | K14: ='Screening Tool'!J33 -> ECM 7 | L14: ='Screening Tool'!K33 -> ECM 8 | M14: ='Screening Tool'!L33 -> ECM 9 | N14: ='Screening Tool'!M33 -> ECM 10 | O14: Selected Measure Project | P14: All Measure Project | Q14: Notes
A15: Indicators | B15: References and Types | C15: Unique Measure Name | E15: =CONCATENATE('Screening Tool'!D36,'Screening Tool'!D35,'Screening Tool'!D18) ->  | F15: =CONCATENATE('Screening Tool'!E36,'Screening Tool'!E35,'Screening Tool'!E18) ->  | G15: =CONCATENATE('Screening Tool'!F36,'Screening Tool'!F35,'Screening Tool'!F18) ->  | H15: =CONCATENATE('Screening Tool'!G36,'Screening Tool'!G35,'Screening Tool'!G18) ->  | I15: =CONCATENATE('Screening Tool'!H36,'Screening Tool'!H35,'Screening Tool'!H18) ->  | J15: =CONCATENATE('Screening Tool'!I36,'Screening Tool'!I35,'Screening Tool'!I18) ->  | K15: =CONCATENATE('Screening Tool'!J36,'Screening Tool'!J35,'Screening Tool'!J18) ->  | L15: =CONCATENATE('Screening Tool'!K36,'Screening Tool'!K35,'Screening Tool'!K18) ->  | M15: =CONCATENATE('Screening Tool'!L36,'Screening Tool'!L35,'Screening Tool'!L18) ->  | N15: =CONCATENATE('Screening Tool'!M36,'Screening Tool'!M35,'Screening Tool'!M18) -> 
C16: Included? (Y=1, N=0) | E16: ='Screening Tool'!D34 -> 0 | F16: ='Screening Tool'!E34 -> 0 | G16: ='Screening Tool'!F34 -> 0 | H16: ='Screening Tool'!G34 -> 0 | I16: ='Screening Tool'!H34 -> 0 | J16: ='Screening Tool'!I34 -> 0 | K16: ='Screening Tool'!J34 -> 0 | L16: ='Screening Tool'!K34 -> 0 | M16: ='Screening Tool'!L34 -> 0 | N16: ='Screening Tool'!M34 -> 0
C17: Complete energy savings provided | E17: =IF(OR(SUM(E34:E37)<>0,SUM('Screening Tool'!D50:D56,'Screening Tool'!D58)<>0),1,0) -> 0 | F17: =IF(OR(SUM(F34:F37)<>0,SUM('Screening Tool'!E50:E56,'Screening Tool'!E58)<>0),1,0) -> 0 | G17: =IF(OR(SUM(G34:G37)<>0,SUM('Screening Tool'!F50:F56,'Screening Tool'!F58)<>0),1,0) -> 0 | H17: =IF(OR(SUM(H34:H37)<>0,SUM('Screening Tool'!G50:G56,'Screening Tool'!G58)<>0),1,0) -> 0 | I17: =IF(OR(SUM(I34:I37)<>0,SUM('Screening Tool'!H50:H56,'Screening Tool'!H58)<>0),1,0) -> 0 | J17: =IF(OR(SUM(J34:J37)<>0,SUM('Screening Tool'!I50:I56,'Screening Tool'!I58)<>0),1,0) -> 0 | K17: =IF(OR(SUM(K34:K37)<>0,SUM('Screening Tool'!J50:J56,'Screening Tool'!J58)<>0),1,0) -> 0 | L17: =IF(OR(SUM(L34:L37)<>0,SUM('Screening Tool'!K50:K56,'Screening Tool'!K58)<>0),1,0) -> 0 | M17: =IF(OR(SUM(M34:M37)<>0,SUM('Screening Tool'!L50:L56,'Screening Tool'!L58)<>0),1,0) -> 0 | N17: =IF(OR(SUM(N34:N37)<>0,SUM('Screening Tool'!M50:M56,'Screening Tool'!M58)<>0),1,0) -> 0 | Q17: This checks if energy savings are provided and if the electric loadshape is complete. Used to display allocation values
C18: SCC vs MAC | D18: 6 | E18: =IFERROR(VLOOKUP(E15,Measures!$J$6:$O$841,$D18,0),"") ->  | F18: =IFERROR(VLOOKUP(F15,Measures!$J$6:$O$841,$D18,0),"") ->  | G18: =IFERROR(VLOOKUP(G15,Measures!$J$6:$O$841,$D18,0),"") ->  | H18: =IFERROR(VLOOKUP(H15,Measures!$J$6:$O$841,$D18,0),"") ->  | I18: =IFERROR(VLOOKUP(I15,Measures!$J$6:$O$841,$D18,0),"") ->  | J18: =IFERROR(VLOOKUP(J15,Measures!$J$6:$O$841,$D18,0),"") ->  | K18: =IFERROR(VLOOKUP(K15,Measures!$J$6:$O$841,$D18,0),"") ->  | L18: =IFERROR(VLOOKUP(L15,Measures!$J$6:$O$841,$D18,0),"") ->  | M18: =IFERROR(VLOOKUP(M15,Measures!$J$6:$O$841,$D18,0),"") ->  | N18: =IFERROR(VLOOKUP(N15,Measures!$J$6:$O$841,$D18,0),"") -> 
C19: Fuel Type | E19: ='Screening Tool'!D36 -> 0 | F19: ='Screening Tool'!E36 -> 0 | G19: ='Screening Tool'!F36 -> 0 | H19: ='Screening Tool'!G36 -> 0 | I19: ='Screening Tool'!H36 -> 0 | J19: ='Screening Tool'!I36 -> 0 | K19: ='Screening Tool'!J36 -> 0 | L19: ='Screening Tool'!K36 -> 0 | M19: ='Screening Tool'!L36 -> 0 | N19: ='Screening Tool'!M36 -> 0
C20: Electrification (Y=1, N=0) | D20: 5 | E20: =IFERROR(IF(VLOOKUP(E15,Measures!$J$6:$N$842,$D20,FALSE)=1,1,0),"") ->  | F20: =IFERROR(IF(VLOOKUP(F15,Measures!$J$6:$N$842,$D20,FALSE)=1,1,0),"") ->  | G20: =IFERROR(IF(VLOOKUP(G15,Measures!$J$6:$N$842,$D20,FALSE)=1,1,0),"") ->  | H20: =IFERROR(IF(VLOOKUP(H15,Measures!$J$6:$N$842,$D20,FALSE)=1,1,0),"") ->  | I20: =IFERROR(IF(VLOOKUP(I15,Measures!$J$6:$N$842,$D20,FALSE)=1,1,0),"") ->  | J20: =IFERROR(IF(VLOOKUP(J15,Measures!$J$6:$N$842,$D20,FALSE)=1,1,0),"") ->  | K20: =IFERROR(IF(VLOOKUP(K15,Measures!$J$6:$N$842,$D20,FALSE)=1,1,0),"") ->  | L20: =IFERROR(IF(VLOOKUP(L15,Measures!$J$6:$N$842,$D20,FALSE)=1,1,0),"") ->  | M20: =IFERROR(IF(VLOOKUP(M15,Measures!$J$6:$N$842,$D20,FALSE)=1,1,0),"") ->  | N20: =IFERROR(IF(VLOOKUP(N15,Measures!$J$6:$N$842,$D20,FALSE)=1,1,0),"") ->  | Q20: Used for allocation, determining which capacity benefit to use
C21: Elx Type (1=gas, 0 = elx or delivered fuel) | E21: =IFERROR(E20*IF(SUM('Screening Tool'!D50:D52)<>0,1,0),0) -> 0 | F21: =IFERROR(F20*IF(SUM('Screening Tool'!E50:E52)<>0,1,0),0) -> 0 | G21: =IFERROR(G20*IF(SUM('Screening Tool'!F50:F52)<>0,1,0),0) -> 0 | H21: =IFERROR(H20*IF(SUM('Screening Tool'!G50:G52)<>0,1,0),0) -> 0 | I21: =IFERROR(I20*IF(SUM('Screening Tool'!H50:H52)<>0,1,0),0) -> 0 | J21: =IFERROR(J20*IF(SUM('Screening Tool'!I50:I52)<>0,1,0),0) -> 0 | K21: =IFERROR(K20*IF(SUM('Screening Tool'!J50:J52)<>0,1,0),0) -> 0 | L21: =IFERROR(L20*IF(SUM('Screening Tool'!K50:K52)<>0,1,0),0) -> 0 | M21: =IFERROR(M20*IF(SUM('Screening Tool'!L50:L52)<>0,1,0),0) -> 0 | N21: =IFERROR(N20*IF(SUM('Screening Tool'!M50:M52)<>0,1,0),0) -> 0 | Q21: used for allocation to flag if elx will get the fixed gas/electric % or rely on benefits
C22: PA Claiming Savings | E22: =IF(E16=1,IF(E79=1,"Electric PA",IF(E80=1,"Gas PA","Both PAs")),"") -> 
B23: Calculations | C23: Calculated Tonnage for NEIs | D23: 10 | E23: =IFERROR(-'Screening Tool'!D43*VLOOKUP(E15,Measures!$J$6:$S$842,$D23,FALSE),"") ->  | F23: =IFERROR(-'Screening Tool'!E43*VLOOKUP(F15,Measures!$J$6:$S$842,$D23,FALSE),"") ->  | G23: =IFERROR(-'Screening Tool'!F43*VLOOKUP(G15,Measures!$J$6:$S$842,$D23,FALSE),"") ->  | H23: =IFERROR(-'Screening Tool'!G43*VLOOKUP(H15,Measures!$J$6:$S$842,$D23,FALSE),"") ->  | I23: =IFERROR(-'Screening Tool'!H43*VLOOKUP(I15,Measures!$J$6:$S$842,$D23,FALSE),"") ->  | J23: =IFERROR(-'Screening Tool'!I43*VLOOKUP(J15,Measures!$J$6:$S$842,$D23,FALSE),"") ->  | K23: =IFERROR(-'Screening Tool'!J43*VLOOKUP(K15,Measures!$J$6:$S$842,$D23,FALSE),"") ->  | L23: =IFERROR(-'Screening Tool'!K43*VLOOKUP(L15,Measures!$J$6:$S$842,$D23,FALSE),"") ->  | M23: =IFERROR(-'Screening Tool'!L43*VLOOKUP(M15,Measures!$J$6:$S$842,$D23,FALSE),"") ->  | N23: =IFERROR(-'Screening Tool'!M43*VLOOKUP(N15,Measures!$J$6:$S$842,$D23,FALSE),"") ->  | O23: =SUMPRODUCT(E23:N23,E20:N20) -> 0 | P23: =SUM(E23:N23) -> 0
C24: CO2 factor adjustment - if active past 2030, 100%, if not 50% | E24: =IF(E29<(2030-AESC!C7),0.5,1) -> 0.5 | F24: =IF(F29<(2030-AESC!D7),0.5,1) -> 0.5 | G24: =IF(G29<(2030-AESC!E7),0.5,1) -> 0.5 | H24: =IF(H29<(2030-AESC!F7),0.5,1) -> 0.5 | I24: =IF(I29<(2030-AESC!G7),0.5,1) -> 0.5 | J24: =IF(J29<(2030-AESC!H7),0.5,1) -> 0.5 | K24: =IF(K29<(2030-AESC!I7),0.5,1) -> 0.5 | L24: =IF(L29<(2030-AESC!J7),0.5,1) -> 0.5 | M24: =IF(M29<(2030-AESC!K7),0.5,1) -> 0.5 | N24: =IF(N29<(2030-AESC!L7),0.5,1) -> 0.5
A25: Measure Life | B25: From Input | C25: Measure Life (use override life if available) | E25: =('Screening Tool'!D39>0)*'Screening Tool'!D39+('Screening Tool'!D39<=0)*'Screening Tool'!D38 -> 0 | F25: =('Screening Tool'!E39>0)*'Screening Tool'!E39+('Screening Tool'!E39<=0)*'Screening Tool'!E38 -> 0 | G25: =('Screening Tool'!F39>0)*'Screening Tool'!F39+('Screening Tool'!F39<=0)*'Screening Tool'!F38 -> 0 | H25: =('Screening Tool'!G39>0)*'Screening Tool'!G39+('Screening Tool'!G39<=0)*'Screening Tool'!G38 -> 0 | I25: =('Screening Tool'!H39>0)*'Screening Tool'!H39+('Screening Tool'!H39<=0)*'Screening Tool'!H38 -> 0 | J25: =('Screening Tool'!I39>0)*'Screening Tool'!I39+('Screening Tool'!I39<=0)*'Screening Tool'!I38 -> 0 | K25: =('Screening Tool'!J39>0)*'Screening Tool'!J39+('Screening Tool'!J39<=0)*'Screening Tool'!J38 -> 0 | L25: =('Screening Tool'!K39>0)*'Screening Tool'!K39+('Screening Tool'!K39<=0)*'Screening Tool'!K38 -> 0 | M25: =('Screening Tool'!L39>0)*'Screening Tool'!L39+('Screening Tool'!L39<=0)*'Screening Tool'!L38 -> 0 | N25: =('Screening Tool'!M39>0)*'Screening Tool'!M39+('Screening Tool'!M39<=0)*'Screening Tool'!M38 -> 0 | O25: =SUMPRODUCT(E25:N25,E16:N16) -> 0 | P25: =SUM(E25:N25) -> 0
B26: Dual Baseline | C26: Applicable? | D26: 2 | E26: =IFERROR((E25<>"")*VLOOKUP(E15,Measures!$J$7:$K$842,$D26,FALSE), 0) -> 0 | F26: =IFERROR((F25<>"")*VLOOKUP(F15,Measures!$J$7:$K$842,$D26,FALSE), 0) -> 0 | G26: =IFERROR((G25<>"")*VLOOKUP(G15,Measures!$J$7:$K$842,$D26,FALSE), 0) -> 0 | H26: =IFERROR((H25<>"")*VLOOKUP(H15,Measures!$J$7:$K$842,$D26,FALSE), 0) -> 0 | I26: =IFERROR((I25<>"")*VLOOKUP(I15,Measures!$J$7:$K$842,$D26,FALSE), 0) -> 0 | J26: =IFERROR((J25<>"")*VLOOKUP(J15,Measures!$J$7:$K$842,$D26,FALSE), 0) -> 0 | K26: =IFERROR((K25<>"")*VLOOKUP(K15,Measures!$J$7:$K$842,$D26,FALSE), 0) -> 0 | L26: =IFERROR((L25<>"")*VLOOKUP(L15,Measures!$J$7:$K$842,$D26,FALSE), 0) -> 0 | M26: =IFERROR((M25<>"")*VLOOKUP(M15,Measures!$J$7:$K$842,$D26,FALSE), 0) -> 0 | N26: =IFERROR((N25<>"")*VLOOKUP(N15,Measures!$J$7:$K$842,$D26,FALSE), 0) -> 0
C27: OYF | D27: 4 | E27: =IF(E26=1,VLOOKUP('Screening Tool'!D18,Measures!$D$7:$G$842,$D27,FALSE),1) -> 1 | F27: =IF(F26=1,VLOOKUP('Screening Tool'!E18,Measures!$D$7:$G$842,$D27,FALSE),1) -> 1 | G27: =IF(G26=1,VLOOKUP('Screening Tool'!F18,Measures!$D$7:$G$842,$D27,FALSE),1) -> 1 | H27: =IF(H26=1,VLOOKUP('Screening Tool'!G18,Measures!$D$7:$G$842,$D27,FALSE),1) -> 1 | I27: =IF(I26=1,VLOOKUP('Screening Tool'!H18,Measures!$D$7:$G$842,$D27,FALSE),1) -> 1 | J27: =IF(J26=1,VLOOKUP('Screening Tool'!I18,Measures!$D$7:$G$842,$D27,FALSE),1) -> 1 | K27: =IF(K26=1,VLOOKUP('Screening Tool'!J18,Measures!$D$7:$G$842,$D27,FALSE),1) -> 1 | L27: =IF(L26=1,VLOOKUP('Screening Tool'!K18,Measures!$D$7:$G$842,$D27,FALSE),1) -> 1 | M27: =IF(M26=1,VLOOKUP('Screening Tool'!L18,Measures!$D$7:$G$842,$D27,FALSE),1) -> 1 | N27: =IF(N26=1,VLOOKUP('Screening Tool'!M18,Measures!$D$7:$G$842,$D27,FALSE),1) -> 1
C28: EML | E28: =ROUND((RULF*Screening!E25*(1+2*Screening!E27)),1) -> 0 | F28: =ROUND((RULF*Screening!F25*(1+2*Screening!F27)),1) -> 0 | G28: =ROUND((RULF*Screening!G25*(1+2*Screening!G27)),1) -> 0 | H28: =ROUND((RULF*Screening!H25*(1+2*Screening!H27)),1) -> 0 | I28: =ROUND((RULF*Screening!I25*(1+2*Screening!I27)),1) -> 0 | J28: =ROUND((RULF*Screening!J25*(1+2*Screening!J27)),1) -> 0 | K28: =ROUND((RULF*Screening!K25*(1+2*Screening!K27)),1) -> 0 | L28: =ROUND((RULF*Screening!L25*(1+2*Screening!L27)),1) -> 0 | M28: =ROUND((RULF*Screening!M25*(1+2*Screening!M27)),1) -> 0 | N28: =ROUND((RULF*Screening!N25*(1+2*Screening!N27)),1) -> 0
C29: EML Lookup Value | E29: =ROUND((RULF*Screening!E25*(1+2*Screening!E27)),0) -> 0 | F29: =ROUND((RULF*Screening!F25*(1+2*Screening!F27)),0) -> 0 | G29: =ROUND((RULF*Screening!G25*(1+2*Screening!G27)),0) -> 0 | H29: =ROUND((RULF*Screening!H25*(1+2*Screening!H27)),0) -> 0 | I29: =ROUND((RULF*Screening!I25*(1+2*Screening!I27)),0) -> 0 | J29: =ROUND((RULF*Screening!J25*(1+2*Screening!J27)),0) -> 0 | K29: =ROUND((RULF*Screening!K25*(1+2*Screening!K27)),0) -> 0 | L29: =ROUND((RULF*Screening!L25*(1+2*Screening!L27)),0) -> 0 | M29: =ROUND((RULF*Screening!M25*(1+2*Screening!M27)),0) -> 0 | N29: =ROUND((RULF*Screening!N25*(1+2*Screening!N27)),0) -> 0
C30: Second Period Costs | E30: =E26*E27*'Screening Tool'!D40 -> 0 | F30: =F26*F27*'Screening Tool'!E40 -> 0 | G30: =G26*G27*'Screening Tool'!F40 -> 0 | H30: =H26*H27*'Screening Tool'!G40 -> 0 | I30: =I26*I27*'Screening Tool'!H40 -> 0 | J30: =J26*J27*'Screening Tool'!I40 -> 0 | K30: =K26*K27*'Screening Tool'!J40 -> 0 | L30: =L26*L27*'Screening Tool'!K40 -> 0 | M30: =M26*M27*'Screening Tool'!L40 -> 0 | N30: =N26*N27*'Screening Tool'!M40 -> 0
C31: Age Existing | E31: =E26*E25*(1-RULF) -> 0 | F31: =F26*F25*(1-RULF) -> 0 | G31: 0 | H31: 0 | I31: 0 | J31: 0 | K31: 0 | L31: 0 | M31: 0 | N31: 0
C32: RUL | E32: =E26*E25*RULF -> 0 | F32: =F26*F25*RULF -> 0 | G32: 0 | H32: 0 | I32: 0 | J32: 0 | K32: 0 | L32: 0 | M32: 0 | N32: 0
C33: Deferment Credit | E33: =E26*IFERROR(PV(DISC,E31,PMT(DISC,E25,E30))/((1+DISC)^E32),0)*($B$6="Values_MA") -> 0 | F33: =F26*IFERROR(PV(DISC,F31,PMT(DISC,F25,F30))/((1+DISC)^F32),0)*($B$6="Values_MA") -> 0 | G33: 0 | H33: 0 | I33: 0 | J33: 0 | K33: 0 | L33: 0 | M33: 0 | N33: 0
A34: Savings | B34: Electric Energy | C34: Summer On Peak Annual kWh | E34: ='Screening Tool'!D$43*'Screening Tool'!D44 -> 0 | F34: ='Screening Tool'!E$43*'Screening Tool'!E44 -> 0 | G34: ='Screening Tool'!F$43*'Screening Tool'!F44 -> 0 | H34: ='Screening Tool'!G$43*'Screening Tool'!G44 -> 0 | I34: ='Screening Tool'!H$43*'Screening Tool'!H44 -> 0 | J34: ='Screening Tool'!I$43*'Screening Tool'!I44 -> 0 | K34: ='Screening Tool'!J$43*'Screening Tool'!J44 -> 0 | L34: ='Screening Tool'!K$43*'Screening Tool'!K44 -> 0 | M34: ='Screening Tool'!L$43*'Screening Tool'!L44 -> 0 | N34: ='Screening Tool'!M$43*'Screening Tool'!M44 -> 0 | O34: =SUMPRODUCT(E34:N34,$E$16:$N$16) -> 0 | P34: =SUM(E34:N34) -> 0
C35: Summer Off Peak Annual kWh | E35: ='Screening Tool'!D$43*'Screening Tool'!D45 -> 0 | F35: ='Screening Tool'!E$43*'Screening Tool'!E45 -> 0 | G35: ='Screening Tool'!F$43*'Screening Tool'!F45 -> 0 | H35: ='Screening Tool'!G$43*'Screening Tool'!G45 -> 0 | I35: ='Screening Tool'!H$43*'Screening Tool'!H45 -> 0 | J35: ='Screening Tool'!I$43*'Screening Tool'!I45 -> 0 | K35: ='Screening Tool'!J$43*'Screening Tool'!J45 -> 0 | L35: ='Screening Tool'!K$43*'Screening Tool'!K45 -> 0 | M35: ='Screening Tool'!L$43*'Screening Tool'!L45 -> 0 | N35: ='Screening Tool'!M$43*'Screening Tool'!M45 -> 0 | O35: 0 | P35: 0
C36: Winter On Peak Annual kWh | E36: ='Screening Tool'!D$43*'Screening Tool'!D46 -> 0 | F36: ='Screening Tool'!E$43*'Screening Tool'!E46 -> 0 | G36: ='Screening Tool'!F$43*'Screening Tool'!F46 -> 0 | H36: ='Screening Tool'!G$43*'Screening Tool'!G46 -> 0 | I36: ='Screening Tool'!H$43*'Screening Tool'!H46 -> 0 | J36: ='Screening Tool'!I$43*'Screening Tool'!I46 -> 0 | K36: ='Screening Tool'!J$43*'Screening Tool'!J46 -> 0 | L36: ='Screening Tool'!K$43*'Screening Tool'!K46 -> 0 | M36: ='Screening Tool'!L$43*'Screening Tool'!L46 -> 0 | N36: ='Screening Tool'!M$43*'Screening Tool'!M46 -> 0 | O36: 0 | P36: 0
C37: Winter Off Peak Annual kWh | E37: ='Screening Tool'!D$43*'Screening Tool'!D47 -> 0 | F37: ='Screening Tool'!E$43*'Screening Tool'!E47 -> 0 | G37: ='Screening Tool'!F$43*'Screening Tool'!F47 -> 0 | H37: ='Screening Tool'!G$43*'Screening Tool'!G47 -> 0 | I37: ='Screening Tool'!H$43*'Screening Tool'!H47 -> 0 | J37: ='Screening Tool'!I$43*'Screening Tool'!I47 -> 0 | K37: ='Screening Tool'!J$43*'Screening Tool'!J47 -> 0 | L37: ='Screening Tool'!K$43*'Screening Tool'!K47 -> 0 | M37: ='Screening Tool'!L$43*'Screening Tool'!L47 -> 0 | N37: ='Screening Tool'!M$43*'Screening Tool'!M47 -> 0 | O37: 0 | P37: 0
C38: Lifetime MWh | E38: =E29*'Screening Tool'!D43/1000 -> 0 | F38: =F29*'Screening Tool'!E43/1000 -> 0 | G38: =G29*'Screening Tool'!F43/1000 -> 0 | H38: =H29*'Screening Tool'!G43/1000 -> 0 | I38: =I29*'Screening Tool'!H43/1000 -> 0 | J38: =J29*'Screening Tool'!I43/1000 -> 0 | K38: =K29*'Screening Tool'!J43/1000 -> 0 | L38: =L29*'Screening Tool'!K43/1000 -> 0 | M38: =M29*'Screening Tool'!L43/1000 -> 0 | N38: =N29*'Screening Tool'!M43/1000 -> 0 | O38: 0 | P38: =SUM(E38:N38) -> 0
B39: Annual NEI | C39: HVAC HP per ton annual NEI | D39: 7 | E39: =IFERROR(VLOOKUP(E15,Measures!$J$7:$R$840,$D39,FALSE)*E23,0) -> 0 | F39: =IFERROR(VLOOKUP(F15,Measures!$J$7:$R$840,$D39,FALSE)*F23,0) -> 0 | G39: =IFERROR(VLOOKUP(G15,Measures!$J$7:$R$840,$D39,FALSE)*G23,0) -> 0 | H39: =IFERROR(VLOOKUP(H15,Measures!$J$7:$R$840,$D39,FALSE)*H23,0) -> 0 | I39: =IFERROR(VLOOKUP(I15,Measures!$J$7:$R$840,$D39,FALSE)*I23,0) -> 0 | J39: =IFERROR(VLOOKUP(J15,Measures!$J$7:$R$840,$D39,FALSE)*J23,0) -> 0 | K39: =IFERROR(VLOOKUP(K15,Measures!$J$7:$R$840,$D39,FALSE)*K23,0) -> 0 | L39: =IFERROR(VLOOKUP(L15,Measures!$J$7:$R$840,$D39,FALSE)*L23,0) -> 0 | M39: =IFERROR(VLOOKUP(M15,Measures!$J$7:$R$840,$D39,FALSE)*M23,0) -> 0 | N39: =IFERROR(VLOOKUP(N15,Measures!$J$7:$R$840,$D39,FALSE)*N23,0) -> 0 | O39: 0 | P39: 0
C40: Electric Annual NEI | D40: 8 | E40: =IFERROR(VLOOKUP(E15,Measures!$J$7:$R$840,$D40,FALSE)*SUM(E34:E37),0) -> 0 | F40: =IFERROR(VLOOKUP(F15,Measures!$J$7:$R$840,$D40,FALSE)*SUM(F34:F37),0) -> 0 | G40: =IFERROR(VLOOKUP(G15,Measures!$J$7:$R$840,$D40,FALSE)*SUM(G34:G37),0) -> 0 | H40: =IFERROR(VLOOKUP(H15,Measures!$J$7:$R$840,$D40,FALSE)*SUM(H34:H37),0) -> 0 | I40: =IFERROR(VLOOKUP(I15,Measures!$J$7:$R$840,$D40,FALSE)*SUM(I34:I37),0) -> 0 | J40: =IFERROR(VLOOKUP(J15,Measures!$J$7:$R$840,$D40,FALSE)*SUM(J34:J37),0) -> 0 | K40: =IFERROR(VLOOKUP(K15,Measures!$J$7:$R$840,$D40,FALSE)*SUM(K34:K37),0) -> 0 | L40: =IFERROR(VLOOKUP(L15,Measures!$J$7:$R$840,$D40,FALSE)*SUM(L34:L37),0) -> 0 | M40: =IFERROR(VLOOKUP(M15,Measures!$J$7:$R$840,$D40,FALSE)*SUM(M34:M37),0) -> 0 | N40: =IFERROR(VLOOKUP(N15,Measures!$J$7:$R$840,$D40,FALSE)*SUM(N34:N37),0) -> 0 | O40: 0 | P40: 0 | Q40: Note this uses the energy period savings rather than directly the annual savings. This is to avoid providing an NEI when complete data is not provided
C41: Gas Annual NEI | D41: 9 | E41: =IFERROR(VLOOKUP(E15,Measures!$J$7:$R$840,$D41,FALSE)*SUM('Screening Tool'!D50:D52),0) -> 0 | F41: =IFERROR(VLOOKUP(F15,Measures!$J$7:$R$840,$D41,FALSE)*SUM('Screening Tool'!E50:E52),0) -> 0 | G41: =IFERROR(VLOOKUP(G15,Measures!$J$7:$R$840,$D41,FALSE)*SUM('Screening Tool'!F50:F52),0) -> 0 | H41: =IFERROR(VLOOKUP(H15,Measures!$J$7:$R$840,$D41,FALSE)*SUM('Screening Tool'!G50:G52),0) -> 0 | I41: =IFERROR(VLOOKUP(I15,Measures!$J$7:$R$840,$D41,FALSE)*SUM('Screening Tool'!H50:H52),0) -> 0 | J41: =IFERROR(VLOOKUP(J15,Measures!$J$7:$R$840,$D41,FALSE)*SUM('Screening Tool'!I50:I52),0) -> 0 | K41: =IFERROR(VLOOKUP(K15,Measures!$J$7:$R$840,$D41,FALSE)*SUM('Screening Tool'!J50:J52),0) -> 0 | L41: =IFERROR(VLOOKUP(L15,Measures!$J$7:$R$840,$D41,FALSE)*SUM('Screening Tool'!K50:K52),0) -> 0 | M41: =IFERROR(VLOOKUP(M15,Measures!$J$7:$R$840,$D41,FALSE)*SUM('Screening Tool'!L50:L52),0) -> 0 | N41: =IFERROR(VLOOKUP(N15,Measures!$J$7:$R$840,$D41,FALSE)*SUM('Screening Tool'!M50:M52),0) -> 0 | O41: 0 | P41: 0
A42: Costs | B42: Costs | C42: Total Resource Cost | E42: =(E25<>"")*(('Screening Tool'!D40-'Screening Tool'!D41-'Screening Tool'!D42)-E33) -> 0 | F42: =(F25<>"")*(('Screening Tool'!E40-'Screening Tool'!E41-'Screening Tool'!E42)-F33) -> 0 | G42: =(G25<>"")*(('Screening Tool'!F40-'Screening Tool'!F41-'Screening Tool'!F42)-G33) -> 0 | H42: =(H25<>"")*(('Screening Tool'!G40-'Screening Tool'!G41-'Screening Tool'!G42)-H33) -> 0 | I42: =(I25<>"")*(('Screening Tool'!H40-'Screening Tool'!H41-'Screening Tool'!H42)-I33) -> 0 | J42: =(J25<>"")*(('Screening Tool'!I40-'Screening Tool'!I41-'Screening Tool'!I42)-J33) -> 0 | K42: =(K25<>"")*(('Screening Tool'!J40-'Screening Tool'!J41-'Screening Tool'!J42)-K33) -> 0 | L42: =(L25<>"")*(('Screening Tool'!K40-'Screening Tool'!K41-'Screening Tool'!K42)-L33) -> 0 | M42: =(M25<>"")*(('Screening Tool'!L40-'Screening Tool'!L41-'Screening Tool'!L42)-M33) -> 0 | N42: =(N25<>"")*(('Screening Tool'!M40-'Screening Tool'!M41-'Screening Tool'!M42)-N33) -> 0 | O42: 0 | P42: =SUM(E42:N42) -> 0
A43: Benefits | B43: Electric Energy Benefits | C43: Annual kWh (DRIPE) | D43: 2 | E43: =IFERROR(SUM(E$34:E$37)*VLOOKUP(E$29,AESC,$D43,FALSE),0) -> 0 | F43: =IFERROR(SUM(F$34:F$37)*VLOOKUP(F$29,AESC,$D43,FALSE),0) -> 0 | G43: 0 | H43: 0 | I43: 0 | J43: 0 | K43: 0 | L43: 0 | M43: 0 | N43: 0 | O43: 0 | P43: =SUM(E43:N43) -> 0
A44: Referencing AESC table on AESC tab | C44: Summer On Peak (Energy + DRIPE + SCC) | D44: 3 | E44: =IFERROR(E34*VLOOKUP(E$29,AESC,$D44,FALSE),0) -> 0 | F44: =IFERROR(F34*VLOOKUP(F$29,AESC,$D44,FALSE),0) -> 0 | G44: 0 | H44: 0 | I44: 0 | J44: 0 | K44: 0 | L44: 0 | M44: 0 | N44: 0 | O44: 0 | P44: 0
C45: Summer Off Peak (Energy + DRIPE + SCC) | D45: 4 | E45: =IFERROR(E35*VLOOKUP(E$29,AESC,$D45,FALSE),0) -> 0 | F45: =IFERROR(F35*VLOOKUP(F$29,AESC,$D45,FALSE),0) -> 0 | G45: 0 | H45: 0 | I45: 0 | J45: 0 | K45: 0 | L45: 0 | M45: 0 | N45: 0 | O45: 0 | P45: 0
C46: Winter On Peak (Energy + DRIPE + SCC) | D46: 5 | E46: =IFERROR(E36*VLOOKUP(E$29,AESC,$D46,FALSE),0) -> 0 | F46: =IFERROR(F36*VLOOKUP(F$29,AESC,$D46,FALSE),0) -> 0 | G46: 0 | H46: 0 | I46: 0 | J46: 0 | K46: 0 | L46: 0 | M46: 0 | N46: 0 | O46: 0 | P46: 0
C47: Winter Off Peak (Energy + DRIPE + SCC) | D47: 6 | E47: =IFERROR(E37*VLOOKUP(E$29,AESC,$D47,FALSE),0) -> 0 | F47: =IFERROR(F37*VLOOKUP(F$29,AESC,$D47,FALSE),0) -> 0 | G47: 0 | H47: 0 | I47: 0 | J47: 0 | K47: 0 | L47: 0 | M47: 0 | N47: 0 | O47: 0 | P47: 0
B48: Capacity Benefits | C48: Summer kW (cleared (ref 7, EE) or uncleared (ref 9, Elx) capacity + DRIPE + Reliability) | D48: 7 | E48: ='Screening Tool'!D48*IFERROR(VLOOKUP(E$29,AESC,($D48+E$20*2),FALSE),0) -> 0 | F48: ='Screening Tool'!E48*IFERROR(VLOOKUP(F$29,AESC,($D48+F$20*2),FALSE),0) -> 0 | G48: ='Screening Tool'!F48*IFERROR(VLOOKUP(G$29,AESC,($D48+G$20*2),FALSE),0) -> 0 | H48: ='Screening Tool'!G48*IFERROR(VLOOKUP(H$29,AESC,($D48+H$20*2),FALSE),0) -> 0 | I48: ='Screening Tool'!H48*IFERROR(VLOOKUP(I$29,AESC,($D48+I$20*2),FALSE),0) -> 0 | J48: ='Screening Tool'!I48*IFERROR(VLOOKUP(J$29,AESC,($D48+J$20*2),FALSE),0) -> 0 | K48: ='Screening Tool'!J48*IFERROR(VLOOKUP(K$29,AESC,($D48+K$20*2),FALSE),0) -> 0 | L48: ='Screening Tool'!K48*IFERROR(VLOOKUP(L$29,AESC,($D48+L$20*2),FALSE),0) -> 0 | M48: ='Screening Tool'!L48*IFERROR(VLOOKUP(M$29,AESC,($D48+M$20*2),FALSE),0) -> 0 | N48: ='Screening Tool'!M48*IFERROR(VLOOKUP(N$29,AESC,($D48+N$20*2),FALSE),0) -> 0 | O48: 0 | P48: 0
C49: Winter kW (cleared (ref 8, EE) or uncleared (ref 10, Elx) capacity Capacity + DRIPE + Reliability) | D49: 8 | E49: ='Screening Tool'!D49*IFERROR(VLOOKUP(E$29,AESC,($D49+E$20*2),FALSE),0) -> 0 | F49: ='Screening Tool'!E49*IFERROR(VLOOKUP(F$29,AESC,($D49+F$20*2),FALSE),0) -> 0 | G49: ='Screening Tool'!F49*IFERROR(VLOOKUP(G$29,AESC,($D49+G$20*2),FALSE),0) -> 0 | H49: ='Screening Tool'!G49*IFERROR(VLOOKUP(H$29,AESC,($D49+H$20*2),FALSE),0) -> 0 | I49: ='Screening Tool'!H49*IFERROR(VLOOKUP(I$29,AESC,($D49+I$20*2),FALSE),0) -> 0 | J49: ='Screening Tool'!I49*IFERROR(VLOOKUP(J$29,AESC,($D49+J$20*2),FALSE),0) -> 0 | K49: ='Screening Tool'!J49*IFERROR(VLOOKUP(K$29,AESC,($D49+K$20*2),FALSE),0) -> 0 | L49: ='Screening Tool'!K49*IFERROR(VLOOKUP(L$29,AESC,($D49+L$20*2),FALSE),0) -> 0 | M49: ='Screening Tool'!L49*IFERROR(VLOOKUP(M$29,AESC,($D49+M$20*2),FALSE),0) -> 0 | N49: ='Screening Tool'!M49*IFERROR(VLOOKUP(N$29,AESC,($D49+N$20*2),FALSE),0) -> 0 | O49: 0 | P49: 0
C50: Distribution | D50: 11 | E50: ='Screening Tool'!D$48*IFERROR(VLOOKUP(E$29,AESC,($D50),FALSE),0) -> 0 | F50: ='Screening Tool'!E$48*IFERROR(VLOOKUP(F$29,AESC,($D50),FALSE),0) -> 0 | G50: ='Screening Tool'!F$48*IFERROR(VLOOKUP(G$29,AESC,($D50),FALSE),0) -> 0 | H50: ='Screening Tool'!G$48*IFERROR(VLOOKUP(H$29,AESC,($D50),FALSE),0) -> 0 | I50: ='Screening Tool'!H$48*IFERROR(VLOOKUP(I$29,AESC,($D50),FALSE),0) -> 0 | J50: ='Screening Tool'!I$48*IFERROR(VLOOKUP(J$29,AESC,($D50),FALSE),0) -> 0 | K50: ='Screening Tool'!J$48*IFERROR(VLOOKUP(K$29,AESC,($D50),FALSE),0) -> 0 | L50: ='Screening Tool'!K$48*IFERROR(VLOOKUP(L$29,AESC,($D50),FALSE),0) -> 0 | M50: ='Screening Tool'!L$48*IFERROR(VLOOKUP(M$29,AESC,($D50),FALSE),0) -> 0 | N50: ='Screening Tool'!M$48*IFERROR(VLOOKUP(N$29,AESC,($D50),FALSE),0) -> 0 | O50: 0 | P50: 0
C51: Transmission | D51: 12 | E51: ='Screening Tool'!D$48*IFERROR(VLOOKUP(E$29,AESC,($D51),FALSE),0) -> 0 | F51: ='Screening Tool'!E$48*IFERROR(VLOOKUP(F$29,AESC,($D51),FALSE),0) -> 0 | G51: ='Screening Tool'!F$48*IFERROR(VLOOKUP(G$29,AESC,($D51),FALSE),0) -> 0 | H51: ='Screening Tool'!G$48*IFERROR(VLOOKUP(H$29,AESC,($D51),FALSE),0) -> 0 | I51: ='Screening Tool'!H$48*IFERROR(VLOOKUP(I$29,AESC,($D51),FALSE),0) -> 0 | J51: ='Screening Tool'!I$48*IFERROR(VLOOKUP(J$29,AESC,($D51),FALSE),0) -> 0 | K51: ='Screening Tool'!J$48*IFERROR(VLOOKUP(K$29,AESC,($D51),FALSE),0) -> 0 | L51: ='Screening Tool'!K$48*IFERROR(VLOOKUP(L$29,AESC,($D51),FALSE),0) -> 0 | M51: ='Screening Tool'!L$48*IFERROR(VLOOKUP(M$29,AESC,($D51),FALSE),0) -> 0 | N51: ='Screening Tool'!M$48*IFERROR(VLOOKUP(N$29,AESC,($D51),FALSE),0) -> 0 | O51: 0 | P51: 0
B52: Gas Benefits | C52: Annual Gas (DRIPE) | D52: 13 | E52: =SUM(E97:E99)*IFERROR(VLOOKUP(E$29,AESC,($D52),FALSE),0) -> 0 | F52: 0 | G52: 0 | H52: 0 | I52: 0 | J52: 0 | K52: 0 | L52: 0 | M52: 0 | N52: 0 | O52: 0 | P52: 0
C53: Space Heating | D53: 14 | E53: =E97*IFERROR(VLOOKUP(E$29,AESC,($D53),FALSE),0) -> 0 | F53: 0 | G53: 0 | H53: 0 | I53: 0 | J53: 0 | K53: 0 | L53: 0 | M53: 0 | N53: 0 | O53: 0 | P53: 0
C54: Base Load | D54: 15 | E54: =E98*IFERROR(VLOOKUP(E$29,AESC,($D54),FALSE),0) -> 0 | F54: 0 | G54: 0 | H54: 0 | I54: 0 | J54: 0 | K54: 0 | L54: 0 | M54: 0 | N54: 0 | O54: 0 | P54: 0
C55: Average | D55: 16 | E55: =E99*IFERROR(VLOOKUP(E$29,AESC,($D55),FALSE),0) -> 0 | F55: 0 | G55: 0 | H55: 0 | I55: 0 | J55: 0 | K55: 0 | L55: 0 | M55: 0 | N55: 0 | O55: 0 | P55: 0
C56: Gas SCC/MAC (SCC ref 17, MAC ref 18) | D56: 17 | E56: =SUM(E97:E99)*IFERROR(VLOOKUP(E$29,AESC,($D56+E$18),FALSE),0) -> 0 | F56: 0 | G56: 0 | H56: 0 | I56: 0 | J56: 0 | K56: 0 | L56: 0 | M56: 0 | N56: 0 | O56: 0 | P56: 0
B57: Delivered Fuel Benefits | C57: Oil | D57: 19 | E57: ='Screening Tool'!D53*IFERROR(VLOOKUP(E$29,AESC,($D57),FALSE),0) -> 0 | F57: ='Screening Tool'!E53*IFERROR(VLOOKUP(F$29,AESC,($D57),FALSE),0) -> 0 | G57: ='Screening Tool'!F53*IFERROR(VLOOKUP(G$29,AESC,($D57),FALSE),0) -> 0 | H57: ='Screening Tool'!G53*IFERROR(VLOOKUP(H$29,AESC,($D57),FALSE),0) -> 0 | I57: ='Screening Tool'!H53*IFERROR(VLOOKUP(I$29,AESC,($D57),FALSE),0) -> 0 | J57: ='Screening Tool'!I53*IFERROR(VLOOKUP(J$29,AESC,($D57),FALSE),0) -> 0 | K57: ='Screening Tool'!J53*IFERROR(VLOOKUP(K$29,AESC,($D57),FALSE),0) -> 0 | L57: ='Screening Tool'!K53*IFERROR(VLOOKUP(L$29,AESC,($D57),FALSE),0) -> 0 | M57: ='Screening Tool'!L53*IFERROR(VLOOKUP(M$29,AESC,($D57),FALSE),0) -> 0 | N57: ='Screening Tool'!M53*IFERROR(VLOOKUP(N$29,AESC,($D57),FALSE),0) -> 0 | O57: 0 | P57: 0
C58: Propane | D58: 20 | E58: ='Screening Tool'!D54*IFERROR(VLOOKUP(E$29,AESC,($D58),FALSE),0) -> 0 | F58: ='Screening Tool'!E54*IFERROR(VLOOKUP(F$29,AESC,($D58),FALSE),0) -> 0 | G58: ='Screening Tool'!F54*IFERROR(VLOOKUP(G$29,AESC,($D58),FALSE),0) -> 0 | H58: ='Screening Tool'!G54*IFERROR(VLOOKUP(H$29,AESC,($D58),FALSE),0) -> 0 | I58: ='Screening Tool'!H54*IFERROR(VLOOKUP(I$29,AESC,($D58),FALSE),0) -> 0 | J58: ='Screening Tool'!I54*IFERROR(VLOOKUP(J$29,AESC,($D58),FALSE),0) -> 0 | K58: ='Screening Tool'!J54*IFERROR(VLOOKUP(K$29,AESC,($D58),FALSE),0) -> 0 | L58: ='Screening Tool'!K54*IFERROR(VLOOKUP(L$29,AESC,($D58),FALSE),0) -> 0 | M58: ='Screening Tool'!L54*IFERROR(VLOOKUP(M$29,AESC,($D58),FALSE),0) -> 0 | N58: ='Screening Tool'!M54*IFERROR(VLOOKUP(N$29,AESC,($D58),FALSE),0) -> 0 | O58: 0 | P58: 0
C59: Diesel | D59: 21 | E59: ='Screening Tool'!D55*IFERROR(VLOOKUP(E$29,AESC,($D59),FALSE),0) -> 0 | F59: ='Screening Tool'!E55*IFERROR(VLOOKUP(F$29,AESC,($D59),FALSE),0) -> 0 | G59: ='Screening Tool'!F55*IFERROR(VLOOKUP(G$29,AESC,($D59),FALSE),0) -> 0 | H59: ='Screening Tool'!G55*IFERROR(VLOOKUP(H$29,AESC,($D59),FALSE),0) -> 0 | I59: ='Screening Tool'!H55*IFERROR(VLOOKUP(I$29,AESC,($D59),FALSE),0) -> 0 | J59: ='Screening Tool'!I55*IFERROR(VLOOKUP(J$29,AESC,($D59),FALSE),0) -> 0 | K59: ='Screening Tool'!J55*IFERROR(VLOOKUP(K$29,AESC,($D59),FALSE),0) -> 0 | L59: ='Screening Tool'!K55*IFERROR(VLOOKUP(L$29,AESC,($D59),FALSE),0) -> 0 | M59: ='Screening Tool'!L55*IFERROR(VLOOKUP(M$29,AESC,($D59),FALSE),0) -> 0 | N59: ='Screening Tool'!M55*IFERROR(VLOOKUP(N$29,AESC,($D59),FALSE),0) -> 0 | O59: 0 | P59: 0
C60: Motor Gas | D60: 22 | E60: ='Screening Tool'!D56*IFERROR(VLOOKUP(E$29,AESC,($D60),FALSE),0) -> 0 | F60: ='Screening Tool'!E56*IFERROR(VLOOKUP(F$29,AESC,($D60),FALSE),0) -> 0 | G60: ='Screening Tool'!F56*IFERROR(VLOOKUP(G$29,AESC,($D60),FALSE),0) -> 0 | H60: ='Screening Tool'!G56*IFERROR(VLOOKUP(H$29,AESC,($D60),FALSE),0) -> 0 | I60: ='Screening Tool'!H56*IFERROR(VLOOKUP(I$29,AESC,($D60),FALSE),0) -> 0 | J60: ='Screening Tool'!I56*IFERROR(VLOOKUP(J$29,AESC,($D60),FALSE),0) -> 0 | K60: ='Screening Tool'!J56*IFERROR(VLOOKUP(K$29,AESC,($D60),FALSE),0) -> 0 | L60: ='Screening Tool'!K56*IFERROR(VLOOKUP(L$29,AESC,($D60),FALSE),0) -> 0 | M60: ='Screening Tool'!L56*IFERROR(VLOOKUP(M$29,AESC,($D60),FALSE),0) -> 0 | N60: ='Screening Tool'!M56*IFERROR(VLOOKUP(N$29,AESC,($D60),FALSE),0) -> 0 | O60: 0 | P60: 0
B61: Other Benefits | C61: Wood | D61: 23 | E61: ='Screening Tool'!D58*IFERROR(VLOOKUP(E$29,AESC,($D61),FALSE),0) -> 0 | F61: ='Screening Tool'!E58*IFERROR(VLOOKUP(F$29,AESC,($D61),FALSE),0) -> 0 | G61: ='Screening Tool'!F58*IFERROR(VLOOKUP(G$29,AESC,($D61),FALSE),0) -> 0 | H61: ='Screening Tool'!G58*IFERROR(VLOOKUP(H$29,AESC,($D61),FALSE),0) -> 0 | I61: ='Screening Tool'!H58*IFERROR(VLOOKUP(I$29,AESC,($D61),FALSE),0) -> 0 | J61: ='Screening Tool'!I58*IFERROR(VLOOKUP(J$29,AESC,($D61),FALSE),0) -> 0 | K61: ='Screening Tool'!J58*IFERROR(VLOOKUP(K$29,AESC,($D61),FALSE),0) -> 0 | L61: ='Screening Tool'!K58*IFERROR(VLOOKUP(L$29,AESC,($D61),FALSE),0) -> 0 | M61: ='Screening Tool'!L58*IFERROR(VLOOKUP(M$29,AESC,($D61),FALSE),0) -> 0 | N61: ='Screening Tool'!M58*IFERROR(VLOOKUP(N$29,AESC,($D61),FALSE),0) -> 0 | O61: =SUMPRODUCT(E61:N61,$E$16:$N$16) -> 0 | P61: =SUM(E61:N61) -> 0
C62: Water | D62: 24 | E62: ='Screening Tool'!D57*IFERROR(VLOOKUP(E$29,AESC,($D62),FALSE),0) -> 0 | F62: ='Screening Tool'!E57*IFERROR(VLOOKUP(F$29,AESC,($D62),FALSE),0) -> 0 | G62: ='Screening Tool'!F57*IFERROR(VLOOKUP(G$29,AESC,($D62),FALSE),0) -> 0 | H62: ='Screening Tool'!G57*IFERROR(VLOOKUP(H$29,AESC,($D62),FALSE),0) -> 0 | I62: ='Screening Tool'!H57*IFERROR(VLOOKUP(I$29,AESC,($D62),FALSE),0) -> 0 | J62: ='Screening Tool'!I57*IFERROR(VLOOKUP(J$29,AESC,($D62),FALSE),0) -> 0 | K62: ='Screening Tool'!J57*IFERROR(VLOOKUP(K$29,AESC,($D62),FALSE),0) -> 0 | L62: ='Screening Tool'!K57*IFERROR(VLOOKUP(L$29,AESC,($D62),FALSE),0) -> 0 | M62: ='Screening Tool'!L57*IFERROR(VLOOKUP(M$29,AESC,($D62),FALSE),0) -> 0 | N62: ='Screening Tool'!M57*IFERROR(VLOOKUP(N$29,AESC,($D62),FALSE),0) -> 0 | O62: 0 | P62: 0
C63: Non Energy GHG | D63: 25 | E63: ='Screening Tool'!D59*IFERROR(VLOOKUP(E$29,AESC,($D63),FALSE),0) -> 0 | F63: ='Screening Tool'!E59*IFERROR(VLOOKUP(F$29,AESC,($D63),FALSE),0) -> 0 | G63: ='Screening Tool'!F59*IFERROR(VLOOKUP(G$29,AESC,($D63),FALSE),0) -> 0 | H63: ='Screening Tool'!G59*IFERROR(VLOOKUP(H$29,AESC,($D63),FALSE),0) -> 0 | I63: ='Screening Tool'!H59*IFERROR(VLOOKUP(I$29,AESC,($D63),FALSE),0) -> 0 | J63: ='Screening Tool'!I59*IFERROR(VLOOKUP(J$29,AESC,($D63),FALSE),0) -> 0 | K63: ='Screening Tool'!J59*IFERROR(VLOOKUP(K$29,AESC,($D63),FALSE),0) -> 0 | L63: ='Screening Tool'!K59*IFERROR(VLOOKUP(L$29,AESC,($D63),FALSE),0) -> 0 | M63: ='Screening Tool'!L59*IFERROR(VLOOKUP(M$29,AESC,($D63),FALSE),0) -> 0 | N63: ='Screening Tool'!M59*IFERROR(VLOOKUP(N$29,AESC,($D63),FALSE),0) -> 0 | O63: 0 | P63: 0
C64: NEI - HP | D64: 26 | E64: =E39*IFERROR(VLOOKUP(E$29,AESC,($D64),FALSE),0) -> 0 | F64: 0 | G64: 0 | H64: 0 | I64: 0 | J64: 0 | K64: 0 | L64: 0 | M64: 0 | N64: 0 | O64: 0 | P64: 0
C65: NEI - Electric | D65: 26 | E65: =E40*IFERROR(VLOOKUP(E$29,AESC,($D65),FALSE),0) -> 0 | F65: 0 | G65: 0 | H65: 0 | I65: 0 | J65: 0 | K65: 0 | L65: 0 | M65: 0 | N65: 0 | O65: 0 | P65: =SUM(E65:N65) -> 0
C66: NEI - Gas | D66: 26 | E66: =E41*IFERROR(VLOOKUP(E$29,AESC,($D66),FALSE),0) -> 0 | F66: 0 | G66: 0 | H66: 0 | I66: 0 | J66: 0 | K66: 0 | L66: 0 | M66: 0 | N66: 0 | O66: 0 | P66: 0
B67: Benefit Category Totals | C67: Electric Energy Benefits | E67: =SUM(E43:E47) -> 0 | F67: 0 | G67: 0 | H67: 0 | I67: 0 | J67: 0 | K67: 0 | L67: 0 | M67: 0 | N67: 0 | O67: 0 | P67: 0 | Q67: These include the totals of the above sections
C68: Capacity Benefits | E68: =SUM(E48:E51) -> 0 | F68: 0 | G68: 0 | H68: 0 | I68: 0 | J68: 0 | K68: 0 | L68: 0 | M68: 0 | N68: 0 | O68: 0 | P68: 0
C69: Gas Benefits | E69: =SUM(E52:E56) -> 0 | F69: 0 | G69: 0 | H69: 0 | I69: 0 | J69: 0 | K69: 0 | L69: 0 | M69: 0 | N69: 0 | O69: =SUMPRODUCT(E69:N69,$E$16:$N$16) -> 0 | P69: =SUM(E69:N69) -> 0
C70: Delivered Fuels Benefits | E70: =SUM(E57:E60) -> 0 | F70: 0 | G70: 0 | H70: 0 | I70: 0 | J70: 0 | K70: 0 | L70: 0 | M70: 0 | N70: 0 | O70: 0 | P70: 0
C71: Other Benefits | E71: =SUM(E61:E66) -> 0 | F71: 0 | G71: 0 | H71: 0 | I71: 0 | J71: 0 | K71: 0 | L71: 0 | M71: 0 | N71: 0 | O71: =SUMPRODUCT(E71:N71,$E$16:$N$16) -> 0 | P71: =SUM(E71:N71) -> 0
B72: Project Totals | C72: Total Electric (Electric Energy + Capacity) | E72: =E67+E68 -> 0 | F72: 0 | G72: 0 | H72: 0 | I72: 0 | J72: 0 | K72: 0 | L72: 0 | M72: 0 | N72: 0 | O72: 0 | P72: 0 | Q72: Total Electric benefits, including energy + capacity
C73: Total Electric + Delivered Fuel Benefits | D73: used for allocations | E73: =E70+E72 -> 0 | F73: =F70+F72 -> 0 | G73: 0 | H73: 0 | I73: 0 | J73: 0 | K73: 0 | L73: 0 | M73: 0 | N73: 0 | O73: 0 | P73: =SUM(E73:N73) -> 0 | Q73: Attributable to the electric PA (excluding NEIs a
C74: Electric Energy + Gas + Delivered Fuels | E74: =SUM(E69:E70,E67) -> 0 | F74: =SUM(F62:F66) -> 0 | G74: 0 | H74: 0 | I74: 0 | J74: 0 | K74: 0 | L74: 0 | M74: 0 | N74: 0
C75: Electric Energy + Capacity Gas + Delivered Fuels | D75: used for allocations | E75: =E72+E69+E70 -> 0 | F75: =F72+F69+F70 -> 0 | G75: 0 | H75: 0 | I75: 0 | J75: 0 | K75: 0 | L75: 0 | M75: 0 | N75: 0
C76: Total Benefits | D76: everything | E76: =SUM(E67:E71) -> 0 | F76: =SUM(F67:F71) -> 0 | G76: 0 | H76: 0 | I76: 0 | J76: 0 | K76: 0 | L76: 0 | M76: 0 | N76: 0 | O76: 0 | P76: 0
A77: Results | B77: Benefit Results | C77: BCR | E77: =IFERROR(E76/E42,0) -> 0 | F77: 0 | G77: 0 | H77: 0 | I77: 0 | J77: 0 | K77: 0 | L77: 0 | M77: 0 | N77: 0 | O77: =IFERROR(SUMPRODUCT(E76:N76,$E$16:$N$16)/SUMPRODUCT(E42:N42,$E$16:$N$16),0) -> 0 | P77: =IFERROR(SUM(E76:N76)/SUM(E42:N42),0) -> 0
C78: Allocation Type | E78: =IFERROR(IF(E21*E20=1,"Gas Elx",IF(AND(E20=1,E21=0),"Non-Gas Elx",IF(E79=0,"Gas only",IF(E80=0,"Electric only","ECM Allocation")))),"") ->  | F78: =IFERROR(IF(F21*F20=1,"Gas Elx",IF(AND(F20=1,F21=0),"Non-Gas Elx",IF(F79=0,"Gas only",IF(F80=0,"Electric only","ECM Allocation")))),"") -> 
C79: % Electric | E79: =IFERROR((E20*E21*'HVAC HP Tables'!$B3)+(1-E20*E21)*(ROUND(IFERROR(E73/SUM(E75),0),2)),0) -> 0 | F79: =IFERROR((F20*F21*'HVAC HP Tables'!$B3)+(1-F20*F21)*(ROUND(IFERROR(F73/SUM(F75),0),2)),0) -> 0 | G79: =IFERROR((G20*G21*'HVAC HP Tables'!$B3)+(1-G20*G21)*(ROUND(IFERROR(G73/SUM(G75),0),2)),0) -> 0 | H79: =IFERROR((H20*H21*'HVAC HP Tables'!$B3)+(1-H20*H21)*(ROUND(IFERROR(H73/SUM(H75),0),2)),0) -> 0 | I79: =IFERROR((I20*I21*'HVAC HP Tables'!$B3)+(1-I20*I21)*(ROUND(IFERROR(I73/SUM(I75),0),2)),0) -> 0 | J79: =IFERROR((J20*J21*'HVAC HP Tables'!$B3)+(1-J20*J21)*(ROUND(IFERROR(J73/SUM(J75),0),2)),0) -> 0 | K79: =IFERROR((K20*K21*'HVAC HP Tables'!$B3)+(1-K20*K21)*(ROUND(IFERROR(K73/SUM(K75),0),2)),0) -> 0 | L79: =IFERROR((L20*L21*'HVAC HP Tables'!$B3)+(1-L20*L21)*(ROUND(IFERROR(L73/SUM(L75),0),2)),0) -> 0 | M79: =IFERROR((M20*M21*'HVAC HP Tables'!$B3)+(1-M20*M21)*(ROUND(IFERROR(M73/SUM(M75),0),2)),0) -> 0 | N79: =IFERROR((N20*N21*'HVAC HP Tables'!$B3)+(1-N20*N21)*(ROUND(IFERROR(N73/SUM(N75),0),2)),0) -> 0 | O79: =IFERROR(SUMPRODUCT($E$79:$N$79,$E$76:$N$76,$E$16:$N$16)/$O76,0) -> 0 | P79: =IFERROR(SUMPRODUCT($E$79:$N$79,$E$76:$N$76)/$P76,0) -> 0 | Q79: Allocation will either use the fixed HP % or will be based on the (Total Electric + Delivered Fuel) / (Total Electric + Delivered + Gas). Basically looking at how much electric attributable savings (including delivered fuel) against the total benefits
C80: % Gas | E80: =1-E79 -> 1 | F80: 1 | G80: 1 | H80: 1 | I80: 1 | J80: 1 | K80: 1 | L80: 1 | M80: 1 | N80: 1 | O80: =IFERROR(SUMPRODUCT($E$80:$N$80,$E$76:$N$76,$E$16:$N$16)/$O76,0) -> 0 | P80: =IFERROR(SUMPRODUCT($E$80:$N$80,$E$76:$N$76)/$P76,0) -> 0
B81: Annual Cost Savings | C81: kWh | E81: =IFERROR(SUM(E34:E37)*'Screening Tool'!$P6, 0) -> 0 | F81: =IFERROR(SUM(F34:F37)*'Screening Tool'!$P6, 0) -> 0 | G81: =IFERROR(SUM(G34:G37)*'Screening Tool'!$P6, 0) -> 0 | H81: =IFERROR(SUM(H34:H37)*'Screening Tool'!$P6, 0) -> 0 | I81: =IFERROR(SUM(I34:I37)*'Screening Tool'!$P6, 0) -> 0 | J81: =IFERROR(SUM(J34:J37)*'Screening Tool'!$P6, 0) -> 0 | K81: =IFERROR(SUM(K34:K37)*'Screening Tool'!$P6, 0) -> 0 | L81: =IFERROR(SUM(L34:L37)*'Screening Tool'!$P6, 0) -> 0 | M81: =IFERROR(SUM(M34:M37)*'Screening Tool'!$P6, 0) -> 0 | N81: =IFERROR(SUM(N34:N37)*'Screening Tool'!$P6, 0) -> 0 | O81: =SUMPRODUCT(E81:N81,$E$16:$N$16) -> 0 | P81: =SUM(E81:N81) -> 0
C82: Natural Gas | E82: =IFERROR(SUM('Screening Tool'!D50:D52)*'Screening Tool'!$P7, 0) -> 0 | F82: =IFERROR(SUM('Screening Tool'!E50:E52)*'Screening Tool'!$P7, 0) -> 0 | G82: =IFERROR(SUM('Screening Tool'!F50:F52)*'Screening Tool'!$P7, 0) -> 0 | H82: =IFERROR(SUM('Screening Tool'!G50:G52)*'Screening Tool'!$P7, 0) -> 0 | I82: =IFERROR(SUM('Screening Tool'!H50:H52)*'Screening Tool'!$P7, 0) -> 0 | J82: =IFERROR(SUM('Screening Tool'!I50:I52)*'Screening Tool'!$P7, 0) -> 0 | K82: =IFERROR(SUM('Screening Tool'!J50:J52)*'Screening Tool'!$P7, 0) -> 0 | L82: =IFERROR(SUM('Screening Tool'!K50:K52)*'Screening Tool'!$P7, 0) -> 0 | M82: =IFERROR(SUM('Screening Tool'!L50:L52)*'Screening Tool'!$P7, 0) -> 0 | N82: =IFERROR(SUM('Screening Tool'!M50:M52)*'Screening Tool'!$P7, 0) -> 0 | O82: =SUMPRODUCT(E82:N82,$E$16:$N$16) -> 0 | P82: 0
C83: Oil | E83: =IFERROR('Screening Tool'!D53*'Screening Tool'!$P8, 0) -> 0 | F83: =IFERROR('Screening Tool'!E53*'Screening Tool'!$P8, 0) -> 0 | G83: =IFERROR('Screening Tool'!F53*'Screening Tool'!$P8, 0) -> 0 | H83: =IFERROR('Screening Tool'!G53*'Screening Tool'!$P8, 0) -> 0 | I83: =IFERROR('Screening Tool'!H53*'Screening Tool'!$P8, 0) -> 0 | J83: =IFERROR('Screening Tool'!I53*'Screening Tool'!$P8, 0) -> 0 | K83: =IFERROR('Screening Tool'!J53*'Screening Tool'!$P8, 0) -> 0 | L83: =IFERROR('Screening Tool'!K53*'Screening Tool'!$P8, 0) -> 0 | M83: =IFERROR('Screening Tool'!L53*'Screening Tool'!$P8, 0) -> 0 | N83: =IFERROR('Screening Tool'!M53*'Screening Tool'!$P8, 0) -> 0 | O83: 0 | P83: 0
C84: Propane | E84: =IFERROR('Screening Tool'!D54*'Screening Tool'!$P9, 0) -> 0 | F84: =IFERROR('Screening Tool'!E54*'Screening Tool'!$P9, 0) -> 0 | G84: =IFERROR('Screening Tool'!F54*'Screening Tool'!$P9, 0) -> 0 | H84: =IFERROR('Screening Tool'!G54*'Screening Tool'!$P9, 0) -> 0 | I84: =IFERROR('Screening Tool'!H54*'Screening Tool'!$P9, 0) -> 0 | J84: =IFERROR('Screening Tool'!I54*'Screening Tool'!$P9, 0) -> 0 | K84: =IFERROR('Screening Tool'!J54*'Screening Tool'!$P9, 0) -> 0 | L84: =IFERROR('Screening Tool'!K54*'Screening Tool'!$P9, 0) -> 0 | M84: =IFERROR('Screening Tool'!L54*'Screening Tool'!$P9, 0) -> 0 | N84: =IFERROR('Screening Tool'!M54*'Screening Tool'!$P9, 0) -> 0 | O84: 0 | P84: 0
C85: Motor Diesel | E85: =IFERROR('Screening Tool'!D55*'Screening Tool'!$P10, 0) -> 0 | F85: =IFERROR('Screening Tool'!E55*'Screening Tool'!$P10, 0) -> 0 | G85: =IFERROR('Screening Tool'!F55*'Screening Tool'!$P10, 0) -> 0 | H85: =IFERROR('Screening Tool'!G55*'Screening Tool'!$P10, 0) -> 0 | I85: =IFERROR('Screening Tool'!H55*'Screening Tool'!$P10, 0) -> 0 | J85: =IFERROR('Screening Tool'!I55*'Screening Tool'!$P10, 0) -> 0 | K85: =IFERROR('Screening Tool'!J55*'Screening Tool'!$P10, 0) -> 0 | L85: =IFERROR('Screening Tool'!K55*'Screening Tool'!$P10, 0) -> 0 | M85: =IFERROR('Screening Tool'!L55*'Screening Tool'!$P10, 0) -> 0 | N85: =IFERROR('Screening Tool'!M55*'Screening Tool'!$P10, 0) -> 0 | O85: 0 | P85: =SUM(E85:N85) -> 0
C86: Motor Gasoline | E86: =IFERROR('Screening Tool'!D56*'Screening Tool'!$P11, 0) -> 0 | F86: =IFERROR('Screening Tool'!E56*'Screening Tool'!$P11, 0) -> 0 | G86: =IFERROR('Screening Tool'!F56*'Screening Tool'!$P11, 0) -> 0 | H86: =IFERROR('Screening Tool'!G56*'Screening Tool'!$P11, 0) -> 0 | I86: =IFERROR('Screening Tool'!H56*'Screening Tool'!$P11, 0) -> 0 | J86: =IFERROR('Screening Tool'!I56*'Screening Tool'!$P11, 0) -> 0 | K86: =IFERROR('Screening Tool'!J56*'Screening Tool'!$P11, 0) -> 0 | L86: =IFERROR('Screening Tool'!K56*'Screening Tool'!$P11, 0) -> 0 | M86: =IFERROR('Screening Tool'!L56*'Screening Tool'!$P11, 0) -> 0 | N86: =IFERROR('Screening Tool'!M56*'Screening Tool'!$P11, 0) -> 0 | O86: 0 | P86: 0
C87: Water | E87: =IFERROR('Screening Tool'!D57*'Screening Tool'!$P12, 0) -> 0 | F87: =IFERROR('Screening Tool'!E57*'Screening Tool'!$P12, 0) -> 0 | G87: =IFERROR('Screening Tool'!F57*'Screening Tool'!$P12, 0) -> 0 | H87: =IFERROR('Screening Tool'!G57*'Screening Tool'!$P12, 0) -> 0 | I87: =IFERROR('Screening Tool'!H57*'Screening Tool'!$P12, 0) -> 0 | J87: =IFERROR('Screening Tool'!I57*'Screening Tool'!$P12, 0) -> 0 | K87: =IFERROR('Screening Tool'!J57*'Screening Tool'!$P12, 0) -> 0 | L87: =IFERROR('Screening Tool'!K57*'Screening Tool'!$P12, 0) -> 0 | M87: =IFERROR('Screening Tool'!L57*'Screening Tool'!$P12, 0) -> 0 | N87: =IFERROR('Screening Tool'!M57*'Screening Tool'!$P12, 0) -> 0 | O87: 0 | P87: =SUM(E87:N87) -> 0
C88: Wood | E88: =IFERROR('Screening Tool'!D58*'Screening Tool'!$P13, 0) -> 0 | F88: =IFERROR('Screening Tool'!E58*'Screening Tool'!$P13, 0) -> 0 | G88: =IFERROR('Screening Tool'!F58*'Screening Tool'!$P13, 0) -> 0 | H88: =IFERROR('Screening Tool'!G58*'Screening Tool'!$P13, 0) -> 0 | I88: =IFERROR('Screening Tool'!H58*'Screening Tool'!$P13, 0) -> 0 | J88: =IFERROR('Screening Tool'!I58*'Screening Tool'!$P13, 0) -> 0 | K88: =IFERROR('Screening Tool'!J58*'Screening Tool'!$P13, 0) -> 0 | L88: =IFERROR('Screening Tool'!K58*'Screening Tool'!$P13, 0) -> 0 | M88: =IFERROR('Screening Tool'!L58*'Screening Tool'!$P13, 0) -> 0 | N88: =IFERROR('Screening Tool'!M58*'Screening Tool'!$P13, 0) -> 0 | O88: 0 | P88: =SUM(E88:N88) -> 0
C89: All Savings | E89: =SUM(E81:E86) -> 0 | F89: 0 | G89: 0 | H89: 0 | I89: 0 | J89: 0 | K89: 0 | L89: 0 | M89: 0 | N89: 0 | O89: 0 | P89: 0
B90: Payback | C90: Electric and Delivered Fuel | E90: =IFERROR(E42/SUM(E81,E83:E86),0) -> 0 | F90: =IFERROR(F42/SUM(F81,F83:F88),0) -> 0 | G90: 0 | H90: 0 | I90: 0 | J90: 0 | K90: 0 | L90: 0 | M90: 0 | N90: 0 | O90: 0 | P90: 0
C91: Gas | E91: =IFERROR(E82/E42,"") ->  | O91: 0 | P91: 0
C92: Total | E92: =IFERROR(E42/E89,0) -> 0 | F92: =IFERROR(F42/F89,0) -> 0 | G92: 0 | H92: 0 | I92: 0 | J92: 0 | K92: 0 | L92: 0 | M92: 0 | N92: 0 | O92: 0 | P92: 0
A93: MMTBu and CO2 | B93: First Year MMBTu Conversions | C93: Summer On Peak Annual MMBTu | D93: 6 | E93: =IFERROR((E34/1000)*VLOOKUP(1,Avg_LT_Factors,$D93,FALSE),0) -> 0 | F93: =IFERROR((F34/1000)*VLOOKUP(F$29,Annual_Source,$D93,FALSE),0) -> 0 | G93: 0 | H93: 0 | I93: 0 | J93: 0 | K93: 0 | L93: 0 | M93: 0 | N93: 0 | O93: =SUMPRODUCT(E93:N93,$E$16:$N$16) -> 0 | P93: =SUM(E93:N93) -> 0 | Q93: First year MMBtu - uses avg lifetime MWH to MMBtu table, but only uses year 1 against annual MWh savings
A94: Referencing columsn in MMBTu tab | C94: Summer Off Peak Annual MMBTu | D94: 7 | E94: =IFERROR((E35/1000)*VLOOKUP(1,Avg_LT_Factors,$D94,FALSE),0) -> 0 | F94: =IFERROR((F35/1000)*VLOOKUP(F$29,Annual_Source,$D94,FALSE),0) -> 0 | G94: 0 | H94: 0 | I94: 0 | J94: 0 | K94: 0 | L94: 0 | M94: 0 | N94: 0 | O94: 0 | P94: 0
C95: Winter On Peak Annual MMBTu | D95: 4 | E95: =IFERROR((E36/1000)*VLOOKUP(1,Avg_LT_Factors,$D95,FALSE),0) -> 0 | F95: =IFERROR((F36/1000)*VLOOKUP(F$29,Annual_Source,$D95,FALSE),0) -> 0 | G95: 0 | H95: 0 | I95: 0 | J95: 0 | K95: 0 | L95: 0 | M95: 0 | N95: 0 | O95: 0 | P95: 0
C96: Winter Off Peak Annual MMBTu | D96: 5 | E96: =IFERROR((E37/1000)*VLOOKUP(1,Avg_LT_Factors,$D96,FALSE),0) -> 0 | F96: =IFERROR((F37/1000)*VLOOKUP(F$29,Annual_Source,$D96,FALSE),0) -> 0 | G96: 0 | H96: 0 | I96: 0 | J96: 0 | K96: 0 | L96: 0 | M96: 0 | N96: 0 | O96: 0 | P96: 0
C97: Gas Heating Season MMBtu | E97: ='Screening Tool'!D50/10 -> 0 | F97: ='Screening Tool'!E50/10 -> 0 | G97: ='Screening Tool'!F50/10 -> 0 | H97: ='Screening Tool'!G50/10 -> 0 | I97: ='Screening Tool'!H50/10 -> 0 | J97: ='Screening Tool'!I50/10 -> 0 | K97: ='Screening Tool'!J50/10 -> 0 | L97: ='Screening Tool'!K50/10 -> 0 | M97: ='Screening Tool'!L50/10 -> 0 | N97: ='Screening Tool'!M50/10 -> 0 | O97: 0 | P97: 0
C98: Gas Year Round MMBtu | E98: ='Screening Tool'!D51/10 -> 0 | F98: ='Screening Tool'!E51/10 -> 0 | G98: ='Screening Tool'!F51/10 -> 0 | H98: ='Screening Tool'!G51/10 -> 0 | I98: ='Screening Tool'!H51/10 -> 0 | J98: ='Screening Tool'!I51/10 -> 0 | K98: ='Screening Tool'!J51/10 -> 0 | L98: ='Screening Tool'!K51/10 -> 0 | M98: ='Screening Tool'!L51/10 -> 0 | N98: ='Screening Tool'!M51/10 -> 0 | O98: 0 | P98: 0
C99: Gas All MMBtu | E99: ='Screening Tool'!D52/10 -> 0 | F99: ='Screening Tool'!E52/10 -> 0 | G99: ='Screening Tool'!F52/10 -> 0 | H99: ='Screening Tool'!G52/10 -> 0 | I99: ='Screening Tool'!H52/10 -> 0 | J99: ='Screening Tool'!I52/10 -> 0 | K99: ='Screening Tool'!J52/10 -> 0 | L99: ='Screening Tool'!K52/10 -> 0 | M99: ='Screening Tool'!L52/10 -> 0 | N99: ='Screening Tool'!M52/10 -> 0 | O99: 0 | P99: 0
C100: Delivered Fuel Total | E100: =SUM('Screening Tool'!D53:D56) -> 0 | F100: =SUM('Screening Tool'!E53:E56) -> 0 | G100: =SUM('Screening Tool'!F53:F56) -> 0 | H100: =SUM('Screening Tool'!G53:G56) -> 0 | I100: =SUM('Screening Tool'!H53:H56) -> 0 | J100: =SUM('Screening Tool'!I53:I56) -> 0 | K100: =SUM('Screening Tool'!J53:J56) -> 0 | L100: =SUM('Screening Tool'!K53:K56) -> 0 | M100: =SUM('Screening Tool'!L53:L56) -> 0 | N100: =SUM('Screening Tool'!M53:M56) -> 0 | O100: 0 | P100: =SUM(E100:N100) -> 0
C101: Total Annual MMBTu Total | E101: =SUM(E93:E100) -> 0 | F101: 0 | G101: 0 | H101: 0 | I101: 0 | J101: 0 | K101: 0 | L101: 0 | M101: 0 | N101: 0 | O101: 0 | P101: 0
B102: Lifetime MMBTu Conversions | C102: Summer On Peak Annual Source MMBTu | D102: 6 | E102: =IFERROR((E$38*'Screening Tool'!D44)*VLOOKUP(E$29,Avg_LT_Factors,$D102,FALSE),0) -> 0 | F102: =IFERROR((F$38*'Screening Tool'!E44)*VLOOKUP(F$29,Avg_LT_Factors,$D102,FALSE),0) -> 0 | G102: =IFERROR((G$38*'Screening Tool'!F44)*VLOOKUP(G$29,Avg_LT_Factors,$D102,FALSE),0) -> 0 | H102: =IFERROR((H$38*'Screening Tool'!G44)*VLOOKUP(H$29,Avg_LT_Factors,$D102,FALSE),0) -> 0 | I102: =IFERROR((I$38*'Screening Tool'!H44)*VLOOKUP(I$29,Avg_LT_Factors,$D102,FALSE),0) -> 0 | J102: =IFERROR((J$38*'Screening Tool'!I44)*VLOOKUP(J$29,Avg_LT_Factors,$D102,FALSE),0) -> 0 | K102: =IFERROR((K$38*'Screening Tool'!J44)*VLOOKUP(K$29,Avg_LT_Factors,$D102,FALSE),0) -> 0 | L102: =IFERROR((L$38*'Screening Tool'!K44)*VLOOKUP(L$29,Avg_LT_Factors,$D102,FALSE),0) -> 0 | M102: =IFERROR((M$38*'Screening Tool'!L44)*VLOOKUP(M$29,Avg_LT_Factors,$D102,FALSE),0) -> 0 | N102: =IFERROR((N$38*'Screening Tool'!M44)*VLOOKUP(N$29,Avg_LT_Factors,$D102,FALSE),0) -> 0 | O102: 0 | P102: 0 | Q102: Lifetime MMBTu - uses average lifetime MWH to MMBtu table with ML lookup against lifetime MWh savings
C103: Summer Off Peak Annual Source MMBTu | D103: 7 | E103: =IFERROR((E$38*'Screening Tool'!D45)*VLOOKUP(E$29,Avg_LT_Factors,$D103,FALSE),0) -> 0 | F103: =IFERROR((F$38*'Screening Tool'!E45)*VLOOKUP(F$29,Avg_LT_Factors,$D103,FALSE),0) -> 0 | G103: =IFERROR((G$38*'Screening Tool'!F45)*VLOOKUP(G$29,Avg_LT_Factors,$D103,FALSE),0) -> 0 | H103: =IFERROR((H$38*'Screening Tool'!G45)*VLOOKUP(H$29,Avg_LT_Factors,$D103,FALSE),0) -> 0 | I103: =IFERROR((I$38*'Screening Tool'!H45)*VLOOKUP(I$29,Avg_LT_Factors,$D103,FALSE),0) -> 0 | J103: =IFERROR((J$38*'Screening Tool'!I45)*VLOOKUP(J$29,Avg_LT_Factors,$D103,FALSE),0) -> 0 | K103: =IFERROR((K$38*'Screening Tool'!J45)*VLOOKUP(K$29,Avg_LT_Factors,$D103,FALSE),0) -> 0 | L103: =IFERROR((L$38*'Screening Tool'!K45)*VLOOKUP(L$29,Avg_LT_Factors,$D103,FALSE),0) -> 0 | M103: =IFERROR((M$38*'Screening Tool'!L45)*VLOOKUP(M$29,Avg_LT_Factors,$D103,FALSE),0) -> 0 | N103: =IFERROR((N$38*'Screening Tool'!M45)*VLOOKUP(N$29,Avg_LT_Factors,$D103,FALSE),0) -> 0 | O103: 0 | P103: 0
C104: Winter On Peak Annual Source MMBTu | D104: 4 | E104: =IFERROR((E$38*'Screening Tool'!D46)*VLOOKUP(E$29,Avg_LT_Factors,$D104,FALSE),0) -> 0 | F104: =IFERROR((F$38*'Screening Tool'!E46)*VLOOKUP(F$29,Avg_LT_Factors,$D104,FALSE),0) -> 0 | G104: =IFERROR((G$38*'Screening Tool'!F46)*VLOOKUP(G$29,Avg_LT_Factors,$D104,FALSE),0) -> 0 | H104: =IFERROR((H$38*'Screening Tool'!G46)*VLOOKUP(H$29,Avg_LT_Factors,$D104,FALSE),0) -> 0 | I104: =IFERROR((I$38*'Screening Tool'!H46)*VLOOKUP(I$29,Avg_LT_Factors,$D104,FALSE),0) -> 0 | J104: =IFERROR((J$38*'Screening Tool'!I46)*VLOOKUP(J$29,Avg_LT_Factors,$D104,FALSE),0) -> 0 | K104: =IFERROR((K$38*'Screening Tool'!J46)*VLOOKUP(K$29,Avg_LT_Factors,$D104,FALSE),0) -> 0 | L104: =IFERROR((L$38*'Screening Tool'!K46)*VLOOKUP(L$29,Avg_LT_Factors,$D104,FALSE),0) -> 0 | M104: =IFERROR((M$38*'Screening Tool'!L46)*VLOOKUP(M$29,Avg_LT_Factors,$D104,FALSE),0) -> 0 | N104: =IFERROR((N$38*'Screening Tool'!M46)*VLOOKUP(N$29,Avg_LT_Factors,$D104,FALSE),0) -> 0 | O104: 0 | P104: 0
C105: Winter Off Peak Annual Source MMBTu | D105: 5 | E105: =IFERROR((E$38*'Screening Tool'!D47)*VLOOKUP(E$29,Avg_LT_Factors,$D105,FALSE),0) -> 0 | F105: =IFERROR((F$38*'Screening Tool'!E47)*VLOOKUP(F$29,Avg_LT_Factors,$D105,FALSE),0) -> 0 | G105: =IFERROR((G$38*'Screening Tool'!F47)*VLOOKUP(G$29,Avg_LT_Factors,$D105,FALSE),0) -> 0 | H105: =IFERROR((H$38*'Screening Tool'!G47)*VLOOKUP(H$29,Avg_LT_Factors,$D105,FALSE),0) -> 0 | I105: =IFERROR((I$38*'Screening Tool'!H47)*VLOOKUP(I$29,Avg_LT_Factors,$D105,FALSE),0) -> 0 | J105: =IFERROR((J$38*'Screening Tool'!I47)*VLOOKUP(J$29,Avg_LT_Factors,$D105,FALSE),0) -> 0 | K105: =IFERROR((K$38*'Screening Tool'!J47)*VLOOKUP(K$29,Avg_LT_Factors,$D105,FALSE),0) -> 0 | L105: =IFERROR((L$38*'Screening Tool'!K47)*VLOOKUP(L$29,Avg_LT_Factors,$D105,FALSE),0) -> 0 | M105: =IFERROR((M$38*'Screening Tool'!L47)*VLOOKUP(M$29,Avg_LT_Factors,$D105,FALSE),0) -> 0 | N105: =IFERROR((N$38*'Screening Tool'!M47)*VLOOKUP(N$29,Avg_LT_Factors,$D105,FALSE),0) -> 0 | O105: 0 | P105: 0
C106: Total Electric Source MMBtu | E106: =SUM(E102:E105) -> 0 | F106: =SUM(F102:F105) -> 0 | G106: 0 | H106: 0 | I106: 0 | J106: 0 | K106: 0 | L106: 0 | M106: 0 | N106: 0 | O106: 0 | P106: =SUM(E106:N106) -> 0
C107: Total Electric Site MMBtu | E107: ='Screening Tool'!D43*0.003412*E29 -> 0 | F107: ='Screening Tool'!E43*0.003412*F29 -> 0 | G107: ='Screening Tool'!F43*0.003412*G29 -> 0 | H107: ='Screening Tool'!G43*0.003412*H29 -> 0 | I107: ='Screening Tool'!H43*0.003412*I29 -> 0 | J107: ='Screening Tool'!I43*0.003412*J29 -> 0 | K107: ='Screening Tool'!J43*0.003412*K29 -> 0 | L107: ='Screening Tool'!K43*0.003412*L29 -> 0 | M107: ='Screening Tool'!L43*0.003412*M29 -> 0 | N107: ='Screening Tool'!M43*0.003412*N29 -> 0 | O107: 0 | P107: 0
C108: Fossil Fuel Lifetime MMBTu | E108: =SUM(E97:E100)*E29 -> 0 | F108: 0 | G108: 0 | H108: 0 | I108: 0 | J108: 0 | K108: 0 | L108: 0 | M108: 0 | N108: 0 | O108: 0 | P108: 0
C109: Total Lifetime Site MMBtu - all fuels | E109: =E108+E107 -> 0 | F109: =F108+F107 -> 0 | G109: 0 | H109: 0 | I109: 0 | J109: 0 | K109: 0 | L109: 0 | M109: 0 | N109: 0 | O109: 0 | P109: 0 | Q109: linked to input tab
C110: Total Lifetime Source MMBtu - all fuels | E110: =SUM(E102:E105)+E108 -> 0 | F110: 0 | G110: 0 | H110: 0 | I110: 0 | J110: 0 | K110: 0 | L110: 0 | M110: 0 | N110: 0 | O110: 0 | P110: 0
B111: Annual CO2 | C111: CO2 electricity, 2030 | D111: 3 | E111: =E$24*'Screening Tool'!D43/1000*VLOOKUP($C111,'MMBTU-CO2 Tables'!$C$5:$E$12,$D111,FALSE) -> 0 | F111: =F$24*'Screening Tool'!E43/1000*VLOOKUP($C111,'MMBTU-CO2 Tables'!$C$5:$E$12,$D111,FALSE) -> 0 | G111: =G$24*'Screening Tool'!F43/1000*VLOOKUP($C111,'MMBTU-CO2 Tables'!$C$5:$E$12,$D111,FALSE) -> 0 | H111: =H$24*'Screening Tool'!G43/1000*VLOOKUP($C111,'MMBTU-CO2 Tables'!$C$5:$E$12,$D111,FALSE) -> 0 | I111: =I$24*'Screening Tool'!H43/1000*VLOOKUP($C111,'MMBTU-CO2 Tables'!$C$5:$E$12,$D111,FALSE) -> 0 | J111: =J$24*'Screening Tool'!I43/1000*VLOOKUP($C111,'MMBTU-CO2 Tables'!$C$5:$E$12,$D111,FALSE) -> 0 | K111: =K$24*'Screening Tool'!J43/1000*VLOOKUP($C111,'MMBTU-CO2 Tables'!$C$5:$E$12,$D111,FALSE) -> 0 | L111: =L$24*'Screening Tool'!K43/1000*VLOOKUP($C111,'MMBTU-CO2 Tables'!$C$5:$E$12,$D111,FALSE) -> 0 | M111: =M$24*'Screening Tool'!L43/1000*VLOOKUP($C111,'MMBTU-CO2 Tables'!$C$5:$E$12,$D111,FALSE) -> 0 | N111: =N$24*'Screening Tool'!M43/1000*VLOOKUP($C111,'MMBTU-CO2 Tables'!$C$5:$E$12,$D111,FALSE) -> 0 | O111: 0 | P111: 0
C112: CO2, natural gas | D112: 3 | E112: =E$24*SUM(E97:E99)*VLOOKUP($C112,'MMBTU-CO2 Tables'!$C$5:$E$12,$D112,FALSE) -> 0 | F112: =F$24*SUM(F97:F99)*VLOOKUP($C112,'MMBTU-CO2 Tables'!$C$5:$E$12,$D112,FALSE) -> 0 | G112: =G$24*SUM(G97:G99)*VLOOKUP($C112,'MMBTU-CO2 Tables'!$C$5:$E$12,$D112,FALSE) -> 0 | H112: =H$24*SUM(H97:H99)*VLOOKUP($C112,'MMBTU-CO2 Tables'!$C$5:$E$12,$D112,FALSE) -> 0 | I112: =I$24*SUM(I97:I99)*VLOOKUP($C112,'MMBTU-CO2 Tables'!$C$5:$E$12,$D112,FALSE) -> 0 | J112: =J$24*SUM(J97:J99)*VLOOKUP($C112,'MMBTU-CO2 Tables'!$C$5:$E$12,$D112,FALSE) -> 0 | K112: =K$24*SUM(K97:K99)*VLOOKUP($C112,'MMBTU-CO2 Tables'!$C$5:$E$12,$D112,FALSE) -> 0 | L112: =L$24*SUM(L97:L99)*VLOOKUP($C112,'MMBTU-CO2 Tables'!$C$5:$E$12,$D112,FALSE) -> 0 | M112: =M$24*SUM(M97:M99)*VLOOKUP($C112,'MMBTU-CO2 Tables'!$C$5:$E$12,$D112,FALSE) -> 0 | N112: =N$24*SUM(N97:N99)*VLOOKUP($C112,'MMBTU-CO2 Tables'!$C$5:$E$12,$D112,FALSE) -> 0 | O112: 0 | P112: 0
C113: CO2, oil | D113: 3 | E113: =E$24*'Screening Tool'!D53*VLOOKUP($C113,'MMBTU-CO2 Tables'!$C$5:$E$12,$D113,FALSE) -> 0 | F113: =F$24*'Screening Tool'!E53*VLOOKUP($C113,'MMBTU-CO2 Tables'!$C$5:$E$12,$D113,FALSE) -> 0 | G113: =G$24*'Screening Tool'!F53*VLOOKUP($C113,'MMBTU-CO2 Tables'!$C$5:$E$12,$D113,FALSE) -> 0 | H113: =H$24*'Screening Tool'!G53*VLOOKUP($C113,'MMBTU-CO2 Tables'!$C$5:$E$12,$D113,FALSE) -> 0 | I113: =I$24*'Screening Tool'!H53*VLOOKUP($C113,'MMBTU-CO2 Tables'!$C$5:$E$12,$D113,FALSE) -> 0 | J113: =J$24*'Screening Tool'!I53*VLOOKUP($C113,'MMBTU-CO2 Tables'!$C$5:$E$12,$D113,FALSE) -> 0 | K113: =K$24*'Screening Tool'!J53*VLOOKUP($C113,'MMBTU-CO2 Tables'!$C$5:$E$12,$D113,FALSE) -> 0 | L113: =L$24*'Screening Tool'!K53*VLOOKUP($C113,'MMBTU-CO2 Tables'!$C$5:$E$12,$D113,FALSE) -> 0 | M113: =M$24*'Screening Tool'!L53*VLOOKUP($C113,'MMBTU-CO2 Tables'!$C$5:$E$12,$D113,FALSE) -> 0 | N113: =N$24*'Screening Tool'!M53*VLOOKUP($C113,'MMBTU-CO2 Tables'!$C$5:$E$12,$D113,FALSE) -> 0 | O113: 0 | P113: 0
C114: CO2, propane | D114: 3 | E114: =E$24*'Screening Tool'!D54*VLOOKUP($C114,'MMBTU-CO2 Tables'!$C$5:$E$12,$D114,FALSE) -> 0 | F114: =F$24*'Screening Tool'!E54*VLOOKUP($C114,'MMBTU-CO2 Tables'!$C$5:$E$12,$D114,FALSE) -> 0 | G114: =G$24*'Screening Tool'!F54*VLOOKUP($C114,'MMBTU-CO2 Tables'!$C$5:$E$12,$D114,FALSE) -> 0 | H114: =H$24*'Screening Tool'!G54*VLOOKUP($C114,'MMBTU-CO2 Tables'!$C$5:$E$12,$D114,FALSE) -> 0 | I114: =I$24*'Screening Tool'!H54*VLOOKUP($C114,'MMBTU-CO2 Tables'!$C$5:$E$12,$D114,FALSE) -> 0 | J114: =J$24*'Screening Tool'!I54*VLOOKUP($C114,'MMBTU-CO2 Tables'!$C$5:$E$12,$D114,FALSE) -> 0 | K114: =K$24*'Screening Tool'!J54*VLOOKUP($C114,'MMBTU-CO2 Tables'!$C$5:$E$12,$D114,FALSE) -> 0 | L114: =L$24*'Screening Tool'!K54*VLOOKUP($C114,'MMBTU-CO2 Tables'!$C$5:$E$12,$D114,FALSE) -> 0 | M114: =M$24*'Screening Tool'!L54*VLOOKUP($C114,'MMBTU-CO2 Tables'!$C$5:$E$12,$D114,FALSE) -> 0 | N114: =N$24*'Screening Tool'!M54*VLOOKUP($C114,'MMBTU-CO2 Tables'!$C$5:$E$12,$D114,FALSE) -> 0 | O114: 0 | P114: 0
C115: CO2, gasoline | D115: 3 | E115: =E$24*'Screening Tool'!D56*VLOOKUP($C115,'MMBTU-CO2 Tables'!$C$5:$E$12,$D115,FALSE) -> 0 | F115: =F$24*'Screening Tool'!E56*VLOOKUP($C115,'MMBTU-CO2 Tables'!$C$5:$E$12,$D115,FALSE) -> 0 | G115: =G$24*'Screening Tool'!F56*VLOOKUP($C115,'MMBTU-CO2 Tables'!$C$5:$E$12,$D115,FALSE) -> 0 | H115: =H$24*'Screening Tool'!G56*VLOOKUP($C115,'MMBTU-CO2 Tables'!$C$5:$E$12,$D115,FALSE) -> 0 | I115: =I$24*'Screening Tool'!H56*VLOOKUP($C115,'MMBTU-CO2 Tables'!$C$5:$E$12,$D115,FALSE) -> 0 | J115: =J$24*'Screening Tool'!I56*VLOOKUP($C115,'MMBTU-CO2 Tables'!$C$5:$E$12,$D115,FALSE) -> 0 | K115: =K$24*'Screening Tool'!J56*VLOOKUP($C115,'MMBTU-CO2 Tables'!$C$5:$E$12,$D115,FALSE) -> 0 | L115: =L$24*'Screening Tool'!K56*VLOOKUP($C115,'MMBTU-CO2 Tables'!$C$5:$E$12,$D115,FALSE) -> 0 | M115: =M$24*'Screening Tool'!L56*VLOOKUP($C115,'MMBTU-CO2 Tables'!$C$5:$E$12,$D115,FALSE) -> 0 | N115: =N$24*'Screening Tool'!M56*VLOOKUP($C115,'MMBTU-CO2 Tables'!$C$5:$E$12,$D115,FALSE) -> 0 | O115: 0 | P115: 0
C116: CO2, diesel | D116: 3 | E116: =E$24*'Screening Tool'!D55*VLOOKUP($C116,'MMBTU-CO2 Tables'!$C$5:$E$12,$D116,FALSE) -> 0 | F116: =F$24*'Screening Tool'!E55*VLOOKUP($C116,'MMBTU-CO2 Tables'!$C$5:$E$12,$D116,FALSE) -> 0 | G116: =G$24*'Screening Tool'!F55*VLOOKUP($C116,'MMBTU-CO2 Tables'!$C$5:$E$12,$D116,FALSE) -> 0 | H116: =H$24*'Screening Tool'!G55*VLOOKUP($C116,'MMBTU-CO2 Tables'!$C$5:$E$12,$D116,FALSE) -> 0 | I116: =I$24*'Screening Tool'!H55*VLOOKUP($C116,'MMBTU-CO2 Tables'!$C$5:$E$12,$D116,FALSE) -> 0 | J116: =J$24*'Screening Tool'!I55*VLOOKUP($C116,'MMBTU-CO2 Tables'!$C$5:$E$12,$D116,FALSE) -> 0 | K116: =K$24*'Screening Tool'!J55*VLOOKUP($C116,'MMBTU-CO2 Tables'!$C$5:$E$12,$D116,FALSE) -> 0 | L116: =L$24*'Screening Tool'!K55*VLOOKUP($C116,'MMBTU-CO2 Tables'!$C$5:$E$12,$D116,FALSE) -> 0 | M116: =M$24*'Screening Tool'!L55*VLOOKUP($C116,'MMBTU-CO2 Tables'!$C$5:$E$12,$D116,FALSE) -> 0 | N116: =N$24*'Screening Tool'!M55*VLOOKUP($C116,'MMBTU-CO2 Tables'!$C$5:$E$12,$D116,FALSE) -> 0 | O116: 0 | P116: 0
C117: CO2, wood | D117: 3 | E117: =E$24*'Screening Tool'!D58*VLOOKUP($C117,'MMBTU-CO2 Tables'!$C$5:$E$12,$D117,FALSE) -> 0 | F117: =F$24*'Screening Tool'!E58*VLOOKUP($C117,'MMBTU-CO2 Tables'!$C$5:$E$12,$D117,FALSE) -> 0 | G117: =G$24*'Screening Tool'!F58*VLOOKUP($C117,'MMBTU-CO2 Tables'!$C$5:$E$12,$D117,FALSE) -> 0 | H117: =H$24*'Screening Tool'!G58*VLOOKUP($C117,'MMBTU-CO2 Tables'!$C$5:$E$12,$D117,FALSE) -> 0 | I117: =I$24*'Screening Tool'!H58*VLOOKUP($C117,'MMBTU-CO2 Tables'!$C$5:$E$12,$D117,FALSE) -> 0 | J117: =J$24*'Screening Tool'!I58*VLOOKUP($C117,'MMBTU-CO2 Tables'!$C$5:$E$12,$D117,FALSE) -> 0 | K117: =K$24*'Screening Tool'!J58*VLOOKUP($C117,'MMBTU-CO2 Tables'!$C$5:$E$12,$D117,FALSE) -> 0 | L117: =L$24*'Screening Tool'!K58*VLOOKUP($C117,'MMBTU-CO2 Tables'!$C$5:$E$12,$D117,FALSE) -> 0 | M117: =M$24*'Screening Tool'!L58*VLOOKUP($C117,'MMBTU-CO2 Tables'!$C$5:$E$12,$D117,FALSE) -> 0 | N117: =N$24*'Screening Tool'!M58*VLOOKUP($C117,'MMBTU-CO2 Tables'!$C$5:$E$12,$D117,FALSE) -> 0 | O117: 0 | P117: 0
C118: CO2 Total | E118: =SUM(E111:E117) -> 0 | F118: 0 | G118: 0 | H118: 0 | I118: 0 | J118: 0 | K118: 0 | L118: 0 | M118: 0 | N118: 0 | O118: 0 | P118: 0 | Q118: linked to input tab

Sheet PA Results
A1: Tab Explanation and Notes (click box left to show/hide)
A2: This tab splits out all Included ECMs between the electric and gas PAs.
A3: Allocation Logic - Electrification Measures - With Gas Displacement - Gas Elx - use a pre-determined allocation and divide all savings (gas savings, costs, electric penalties) with those allocations. - With Delivered Fuel Displacement - Non-Gas Elx - all information goes to the Electric PA - Non Electrification Measures will be divided as follows: - Projects with no positive gas savings - Electric Only - all information goes to Electric PA - Projects with only gas savings - Gas Only - all information goes to the Gas PA - Projects with both gas and electric savings -ECM Allocation - energy savings will go to the appropriate PA, all other information will be allocated with ECM specific allocations
A4: Shared Results - Applicable to Both PAs
B5: Measure Information | C5: Measure Label | D5: ='Screening Tool'!D33 -> ECM 1 | E5: ='Screening Tool'!E33 -> ECM 2 | F5: ='Screening Tool'!F33 -> ECM 3 | G5: ='Screening Tool'!G33 -> ECM 4 | H5: ='Screening Tool'!H33 -> ECM 5 | I5: ='Screening Tool'!I33 -> ECM 6 | J5: ='Screening Tool'!J33 -> ECM 7 | K5: ='Screening Tool'!K33 -> ECM 8 | L5: ='Screening Tool'!L33 -> ECM 9 | M5: ='Screening Tool'!M33 -> ECM 10 | N5: Total Included | O5: Total Project
C6: Include in project | D6: ='Screening Tool'!D34 -> 0 | E6: ='Screening Tool'!E34 -> 0 | F6: ='Screening Tool'!F34 -> 0 | G6: ='Screening Tool'!G34 -> 0 | H6: ='Screening Tool'!H34 -> 0 | I6: ='Screening Tool'!I34 -> 0 | J6: ='Screening Tool'!J34 -> 0 | K6: ='Screening Tool'!K34 -> 0 | L6: ='Screening Tool'!L34 -> 0 | M6: ='Screening Tool'!M34 -> 0 | N6: ='Screening Tool'!N34 -> 0 ECMs Included | O6: ='Screening Tool'!O34 -> 0 ECMs Total
C7: Initiative | D7: ='Screening Tool'!D35 -> 0 | E7: ='Screening Tool'!E35 -> 0 | F7: ='Screening Tool'!F35 -> 0 | G7: ='Screening Tool'!G35 -> 0 | H7: ='Screening Tool'!H35 -> 0 | I7: ='Screening Tool'!I35 -> 0 | J7: ='Screening Tool'!J35 -> 0 | K7: ='Screening Tool'!K35 -> 0 | L7: ='Screening Tool'!L35 -> 0 | M7: ='Screening Tool'!M35 -> 0
C8: Measure | D8: ='Screening Tool'!D37 -> 0 | E8: ='Screening Tool'!E37 -> 0 | F8: ='Screening Tool'!F37 -> 0 | G8: ='Screening Tool'!G37 -> 0 | H8: ='Screening Tool'!H37 -> 0 | I8: ='Screening Tool'!I37 -> 0 | J8: ='Screening Tool'!J37 -> 0 | K8: ='Screening Tool'!K37 -> 0 | L8: ='Screening Tool'!L37 -> 0 | M8: ='Screening Tool'!M37 -> 0
C9: Measure Life for Tracking | D9: ='Screening Tool'!D27 ->  | E9: ='Screening Tool'!E27 ->  | F9: ='Screening Tool'!F27 ->  | G9: ='Screening Tool'!G27 ->  | H9: ='Screening Tool'!H27 ->  | I9: ='Screening Tool'!I27 ->  | J9: ='Screening Tool'!J27 ->  | K9: ='Screening Tool'!K27 ->  | L9: ='Screening Tool'!L27 ->  | M9: ='Screening Tool'!M27 -> 
C10: Active Errors? | D10: =IF('Screening Tool'!D81>0,"Error","None") -> None | E10: =IF('Screening Tool'!E81>0,"Error","None") -> None | F10: =IF('Screening Tool'!F81>0,"Error","None") -> None | G10: =IF('Screening Tool'!G81>0,"Error","None") -> None | H10: =IF('Screening Tool'!H81>0,"Error","None") -> None | I10: =IF('Screening Tool'!I81>0,"Error","None") -> None | J10: =IF('Screening Tool'!J81>0,"Error","None") -> None | K10: =IF('Screening Tool'!K81>0,"Error","None") -> None | L10: =IF('Screening Tool'!L81>0,"Error","None") -> None | M10: =IF('Screening Tool'!M81>0,"Error","None") -> None
B11: Calculated NEIs | C11: Heat Pump Annual $ Savings | D11: =Screening!E39 -> 0 | E11: =Screening!F39 -> 0 | F11: =Screening!G39 -> 0 | G11: =Screening!H39 -> 0 | H11: =Screening!I39 -> 0 | I11: =Screening!J39 -> 0 | J11: =Screening!K39 -> 0 | K11: =Screening!L39 -> 0 | L11: =Screening!M39 -> 0 | M11: =Screening!N39 -> 0 | N11: =Screening!O39 -> 0 | O11: =Screening!P39 -> 0
C12: Electric Annual $ Savings | D12: =Screening!E40 -> 0 | E12: =Screening!F40 -> 0 | F12: =Screening!G40 -> 0 | G12: =Screening!H40 -> 0 | H12: =Screening!I40 -> 0 | I12: =Screening!J40 -> 0 | J12: =Screening!K40 -> 0 | K12: =Screening!L40 -> 0 | L12: =Screening!M40 -> 0 | M12: =Screening!N40 -> 0 | N12: =Screening!O40 -> 0 | O12: =Screening!P40 -> 0
C13: Gas Annual $ Savings | D13: =Screening!E41 -> 0 | E13: =Screening!F41 -> 0 | F13: =Screening!G41 -> 0 | G13: =Screening!H41 -> 0 | H13: =Screening!I41 -> 0 | I13: =Screening!J41 -> 0 | J13: =Screening!K41 -> 0 | K13: =Screening!L41 -> 0 | L13: =Screening!M41 -> 0 | M13: =Screening!N41 -> 0 | N13: =Screening!O41 -> 0 | O13: =Screening!P41 -> 0
B14: Results | C14: BCR | D14: ='Screening Tool'!D21 -> 0 | E14: ='Screening Tool'!E21 -> 0 | F14: ='Screening Tool'!F21 -> 0 | G14: ='Screening Tool'!G21 -> 0 | H14: ='Screening Tool'!H21 -> 0 | I14: ='Screening Tool'!I21 -> 0 | J14: ='Screening Tool'!J21 -> 0 | K14: ='Screening Tool'!K21 -> 0 | L14: ='Screening Tool'!L21 -> 0 | M14: ='Screening Tool'!M21 -> 0 | N14: ='Screening Tool'!N21 -> 0 | O14: ='Screening Tool'!O21 -> 0
C15: All Fuels Lifetime Savings (Site MMBtu) | D15: =Screening!E109 -> 0 | E15: =Screening!F109 -> 0 | F15: =Screening!G109 -> 0 | G15: =Screening!H109 -> 0 | H15: =Screening!I109 -> 0 | I15: =Screening!J109 -> 0 | J15: =Screening!K109 -> 0 | K15: =Screening!L109 -> 0 | L15: =Screening!M109 -> 0 | M15: =Screening!N109 -> 0 | N15: =Screening!O109 -> 0 | O15: =Screening!P109 -> 0
C16: 2030 Total Avoided CO2e (Source Metric Tons) | D16: =Screening!E118 -> 0 | E16: =Screening!F118 -> 0 | F16: =Screening!G118 -> 0 | G16: =Screening!H118 -> 0 | H16: =Screening!I118 -> 0 | I16: =Screening!J118 -> 0 | J16: =Screening!K118 -> 0 | K16: =Screening!L118 -> 0 | L16: =Screening!M118 -> 0 | M16: =Screening!N118 -> 0 | N16: =Screening!O118 -> 0 | O16: =Screening!P118 -> 0
C17: Total Lifetime CO2e (Source Metric Tons) | D17: =Screening!E118*Screening!E29 -> 0 | E17: =Screening!F118*Screening!F29 -> 0 | F17: =Screening!G118*Screening!G29 -> 0 | G17: =Screening!H118*Screening!H29 -> 0 | H17: =Screening!I118*Screening!I29 -> 0 | I17: =Screening!J118*Screening!J29 -> 0 | J17: =Screening!K118*Screening!K29 -> 0 | K17: =Screening!L118*Screening!L29 -> 0 | L17: =Screening!M118*Screening!M29 -> 0 | M17: =Screening!N118*Screening!N29 -> 0 | N17: =Screening!O118*Screening!O29 -> 0 | O17: =Screening!P118*Screening!P29 -> 0
C18: Total Payback | D18: ='Screening Tool'!D25 -> 0 | E18: ='Screening Tool'!E25 -> 0 | F18: ='Screening Tool'!F25 -> 0 | G18: ='Screening Tool'!G25 -> 0 | H18: ='Screening Tool'!H25 -> 0 | I18: ='Screening Tool'!I25 -> 0 | J18: ='Screening Tool'!J25 -> 0 | K18: ='Screening Tool'!K25 -> 0 | L18: ='Screening Tool'!L25 -> 0 | M18: ='Screening Tool'!M25 -> 0 | N18: ='Screening Tool'!N25 -> 0 | O18: ='Screening Tool'!O25 -> 0
C19: Incentive | D19: 5000 | E19: 5000
C20: Net Benefits Estimate | D20: =Screening!E76*0.85 -> 0 | E20: =Screening!F76*0.85 -> 0 | F20: =Screening!G76*0.85 -> 0 | G20: =Screening!H76*0.85 -> 0 | H20: =Screening!I76*0.85 -> 0 | I20: =Screening!J76*0.85 -> 0 | J20: =Screening!K76*0.85 -> 0 | K20: =Screening!L76*0.85 -> 0 | L20: =Screening!M76*0.85 -> 0 | M20: =Screening!N76*0.85 -> 0 | N20: =Screening!O76*0.85 -> 0 | O20: =Screening!P76*0.85 -> 0
B21: PAs and Allocation | C21: PAs Claiming Savings | D21: =Screening!E22 ->  | E21: =Screening!F22 ->  | F21: =Screening!G22 ->  | G21: =Screening!H22 ->  | H21: =Screening!I22 ->  | I21: =Screening!J22 ->  | J21: =Screening!K22 ->  | K21: =Screening!L22 ->  | L21: =Screening!M22 ->  | M21: =Screening!N22 -> 
C22: Allocation Type | D22: =Screening!E78 ->  | E22: =Screening!F78 ->  | F22: =Screening!G78 ->  | G22: =Screening!H78 ->  | H22: =Screening!I78 ->  | I22: =Screening!J78 ->  | J22: =Screening!K78 ->  | K22: =Screening!L78 ->  | L22: =Screening!M78 ->  | M22: =Screening!N78 -> 
C23: % Electric Allocation | D23: =IF(D6=1,'Screening Tool'!D29,0) -> 0 | E23: =IF(E6=1,'Screening Tool'!E29,0) -> 0 | F23: =IF(F6=1,'Screening Tool'!F29,0) -> 0 | G23: =IF(G6=1,'Screening Tool'!G29,0) -> 0 | H23: =IF(H6=1,'Screening Tool'!H29,0) -> 0 | I23: =IF(I6=1,'Screening Tool'!I29,0) -> 0 | J23: =IF(J6=1,'Screening Tool'!J29,0) -> 0 | K23: =IF(K6=1,'Screening Tool'!K29,0) -> 0 | L23: =IF(L6=1,'Screening Tool'!L29,0) -> 0 | M23: =IF(M6=1,'Screening Tool'!M29,0) -> 0
C24: % Gas Allocation | D24: =IF(D6=1,'Screening Tool'!D30,0) -> 0 | E24: =IF(E6=1,'Screening Tool'!E30,0) -> 0 | F24: =IF(F6=1,'Screening Tool'!F30,0) -> 0 | G24: =IF(G6=1,'Screening Tool'!G30,0) -> 0 | H24: =IF(H6=1,'Screening Tool'!H30,0) -> 0 | I24: =IF(I6=1,'Screening Tool'!I30,0) -> 0 | J24: =IF(J6=1,'Screening Tool'!J30,0) -> 0 | K24: =IF(K6=1,'Screening Tool'!K30,0) -> 0 | L24: =IF(L6=1,'Screening Tool'!L30,0) -> 0 | M24: =IF(M6=1,'Screening Tool'!M30,0) -> 0
C25: Project Adjusted Total/Incremental Cost | D25: ='Screening Tool'!D31 ->  | E25: ='Screening Tool'!E31 ->  | F25: ='Screening Tool'!F31 ->  | G25: ='Screening Tool'!G31 ->  | H25: ='Screening Tool'!H31 ->  | I25: ='Screening Tool'!I31 ->  | J25: ='Screening Tool'!J31 ->  | K25: ='Screening Tool'!K31 ->  | L25: ='Screening Tool'!L31 ->  | M25: ='Screening Tool'!M31 -> 
A26: ="Electric PA - "&'Screening Tool'!I7 -> Electric PA - National Grid Electric - MA
B27: Heat Pump Only | C27: Heat Pump Tons for Tracking | D27: =IFERROR('Screening Tool'!D26*'Screening Tool'!D29,"") ->  | E27: =IFERROR('Screening Tool'!E26*'Screening Tool'!E29,"") ->  | F27: =IFERROR('Screening Tool'!F26*'Screening Tool'!F29,"") ->  | G27: =IFERROR('Screening Tool'!G26*'Screening Tool'!G29,"") ->  | H27: =IFERROR('Screening Tool'!H26*'Screening Tool'!H29,"") ->  | I27: =IFERROR('Screening Tool'!I26*'Screening Tool'!I29,"") ->  | J27: =IFERROR('Screening Tool'!J26*'Screening Tool'!J29,"") ->  | K27: =IFERROR('Screening Tool'!K26*'Screening Tool'!K29,"") ->  | L27: =IFERROR('Screening Tool'!L26*'Screening Tool'!L29,"") ->  | M27: =IFERROR('Screening Tool'!M26*'Screening Tool'!M29,"") -> 
B28: Cost Information | C28: Proposed Cost ($) | D28: =IFERROR(D$23*'Screening Tool'!D40,"") -> 0 | E28: =IFERROR(E$23*'Screening Tool'!E40,"") -> 0 | F28: =IFERROR(F$23*'Screening Tool'!F40,"") -> 0 | G28: =IFERROR(G$23*'Screening Tool'!G40,"") -> 0 | H28: =IFERROR(H$23*'Screening Tool'!H40,"") -> 0 | I28: =IFERROR(I$23*'Screening Tool'!I40,"") -> 0 | J28: =IFERROR(J$23*'Screening Tool'!J40,"") -> 0 | K28: =IFERROR(K$23*'Screening Tool'!K40,"") -> 0 | L28: =IFERROR(L$23*'Screening Tool'!L40,"") -> 0 | M28: =IFERROR(M$23*'Screening Tool'!M40,"") -> 0 | N28: =SUMPRODUCT(D28:M28,$D$6:$M$6) -> 0 | O28: =SUM(D28:M28) -> 0
C29: Value of Federal/State Tax Credits ($) | D29: =IFERROR(D$23*'Screening Tool'!D41,"") -> 0 | E29: =IFERROR(E$23*'Screening Tool'!E41,"") -> 0 | F29: =IFERROR(F$23*'Screening Tool'!F41,"") -> 0 | G29: =IFERROR(G$23*'Screening Tool'!G41,"") -> 0 | H29: =IFERROR(H$23*'Screening Tool'!H41,"") -> 0 | I29: =IFERROR(I$23*'Screening Tool'!I41,"") -> 0 | J29: =IFERROR(J$23*'Screening Tool'!J41,"") -> 0 | K29: =IFERROR(K$23*'Screening Tool'!K41,"") -> 0 | L29: =IFERROR(L$23*'Screening Tool'!L41,"") -> 0 | M29: =IFERROR(M$23*'Screening Tool'!M41,"") -> 0 | N29: =SUMPRODUCT(D29:M29,$D$6:$M$6) -> 0 | O29: =SUM(D29:M29) -> 0
C30: Baseline Cost ($) | D30: =IFERROR(D$23*'Screening Tool'!D42,"") -> 0 | E30: =IFERROR(E$23*'Screening Tool'!E42,"") -> 0 | F30: =IFERROR(F$23*'Screening Tool'!F42,"") -> 0 | G30: =IFERROR(G$23*'Screening Tool'!G42,"") -> 0 | H30: =IFERROR(H$23*'Screening Tool'!H42,"") -> 0 | I30: =IFERROR(I$23*'Screening Tool'!I42,"") -> 0 | J30: =IFERROR(J$23*'Screening Tool'!J42,"") -> 0 | K30: =IFERROR(K$23*'Screening Tool'!K42,"") -> 0 | L30: =IFERROR(L$23*'Screening Tool'!L42,"") -> 0 | M30: =IFERROR(M$23*'Screening Tool'!M42,"") -> 0 | N30: =SUMPRODUCT(D30:M30,$D$6:$M$6) -> 0 | O30: =SUM(D30:M30) -> 0
C31: Total Resource Cost ($) | D31: =IFERROR(D$23*Screening!E42,"") -> 0 | E31: =IFERROR(E$23*Screening!F42,"") -> 0 | F31: =IFERROR(F$23*Screening!G42,"") -> 0 | G31: =IFERROR(G$23*Screening!H42,"") -> 0 | H31: =IFERROR(H$23*Screening!I42,"") -> 0 | I31: =IFERROR(I$23*Screening!J42,"") -> 0 | J31: =IFERROR(J$23*Screening!K42,"") -> 0 | K31: =IFERROR(K$23*Screening!L42,"") -> 0 | L31: =IFERROR(L$23*Screening!M42,"") -> 0 | M31: =IFERROR(M$23*Screening!N42,"") -> 0 | N31: =SUMPRODUCT(D31:M31,$D$6:$M$6) -> 0 | O31: =SUM(D31:M31) -> 0
B32: Gross Electric | C32: Energy (kWh) | D32: =IFERROR(IF(D22="ECM Allocation",'Screening Tool'!D43,D$23*'Screening Tool'!D43),"") -> 0 | E32: =IFERROR(IF(E22="ECM Allocation",'Screening Tool'!E43,E$23*'Screening Tool'!E43),"") -> 0 | F32: =IFERROR(IF(F22="ECM Allocation",'Screening Tool'!F43,F$23*'Screening Tool'!F43),"") -> 0 | G32: =IFERROR(IF(G22="ECM Allocation",'Screening Tool'!G43,G$23*'Screening Tool'!G43),"") -> 0 | H32: =IFERROR(IF(H22="ECM Allocation",'Screening Tool'!H43,H$23*'Screening Tool'!H43),"") -> 0 | I32: =IFERROR(IF(I22="ECM Allocation",'Screening Tool'!I43,I$23*'Screening Tool'!I43),"") -> 0 | J32: =IFERROR(IF(J22="ECM Allocation",'Screening Tool'!J43,J$23*'Screening Tool'!J43),"") -> 0 | K32: =IFERROR(IF(K22="ECM Allocation",'Screening Tool'!K43,K$23*'Screening Tool'!K43),"") -> 0 | L32: =IFERROR(IF(L22="ECM Allocation",'Screening Tool'!L43,L$23*'Screening Tool'!L43),"") -> 0 | M32: =IFERROR(IF(M22="ECM Allocation",'Screening Tool'!M43,M$23*'Screening Tool'!M43),"") -> 0 | N32: =SUMPRODUCT(D32:M32,$D$6:$M$6) -> 0 | O32: =SUM(D32:M32) -> 0
C33: % Summer On Peak | D33: =IFERROR(IF(D$32<>0,'Screening Tool'!D44,0),"") -> 0 | E33: =IFERROR(IF(E$32<>0,'Screening Tool'!E44,0),"") -> 0 | F33: =IFERROR(IF(F$32<>0,'Screening Tool'!F44,0),"") -> 0 | G33: =IFERROR(IF(G$32<>0,'Screening Tool'!G44,0),"") -> 0 | H33: =IFERROR(IF(H$32<>0,'Screening Tool'!H44,0),"") -> 0 | I33: =IFERROR(IF(I$32<>0,'Screening Tool'!I44,0),"") -> 0 | J33: =IFERROR(IF(J$32<>0,'Screening Tool'!J44,0),"") -> 0 | K33: =IFERROR(IF(K$32<>0,'Screening Tool'!K44,0),"") -> 0 | L33: =IFERROR(IF(L$32<>0,'Screening Tool'!L44,0),"") -> 0 | M33: =IFERROR(IF(M$32<>0,'Screening Tool'!M44,0),"") -> 0
C34: % Summer Off Peak | D34: =IFERROR(IF(D$32<>0,'Screening Tool'!D45,0),"") -> 0 | E34: =IFERROR(IF(E$32<>0,'Screening Tool'!E45,0),"") -> 0 | F34: =IFERROR(IF(F$32<>0,'Screening Tool'!F45,0),"") -> 0 | G34: =IFERROR(IF(G$32<>0,'Screening Tool'!G45,0),"") -> 0 | H34: =IFERROR(IF(H$32<>0,'Screening Tool'!H45,0),"") -> 0 | I34: =IFERROR(IF(I$32<>0,'Screening Tool'!I45,0),"") -> 0 | J34: =IFERROR(IF(J$32<>0,'Screening Tool'!J45,0),"") -> 0 | K34: =IFERROR(IF(K$32<>0,'Screening Tool'!K45,0),"") -> 0 | L34: =IFERROR(IF(L$32<>0,'Screening Tool'!L45,0),"") -> 0 | M34: =IFERROR(IF(M$32<>0,'Screening Tool'!M45,0),"") -> 0
C35: % Winter On Peak | D35: =IFERROR(IF(D$32<>0,'Screening Tool'!D46,0),"") -> 0 | E35: =IFERROR(IF(E$32<>0,'Screening Tool'!E46,0),"") -> 0 | F35: =IFERROR(IF(F$32<>0,'Screening Tool'!F46,0),"") -> 0 | G35: =IFERROR(IF(G$32<>0,'Screening Tool'!G46,0),"") -> 0 | H35: =IFERROR(IF(H$32<>0,'Screening Tool'!H46,0),"") -> 0 | I35: =IFERROR(IF(I$32<>0,'Screening Tool'!I46,0),"") -> 0 | J35: =IFERROR(IF(J$32<>0,'Screening Tool'!J46,0),"") -> 0 | K35: =IFERROR(IF(K$32<>0,'Screening Tool'!K46,0),"") -> 0 | L35: =IFERROR(IF(L$32<>0,'Screening Tool'!L46,0),"") -> 0 | M35: =IFERROR(IF(M$32<>0,'Screening Tool'!M46,0),"") -> 0
C36: % Winter Off Peak | D36: =IFERROR(IF(D$32<>0,'Screening Tool'!D47,0),"") -> 0 | E36: =IFERROR(IF(E$32<>0,'Screening Tool'!E47,0),"") -> 0 | F36: =IFERROR(IF(F$32<>0,'Screening Tool'!F47,0),"") -> 0 | G36: =IFERROR(IF(G$32<>0,'Screening Tool'!G47,0),"") -> 0 | H36: =IFERROR(IF(H$32<>0,'Screening Tool'!H47,0),"") -> 0 | I36: =IFERROR(IF(I$32<>0,'Screening Tool'!I47,0),"") -> 0 | J36: =IFERROR(IF(J$32<>0,'Screening Tool'!J47,0),"") -> 0 | K36: =IFERROR(IF(K$32<>0,'Screening Tool'!K47,0),"") -> 0 | L36: =IFERROR(IF(L$32<>0,'Screening Tool'!L47,0),"") -> 0 | M36: =IFERROR(IF(M$32<>0,'Screening Tool'!M47,0),"") -> 0
C37: Summer Peak kW | D37: =IFERROR(D$23*'Screening Tool'!D48,"") -> 0 | E37: =IFERROR(E$23*'Screening Tool'!E48,"") -> 0 | F37: =IFERROR(F$23*'Screening Tool'!F48,"") -> 0 | G37: =IFERROR(G$23*'Screening Tool'!G48,"") -> 0 | H37: =IFERROR(H$23*'Screening Tool'!H48,"") -> 0 | I37: =IFERROR(I$23*'Screening Tool'!I48,"") -> 0 | J37: =IFERROR(J$23*'Screening Tool'!J48,"") -> 0 | K37: =IFERROR(K$23*'Screening Tool'!K48,"") -> 0 | L37: =IFERROR(L$23*'Screening Tool'!L48,"") -> 0 | M37: =IFERROR(M$23*'Screening Tool'!M48,"") -> 0 | N37: =SUMPRODUCT(D37:M37,$D$6:$M$6) -> 0 | O37: =SUM(D37:M37) -> 0
C38: Winter Peak kW | D38: =IFERROR(D$23*'Screening Tool'!D49,"") -> 0 | E38: =IFERROR(E$23*'Screening Tool'!E49,"") -> 0 | F38: =IFERROR(F$23*'Screening Tool'!F49,"") -> 0 | G38: =IFERROR(G$23*'Screening Tool'!G49,"") -> 0 | H38: =IFERROR(H$23*'Screening Tool'!H49,"") -> 0 | I38: =IFERROR(I$23*'Screening Tool'!I49,"") -> 0 | J38: =IFERROR(J$23*'Screening Tool'!J49,"") -> 0 | K38: =IFERROR(K$23*'Screening Tool'!K49,"") -> 0 | L38: =IFERROR(L$23*'Screening Tool'!L49,"") -> 0 | M38: =IFERROR(M$23*'Screening Tool'!M49,"") -> 0 | N38: 0 | O38: 0
B39: Gross Gas | C39: Heating Season (Therms) | D39: =IFERROR(IF(D$22="ECM Allocation",0,D$23*'Screening Tool'!D50),"") -> 0 | E39: =IFERROR(IF(E$22="ECM Allocation",0,E$23*'Screening Tool'!E50),"") -> 0 | F39: =IFERROR(IF(F$22="ECM Allocation",0,F$23*'Screening Tool'!F50),"") -> 0 | G39: =IFERROR(IF(G$22="ECM Allocation",0,G$23*'Screening Tool'!G50),"") -> 0 | H39: =IFERROR(IF(H$22="ECM Allocation",0,H$23*'Screening Tool'!H50),"") -> 0 | I39: =IFERROR(IF(I$22="ECM Allocation",0,I$23*'Screening Tool'!I50),"") -> 0 | J39: =IFERROR(IF(J$22="ECM Allocation",0,J$23*'Screening Tool'!J50),"") -> 0 | K39: =IFERROR(IF(K$22="ECM Allocation",0,K$23*'Screening Tool'!K50),"") -> 0 | L39: =IFERROR(IF(L$22="ECM Allocation",0,L$23*'Screening Tool'!L50),"") -> 0 | M39: =IFERROR(IF(M$22="ECM Allocation",0,M$23*'Screening Tool'!M50),"") -> 0 | N39: 0 | O39: 0
C40: Year Round (Therms) | D40: =IFERROR(IF(D$22="ECM Allocation",0,D$23*'Screening Tool'!D51),"") -> 0 | E40: =IFERROR(IF(E$22="ECM Allocation",0,E$23*'Screening Tool'!E51),"") -> 0 | F40: =IFERROR(IF(F$22="ECM Allocation",0,F$23*'Screening Tool'!F51),"") -> 0 | G40: =IFERROR(IF(G$22="ECM Allocation",0,G$23*'Screening Tool'!G51),"") -> 0 | H40: =IFERROR(IF(H$22="ECM Allocation",0,H$23*'Screening Tool'!H51),"") -> 0 | I40: =IFERROR(IF(I$22="ECM Allocation",0,I$23*'Screening Tool'!I51),"") -> 0 | J40: =IFERROR(IF(J$22="ECM Allocation",0,J$23*'Screening Tool'!J51),"") -> 0 | K40: =IFERROR(IF(K$22="ECM Allocation",0,K$23*'Screening Tool'!K51),"") -> 0 | L40: =IFERROR(IF(L$22="ECM Allocation",0,L$23*'Screening Tool'!L51),"") -> 0 | M40: =IFERROR(IF(M$22="ECM Allocation",0,M$23*'Screening Tool'!M51),"") -> 0 | N40: 0 | O40: 0
C41: Other (Therms) | D41: =IFERROR(IF(D$22="ECM Allocation",0,D$23*'Screening Tool'!D52),"") -> 0 | E41: =IFERROR(IF(E$22="ECM Allocation",0,E$23*'Screening Tool'!E52),"") -> 0 | F41: =IFERROR(IF(F$22="ECM Allocation",0,F$23*'Screening Tool'!F52),"") -> 0 | G41: =IFERROR(IF(G$22="ECM Allocation",0,G$23*'Screening Tool'!G52),"") -> 0 | H41: =IFERROR(IF(H$22="ECM Allocation",0,H$23*'Screening Tool'!H52),"") -> 0 | I41: =IFERROR(IF(I$22="ECM Allocation",0,I$23*'Screening Tool'!I52),"") -> 0 | J41: =IFERROR(IF(J$22="ECM Allocation",0,J$23*'Screening Tool'!J52),"") -> 0 | K41: =IFERROR(IF(K$22="ECM Allocation",0,K$23*'Screening Tool'!K52),"") -> 0 | L41: =IFERROR(IF(L$22="ECM Allocation",0,L$23*'Screening Tool'!L52),"") -> 0 | M41: =IFERROR(IF(M$22="ECM Allocation",0,M$23*'Screening Tool'!M52),"") -> 0 | N41: 0 | O41: 0
B42: Gross Non Electric Non Gas | C42: #2 Oil (MMBtu) | D42: =IFERROR(D$23*'Screening Tool'!D53,"") -> 0 | E42: =IFERROR(E$23*'Screening Tool'!E53,"") -> 0 | F42: =IFERROR(F$23*'Screening Tool'!F53,"") -> 0 | G42: =IFERROR(G$23*'Screening Tool'!G53,"") -> 0 | H42: =IFERROR(H$23*'Screening Tool'!H53,"") -> 0 | I42: =IFERROR(I$23*'Screening Tool'!I53,"") -> 0 | J42: =IFERROR(J$23*'Screening Tool'!J53,"") -> 0 | K42: =IFERROR(K$23*'Screening Tool'!K53,"") -> 0 | L42: =IFERROR(L$23*'Screening Tool'!L53,"") -> 0 | M42: =IFERROR(M$23*'Screening Tool'!M53,"") -> 0 | N42: 0 | O42: 0
C43: Propane (MMBtu) | D43: =IFERROR(D$23*'Screening Tool'!D54,"") -> 0 | E43: =IFERROR(E$23*'Screening Tool'!E54,"") -> 0 | F43: =IFERROR(F$23*'Screening Tool'!F54,"") -> 0 | G43: =IFERROR(G$23*'Screening Tool'!G54,"") -> 0 | H43: =IFERROR(H$23*'Screening Tool'!H54,"") -> 0 | I43: =IFERROR(I$23*'Screening Tool'!I54,"") -> 0 | J43: =IFERROR(J$23*'Screening Tool'!J54,"") -> 0 | K43: =IFERROR(K$23*'Screening Tool'!K54,"") -> 0 | L43: =IFERROR(L$23*'Screening Tool'!L54,"") -> 0 | M43: =IFERROR(M$23*'Screening Tool'!M54,"") -> 0 | N43: 0 | O43: 0
C44: Motor Diesel (MMBtu) | D44: =IFERROR(D$23*'Screening Tool'!D55,"") -> 0 | E44: =IFERROR(E$23*'Screening Tool'!E55,"") -> 0 | F44: =IFERROR(F$23*'Screening Tool'!F55,"") -> 0 | G44: =IFERROR(G$23*'Screening Tool'!G55,"") -> 0 | H44: =IFERROR(H$23*'Screening Tool'!H55,"") -> 0 | I44: =IFERROR(I$23*'Screening Tool'!I55,"") -> 0 | J44: =IFERROR(J$23*'Screening Tool'!J55,"") -> 0 | K44: =IFERROR(K$23*'Screening Tool'!K55,"") -> 0 | L44: =IFERROR(L$23*'Screening Tool'!L55,"") -> 0 | M44: =IFERROR(M$23*'Screening Tool'!M55,"") -> 0 | N44: 0 | O44: 0
C45: Motor Gasoline (MMBtu) | D45: =IFERROR(D$23*'Screening Tool'!D56,"") -> 0 | E45: =IFERROR(E$23*'Screening Tool'!E56,"") -> 0 | F45: =IFERROR(F$23*'Screening Tool'!F56,"") -> 0 | G45: =IFERROR(G$23*'Screening Tool'!G56,"") -> 0 | H45: =IFERROR(H$23*'Screening Tool'!H56,"") -> 0 | I45: =IFERROR(I$23*'Screening Tool'!I56,"") -> 0 | J45: =IFERROR(J$23*'Screening Tool'!J56,"") -> 0 | K45: =IFERROR(K$23*'Screening Tool'!K56,"") -> 0 | L45: =IFERROR(L$23*'Screening Tool'!L56,"") -> 0 | M45: =IFERROR(M$23*'Screening Tool'!M56,"") -> 0 | N45: 0 | O45: 0
C46: Water (Gallons) | D46: =IFERROR(D$23*'Screening Tool'!D57,"") -> 0 | E46: =IFERROR(E$23*'Screening Tool'!E57,"") -> 0 | F46: =IFERROR(F$23*'Screening Tool'!F57,"") -> 0 | G46: =IFERROR(G$23*'Screening Tool'!G57,"") -> 0 | H46: =IFERROR(H$23*'Screening Tool'!H57,"") -> 0 | I46: =IFERROR(I$23*'Screening Tool'!I57,"") -> 0 | J46: =IFERROR(J$23*'Screening Tool'!J57,"") -> 0 | K46: =IFERROR(K$23*'Screening Tool'!K57,"") -> 0 | L46: =IFERROR(L$23*'Screening Tool'!L57,"") -> 0 | M46: =IFERROR(M$23*'Screening Tool'!M57,"") -> 0 | N46: 0 | O46: 0
C47: Wood (MMBtu) | D47: =IFERROR(D$23*'Screening Tool'!D58,"") -> 0 | E47: =IFERROR(E$23*'Screening Tool'!E58,"") -> 0 | F47: =IFERROR(F$23*'Screening Tool'!F58,"") -> 0 | G47: =IFERROR(G$23*'Screening Tool'!G58,"") -> 0 | H47: =IFERROR(H$23*'Screening Tool'!H58,"") -> 0 | I47: =IFERROR(I$23*'Screening Tool'!I58,"") -> 0 | J47: =IFERROR(J$23*'Screening Tool'!J58,"") -> 0 | K47: =IFERROR(K$23*'Screening Tool'!K58,"") -> 0 | L47: =IFERROR(L$23*'Screening Tool'!L58,"") -> 0 | M47: =IFERROR(M$23*'Screening Tool'!M58,"") -> 0 | N47: 0 | O47: 0
C48: Non-Energy CO2e (Metric Tons) | D48: =IFERROR(D$23*'Screening Tool'!D59,"") -> 0 | E48: =IFERROR(E$23*'Screening Tool'!E59,"") -> 0 | F48: =IFERROR(F$23*'Screening Tool'!F59,"") -> 0 | G48: =IFERROR(G$23*'Screening Tool'!G59,"") -> 0 | H48: =IFERROR(H$23*'Screening Tool'!H59,"") -> 0 | I48: =IFERROR(I$23*'Screening Tool'!I59,"") -> 0 | J48: =IFERROR(J$23*'Screening Tool'!J59,"") -> 0 | K48: =IFERROR(K$23*'Screening Tool'!K59,"") -> 0 | L48: =IFERROR(L$23*'Screening Tool'!L59,"") -> 0 | M48: =IFERROR(M$23*'Screening Tool'!M59,"") -> 0 | N48: 0 | O48: 0
A49: ="Gas PA - "&'Screening Tool'!K7 -> Gas PA - Eversource Gas (former Columbia)
B50: Heat Pump Only | C50: Heat Pump Tons for Tracking | D50: =IFERROR('Screening Tool'!D26*'Screening Tool'!D30,"") ->  | E50: =IFERROR('Screening Tool'!E26*'Screening Tool'!E30,"") ->  | F50: =IFERROR('Screening Tool'!F26*'Screening Tool'!F30,"") ->  | G50: =IFERROR('Screening Tool'!G26*'Screening Tool'!G30,"") ->  | H50: =IFERROR('Screening Tool'!H26*'Screening Tool'!H30,"") ->  | I50: =IFERROR('Screening Tool'!I26*'Screening Tool'!I30,"") ->  | J50: =IFERROR('Screening Tool'!J26*'Screening Tool'!J30,"") ->  | K50: =IFERROR('Screening Tool'!K26*'Screening Tool'!K30,"") ->  | L50: =IFERROR('Screening Tool'!L26*'Screening Tool'!L30,"") ->  | M50: =IFERROR('Screening Tool'!M26*'Screening Tool'!M30,"") -> 
B51: Cost Information | C51: Proposed Cost ($) | D51: =IFERROR(D$24*'Screening Tool'!D40,"") -> 0 | E51: =IFERROR(E$24*'Screening Tool'!E40,"") -> 0 | F51: =IFERROR(F$24*'Screening Tool'!F40,"") -> 0 | G51: =IFERROR(G$24*'Screening Tool'!G40,"") -> 0 | H51: =IFERROR(H$24*'Screening Tool'!H40,"") -> 0 | I51: =IFERROR(I$24*'Screening Tool'!I40,"") -> 0 | J51: =IFERROR(J$24*'Screening Tool'!J40,"") -> 0 | K51: =IFERROR(K$24*'Screening Tool'!K40,"") -> 0 | L51: =IFERROR(L$24*'Screening Tool'!L40,"") -> 0 | M51: =IFERROR(M$24*'Screening Tool'!M40,"") -> 0 | N51: =SUMPRODUCT(D51:M51,$D$6:$M$6) -> 0 | O51: =SUM(D51:M51) -> 0
C52: Value of Federal/State Tax Credits ($) | D52: =IFERROR(D$24*'Screening Tool'!D41,"") -> 0 | E52: =IFERROR(E$24*'Screening Tool'!E41,"") -> 0 | F52: =IFERROR(F$24*'Screening Tool'!F41,"") -> 0 | G52: =IFERROR(G$24*'Screening Tool'!G41,"") -> 0 | H52: =IFERROR(H$24*'Screening Tool'!H41,"") -> 0 | I52: =IFERROR(I$24*'Screening Tool'!I41,"") -> 0 | J52: =IFERROR(J$24*'Screening Tool'!J41,"") -> 0 | K52: =IFERROR(K$24*'Screening Tool'!K41,"") -> 0 | L52: =IFERROR(L$24*'Screening Tool'!L41,"") -> 0 | M52: =IFERROR(M$24*'Screening Tool'!M41,"") -> 0 | N52: =SUMPRODUCT(D52:M52,$D$6:$M$6) -> 0 | O52: =SUM(D52:M52) -> 0
C53: Baseline Cost ($) | D53: =IFERROR(D$24*'Screening Tool'!D42,"") -> 0 | E53: =IFERROR(E$24*'Screening Tool'!E42,"") -> 0 | F53: =IFERROR(F$24*'Screening Tool'!F42,"") -> 0 | G53: =IFERROR(G$24*'Screening Tool'!G42,"") -> 0 | H53: =IFERROR(H$24*'Screening Tool'!H42,"") -> 0 | I53: =IFERROR(I$24*'Screening Tool'!I42,"") -> 0 | J53: =IFERROR(J$24*'Screening Tool'!J42,"") -> 0 | K53: =IFERROR(K$24*'Screening Tool'!K42,"") -> 0 | L53: =IFERROR(L$24*'Screening Tool'!L42,"") -> 0 | M53: =IFERROR(M$24*'Screening Tool'!M42,"") -> 0 | N53: =SUMPRODUCT(D53:M53,$D$6:$M$6) -> 0 | O53: =SUM(D53:M53) -> 0
C54: Adjusted Total/Incremental Cost | D54: =IFERROR(D$24*Screening!E42,"") -> 0 | E54: =IFERROR(E$24*Screening!F42,"") -> 0 | F54: =IFERROR(F$24*Screening!G42,"") -> 0 | G54: =IFERROR(G$24*Screening!H42,"") -> 0 | H54: =IFERROR(H$24*Screening!I42,"") -> 0 | I54: =IFERROR(I$24*Screening!J42,"") -> 0 | J54: =IFERROR(J$24*Screening!K42,"") -> 0 | K54: =IFERROR(K$24*Screening!L42,"") -> 0 | L54: =IFERROR(L$24*Screening!M42,"") -> 0 | M54: =IFERROR(M$24*Screening!N42,"") -> 0 | N54: =SUMPRODUCT(D54:M54,$D$6:$M$6) -> 0 | O54: =SUM(D54:M54) -> 0
B55: Gross Electric | C55: Energy (kWh) | D55: =IFERROR(IF(D$22="ECM Allocation",0,D$24*'Screening Tool'!D43),"") -> 0 | E55: =IFERROR(IF(E$22="ECM Allocation",0,E$24*'Screening Tool'!E43),"") -> 0 | F55: =IFERROR(IF(F$22="ECM Allocation",0,F$24*'Screening Tool'!F43),"") -> 0 | G55: =IFERROR(IF(G$22="ECM Allocation",0,G$24*'Screening Tool'!G43),"") -> 0 | H55: =IFERROR(IF(H$22="ECM Allocation",0,H$24*'Screening Tool'!H43),"") -> 0 | I55: =IFERROR(IF(I$22="ECM Allocation",0,I$24*'Screening Tool'!I43),"") -> 0 | J55: =IFERROR(IF(J$22="ECM Allocation",0,J$24*'Screening Tool'!J43),"") -> 0 | K55: =IFERROR(IF(K$22="ECM Allocation",0,K$24*'Screening Tool'!K43),"") -> 0 | L55: =IFERROR(IF(L$22="ECM Allocation",0,L$24*'Screening Tool'!L43),"") -> 0 | M55: =IFERROR(IF(M$22="ECM Allocation",0,M$24*'Screening Tool'!M43),"") -> 0 | N55: =SUMPRODUCT(D55:M55,$D$6:$M$6) -> 0 | O55: =SUM(D55:M55) -> 0
C56: % Summer On Peak | D56: =IFERROR(IF(D$55<>0,'Screening Tool'!D$44,0),"") -> 0 | E56: =IFERROR(IF(E$55<>0,'Screening Tool'!E$44,0),"") -> 0 | F56: =IFERROR(IF(F$55<>0,'Screening Tool'!F$44,0),"") -> 0 | G56: =IFERROR(IF(G$55<>0,'Screening Tool'!G$44,0),"") -> 0 | H56: =IFERROR(IF(H$55<>0,'Screening Tool'!H$44,0),"") -> 0 | I56: =IFERROR(IF(I$55<>0,'Screening Tool'!I$44,0),"") -> 0 | J56: =IFERROR(IF(J$55<>0,'Screening Tool'!J$44,0),"") -> 0 | K56: =IFERROR(IF(K$55<>0,'Screening Tool'!K$44,0),"") -> 0 | L56: =IFERROR(IF(L$55<>0,'Screening Tool'!L$44,0),"") -> 0 | M56: =IFERROR(IF(M$55<>0,'Screening Tool'!M$44,0),"") -> 0
C57: % Summer Off Peak | D57: =IFERROR(IF(D$55<>0,'Screening Tool'!D$45,0),"") -> 0 | E57: =IFERROR(IF(E$55<>0,'Screening Tool'!E$45,0),"") -> 0 | F57: =IFERROR(IF(F$55<>0,'Screening Tool'!F$45,0),"") -> 0 | G57: =IFERROR(IF(G$55<>0,'Screening Tool'!G$45,0),"") -> 0 | H57: =IFERROR(IF(H$55<>0,'Screening Tool'!H$45,0),"") -> 0 | I57: =IFERROR(IF(I$55<>0,'Screening Tool'!I$45,0),"") -> 0 | J57: =IFERROR(IF(J$55<>0,'Screening Tool'!J$45,0),"") -> 0 | K57: =IFERROR(IF(K$55<>0,'Screening Tool'!K$45,0),"") -> 0 | L57: =IFERROR(IF(L$55<>0,'Screening Tool'!L$45,0),"") -> 0 | M57: =IFERROR(IF(M$55<>0,'Screening Tool'!M$45,0),"") -> 0
C58: % Winter On Peak | D58: =IFERROR(IF(D$55<>0,'Screening Tool'!D$46,0),"") -> 0 | E58: =IFERROR(IF(E$55<>0,'Screening Tool'!E$46,0),"") -> 0 | F58: =IFERROR(IF(F$55<>0,'Screening Tool'!F$46,0),"") -> 0 | G58: =IFERROR(IF(G$55<>0,'Screening Tool'!G$46,0),"") -> 0 | H58: =IFERROR(IF(H$55<>0,'Screening Tool'!H$46,0),"") -> 0 | I58: =IFERROR(IF(I$55<>0,'Screening Tool'!I$46,0),"") -> 0 | J58: =IFERROR(IF(J$55<>0,'Screening Tool'!J$46,0),"") -> 0 | K58: =IFERROR(IF(K$55<>0,'Screening Tool'!K$46,0),"") -> 0 | L58: =IFERROR(IF(L$55<>0,'Screening Tool'!L$46,0),"") -> 0 | M58: =IFERROR(IF(M$55<>0,'Screening Tool'!M$46,0),"") -> 0
C59: % Winter Off Peak | D59: =IFERROR(IF(D$55<>0,'Screening Tool'!D$47,0),"") -> 0 | E59: =IFERROR(IF(E$55<>0,'Screening Tool'!E$47,0),"") -> 0 | F59: =IFERROR(IF(F$55<>0,'Screening Tool'!F$47,0),"") -> 0 | G59: =IFERROR(IF(G$55<>0,'Screening Tool'!G$47,0),"") -> 0 | H59: =IFERROR(IF(H$55<>0,'Screening Tool'!H$47,0),"") -> 0 | I59: =IFERROR(IF(I$55<>0,'Screening Tool'!I$47,0),"") -> 0 | J59: =IFERROR(IF(J$55<>0,'Screening Tool'!J$47,0),"") -> 0 | K59: =IFERROR(IF(K$55<>0,'Screening Tool'!K$47,0),"") -> 0 | L59: =IFERROR(IF(L$55<>0,'Screening Tool'!L$47,0),"") -> 0 | M59: =IFERROR(IF(M$55<>0,'Screening Tool'!M$47,0),"") -> 0
C60: Summer Peak kW | D60: =IFERROR(IF(D$22="ECM Allocation",0,D$24*'Screening Tool'!D48),"") -> 0 | E60: =IFERROR(IF(E$22="ECM Allocation",0,E$24*'Screening Tool'!E48),"") -> 0 | F60: =IFERROR(IF(F$22="ECM Allocation",0,F$24*'Screening Tool'!F48),"") -> 0 | G60: =IFERROR(IF(G$22="ECM Allocation",0,G$24*'Screening Tool'!G48),"") -> 0 | H60: =IFERROR(IF(H$22="ECM Allocation",0,H$24*'Screening Tool'!H48),"") -> 0 | I60: =IFERROR(IF(I$22="ECM Allocation",0,I$24*'Screening Tool'!I48),"") -> 0 | J60: =IFERROR(IF(J$22="ECM Allocation",0,J$24*'Screening Tool'!J48),"") -> 0 | K60: =IFERROR(IF(K$22="ECM Allocation",0,K$24*'Screening Tool'!K48),"") -> 0 | L60: =IFERROR(IF(L$22="ECM Allocation",0,L$24*'Screening Tool'!L48),"") -> 0 | M60: =IFERROR(IF(M$22="ECM Allocation",0,M$24*'Screening Tool'!M48),"") -> 0 | N60: =SUMPRODUCT(D60:M60,$D$6:$M$6) -> 0 | O60: =SUM(D60:M60) -> 0
C61: Winter Peak kW | D61: =IFERROR(IF(D$22="ECM Allocation",0,D$24*'Screening Tool'!D49),"") -> 0 | E61: =IFERROR(IF(E$22="ECM Allocation",0,E$24*'Screening Tool'!E49),"") -> 0 | F61: =IFERROR(IF(F$22="ECM Allocation",0,F$24*'Screening Tool'!F49),"") -> 0 | G61: =IFERROR(IF(G$22="ECM Allocation",0,G$24*'Screening Tool'!G49),"") -> 0 | H61: =IFERROR(IF(H$22="ECM Allocation",0,H$24*'Screening Tool'!H49),"") -> 0 | I61: =IFERROR(IF(I$22="ECM Allocation",0,I$24*'Screening Tool'!I49),"") -> 0 | J61: =IFERROR(IF(J$22="ECM Allocation",0,J$24*'Screening Tool'!J49),"") -> 0 | K61: =IFERROR(IF(K$22="ECM Allocation",0,K$24*'Screening Tool'!K49),"") -> 0 | L61: =IFERROR(IF(L$22="ECM Allocation",0,L$24*'Screening Tool'!L49),"") -> 0 | M61: =IFERROR(IF(M$22="ECM Allocation",0,M$24*'Screening Tool'!M49),"") -> 0 | N61: 0 | O61: 0
B62: Gross Gas | C62: Heating Season (Therms) | D62: =IFERROR(IF(D$22="ECM Allocation",'Screening Tool'!D50,D$24*'Screening Tool'!D50),"") -> 0 | E62: =IFERROR(IF(E$22="ECM Allocation",'Screening Tool'!E50,E$24*'Screening Tool'!E50),"") -> 0 | F62: =IFERROR(IF(F$22="ECM Allocation",'Screening Tool'!F50,F$24*'Screening Tool'!F50),"") -> 0 | G62: =IFERROR(IF(G$22="ECM Allocation",'Screening Tool'!G50,G$24*'Screening Tool'!G50),"") -> 0 | H62: =IFERROR(IF(H$22="ECM Allocation",'Screening Tool'!H50,H$24*'Screening Tool'!H50),"") -> 0 | I62: =IFERROR(IF(I$22="ECM Allocation",'Screening Tool'!I50,I$24*'Screening Tool'!I50),"") -> 0 | J62: =IFERROR(IF(J$22="ECM Allocation",'Screening Tool'!J50,J$24*'Screening Tool'!J50),"") -> 0 | K62: =IFERROR(IF(K$22="ECM Allocation",'Screening Tool'!K50,K$24*'Screening Tool'!K50),"") -> 0 | L62: =IFERROR(IF(L$22="ECM Allocation",'Screening Tool'!L50,L$24*'Screening Tool'!L50),"") -> 0 | M62: =IFERROR(IF(M$22="ECM Allocation",'Screening Tool'!M50,M$24*'Screening Tool'!M50),"") -> 0 | N62: 0 | O62: 0
C63: Year Round (Therms) | D63: =IFERROR(IF(D$22="ECM Allocation",'Screening Tool'!D51,D$24*'Screening Tool'!D51),"") -> 0 | E63: =IFERROR(IF(E$22="ECM Allocation",'Screening Tool'!E51,E$24*'Screening Tool'!E51),"") -> 0 | F63: =IFERROR(IF(F$22="ECM Allocation",'Screening Tool'!F51,F$24*'Screening Tool'!F51),"") -> 0 | G63: =IFERROR(IF(G$22="ECM Allocation",'Screening Tool'!G51,G$24*'Screening Tool'!G51),"") -> 0 | H63: =IFERROR(IF(H$22="ECM Allocation",'Screening Tool'!H51,H$24*'Screening Tool'!H51),"") -> 0 | I63: =IFERROR(IF(I$22="ECM Allocation",'Screening Tool'!I51,I$24*'Screening Tool'!I51),"") -> 0 | J63: =IFERROR(IF(J$22="ECM Allocation",'Screening Tool'!J51,J$24*'Screening Tool'!J51),"") -> 0 | K63: =IFERROR(IF(K$22="ECM Allocation",'Screening Tool'!K51,K$24*'Screening Tool'!K51),"") -> 0 | L63: =IFERROR(IF(L$22="ECM Allocation",'Screening Tool'!L51,L$24*'Screening Tool'!L51),"") -> 0 | M63: =IFERROR(IF(M$22="ECM Allocation",'Screening Tool'!M51,M$24*'Screening Tool'!M51),"") -> 0 | N63: 0 | O63: 0
C64: Other (Therms) | D64: =IFERROR(IF(D$22="ECM Allocation",'Screening Tool'!D52,D$24*'Screening Tool'!D52),"") -> 0 | E64: =IFERROR(IF(E$22="ECM Allocation",'Screening Tool'!E52,E$24*'Screening Tool'!E52),"") -> 0 | F64: =IFERROR(IF(F$22="ECM Allocation",'Screening Tool'!F52,F$24*'Screening Tool'!F52),"") -> 0 | G64: =IFERROR(IF(G$22="ECM Allocation",'Screening Tool'!G52,G$24*'Screening Tool'!G52),"") -> 0 | H64: =IFERROR(IF(H$22="ECM Allocation",'Screening Tool'!H52,H$24*'Screening Tool'!H52),"") -> 0 | I64: =IFERROR(IF(I$22="ECM Allocation",'Screening Tool'!I52,I$24*'Screening Tool'!I52),"") -> 0 | J64: =IFERROR(IF(J$22="ECM Allocation",'Screening Tool'!J52,J$24*'Screening Tool'!J52),"") -> 0 | K64: =IFERROR(IF(K$22="ECM Allocation",'Screening Tool'!K52,K$24*'Screening Tool'!K52),"") -> 0 | L64: =IFERROR(IF(L$22="ECM Allocation",'Screening Tool'!L52,L$24*'Screening Tool'!L52),"") -> 0 | M64: =IFERROR(IF(M$22="ECM Allocation",'Screening Tool'!M52,M$24*'Screening Tool'!M52),"") -> 0 | N64: 0 | O64: 0
B65: Gross Non Electric Non Gas | C65: #2 Oil (MMBtu) | D65: =IFERROR(D$24*'Screening Tool'!D53,"") -> 0 | E65: =IFERROR(E$24*'Screening Tool'!E53,"") -> 0 | F65: =IFERROR(F$24*'Screening Tool'!F53,"") -> 0 | G65: =IFERROR(G$24*'Screening Tool'!G53,"") -> 0 | H65: =IFERROR(H$24*'Screening Tool'!H53,"") -> 0 | I65: =IFERROR(I$24*'Screening Tool'!I53,"") -> 0 | J65: =IFERROR(J$24*'Screening Tool'!J53,"") -> 0 | K65: =IFERROR(K$24*'Screening Tool'!K53,"") -> 0 | L65: =IFERROR(L$24*'Screening Tool'!L53,"") -> 0 | M65: =IFERROR(M$24*'Screening Tool'!M53,"") -> 0 | N65: 0 | O65: 0
C66: Propane (MMBtu) | D66: =IFERROR(D$24*'Screening Tool'!D54,"") -> 0 | E66: =IFERROR(E$24*'Screening Tool'!E54,"") -> 0 | F66: =IFERROR(F$24*'Screening Tool'!F54,"") -> 0 | G66: =IFERROR(G$24*'Screening Tool'!G54,"") -> 0 | H66: =IFERROR(H$24*'Screening Tool'!H54,"") -> 0 | I66: =IFERROR(I$24*'Screening Tool'!I54,"") -> 0 | J66: =IFERROR(J$24*'Screening Tool'!J54,"") -> 0 | K66: =IFERROR(K$24*'Screening Tool'!K54,"") -> 0 | L66: =IFERROR(L$24*'Screening Tool'!L54,"") -> 0 | M66: =IFERROR(M$24*'Screening Tool'!M54,"") -> 0 | N66: 0 | O66: 0
C67: Motor Diesel (MMBtu) | D67: =IFERROR(D$24*'Screening Tool'!D55,"") -> 0 | E67: =IFERROR(E$24*'Screening Tool'!E55,"") -> 0 | F67: =IFERROR(F$24*'Screening Tool'!F55,"") -> 0 | G67: =IFERROR(G$24*'Screening Tool'!G55,"") -> 0 | H67: =IFERROR(H$24*'Screening Tool'!H55,"") -> 0 | I67: =IFERROR(I$24*'Screening Tool'!I55,"") -> 0 | J67: =IFERROR(J$24*'Screening Tool'!J55,"") -> 0 | K67: =IFERROR(K$24*'Screening Tool'!K55,"") -> 0 | L67: =IFERROR(L$24*'Screening Tool'!L55,"") -> 0 | M67: =IFERROR(M$24*'Screening Tool'!M55,"") -> 0 | N67: 0 | O67: 0
C68: Motor Gasoline (MMBtu) | D68: =IFERROR(D$24*'Screening Tool'!D56,"") -> 0 | E68: =IFERROR(E$24*'Screening Tool'!E56,"") -> 0 | F68: =IFERROR(F$24*'Screening Tool'!F56,"") -> 0 | G68: =IFERROR(G$24*'Screening Tool'!G56,"") -> 0 | H68: =IFERROR(H$24*'Screening Tool'!H56,"") -> 0 | I68: =IFERROR(I$24*'Screening Tool'!I56,"") -> 0 | J68: =IFERROR(J$24*'Screening Tool'!J56,"") -> 0 | K68: =IFERROR(K$24*'Screening Tool'!K56,"") -> 0 | L68: =IFERROR(L$24*'Screening Tool'!L56,"") -> 0 | M68: =IFERROR(M$24*'Screening Tool'!M56,"") -> 0 | N68: 0 | O68: 0
C69: Water (Gallons) | D69: =IFERROR(D$24*'Screening Tool'!D57,"") -> 0 | E69: =IFERROR(E$24*'Screening Tool'!E57,"") -> 0 | F69: =IFERROR(F$24*'Screening Tool'!F57,"") -> 0 | G69: =IFERROR(G$24*'Screening Tool'!G57,"") -> 0 | H69: =IFERROR(H$24*'Screening Tool'!H57,"") -> 0 | I69: =IFERROR(I$24*'Screening Tool'!I57,"") -> 0 | J69: =IFERROR(J$24*'Screening Tool'!J57,"") -> 0 | K69: =IFERROR(K$24*'Screening Tool'!K57,"") -> 0 | L69: =IFERROR(L$24*'Screening Tool'!L57,"") -> 0 | M69: =IFERROR(M$24*'Screening Tool'!M57,"") -> 0 | N69: 0 | O69: 0
C70: Wood (MMBtu) | D70: =IFERROR(D$24*'Screening Tool'!D58,"") -> 0 | E70: =IFERROR(E$24*'Screening Tool'!E58,"") -> 0 | F70: =IFERROR(F$24*'Screening Tool'!F58,"") -> 0 | G70: =IFERROR(G$24*'Screening Tool'!G58,"") -> 0 | H70: =IFERROR(H$24*'Screening Tool'!H58,"") -> 0 | I70: =IFERROR(I$24*'Screening Tool'!I58,"") -> 0 | J70: =IFERROR(J$24*'Screening Tool'!J58,"") -> 0 | K70: =IFERROR(K$24*'Screening Tool'!K58,"") -> 0 | L70: =IFERROR(L$24*'Screening Tool'!L58,"") -> 0 | M70: =IFERROR(M$24*'Screening Tool'!M58,"") -> 0 | N70: 0 | O70: 0
C71: Non-Energy CO2e (Metric Tons) | D71: =IFERROR(D$24*'Screening Tool'!D59,"") -> 0 | E71: =IFERROR(E$24*'Screening Tool'!E59,"") -> 0 | F71: =IFERROR(F$24*'Screening Tool'!F59,"") -> 0 | G71: =IFERROR(G$24*'Screening Tool'!G59,"") -> 0 | H71: =IFERROR(H$24*'Screening Tool'!H59,"") -> 0 | I71: =IFERROR(I$24*'Screening Tool'!I59,"") -> 0 | J71: =IFERROR(J$24*'Screening Tool'!J59,"") -> 0 | K71: =IFERROR(K$24*'Screening Tool'!K59,"") -> 0 | L71: =IFERROR(L$24*'Screening Tool'!L59,"") -> 0 | M71: =IFERROR(M$24*'Screening Tool'!M59,"") -> 0 | N71: 0 | O71: 0

Sheet Default Loadshapes
A1: Tab Explanation and Notes
A2: - Site specific loadshapes should always be used when they are available and entered directly on the Screening Tool tab. - Users can use this tab to select a default loadshape (row 13) for each ECM when a site specific loadshape is not available. - The tool will also calculate default summer and winter peak kW by applying a kW Load Factor to the Annual kWh savings provided on the Screening Tool tab. - The default loadshapes were derived from the DNV MA Impact Shapes study.
A3: Project Default Loadshape and kW Estimates
B4: Select cell for description
B5: Information from Screening Tool Tab
B6: Measure Label | C6: ='Screening Tool'!D33 -> ECM 1 | D6: ='Screening Tool'!E33 -> ECM 2 | E6: ='Screening Tool'!F33 -> ECM 3 | F6: ='Screening Tool'!G33 -> ECM 4 | G6: ='Screening Tool'!H33 -> ECM 5 | H6: ='Screening Tool'!I33 -> ECM 6 | I6: ='Screening Tool'!J33 -> ECM 7 | J6: ='Screening Tool'!K33 -> ECM 8 | K6: ='Screening Tool'!L33 -> ECM 9 | L6: ='Screening Tool'!M33 -> ECM 10
B7: Measure | C7: ='Screening Tool'!D37 -> 0 | D7: ='Screening Tool'!E37 -> 0 | E7: ='Screening Tool'!F37 -> 0 | F7: ='Screening Tool'!G37 -> 0 | G7: ='Screening Tool'!H37 -> 0 | H7: ='Screening Tool'!I37 -> 0 | I7: ='Screening Tool'!J37 -> 0 | J7: ='Screening Tool'!K37 -> 0 | K7: ='Screening Tool'!L37 -> 0 | L7: ='Screening Tool'!M37 -> 0
B8: Gross Annual Energy Savings (kWh) | C8: ='Screening Tool'!D43 -> 0 | D8: ='Screening Tool'!E43 -> 0 | E8: ='Screening Tool'!F43 -> 0 | F8: ='Screening Tool'!G43 -> 0 | G8: ='Screening Tool'!H43 -> 0 | H8: ='Screening Tool'!I43 -> 0 | I8: ='Screening Tool'!J43 -> 0 | J8: ='Screening Tool'!K43 -> 0 | K8: ='Screening Tool'!L43 -> 0 | L8: ='Screening Tool'!M43 -> 0
B9: Loadshape Selection
B10: Loadshape Selection | C10: Lighting Exterior | D10: Select Loadshape | E10: Select Loadshape | F10: Select Loadshape | G10: Select Loadshape | H10: Select Loadshape | I10: Select Loadshape | J10: Select Loadshape | K10: Select Loadshape | L10: Select Loadshape
B11: Default Loadshape and kW Estimate Results
B12: % Summer On Peak | C12: =IFERROR(HLOOKUP(C$10,$B$20:$N$26,$P12,FALSE),0) -> 0.13 | D12: =IFERROR(HLOOKUP(D$10,$B$20:$N$24,$P12,FALSE),0) -> 0 | E12: 0 | F12: 0 | G12: 0 | H12: 0 | I12: 0 | J12: 0 | K12: 0 | L12: 0 | P12: 2
B13: % Summer Off Peak | C13: =IFERROR(HLOOKUP(C$10,$B$20:$N$24,$P13,FALSE),0) -> 0.19 | D13: 0 | E13: 0 | F13: 0 | G13: 0 | H13: 0 | I13: 0 | J13: 0 | K13: 0 | L13: 0 | P13: 3
B14: % Winter On Peak | C14: =IFERROR(HLOOKUP(C$10,$B$20:$N$24,$P14,FALSE),0) -> 0.26 | D14: 0 | E14: 0 | F14: 0 | G14: 0 | H14: 0 | I14: 0 | J14: 0 | K14: 0 | L14: 0 | P14: 4
B15: % Winter Off Peak | C15: =IFERROR(HLOOKUP(C$10,$B$20:$N$24,$P15,FALSE),0) -> 0.42 | D15: 0 | E15: 0 | F15: 0 | G15: 0 | H15: 0 | I15: 0 | J15: 0 | K15: 0 | L15: 0 | P15: 5
B16: Summer Peak kW | C16: =IFERROR(HLOOKUP(C$10,$B$20:$N$26,$P$16,FALSE)*C8,0) -> 0 | D16: 0 | E16: 0 | F16: 0 | G16: 0 | H16: 0 | I16: 0 | J16: 0 | K16: 0 | L16: 0 | P16: 6
B17: Winter Peak kW | C17: =IFERROR(HLOOKUP(C$10,$B$20:$N$26,$P$17,FALSE)*C12,0) -> 2.58258e-05 | D17: 0 | E17: 0 | F17: 0 | G17: 0 | H17: 0 | I17: 0 | J17: 0 | K17: 0 | L17: 0 | P17: 7
B18: Jump to Copy/Paste | C18: Jump to Input | D18: Jump to Input | E18: Jump to Input | F18: Jump to Input | G18: Jump to Input | H18: Jump to Input | I18: Jump to Input | J18: Jump to Input | K18: Jump to Input | L18: Jump to Input
A19: Loadshape Table
B20: Load Shape Description | C20: Compressed Air | D20: HVAC Cooling Only | E20: HVAC Chiller | F20: HVAC Other | G20: HVAC Electrification | H20: HVAC - Elec. Resistance and AC | I20: Lighting Interior | J20: Lighting Exterior | K20: Lighting Controls | L20: Process or Other | M20: Refrigeration | N20: Food Service | P20: Select Loadshape
B21: Summer Peak Energy % | C21: 0.17 | D21: 0.38 | E21: 0.394 | F21: 0.11 | G21: -0.14 | H21: 0.06 | I21: 0.23 | J21: 0.13 | K21: 0.24 | L21: 0.22 | M21: 0.15 | N21: 0.28 | P21: N/A
B22: Summer Off-Peak Energy % | C22: 0.16 | D22: 0.29 | E22: 0.385 | F22: 0.1 | G22: 0.01 | H22: 0.01 | I22: 0.12 | J22: 0.19 | K22: 0.1 | L22: 0.24 | M22: 0.17 | N22: 0.22 | P22: N/A
B23: Winter Peak Energy % | C23: 0.32 | D23: 0.19 | E23: 0.113 | F23: 0.39 | G23: 0.41 | H23: 0.54 | I23: 0.41 | J23: 0.26 | K23: 0.45 | L23: 0.23 | M23: 0.31 | N23: 0.28 | P23: N/A
B24: Winter Off-Peak Energy % | C24: 0.35 | D24: 0.14 | E24: 0.108 | F24: 0.4 | G24: 0.72 | H24: 0.39 | I24: 0.24 | J24: 0.42 | K24: 0.21 | L24: 0.31 | M24: 0.37 | N24: 0.22 | P24: N/A
B25: Summer kW Load Factor | C25: =C38*C39 -> 0.0001806 | D25: =D38*D39 -> 0.00044781 | E25: =E38*E39 -> 0.00037191 | F25: =F38*F39 -> 0.000448 | G25: =-G38*G39 -> 0.0002041 | H25: =H38*H39 -> 7.755e-05 | I25: 0.00020856 | J25: 7.392e-05 | K25: 0.00109344 | L25: 0.00039875 | M25: 0.000136 | N25: 0.0001536 | P25: N/A
B26: Winter kW Load Factor | C26: =C38*C40 -> 0.00016512 | D26: 3.795e-05 | E26: 4.554e-05 | F26: 0.000112 | G26: 9.022e-05 | H26: 0.00011429 | I26: 0.00016827 | J26: 0.00019866 | K26: 0.00075174 | L26: 0.0003335 | M26: 0.000144 | N26: 0.00015744 | P26: N/A
B36: Maximum Load Reduction (kW)
B37: LS_ID | C37: ls_101 | D37: ls_104 | E37: ls_103 | F37: ls_112 | G37: ls_121 | H37: ls_122 | I37: ls_106 | J37: ls_105 | K37: ls_108 | L37: ls_118 | M37: ls_109 | N37: ls_111
B38: Load Factor converting Annual kWh to Max kW | C38: 0.000258 | D38: 0.000759 | E38: 0.000759 | F38: 0.0016 | G38: 0.0026 | H38: 0.0011 | I38: 0.000237 | J38: 0.000231 | K38: 0.003417 | L38: 0.000725 | M38: 0.0002 | N38: 0.000192
B39: Summer Coincident % | C39: 0.7 | D39: 0.59 | E39: 0.49 | F39: 0.28 | G39: -0.0785 | H39: 0.0705 | I39: 0.88 | J39: 0.32 | K39: 0.32 | L39: 0.55 | M39: 0.68 | N39: 0.8
B40: Winter Coincident % | C40: 0.64 | D40: 0.05 | E40: 0.06 | F40: 0.07 | G40: 0.0347 | H40: 0.1039 | I40: 0.71 | J40: 0.86 | K40: 0.22 | L40: 0.46 | M40: 0.72 | N40: 0.82
B41: Source | D41: DNV MA Impact Shapes study | E41: no conversion factor available - used cooling equipment value | F41: DNV MA Impact Shapes study | G41: DNV MA Impact Shapes study | H41: DNV MA Impact Shapes study | I41: DNV MA Impact Shapes study | J41: DNV MA Impact Shapes study | K41: DNV MA Impact Shapes study | L41: DNV MA Impact Shapes study | M41: DNV MA Impact Shapes study | N41: DNV MA Impact Shapes study

Sheet Measures (hidden)
A1: Last updated on: | C1: 2025-03-19
A2: Last updated by: | C2: Whitney Brougher and Jerry Song
A3: Tab Explanation:
A4: This section of the tool contains tables referenced in the calculations and mapping in the screening tool. The Measure Table includes the full measure list (including all iterations of fuel type, initiative, measure, and measure life) and the associated assumed % summer. Starting in 2019, the Measure table also includes information regarding dual baseline applicability and adjustments. Dual Baseline only applies to the Existing Building Retrofit Initiative. "Add on" measures are assumed to have a single baseline. | O4: Gas and Dual HVAC
J5: 1 | K5: 2 | L5: 3 | M5: 4 | N5: 5 | O5: 6 | P5: 7 | Q5: 8 | R5: 9 | S5: 10 | T5: 11 | U5: 12 | V5: 13 | W5: 14 | X5: 15 | Y5: 16 | Z5: 17 | AA5: 18 | AB5: 19
A6: Fuel | B6: Core Initiative | C6: Measure | D6: Short Name | E6: Dual Baseline Applicable? (1 = Yes, 0 = No) | F6: Effective Useful Life (EUL) | G6: Out Year Factor (OYF) | H6: % Summer | I6: Dual Baseline Notes | J6: Unique Name | K6: Dual Baseline Applicable? (1 = Yes, 0 = No) | L6: InDemand Electric Code | M6: InDemand Gas Code | N6: Type Elx = 1, EE = 2, Wx = 3 | O6: SCC=0 MAC=1 | P6: $/Ton NEI | Q6: $/kWh NEI | R6: $/therm NEI | S6: Ton/kWh | T6: NTG | U6: In-Service Rate | V6: kWh Realization Rate | W6: kW Summer Realization Rate | X6: kW Winter Realization Rate | Y6: Non-Electric Realization Rate | Z6: Lifetime Adjustment Factor | AA6: Benefits Component | AB6: Value Component | AC6: Other Lookup Tables:
A7: Dual | B7: Existing Building Retrofit | C7: Building Shell | D7: BSHL | E7: 0 | F7: 5 | G7: 1 | H7: 0.67 | I7: Add on single baseline | J7: =CONCATENATE(A7,B7,D7) -> DualExisting Building RetrofitBSHL | K7: =E7 -> 0 | L7: BSHL | M7: BSHL_Building | N7: 3 | O7: 0 | P7: 0 | Q7: 0.149 | R7: 0.322
A8: Dual | B8: Existing Building Retrofit | C8: Building Shell | D8: BSHL | E8: 0 | F8: 10 | G8: 1 | H8: 0.67 | I8: Add on single baseline | J8: DualExisting Building RetrofitBSHL | K8: 0 | L8: BSHL | M8: BSHL_Building | N8: 3 | O8: 0 | P8: 0 | Q8: 0.149 | R8: 0.322
A9: Dual | B9: Existing Building Retrofit | C9: Building Shell | D9: BSHL | E9: 0 | F9: 15 | G9: 1 | H9: 0.67 | I9: Add on single baseline | J9: DualExisting Building RetrofitBSHL | K9: 0 | L9: BSHL | M9: BSHL_Building | N9: 3 | O9: 0 | P9: 0 | Q9: 0.149 | R9: 0.322 | AC9: Core Initiative | AD9: Program ID
A10: Dual | B10: Existing Building Retrofit | C10: Building Shell | D10: BSHL | E10: 0 | F10: 20 | G10: 1 | H10: 0.67 | I10: Add on single baseline | J10: DualExisting Building RetrofitBSHL | K10: 0 | L10: BSHL | M10: BSHL_Building | N10: 3 | O10: 0 | P10: 0 | Q10: 0.149 | R10: 0.322 | AC10: Existing Building Retrofit | AD10: 1
A11: Dual | B11: Existing Building Retrofit | C11: Building Shell | D11: BSHL | E11: 0 | F11: 25 | G11: 1 | H11: 0.67 | I11: Add on single baseline | J11: DualExisting Building RetrofitBSHL | K11: 0 | L11: BSHL | M11: BSHL_Building | N11: 3 | O11: 0 | P11: 0 | Q11: 0.149 | R11: 0.322 | AC11: New Buildings & Major Renovation | AD11: 2
A12: Dual | B12: Existing Building Retrofit | C12: Comprehensive Retrofit | D12: CR | E12: 1 | F12: 5 | G12: 0.9 | H12: 0.5 | I12: Dual Baseline with Default OYF | J12: DualExisting Building RetrofitCR | K12: 1 | L12: CR | M12: CR | N12: 2 | O12: 0 | P12: 0 | Q12: 0.113 | R12: 0.322 | AC12: New & Replacement Equipment | AD12: 3
A13: Dual | B13: Existing Building Retrofit | C13: Comprehensive Retrofit | D13: CR | E13: 1 | F13: 6 | G13: 0.9 | H13: 0.5 | I13: Dual Baseline with Default OYF | J13: DualExisting Building RetrofitCR | K13: 1 | L13: CR | M13: CR | N13: 2 | O13: 0 | P13: 0 | Q13: 0.113 | R13: 0.322 | AC13: Small Business | AD13: 4
A14: Dual | B14: Existing Building Retrofit | C14: Comprehensive Retrofit | D14: CR | E14: 1 | F14: 7 | G14: 0.9 | H14: 0.5 | I14: Dual Baseline with Default OYF | J14: DualExisting Building RetrofitCR | K14: 1 | L14: CR | M14: CR | N14: 2 | O14: 0 | P14: 0 | Q14: 0.113 | R14: 0.322
A15: Dual | B15: Existing Building Retrofit | C15: Comprehensive Retrofit | D15: CR | E15: 1 | F15: 8 | G15: 0.9 | H15: 0.5 | I15: Dual Baseline with Default OYF | J15: DualExisting Building RetrofitCR | K15: 1 | L15: CR | M15: CR | N15: 2 | O15: 0 | P15: 0 | Q15: 0.113 | R15: 0.322 | AC15: Electric PA List:
A16: Dual | B16: Existing Building Retrofit | C16: Comprehensive Retrofit | D16: CR | E16: 1 | F16: 9 | G16: 0.9 | H16: 0.5 | I16: Dual Baseline with Default OYF | J16: DualExisting Building RetrofitCR | K16: 1 | L16: CR | M16: CR | N16: 2 | O16: 0 | P16: 0 | Q16: 0.113 | R16: 0.322 | AC16: National Grid Electric - MA
A17: Dual | B17: Existing Building Retrofit | C17: Comprehensive Retrofit | D17: CR | E17: 1 | F17: 10 | G17: 0.9 | H17: 0.5 | I17: Dual Baseline with Default OYF | J17: DualExisting Building RetrofitCR | K17: 1 | L17: CR | M17: CR | N17: 2 | O17: 0 | P17: 0 | Q17: 0.113 | R17: 0.322 | AC17: Eversource
A18: Dual | B18: Existing Building Retrofit | C18: Comprehensive Retrofit | D18: CR | E18: 1 | F18: 11 | G18: 0.9 | H18: 0.5 | I18: Dual Baseline with Default OYF | J18: DualExisting Building RetrofitCR | K18: 1 | L18: CR | M18: CR | N18: 2 | O18: 0 | P18: 0 | Q18: 0.113 | R18: 0.322 | AC18: Unitil Electric
A19: Dual | B19: Existing Building Retrofit | C19: Comprehensive Retrofit | D19: CR | E19: 1 | F19: 12 | G19: 0.9 | H19: 0.5 | I19: Dual Baseline with Default OYF | J19: DualExisting Building RetrofitCR | K19: 1 | L19: CR | M19: CR | N19: 2 | O19: 0 | P19: 0 | Q19: 0.113 | R19: 0.322 | AC19: Cape Light Compact
A20: Dual | B20: Existing Building Retrofit | C20: Comprehensive Retrofit | D20: CR | E20: 1 | F20: 13 | G20: 0.9 | H20: 0.5 | I20: Dual Baseline with Default OYF | J20: DualExisting Building RetrofitCR | K20: 1 | L20: CR | M20: CR | N20: 2 | O20: 0 | P20: 0 | Q20: 0.113 | R20: 0.322 | AC20: None/Default/Muni
A21: Dual | B21: Existing Building Retrofit | C21: Comprehensive Retrofit | D21: CR | E21: 1 | F21: 14 | G21: 0.9 | H21: 0.5 | I21: Dual Baseline with Default OYF | J21: DualExisting Building RetrofitCR | K21: 1 | L21: CR | M21: CR | N21: 2 | O21: 0 | P21: 0 | Q21: 0.113 | R21: 0.322
A22: Dual | B22: Existing Building Retrofit | C22: Comprehensive Retrofit | D22: CR | E22: 1 | F22: 15 | G22: 0.9 | H22: 0.5 | I22: Dual Baseline with Default OYF | J22: DualExisting Building RetrofitCR | K22: 1 | L22: CR | M22: CR | N22: 2 | O22: 0 | P22: 0 | Q22: 0.113 | R22: 0.322 | AC22: Gas PA List:
A23: Dual | B23: Existing Building Retrofit | C23: Comprehensive Retrofit | D23: CR | E23: 1 | F23: 16 | G23: 0.9 | H23: 0.5 | I23: Dual Baseline with Default OYF | J23: DualExisting Building RetrofitCR | K23: 1 | L23: CR | M23: CR | N23: 2 | O23: 0 | P23: 0 | Q23: 0.113 | R23: 0.322 | AC23: Eversource Gas
A24: Dual | B24: Existing Building Retrofit | C24: Comprehensive Retrofit | D24: CR | E24: 1 | F24: 17 | G24: 0.9 | H24: 0.5 | I24: Dual Baseline with Default OYF | J24: DualExisting Building RetrofitCR | K24: 1 | L24: CR | M24: CR | N24: 2 | O24: 0 | P24: 0 | Q24: 0.113 | R24: 0.322 | AC24: National Grid Gas - MA
A25: Dual | B25: Existing Building Retrofit | C25: Comprehensive Retrofit | D25: CR | E25: 1 | F25: 18 | G25: 0.9 | H25: 0.5 | I25: Dual Baseline with Default OYF | J25: DualExisting Building RetrofitCR | K25: 1 | L25: CR | M25: CR | N25: 2 | O25: 0 | P25: 0 | Q25: 0.113 | R25: 0.322 | AC25: Eversource Gas (former Columbia)
A26: Dual | B26: Existing Building Retrofit | C26: Comprehensive Retrofit | D26: CR | E26: 1 | F26: 19 | G26: 0.9 | H26: 0.5 | I26: Dual Baseline with Default OYF | J26: DualExisting Building RetrofitCR | K26: 1 | L26: CR | M26: CR | N26: 2 | O26: 0 | P26: 0 | Q26: 0.113 | R26: 0.322 | AC26: Berkshire Gas
A27: Dual | B27: Existing Building Retrofit | C27: Comprehensive Retrofit | D27: CR | E27: 1 | F27: 20 | G27: 0.9 | H27: 0.5 | I27: Dual Baseline with Default OYF | J27: DualExisting Building RetrofitCR | K27: 1 | L27: CR | M27: CR | N27: 2 | O27: 0 | P27: 0 | Q27: 0.113 | R27: 0.322 | AC27: Unitil Gas
A28: Dual | B28: Existing Building Retrofit | C28: Comprehensive Retrofit | D28: CR | E28: 1 | F28: 21 | G28: 0.9 | H28: 0.5 | I28: Dual Baseline with Default OYF | J28: DualExisting Building RetrofitCR | K28: 1 | L28: CR | M28: CR | N28: 2 | O28: 0 | P28: 0 | Q28: 0.113 | R28: 0.322 | AC28: Liberty Gas
A29: Dual | B29: Existing Building Retrofit | C29: Comprehensive Retrofit | D29: CR | E29: 1 | F29: 22 | G29: 0.9 | H29: 0.5 | I29: Dual Baseline with Default OYF | J29: DualExisting Building RetrofitCR | K29: 1 | L29: CR | M29: CR | N29: 2 | O29: 0 | P29: 0 | Q29: 0.113 | R29: 0.322 | AC29: None
A30: Dual | B30: Existing Building Retrofit | C30: Comprehensive Retrofit | D30: CR | E30: 1 | F30: 23 | G30: 0.9 | H30: 0.5 | I30: Dual Baseline with Default OYF | J30: DualExisting Building RetrofitCR | K30: 1 | L30: CR | M30: CR | N30: 2 | O30: 0 | P30: 0 | Q30: 0.113 | R30: 0.322
A31: Dual | B31: Existing Building Retrofit | C31: Comprehensive Retrofit | D31: CR | E31: 1 | F31: 24 | G31: 0.9 | H31: 0.5 | I31: Dual Baseline with Default OYF | J31: DualExisting Building RetrofitCR | K31: 1 | L31: CR | M31: CR | N31: 2 | O31: 0 | P31: 0 | Q31: 0.113 | R31: 0.322 | AC31: General Dual Baseline Assumptions
A32: Dual | B32: Existing Building Retrofit | C32: Comprehensive Retrofit | D32: CR | E32: 1 | F32: 25 | G32: 0.9 | H32: 0.5 | I32: Dual Baseline with Default OYF | J32: DualExisting Building RetrofitCR | K32: 1 | L32: CR | M32: CR | N32: 2 | O32: 0 | P32: 0 | Q32: 0.113 | R32: 0.322 | AC32: Remaining Useful Life Factor | AE32: 0.33333
A33: Dual | B33: Existing Building Retrofit | C33: HVAC Equipment and Systems | D33: HVAC_equip | E33: 1 | F33: 15 | G33: 0.9 | H33: 0.5 | I33: Dual Baseline with Default OYF | J33: DualExisting Building RetrofitHVAC_equip | K33: 1 | L33: HVAC | M33: HVAC | N33: 2 | O33: 0 | P33: 0 | Q33: 0.149 | R33: -0.037 | AC33: Discount Rate | AE33: 0.2
A34: Dual | B34: Existing Building Retrofit | C34: Electrification, HVAC | D34: Elec-HVAC | E34: 0 | F34: 25 | G34: 1 | H34: 0.57 | I34: Not applying Dual Baseline to electrification | J34: DualExisting Building RetrofitElec-HVAC | K34: 0 | M34: HVAC_Elec_G | N34: 1 | O34: 0 | P34: ='HVAC HP Tables'!$E$9 -> 183.56 | Q34: 0 | R34: 0 | S34: ='HVAC HP Tables'!$F$9 -> 0.0005175983437 | T34: 1.1 | U34: 1 | V34: 0.8 | W34: 1 | X34: 1 | Y34: 0.8 | Z34: 1 | AA34: 0.4 | AB34: 0.6
A35: Dual | B35: Existing Building Retrofit | C35: Electrification, HVAC | D35: Elec-HVAC | E35: 0 | F35: 17 | G35: 1 | H35: 0.57 | I35: Not applying Dual Baseline to electrification | J35: DualExisting Building RetrofitElec-HVAC | K35: 0 | M35: HVAC_Elec_G | N35: 1 | O35: 0 | P35: ='HVAC HP Tables'!$E$9 -> 183.56 | Q35: 0 | R35: 0 | S35: ='HVAC HP Tables'!$F$9 -> 0.0005175983437 | T35: 1.1 | U35: 1 | V35: 0.8 | W35: 1 | X35: 1 | Y35: 0.8 | Z35: 1 | AA35: 0.4 | AB35: 0.6
A36: Electric or Delivered Fuel | B36: Existing Building Retrofit | C36: Electrification, HVAC | D36: Elec-HVAC | E36: 0 | F36: 25 | G36: 1 | H36: 0.57 | I36: Not applying Dual Baseline to electrification | J36: Electric or Delivered FuelExisting Building RetrofitElec-HVAC | K36: 0 | N36: 1 | O36: 0 | P36: ='HVAC HP Tables'!$E$9 -> 183.56 | Q36: 0 | R36: 0 | S36: ='HVAC HP Tables'!$F$9 -> 0.0005175983437 | T36: 1.1 | U36: 1 | V36: 0.8 | W36: 1 | X36: 1 | Y36: 0.8 | Z36: 1 | AA36: 0.4 | AB36: 0.6
A37: Electric or Delivered Fuel | B37: Existing Building Retrofit | C37: Electrification, HVAC | D37: Elec-HVAC | E37: 0 | F37: 17 | G37: 1 | H37: 0.57 | I37: Not applying Dual Baseline to electrification | J37: Electric or Delivered FuelExisting Building RetrofitElec-HVAC | K37: 0 | N37: 1 | O37: 0 | P37: ='HVAC HP Tables'!$E$9 -> 183.56 | Q37: 0 | R37: 0 | S37: ='HVAC HP Tables'!$F$9 -> 0.0005175983437 | T37: 1.1 | U37: 1 | V37: 0.8 | W37: 1 | X37: 1 | Y37: 0.8 | Z37: 1 | AA37: 0.4 | AB37: 0.6
A38: Gas | B38: Existing Building Retrofit | C38: Electrification, HVAC | D38: Elec-HVAC | E38: 0 | F38: 25 | G38: 1 | H38: 0.57 | I38: Not applying Dual Baseline to electrification | J38: GasExisting Building RetrofitElec-HVAC | K38: 0 | M38: HVAC_Elec_G | N38: 1 | O38: 0 | P38: ='HVAC HP Tables'!$E$9 -> 183.56 | Q38: 0 | R38: 0 | S38: ='HVAC HP Tables'!$F$9 -> 0.0005175983437 | T38: 1.1 | U38: 1 | V38: 0.8 | W38: 1 | X38: 1 | Y38: 0.8 | Z38: 1 | AA38: 0.4 | AB38: 0.6
A39: Gas | B39: Existing Building Retrofit | C39: Electrification, HVAC | D39: Elec-HVAC | E39: 0 | F39: 17 | G39: 1 | H39: 0.57 | I39: Not applying Dual Baseline to electrification | J39: GasExisting Building RetrofitElec-HVAC | K39: 0 | M39: HVAC_Elec_G | N39: 1 | O39: 0 | P39: ='HVAC HP Tables'!$E$9 -> 183.56 | Q39: 0 | R39: 0 | S39: ='HVAC HP Tables'!$F$9 -> 0.0005175983437 | T39: 1.1 | U39: 1 | V39: 0.8 | W39: 1 | X39: 1 | Y39: 0.8 | Z39: 1 | AA39: 0.4 | AB39: 0.6
A40: Dual | B40: New Buildings & Major Renovation | C40: Electrification, HVAC | D40: Elec-HVAC | E40: 0 | F40: 25 | G40: 1 | H40: 0.57 | I40: Dual Baseline not applicable to New Buildings & Major Renovations | J40: DualNew Buildings & Major RenovationElec-HVAC | K40: 0 | M40: HVAC_Elec_G | N40: 1 | O40: 0 | P40: ='HVAC HP Tables'!$E$9 -> 183.56 | Q40: 0 | R40: 0 | S40: ='HVAC HP Tables'!$F$9 -> 0.0005175983437 | T40: 1.1 | U40: 1 | V40: 0.8 | W40: 1 | X40: 1 | Y40: 0.8 | Z40: 1 | AA40: 0.4 | AB40: 0.6
A41: Dual | B41: Existing Building Retrofit | C41: EMS / controls, HVAC | D41: HVAC_control | E41: 0 | F41: 10 | G41: 1 | H41: 0.67 | I41: Add on single baseline | J41: DualExisting Building RetrofitHVAC_control | K41: 0 | L41: EMSB | M41: EMSB | N41: 2 | O41: 0 | P41: 0 | Q41: 0.239 | R41: 1.619
A42: Dual | B42: New Buildings & Major Renovation | C42: Electrification, HVAC | D42: Elec-HVAC | E42: 0 | F42: 17 | G42: 1 | H42: 0.57 | I42: Dual Baseline not applicable to New Buildings & Major Renovations | J42: DualNew Buildings & Major RenovationElec-HVAC | K42: 0 | M42: HVAC_Elec_G | N42: 1 | O42: 0 | P42: ='HVAC HP Tables'!$E$9 -> 183.56 | Q42: 0 | R42: 0 | S42: ='HVAC HP Tables'!$F$9 -> 0.0005175983437 | T42: 0.7 | U42: 1 | V42: 0.8 | W42: 1 | X42: 1 | Y42: 0.8 | Z42: 1 | AA42: 0.4 | AB42: 0.6
A43: Electric or Delivered Fuel | B43: New Buildings & Major Renovation | C43: Electrification, HVAC | D43: Elec-HVAC | E43: 0 | F43: 25 | G43: 1 | H43: 0.57 | I43: Dual Baseline not applicable to New Buildings & Major Renovations | J43: Electric or Delivered FuelNew Buildings & Major RenovationElec-HVAC | K43: 0 | N43: 1 | O43: 0 | P43: ='HVAC HP Tables'!$E$9 -> 183.56 | Q43: 0 | R43: 0 | S43: ='HVAC HP Tables'!$F$9 -> 0.0005175983437 | T43: 0.7 | U43: 1 | V43: 0.8 | W43: 1 | X43: 1 | Y43: 0.8 | Z43: 1 | AA43: 0.4 | AB43: 0.6
A44: Electric or Delivered Fuel | B44: New Buildings & Major Renovation | C44: Electrification, HVAC | D44: Elec-HVAC | E44: 0 | F44: 17 | G44: 1 | H44: 0.57 | I44: Dual Baseline not applicable to New Buildings & Major Renovations | J44: Electric or Delivered FuelNew Buildings & Major RenovationElec-HVAC | K44: 0 | N44: 1 | O44: 0 | P44: ='HVAC HP Tables'!$E$9 -> 183.56 | Q44: 0 | R44: 0 | S44: ='HVAC HP Tables'!$F$9 -> 0.0005175983437 | T44: 0.7 | U44: 1 | V44: 0.8 | W44: 1 | X44: 1 | Y44: 0.8 | Z44: 1 | AA44: 0.4 | AB44: 0.6
A45: Electric or Delivered Fuel | B45: Existing Building Retrofit | C45: Building Shell | D45: BSHL | E45: 0 | F45: 5 | G45: 1 | H45: 0.67 | I45: Add on single baseline | J45: Electric or Delivered FuelExisting Building RetrofitBSHL | K45: 0 | L45: BSHL | N45: 3 | O45: 0 | P45: 0 | Q45: 0.149
A46: Electric or Delivered Fuel | B46: Existing Building Retrofit | C46: Building Shell | D46: BSHL | E46: 0 | F46: 10 | G46: 1 | H46: 0.67 | I46: Add on single baseline | J46: Electric or Delivered FuelExisting Building RetrofitBSHL | K46: 0 | L46: BSHL | N46: 3 | O46: 0 | P46: 0 | Q46: 0.149
A47: Electric or Delivered Fuel | B47: Existing Building Retrofit | C47: Building Shell | D47: BSHL | E47: 0 | F47: 15 | G47: 1 | H47: 0.67 | I47: Add on single baseline | J47: Electric or Delivered FuelExisting Building RetrofitBSHL | K47: 0 | L47: BSHL | N47: 3 | O47: 0 | P47: 0 | Q47: 0.149
A48: Dual | B48: Existing Building Retrofit | C48: Equipment Insulation, non-HVAC | D48: INSL_NHVAC | E48: 0 | F48: 10 | G48: 1 | H48: 0.33 | I48: Add on single baseline | J48: DualExisting Building RetrofitINSL_NHVAC | K48: 0 | L48: PROC | M48: INSL_PIPE | N48: 2 | O48: 0 | P48: 0 | Q48: 0.098 | R48: -0.045
A49: Dual | B49: Existing Building Retrofit | C49: Equipment Insulation, non-HVAC | D49: INSL_NHVAC | E49: 0 | F49: 15 | G49: 1 | H49: 0.33 | I49: Add on single baseline | J49: DualExisting Building RetrofitINSL_NHVAC | K49: 0 | L49: PROC | M49: INSL_PIPE | N49: 2 | O49: 0 | P49: 0 | Q49: 0.098 | R49: -0.045
A50: Dual | B50: Existing Building Retrofit | C50: Equipment Insulation, non-HVAC | D50: INSL_NHVAC | E50: 0 | F50: 20 | G50: 1 | H50: 0.33 | I50: Add on single baseline | J50: DualExisting Building RetrofitINSL_NHVAC | K50: 0 | L50: PROC | M50: INSL_PIPE | N50: 2 | O50: 0 | P50: 0 | Q50: 0.098 | R50: -0.045
A51: Dual | B51: Existing Building Retrofit | C51: Food Service | D51: FOOD | E51: 0 | F51: 10 | G51: 1 | H51: 0.33 | I51: Add on single baseline | J51: DualExisting Building RetrofitFOOD | K51: 0 | L51: FOOD | M51: FOOD_HTG | N51: 2 | O51: 0 | P51: 0 | R51: 4.579
A52: Dual | B52: Existing Building Retrofit | C52: Food Service | D52: FOOD | E52: 0 | F52: 15 | G52: 1 | H52: 0.33 | I52: Add on single baseline | J52: DualExisting Building RetrofitFOOD | K52: 0 | L52: FOOD | M52: FOOD_HTG | N52: 2 | O52: 0 | P52: 0 | R52: 4.579
A53: Dual | B53: Existing Building Retrofit | C53: Heat recovery, HVAC | D53: HR_HVAC | E53: 0 | F53: 10 | G53: 1 | H53: 0.67 | I53: Add on single baseline | J53: DualExisting Building RetrofitHR_HVAC | K53: 0 | L53: HVAC | M53: HTREC_S | N53: 2 | O53: 0 | P53: 0 | Q53: 0.149 | R53: -0.037
A54: Dual | B54: Existing Building Retrofit | C54: Heat recovery, HVAC | D54: HR_HVAC | E54: 0 | F54: 15 | G54: 1 | H54: 0.67 | I54: Add on single baseline | J54: DualExisting Building RetrofitHR_HVAC | K54: 0 | L54: HVAC | M54: HTREC_S | N54: 2 | O54: 0 | P54: 0 | Q54: 0.149 | R54: -0.037
A55: Dual | B55: Existing Building Retrofit | C55: Heat recovery, HVAC | D55: HR_HVAC | E55: 0 | F55: 20 | G55: 1 | H55: 0.67 | I55: Add on single baseline | J55: DualExisting Building RetrofitHR_HVAC | K55: 0 | L55: HVAC | M55: HTREC_S | N55: 2 | O55: 0 | P55: 0 | Q55: 0.149 | R55: -0.037
A56: Dual | B56: Existing Building Retrofit | C56: Heat recovery, non-HVAC | D56: HR_NHVAC | E56: 0 | F56: 10 | G56: 1 | H56: 0.33 | I56: Add on single baseline | J56: DualExisting Building RetrofitHR_NHVAC | K56: 0 | L56: PROC | M56: HTREC_Y | N56: 2 | O56: 0 | P56: 0 | Q56: 0.098 | R56: -0.037
A57: Dual | B57: Existing Building Retrofit | C57: Heat recovery, non-HVAC | D57: HR_NHVAC | E57: 0 | F57: 15 | G57: 1 | H57: 0.33 | I57: Add on single baseline | J57: DualExisting Building RetrofitHR_NHVAC | K57: 0 | L57: PROC | M57: HTREC_Y | N57: 2 | O57: 0 | P57: 0 | Q57: 0.098 | R57: -0.037
A58: Dual | B58: Existing Building Retrofit | C58: Heat recovery, non-HVAC | D58: HR_NHVAC | E58: 0 | F58: 20 | G58: 1 | H58: 0.33 | I58: Add on single baseline | J58: DualExisting Building RetrofitHR_NHVAC | K58: 0 | L58: PROC | M58: HTREC_Y | N58: 2 | O58: 0 | P58: 0 | Q58: 0.098 | R58: -0.037
A59: Dual | B59: Existing Building Retrofit | C59: O&M / Retrocommissioning, HVAC | D59: RCx_HVAC | E59: 0 | F59: 1 | G59: 1 | H59: 0.67 | I59: Add on single baseline | J59: DualExisting Building RetrofitRCx_HVAC | K59: 0 | L59: OM_HVAC | M59: OM_RCX | N59: 2 | O59: 0 | P59: 0 | Q59: 0.269 | R59: 1.619
A60: Dual | B60: Existing Building Retrofit | C60: O&M / Retrocommissioning, HVAC | D60: RCx_HVAC | E60: 0 | F60: 2 | G60: 1 | H60: 0.67 | I60: Add on single baseline | J60: DualExisting Building RetrofitRCx_HVAC | K60: 0 | L60: OM_HVAC | M60: OM_RCX | N60: 2 | O60: 0 | P60: 0 | Q60: 0.269 | R60: 1.619
A61: Dual | B61: Existing Building Retrofit | C61: O&M / Retrocommissioning, HVAC | D61: RCx_HVAC | E61: 0 | F61: 3 | G61: 1 | H61: 0.67 | I61: Add on single baseline | J61: DualExisting Building RetrofitRCx_HVAC | K61: 0 | L61: OM_HVAC | M61: OM_RCX | N61: 2 | O61: 0 | P61: 0 | Q61: 0.269 | R61: 1.619
A62: Dual | B62: Existing Building Retrofit | C62: O&M / Retrocommissioning, HVAC | D62: RCx_HVAC | E62: 0 | F62: 4 | G62: 1 | H62: 0.67 | I62: Add on single baseline | J62: DualExisting Building RetrofitRCx_HVAC | K62: 0 | L62: OM_HVAC | M62: OM_RCX | N62: 2 | O62: 0 | P62: 0 | Q62: 0.269 | R62: 1.619
A63: Dual | B63: Existing Building Retrofit | C63: O&M / Retrocommissioning, HVAC | D63: RCx_HVAC | E63: 0 | F63: 5 | G63: 1 | H63: 0.67 | I63: Add on single baseline | J63: DualExisting Building RetrofitRCx_HVAC | K63: 0 | L63: OM_HVAC | M63: OM_RCX | N63: 2 | O63: 0 | P63: 0 | Q63: 0.269 | R63: 1.619
A64: Dual | B64: Existing Building Retrofit | C64: O&M / Retrocommissioning, non-HVAC | D64: RCx_NHVAC | E64: 0 | F64: 1 | G64: 1 | H64: 0.33 | I64: Add on single baseline | J64: DualExisting Building RetrofitRCx_NHVAC | K64: 0 | L64: OM | M64: OM | N64: 2 | O64: 0 | P64: 0 | Q64: 0.269 | R64: 1.619
A65: Dual | B65: Existing Building Retrofit | C65: O&M / Retrocommissioning, non-HVAC | D65: RCx_NHVAC | E65: 0 | F65: 2 | G65: 1 | H65: 0.33 | I65: Add on single baseline | J65: DualExisting Building RetrofitRCx_NHVAC | K65: 0 | L65: OM | M65: OM | N65: 2 | O65: 0 | P65: 0 | Q65: 0.269 | R65: 1.619
A66: Dual | B66: Existing Building Retrofit | C66: O&M / Retrocommissioning, non-HVAC | D66: RCx_NHVAC | E66: 0 | F66: 3 | G66: 1 | H66: 0.33 | I66: Add on single baseline | J66: DualExisting Building RetrofitRCx_NHVAC | K66: 0 | L66: OM | M66: OM | N66: 2 | O66: 0 | P66: 0 | Q66: 0.269 | R66: 1.619
A67: Dual | B67: Existing Building Retrofit | C67: O&M / Retrocommissioning, non-HVAC | D67: RCx_NHVAC | E67: 0 | F67: 4 | G67: 1 | H67: 0.33 | I67: Add on single baseline | J67: DualExisting Building RetrofitRCx_NHVAC | K67: 0 | L67: OM | M67: OM | N67: 2 | O67: 0 | P67: 0 | Q67: 0.269 | R67: 1.619
A68: Dual | B68: Existing Building Retrofit | C68: O&M / Retrocommissioning, non-HVAC | D68: RCx_NHVAC | E68: 0 | F68: 5 | G68: 1 | H68: 0.33 | I68: Add on single baseline | J68: DualExisting Building RetrofitRCx_NHVAC | K68: 0 | L68: OM | M68: OM | N68: 2 | O68: 0 | P68: 0 | Q68: 0.269 | R68: 1.619
A69: Dual | B69: Existing Building Retrofit | C69: Other | D69: OTHR | E69: 1 | F69: 5 | G69: 0.9 | H69: 0.5 | I69: Dual Baseline with Default OYF | J69: DualExisting Building RetrofitOTHR | K69: 1 | L69: OTHR | M69: OTHR | N69: 2 | O69: 0 | P69: 0 | Q69: 0.065 | R69: 0.607
A70: Dual | B70: Existing Building Retrofit | C70: Other | D70: OTHR | E70: 1 | F70: 6 | G70: 0.9 | H70: 0.5 | I70: Dual Baseline with Default OYF | J70: DualExisting Building RetrofitOTHR | K70: 1 | L70: OTHR | M70: OTHR | N70: 2 | O70: 0 | P70: 0 | Q70: 0.065 | R70: 0.607
A71: Dual | B71: Existing Building Retrofit | C71: Other | D71: OTHR | E71: 1 | F71: 7 | G71: 0.9 | H71: 0.5 | I71: Dual Baseline with Default OYF | J71: =CONCATENATE(A71,B71,D71) -> DualExisting Building RetrofitOTHR | K71: =E71 -> 1 | L71: OTHR | M71: OTHR | N71: 2 | O71: 0 | P71: 0 | Q71: 0.065 | R71: 0.607
A72: Dual | B72: Existing Building Retrofit | C72: Other | D72: OTHR | E72: 1 | F72: 8 | G72: 0.9 | H72: 0.5 | I72: Dual Baseline with Default OYF | J72: DualExisting Building RetrofitOTHR | K72: 1 | L72: OTHR | M72: OTHR | N72: 2 | O72: 0 | P72: 0 | Q72: 0.065 | R72: 0.607
A73: Dual | B73: Existing Building Retrofit | C73: Other | D73: OTHR | E73: 1 | F73: 9 | G73: 0.9 | H73: 0.5 | I73: Dual Baseline with Default OYF | J73: DualExisting Building RetrofitOTHR | K73: 1 | L73: OTHR | M73: OTHR | N73: 2 | O73: 0 | P73: 0 | Q73: 0.065 | R73: 0.607
A74: Dual | B74: Existing Building Retrofit | C74: Other | D74: OTHR | E74: 1 | F74: 10 | G74: 0.9 | H74: 0.5 | I74: Dual Baseline with Default OYF | J74: DualExisting Building RetrofitOTHR | K74: 1 | L74: OTHR | M74: OTHR | N74: 2 | O74: 0 | P74: 0 | Q74: 0.065 | R74: 0.607
A75: Dual | B75: Existing Building Retrofit | C75: Other | D75: OTHR | E75: 1 | F75: 11 | G75: 0.9 | H75: 0.5 | I75: Dual Baseline with Default OYF | J75: DualExisting Building RetrofitOTHR | K75: 1 | L75: OTHR | M75: OTHR | N75: 2 | O75: 0 | P75: 0 | Q75: 0.065 | R75: 0.607
A76: Dual | B76: Existing Building Retrofit | C76: Other | D76: OTHR | E76: 1 | F76: 12 | G76: 0.9 | H76: 0.5 | I76: Dual Baseline with Default OYF | J76: DualExisting Building RetrofitOTHR | K76: 1 | L76: OTHR | M76: OTHR | N76: 2 | O76: 0 | P76: 0 | Q76: 0.065 | R76: 0.607
A77: Dual | B77: Existing Building Retrofit | C77: Other | D77: OTHR | E77: 1 | F77: 15 | G77: 0.9 | H77: 0.5 | I77: Dual Baseline with Default OYF | J77: DualExisting Building RetrofitOTHR | K77: 1 | L77: OTHR | M77: OTHR | N77: 2 | O77: 0 | P77: 0 | Q77: 0.065 | R77: 0.607
A78: Dual | B78: Existing Building Retrofit | C78: Other | D78: OTHR | E78: 1 | F78: 14 | G78: 0.9 | H78: 0.5 | I78: Dual Baseline with Default OYF | J78: DualExisting Building RetrofitOTHR | K78: 1 | L78: OTHR | M78: OTHR | N78: 2 | O78: 0 | P78: 0 | Q78: 0.065 | R78: 0.607
A79: Dual | B79: Existing Building Retrofit | C79: Other | D79: OTHR | E79: 1 | F79: 15 | G79: 0.9 | H79: 0.5 | I79: Dual Baseline with Default OYF | J79: DualExisting Building RetrofitOTHR | K79: 1 | L79: OTHR | M79: OTHR | N79: 2 | O79: 0 | P79: 0 | Q79: 0.065 | R79: 0.607
A80: Dual | B80: Existing Building Retrofit | C80: Other | D80: OTHR | E80: 1 | F80: 16 | G80: 0.9 | H80: 0.5 | I80: Dual Baseline with Default OYF | J80: DualExisting Building RetrofitOTHR | K80: 1 | L80: OTHR | M80: OTHR | N80: 2 | O80: 0 | P80: 0 | Q80: 0.065 | R80: 0.607
A81: Dual | B81: Existing Building Retrofit | C81: Other | D81: OTHR | E81: 1 | F81: 17 | G81: 0.9 | H81: 0.5 | I81: Dual Baseline with Default OYF | J81: DualExisting Building RetrofitOTHR | K81: 1 | L81: OTHR | M81: OTHR | N81: 2 | O81: 0 | P81: 0 | Q81: 0.065 | R81: 0.607
A82: Dual | B82: Existing Building Retrofit | C82: Other | D82: OTHR | E82: 1 | F82: 18 | G82: 0.9 | H82: 0.5 | I82: Dual Baseline with Default OYF | J82: DualExisting Building RetrofitOTHR | K82: 1 | L82: OTHR | M82: OTHR | N82: 2 | O82: 0 | P82: 0 | Q82: 0.065 | R82: 0.607
A83: Dual | B83: Existing Building Retrofit | C83: Other | D83: OTHR | E83: 1 | F83: 19 | G83: 0.9 | H83: 0.5 | I83: Dual Baseline with Default OYF | J83: DualExisting Building RetrofitOTHR | K83: 1 | L83: OTHR | M83: OTHR | N83: 2 | O83: 0 | P83: 0 | Q83: 0.065 | R83: 0.607
A84: Dual | B84: Existing Building Retrofit | C84: Other | D84: OTHR | E84: 1 | F84: 20 | G84: 0.9 | H84: 0.5 | I84: Dual Baseline with Default OYF | J84: DualExisting Building RetrofitOTHR | K84: 1 | L84: OTHR | M84: OTHR | N84: 2 | O84: 0 | P84: 0 | Q84: 0.065 | R84: 0.607
A85: Dual | B85: Existing Building Retrofit | C85: Other | D85: OTHR | E85: 1 | F85: 21 | G85: 0.9 | H85: 0.5 | I85: Dual Baseline with Default OYF | J85: DualExisting Building RetrofitOTHR | K85: 1 | L85: OTHR | M85: OTHR | N85: 2 | O85: 0 | P85: 0 | Q85: 0.065 | R85: 0.607
A86: Dual | B86: Existing Building Retrofit | C86: Other | D86: OTHR | E86: 1 | F86: 22 | G86: 0.9 | H86: 0.5 | I86: Dual Baseline with Default OYF | J86: DualExisting Building RetrofitOTHR | K86: 1 | L86: OTHR | M86: OTHR | N86: 2 | O86: 0 | P86: 0 | Q86: 0.065 | R86: 0.607
A87: Dual | B87: Existing Building Retrofit | C87: Other | D87: OTHR | E87: 1 | F87: 23 | G87: 0.9 | H87: 0.5 | I87: Dual Baseline with Default OYF | J87: DualExisting Building RetrofitOTHR | K87: 1 | L87: OTHR | M87: OTHR | N87: 2 | O87: 0 | P87: 0 | Q87: 0.065 | R87: 0.607
A88: Dual | B88: Existing Building Retrofit | C88: Other | D88: OTHR | E88: 1 | F88: 24 | G88: 0.9 | H88: 0.5 | I88: Dual Baseline with Default OYF | J88: DualExisting Building RetrofitOTHR | K88: 1 | L88: OTHR | M88: OTHR | N88: 2 | O88: 0 | P88: 0 | Q88: 0.065 | R88: 0.607
A89: Dual | B89: Existing Building Retrofit | C89: Other | D89: OTHR | E89: 1 | F89: 25 | G89: 0.9 | H89: 0.5 | I89: Dual Baseline with Default OYF | J89: DualExisting Building RetrofitOTHR | K89: 1 | L89: OTHR | M89: OTHR | N89: 2 | O89: 0 | P89: 0 | Q89: 0.065 | R89: 0.607
A90: Dual | B90: Existing Building Retrofit | C90: Process Equipment | D90: PROC_equip | E90: 1 | F90: 15 | G90: 0.9 | H90: 0.33 | I90: Dual Baseline with Default OYF | J90: DualExisting Building RetrofitPROC_equip | K90: 1 | L90: PROC | M90: PROC | N90: 2 | O90: 0 | P90: 0 | Q90: 0.098 | R90: -0.045
A91: Dual | B91: Existing Building Retrofit | C91: Process Equipment | D91: PROC_equip | E91: 1 | F91: 20 | G91: 0.9 | H91: 0.33 | I91: Dual Baseline with Default OYF | J91: DualExisting Building RetrofitPROC_equip | K91: 1 | L91: PROC | M91: PROC | N91: 2 | O91: 0 | P91: 0 | Q91: 0.098 | R91: -0.045
A92: Dual | B92: Existing Building Retrofit | C92: Process Equipment | D92: PROC_equip | E92: 1 | F92: 5 | G92: 0.9 | H92: 0.33 | I92: Dual Baseline with Default OYF | J92: DualExisting Building RetrofitPROC_equip | K92: 1 | L92: PROC | M92: PROC | N92: 2 | O92: 0 | P92: 0 | Q92: 0.098 | R92: -0.045
A93: Dual | B93: Existing Building Retrofit | C93: Process Equipment | D93: PROC_equip | E93: 1 | F93: 10 | G93: 0.9 | H93: 0.33 | I93: Dual Baseline with Default OYF | J93: DualExisting Building RetrofitPROC_equip | K93: 1 | L93: PROC | M93: PROC | N93: 2 | O93: 0 | P93: 0 | Q93: 0.098 | R93: -0.045
A94: Dual | B94: Existing Building Retrofit | C94: Process Equipment | D94: PROC_equip | E94: 1 | F94: 15 | G94: 0.9 | H94: 0.33 | I94: Dual Baseline with Default OYF | J94: DualExisting Building RetrofitPROC_equip | K94: 1 | L94: PROC | M94: PROC | N94: 2 | O94: 0 | P94: 0 | Q94: 0.098 | R94: -0.045
A95: Dual | B95: Existing Building Retrofit | C95: Process Equipment and Controls | D95: PROC_syst | E95: 1 | F95: 5 | G95: 0.9 | H95: 0.33 | I95: Dual Baseline with Default OYF | J95: DualExisting Building RetrofitPROC_syst | K95: 1 | L95: PROC | M95: PROC | N95: 2 | O95: 0 | P95: 0 | Q95: 0.098 | R95: -0.045
A96: Dual | B96: Existing Building Retrofit | C96: Process Equipment and Controls | D96: PROC_syst | E96: 1 | F96: 10 | G96: 0.9 | H96: 0.33 | I96: Dual Baseline with Default OYF | J96: DualExisting Building RetrofitPROC_syst | K96: 1 | L96: PROC | M96: PROC | N96: 2 | O96: 0 | P96: 0 | Q96: 0.098 | R96: -0.045
A97: Dual | B97: Existing Building Retrofit | C97: Verified savings, HVAC | D97: VSV_HVAC | E97: 1 | F97: 10 | G97: 0.9 | H97: 0.67 | I97: Dual Baseline with Default OYF | J97: DualExisting Building RetrofitVSV_HVAC | K97: 1 | L97: VSAV | M97: VSAV | N97: 2 | O97: 0 | P97: 0 | Q97: 0.149 | R97: -0.037
A98: Dual | B98: Existing Building Retrofit | C98: Verified savings, HVAC | D98: VSV_HVAC | E98: 1 | F98: 15 | G98: 0.9 | H98: 0.67 | I98: Dual Baseline with Default OYF | J98: DualExisting Building RetrofitVSV_HVAC | K98: 1 | L98: VSAV | M98: VSAV | N98: 2 | O98: 0 | P98: 0 | Q98: 0.149 | R98: -0.037
A99: Dual | B99: Existing Building Retrofit | C99: Verified savings, non-HVAC | D99: VSV_NHVAC | E99: 1 | F99: 10 | G99: 0.9 | H99: 0.33 | I99: Dual Baseline with Default OYF | J99: DualExisting Building RetrofitVSV_NHVAC | K99: 1 | L99: VSAV | M99: VSAV | N99: 2 | O99: 0 | P99: 0 | Q99: 0.065 | R99: -0.045
A100: Dual | B100: Existing Building Retrofit | C100: Verified savings, non-HVAC | D100: VSV_NHVAC | E100: 1 | F100: 15 | G100: 0.9 | H100: 0.33 | I100: Dual Baseline with Default OYF | J100: DualExisting Building RetrofitVSV_NHVAC | K100: 1 | L100: VSAV | M100: VSAV | N100: 2 | O100: 0 | P100: 0 | Q100: 0.065 | R100: -0.045
A101: Electric or Delivered Fuel | B101: Existing Building Retrofit | C101: Building Shell | D101: BSHL | E101: 0 | F101: 20 | G101: 1 | H101: 0.67 | I101: Add on single baseline | J101: Electric or Delivered FuelExisting Building RetrofitBSHL | K101: 0 | L101: BSHL | N101: 3 | O101: 0 | P101: 0 | Q101: 0.149
A102: Electric or Delivered Fuel | B102: Existing Building Retrofit | C102: Building Shell | D102: BSHL | E102: 0 | F102: 25 | G102: 1 | H102: 0.67 | I102: Add on single baseline | J102: Electric or Delivered FuelExisting Building RetrofitBSHL | K102: 0 | L102: BSHL | N102: 3 | O102: 0 | P102: 0 | Q102: 0.149
A103: Gas | B103: Existing Building Retrofit | C103: Building Shell | D103: BSHL | E103: 0 | F103: 5 | G103: 1 | H103: 0 | I103: Add on single baseline | J103: GasExisting Building RetrofitBSHL | K103: 0 | M103: BSHL_Building | N103: 3 | O103: 0 | P103: 0 | R103: 0.322
A104: Gas | B104: Existing Building Retrofit | C104: Building Shell | D104: BSHL | E104: 0 | F104: 10 | G104: 1 | H104: 0 | I104: Add on single baseline | J104: GasExisting Building RetrofitBSHL | K104: 0 | M104: BSHL_Building | N104: 3 | O104: 0 | P104: 0 | R104: 0.322
A105: Gas | B105: Existing Building Retrofit | C105: Building Shell | D105: BSHL | E105: 0 | F105: 15 | G105: 1 | H105: 0 | I105: Add on single baseline | J105: GasExisting Building RetrofitBSHL | K105: 0 | M105: BSHL_Building | N105: 3 | O105: 0 | P105: 0 | R105: 0.322
A106: Electric or Delivered Fuel | B106: Existing Building Retrofit | C106: Chillers | D106: CHIL | E106: 1 | F106: 23 | G106: 0.9 | H106: 0.67 | I106: Dual Baseline with Default OYF | J106: Electric or Delivered FuelExisting Building RetrofitCHIL | K106: 1 | L106: CHIL | N106: 2 | O106: 0 | P106: 0 | Q106: 0.149
A107: Electric or Delivered Fuel | B107: Existing Building Retrofit | C107: Combined Heat & Power | D107: CHP | E107: 0 | F107: 5 | G107: 1 | H107: 0.33 | I107: Add on single baseline | J107: Electric or Delivered FuelExisting Building RetrofitCHP | K107: 0 | L107: CHP | N107: 2 | O107: 1 | P107: 0 | Q107: 0.003
A108: Electric or Delivered Fuel | B108: Existing Building Retrofit | C108: Combined Heat & Power | D108: CHP | E108: 0 | F108: 10 | G108: 1 | H108: 0.33 | I108: Add on single baseline | J108: Electric or Delivered FuelExisting Building RetrofitCHP | K108: 0 | L108: CHP | N108: 2 | O108: 1 | P108: 0 | Q108: 0.003
A109: Electric or Delivered Fuel | B109: Existing Building Retrofit | C109: Combined Heat & Power | D109: CHP | E109: 0 | F109: 15 | G109: 1 | H109: 0.33 | I109: Add on single baseline | J109: Electric or Delivered FuelExisting Building RetrofitCHP | K109: 0 | L109: CHP | N109: 2 | O109: 1 | P109: 0 | Q109: 0.003
A110: Electric or Delivered Fuel | B110: Existing Building Retrofit | C110: Combined Heat & Power | D110: CHP | E110: 0 | F110: 20 | G110: 1 | H110: 0.33 | I110: Add on single baseline | J110: Electric or Delivered FuelExisting Building RetrofitCHP | K110: 0 | L110: CHP | N110: 2 | O110: 1 | P110: 0 | Q110: 0.003
A111: Electric or Delivered Fuel | B111: Existing Building Retrofit | C111: Combined Heat & Power | D111: CHP | E111: 0 | F111: 25 | G111: 1 | H111: 0.33 | I111: Add on single baseline | J111: Electric or Delivered FuelExisting Building RetrofitCHP | K111: 0 | L111: CHP | N111: 2 | O111: 1 | P111: 0 | Q111: 0.003
A112: Electric or Delivered Fuel | B112: Existing Building Retrofit | C112: Comprehensive Retrofit | D112: CR | E112: 1 | F112: 5 | G112: 0.9 | H112: 0.5 | I112: Dual Baseline with Default OYF | J112: Electric or Delivered FuelExisting Building RetrofitCR | K112: 1 | L112: CR | N112: 2 | O112: 0 | P112: 0 | Q112: 0.113
A113: Electric or Delivered Fuel | B113: Existing Building Retrofit | C113: Comprehensive Retrofit | D113: CR | E113: 1 | F113: 6 | G113: 0.9 | H113: 0.5 | I113: Dual Baseline with Default OYF | J113: Electric or Delivered FuelExisting Building RetrofitCR | K113: 1 | L113: CR | N113: 2 | O113: 0 | P113: 0 | Q113: 0.113
A114: Electric or Delivered Fuel | B114: Existing Building Retrofit | C114: Comprehensive Retrofit | D114: CR | E114: 1 | F114: 7 | G114: 0.9 | H114: 0.5 | I114: Dual Baseline with Default OYF | J114: Electric or Delivered FuelExisting Building RetrofitCR | K114: 1 | L114: CR | N114: 2 | O114: 0 | P114: 0 | Q114: 0.113
A115: Electric or Delivered Fuel | B115: Existing Building Retrofit | C115: Comprehensive Retrofit | D115: CR | E115: 1 | F115: 8 | G115: 0.9 | H115: 0.5 | I115: Dual Baseline with Default OYF | J115: Electric or Delivered FuelExisting Building RetrofitCR | K115: 1 | L115: CR | N115: 2 | O115: 0 | P115: 0 | Q115: 0.113
A116: Electric or Delivered Fuel | B116: Existing Building Retrofit | C116: Comprehensive Retrofit | D116: CR | E116: 1 | F116: 9 | G116: 0.9 | H116: 0.5 | I116: Dual Baseline with Default OYF | J116: Electric or Delivered FuelExisting Building RetrofitCR | K116: 1 | L116: CR | N116: 2 | O116: 0 | P116: 0 | Q116: 0.113
A117: Electric or Delivered Fuel | B117: Existing Building Retrofit | C117: Comprehensive Retrofit | D117: CR | E117: 1 | F117: 10 | G117: 0.9 | H117: 0.5 | I117: Dual Baseline with Default OYF | J117: Electric or Delivered FuelExisting Building RetrofitCR | K117: 1 | L117: CR | N117: 2 | O117: 0 | P117: 0 | Q117: 0.113
A118: Electric or Delivered Fuel | B118: Existing Building Retrofit | C118: Comprehensive Retrofit | D118: CR | E118: 1 | F118: 11 | G118: 0.9 | H118: 0.5 | I118: Dual Baseline with Default OYF | J118: Electric or Delivered FuelExisting Building RetrofitCR | K118: 1 | L118: CR | N118: 2 | O118: 0 | P118: 0 | Q118: 0.113
A119: Electric or Delivered Fuel | B119: Existing Building Retrofit | C119: Comprehensive Retrofit | D119: CR | E119: 1 | F119: 12 | G119: 0.9 | H119: 0.5 | I119: Dual Baseline with Default OYF | J119: Electric or Delivered FuelExisting Building RetrofitCR | K119: 1 | L119: CR | N119: 2 | O119: 0 | P119: 0 | Q119: 0.113
A120: Electric or Delivered Fuel | B120: Existing Building Retrofit | C120: Comprehensive Retrofit | D120: CR | E120: 1 | F120: 13 | G120: 0.9 | H120: 0.5 | I120: Dual Baseline with Default OYF | J120: Electric or Delivered FuelExisting Building RetrofitCR | K120: 1 | L120: CR | N120: 2 | O120: 0 | P120: 0 | Q120: 0.113
A121: Electric or Delivered Fuel | B121: Existing Building Retrofit | C121: Comprehensive Retrofit | D121: CR | E121: 1 | F121: 14 | G121: 0.9 | H121: 0.5 | I121: Dual Baseline with Default OYF | J121: Electric or Delivered FuelExisting Building RetrofitCR | K121: 1 | L121: CR | N121: 2 | O121: 0 | P121: 0 | Q121: 0.113
A122: Electric or Delivered Fuel | B122: Existing Building Retrofit | C122: Comprehensive Retrofit | D122: CR | E122: 1 | F122: 15 | G122: 0.9 | H122: 0.5 | I122: Dual Baseline with Default OYF | J122: Electric or Delivered FuelExisting Building RetrofitCR | K122: 1 | L122: CR | N122: 2 | O122: 0 | P122: 0 | Q122: 0.113
A123: Electric or Delivered Fuel | B123: Existing Building Retrofit | C123: Comprehensive Retrofit | D123: CR | E123: 1 | F123: 16 | G123: 0.9 | H123: 0.5 | I123: Dual Baseline with Default OYF | J123: Electric or Delivered FuelExisting Building RetrofitCR | K123: 1 | L123: CR | N123: 2 | O123: 0 | P123: 0 | Q123: 0.113
A124: Electric or Delivered Fuel | B124: Existing Building Retrofit | C124: Comprehensive Retrofit | D124: CR | E124: 1 | F124: 17 | G124: 0.9 | H124: 0.5 | I124: Dual Baseline with Default OYF | J124: Electric or Delivered FuelExisting Building RetrofitCR | K124: 1 | L124: CR | N124: 2 | O124: 0 | P124: 0 | Q124: 0.113
A125: Electric or Delivered Fuel | B125: Existing Building Retrofit | C125: Comprehensive Retrofit | D125: CR | E125: 1 | F125: 18 | G125: 0.9 | H125: 0.5 | I125: Dual Baseline with Default OYF | J125: Electric or Delivered FuelExisting Building RetrofitCR | K125: 1 | L125: CR | N125: 2 | O125: 0 | P125: 0 | Q125: 0.113
A126: Electric or Delivered Fuel | B126: Existing Building Retrofit | C126: Comprehensive Retrofit | D126: CR | E126: 1 | F126: 19 | G126: 0.9 | H126: 0.5 | I126: Dual Baseline with Default OYF | J126: Electric or Delivered FuelExisting Building RetrofitCR | K126: 1 | L126: CR | N126: 2 | O126: 0 | P126: 0 | Q126: 0.113
A127: Electric or Delivered Fuel | B127: Existing Building Retrofit | C127: Comprehensive Retrofit | D127: CR | E127: 1 | F127: 20 | G127: 0.9 | H127: 0.5 | I127: Dual Baseline with Default OYF | J127: Electric or Delivered FuelExisting Building RetrofitCR | K127: 1 | L127: CR | N127: 2 | O127: 0 | P127: 0 | Q127: 0.113
A128: Electric or Delivered Fuel | B128: Existing Building Retrofit | C128: Comprehensive Retrofit | D128: CR | E128: 1 | F128: 21 | G128: 0.9 | H128: 0.5 | I128: Dual Baseline with Default OYF | J128: Electric or Delivered FuelExisting Building RetrofitCR | K128: 1 | L128: CR | N128: 2 | O128: 0 | P128: 0 | Q128: 0.113
A129: Electric or Delivered Fuel | B129: Existing Building Retrofit | C129: Comprehensive Retrofit | D129: CR | E129: 1 | F129: 22 | G129: 0.9 | H129: 0.5 | I129: Dual Baseline with Default OYF | J129: Electric or Delivered FuelExisting Building RetrofitCR | K129: 1 | L129: CR | N129: 2 | O129: 0 | P129: 0 | Q129: 0.113
A130: Electric or Delivered Fuel | B130: Existing Building Retrofit | C130: Comprehensive Retrofit | D130: CR | E130: 1 | F130: 23 | G130: 0.9 | H130: 0.5 | I130: Dual Baseline with Default OYF | J130: Electric or Delivered FuelExisting Building RetrofitCR | K130: 1 | L130: CR | N130: 2 | O130: 0 | P130: 0 | Q130: 0.113
A131: Electric or Delivered Fuel | B131: Existing Building Retrofit | C131: Comprehensive Retrofit | D131: CR | E131: 1 | F131: 24 | G131: 0.9 | H131: 0.5 | I131: Dual Baseline with Default OYF | J131: Electric or Delivered FuelExisting Building RetrofitCR | K131: 1 | L131: CR | N131: 2 | O131: 0 | P131: 0 | Q131: 0.113
A132: Electric or Delivered Fuel | B132: Existing Building Retrofit | C132: Comprehensive Retrofit | D132: CR | E132: 1 | F132: 25 | G132: 0.9 | H132: 0.5 | I132: Dual Baseline with Default OYF | J132: Electric or Delivered FuelExisting Building RetrofitCR | K132: 1 | L132: CR | N132: 2 | O132: 0 | P132: 0 | Q132: 0.113
A133: Electric or Delivered Fuel | B133: Existing Building Retrofit | C133: Compressed Air Equipment (Compressors, Dryers, ZL drains) | D133: CAIR | E133: 1 | F133: 15 | G133: 0.9 | H133: 0.33 | I133: Dual Baseline with Default OYF | J133: Electric or Delivered FuelExisting Building RetrofitCAIR | K133: 1 | L133: CAIR | N133: 2 | O133: 0 | P133: 0 | Q133: 0.006
A134: Electric or Delivered Fuel | B134: Existing Building Retrofit | C134: HVAC Equipment and Systems | D134: HVAC_equip | E134: 1 | F134: 15 | G134: 0.9 | H134: 0.5 | I134: Dual Baseline with Default OYF | J134: Electric or Delivered FuelExisting Building RetrofitHVAC_equip | K134: 1 | L134: HVAC | N134: 2 | O134: 0 | P134: 0 | Q134: 0.149
A135: Electric or Delivered Fuel | B135: Existing Building Retrofit | C135: Cooling Equipment | D135: HVAC_cool | E135: 1 | F135: 15 | G135: 0.9 | H135: 0.67 | I135: Dual Baseline with Default OYF | J135: =CONCATENATE(A135,B135,D135) -> Electric or Delivered FuelExisting Building RetrofitHVAC_cool | K135: =E135 -> 1 | L135: HVAC | N135: 2 | O135: 0 | P135: 0 | Q135: 0.149
A136: Gas | B136: New Buildings & Major Renovation | C136: Electrification, HVAC | D136: Elec-HVAC | E136: 0 | F136: 25 | G136: 1 | H136: 0.57 | I136: Dual Baseline not applicable to New Buildings & Major Renovations | J136: GasNew Buildings & Major RenovationElec-HVAC | K136: 0 | M136: HVAC_Elec_G | N136: 1 | O136: 0 | P136: ='HVAC HP Tables'!$E$9 -> 183.56 | Q136: 0 | R136: 0 | S136: ='HVAC HP Tables'!$F$9 -> 0.0005175983437 | T136: 0.7 | U136: 1 | V136: 0.796 | W136: 1 | X136: 1 | Y136: 0.796 | Z136: 1 | AA136: 0.4 | AB136: 0.6
A137: Gas | B137: New Buildings & Major Renovation | C137: Electrification, HVAC | D137: Elec-HVAC | E137: 0 | F137: 17 | G137: 1 | H137: 0.57 | I137: Dual Baseline not applicable to New Buildings & Major Renovations | J137: GasNew Buildings & Major RenovationElec-HVAC | K137: 0 | M137: HVAC_Elec_G | N137: 1 | O137: 0 | P137: ='HVAC HP Tables'!$E$9 -> 183.56 | Q137: 0 | R137: 0 | S137: ='HVAC HP Tables'!$F$9 -> 0.0005175983437 | T137: 0.7 | U137: 1 | V137: 0.796 | W137: 1 | X137: 1 | Y137: 0.796 | Z137: 1 | AA137: 0.4 | AB137: 0.6
A138: Dual | B138: Small Business | C138: Electrification, HVAC | D138: Elec-HVAC | E138: 0 | F138: 25 | G138: 1 | H138: 0.57 | I138: Not applying Dual Baseline to electrification | J138: DualSmall BusinessElec-HVAC | K138: 0 | M138: HVAC_Elec_G | N138: 1 | O138: 0 | P138: ='HVAC HP Tables'!$E$9 -> 183.56 | Q138: 0 | R138: 0 | S138: ='HVAC HP Tables'!$F$9 -> 0.0005175983437 | T138: 0.7 | U138: 1 | V138: 0.796 | W138: 1 | X138: 1 | Y138: 0.796 | Z138: 1
A139: Dual | B139: Small Business | C139: Electrification, HVAC | D139: Elec-HVAC | E139: 0 | F139: 17 | G139: 1 | H139: 0.57 | I139: Not applying Dual Baseline to electrification | J139: DualSmall BusinessElec-HVAC | K139: 0 | M139: HVAC_Elec_G | N139: 1 | O139: 0 | P139: ='HVAC HP Tables'!$E$9 -> 183.56 | Q139: 0 | R139: 0 | S139: ='HVAC HP Tables'!$F$9 -> 0.0005175983437 | T139: 0.7 | U139: 1 | V139: 0.796 | W139: 1 | X139: 1 | Y139: 0.796 | Z139: 1
A140: Electric or Delivered Fuel | B140: Small Business | C140: Electrification, HVAC | D140: Elec-HVAC | E140: 0 | F140: 25 | G140: 1 | H140: 0.57 | I140: Not applying Dual Baseline to electrification | J140: Electric or Delivered FuelSmall BusinessElec-HVAC | K140: 0 | N140: 1 | O140: 0 | P140: ='HVAC HP Tables'!$E$9 -> 183.56 | Q140: 0 | R140: 0 | S140: ='HVAC HP Tables'!$F$9 -> 0.0005175983437 | T140: 0.7 | U140: 1 | V140: 0.796 | W140: 1 | X140: 1 | Y140: 0.796 | Z140: 1
A141: Electric or Delivered Fuel | B141: Small Business | C141: Electrification, HVAC | D141: Elec-HVAC | E141: 0 | F141: 17 | G141: 1 | H141: 0.57 | I141: Not applying Dual Baseline to electrification | J141: Electric or Delivered FuelSmall BusinessElec-HVAC | K141: 0 | N141: 1 | O141: 0 | P141: ='HVAC HP Tables'!$E$9 -> 183.56 | Q141: 0 | R141: 0 | S141: ='HVAC HP Tables'!$F$9 -> 0.0005175983437 | T141: 0.7 | U141: 1 | V141: 0.796 | W141: 1 | X141: 1 | Y141: 0.796 | Z141: 1
A142: Gas | B142: Small Business | C142: Electrification, HVAC | D142: Elec-HVAC | E142: 0 | F142: 25 | G142: 1 | H142: 0.57 | I142: Not applying Dual Baseline to electrification | J142: GasSmall BusinessElec-HVAC | K142: 0 | M142: HVAC_Elec_G | N142: 1 | O142: 0 | P142: ='HVAC HP Tables'!$E$9 -> 183.56 | Q142: 0 | R142: 0 | S142: ='HVAC HP Tables'!$F$9 -> 0.0005175983437 | T142: 0.7 | U142: 1 | V142: 0.796 | W142: 1 | X142: 1 | Y142: 0.796 | Z142: 1
A143: Electric or Delivered Fuel | B143: Existing Building Retrofit | C143: EMS / controls, HVAC | D143: HVAC_control | E143: 0 | F143: 10 | G143: 1 | H143: 0.67 | I143: Add on single baseline | J143: Electric or Delivered FuelExisting Building RetrofitHVAC_control | K143: 0 | L143: EMSB | N143: 2 | O143: 0 | P143: 0 | Q143: 0.239
A144: Electric or Delivered Fuel | B144: Existing Building Retrofit | C144: Food Service | D144: FOOD | E144: 0 | F144: 12 | G144: 1 | H144: 0.33 | I144: Add on single baseline | J144: Electric or Delivered FuelExisting Building RetrofitFOOD | K144: 0 | L144: FOOD | N144: 2 | O144: 0 | P144: 0
A145: Gas | B145: Small Business | C145: Electrification, HVAC | D145: Elec-HVAC | E145: 0 | F145: 17 | G145: 1 | H145: 0.57 | I145: Not applying Dual Baseline to electrification | J145: GasSmall BusinessElec-HVAC | K145: 0 | M145: HVAC_Elec_G | N145: 1 | O145: 0 | P145: ='HVAC HP Tables'!$E$9 -> 183.56 | Q145: 0 | R145: 0 | S145: ='HVAC HP Tables'!$F$9 -> 0.0005175983437 | T145: 0.7 | U145: 1 | V145: 0.796 | W145: 1 | X145: 1 | Y145: 0.796 | Z145: 1
A146: Dual | B146: Existing Building Retrofit | C146: Electrification, Non-HVAC | D146: Elec-NonHVAC | E146: 0 | F146: 25 | G146: 1 | H146: 0.57 | I146: Not applying Dual Baseline to electrification | J146: DualExisting Building RetrofitElec-NonHVAC | K146: 0 | M146: PROC_Elec_G | N146: 1 | O146: 0 | P146: 0 | Q146: 0.098 | T146: 1.1 | U146: 1 | V146: 0.8 | W146: 1 | X146: 1 | Y146: 0.8 | Z146: 1 | AA146: 0.4 | AB146: 0.6
A147: Dual | B147: Existing Building Retrofit | C147: Electrification, Non-HVAC | D147: Elec-NonHVAC | E147: 0 | F147: 17 | G147: 1 | H147: 0.57 | I147: Not applying Dual Baseline to electrification | J147: DualExisting Building RetrofitElec-NonHVAC | K147: 0 | M147: PROC_Elec_G | N147: 1 | O147: 0 | P147: 0 | Q147: 0.098 | T147: 1.1 | U147: 1 | V147: 0.8 | W147: 1 | X147: 1 | Y147: 0.8 | Z147: 1 | AA147: 0.4 | AB147: 0.6
A148: Electric or Delivered Fuel | B148: Existing Building Retrofit | C148: Electrification, Non-HVAC | D148: Elec-NonHVAC | E148: 0 | F148: 25 | G148: 1 | H148: 0.57 | I148: Not applying Dual Baseline to electrification | J148: Electric or Delivered FuelExisting Building RetrofitElec-NonHVAC | K148: 0 | N148: 1 | O148: 0 | P148: 0 | Q148: 0.098 | T148: 1.1 | U148: 1 | V148: 0.8 | W148: 1 | X148: 1 | Y148: 0.8 | Z148: 1 | AA148: 0.4 | AB148: 0.6
A149: Electric or Delivered Fuel | B149: Existing Building Retrofit | C149: High Efficiency Motor | D149: MOTR | E149: 1 | F149: 20 | G149: 0.9 | H149: 0.33 | I149: Dual Baseline with Default OYF | J149: Electric or Delivered FuelExisting Building RetrofitMOTR | K149: 1 | L149: MOTR | N149: 2 | O149: 0 | P149: 0 | Q149: 0.018
A150: Electric or Delivered Fuel | B150: Existing Building Retrofit | C150: Lighting - Exterior | D150: LGHT_ex_light | E150: 1 | F150: 15 | G150: 0.14 | H150: 0.33 | I150: Dual Baseline with Exterior Lighting specific OYF | J150: Electric or Delivered FuelExisting Building RetrofitLGHT_ex_light | K150: 1 | L150: LED_OUT | N150: 2 | O150: 0 | P150: 0 | Q150: 0.096
A151: Electric or Delivered Fuel | B151: Existing Building Retrofit | C151: Lighting - Exterior Controls | D151: LGHT_ex_control | E151: 1 | F151: 9 | G151: 0.85 | H151: 0.33 | I151: Dual Baseline with Lighting Controls specific OYF | J151: Electric or Delivered FuelExisting Building RetrofitLGHT_ex_control | K151: 1 | L151: LED_OUT | N151: 2 | O151: 0 | P151: 0 | Q151: 0.13
A152: Electric or Delivered Fuel | B152: Existing Building Retrofit | C152: Lighting - Exterior with Controls | D152: LGHT_ex_syst | E152: 1 | F152: 15 | G152: 0.14 | H152: 0.33 | I152: Dual Baseline with Exterior Lighting specific OYF | J152: Electric or Delivered FuelExisting Building RetrofitLGHT_ex_syst | K152: 1 | L152: LED_OUT | N152: 2 | O152: 0 | P152: 0 | Q152: 0.13
A153: Electric or Delivered Fuel | B153: Existing Building Retrofit | C153: Lighting - Interior | D153: LGHT_in_light | E153: 1 | F153: 15 | G153: 0.2657 | H153: 0.33 | I153: Dual Baseline with Interior Lighting specific OYF | J153: Electric or Delivered FuelExisting Building RetrofitLGHT_in_light | K153: 1 | L153: LED_IN | N153: 2 | O153: 0 | P153: 0 | Q153: 0.096
A154: Electric or Delivered Fuel | B154: Existing Building Retrofit | C154: Lighting - Interior Controls | D154: LGHT_in_control | E154: 1 | F154: 9 | G154: 0.85 | H154: 0.33 | I154: Dual Baseline with Lighting Controls specific OYF | J154: Electric or Delivered FuelExisting Building RetrofitLGHT_in_control | K154: 1 | L154: LED_IN | N154: 2 | O154: 0 | P154: 0 | Q154: 0.13
A155: Electric or Delivered Fuel | B155: Existing Building Retrofit | C155: Lighting - Interior with Controls | D155: LGHT_in_syst | E155: 1 | F155: 15 | G155: 0.2657 | H155: 0.33 | I155: Dual Baseline with Interior Lighting specific OYF | J155: Electric or Delivered FuelExisting Building RetrofitLGHT_in_syst | K155: 1 | L155: LED_IN | N155: 2 | O155: 0 | P155: 0 | Q155: 0.13
A156: Electric or Delivered Fuel | B156: Existing Building Retrofit | C156: Lighting - Indoor Agriculture | D156: LGHT_in_syst | E156: 1 | F156: 15 | G156: 0.2657 | H156: 0.33 | I156: Dual Baseline with Interior Lighting specific OYF | J156: Electric or Delivered FuelExisting Building RetrofitLGHT_in_syst | K156: 1 | L156: LED_IN | N156: 2 | O156: 0 | P156: 0 | Q156: 0.096
A157: Electric or Delivered Fuel | B157: Existing Building Retrofit | C157: O&M (leak repair, filter retrofit), CAIR | D157: CAIR_OM | E157: 0 | F157: 2 | G157: 1 | H157: 0.33 | I157: Add on single baseline | J157: Electric or Delivered FuelExisting Building RetrofitCAIR_OM | K157: 0 | L157: OM_CAIR | N157: 2 | O157: 0 | P157: 0 | Q157: 0.269
A158: Electric or Delivered Fuel | B158: Existing Building Retrofit | C158: O&M (leak repair, filter retrofit), CAIR | D158: CAIR_OM | E158: 0 | F158: 5 | G158: 1 | H158: 0.33 | I158: Add on single baseline | J158: Electric or Delivered FuelExisting Building RetrofitCAIR_OM | K158: 0 | L158: OM_CAIR | N158: 2 | O158: 0 | P158: 0 | Q158: 0.269
A159: Electric or Delivered Fuel | B159: Existing Building Retrofit | C159: O&M / Retrocommissioning, HVAC | D159: RCx_HVAC | E159: 0 | F159: 2 | G159: 1 | H159: 0.67 | I159: Add on single baseline | J159: Electric or Delivered FuelExisting Building RetrofitRCx_HVAC | K159: 0 | L159: OM_HVAC | N159: 2 | O159: 0 | P159: 0 | Q159: 0.269
A160: Electric or Delivered Fuel | B160: Existing Building Retrofit | C160: O&M / Retrocommissioning, HVAC | D160: RCx_HVAC | E160: 0 | F160: 5 | G160: 1 | H160: 0.67 | I160: Add on single baseline | J160: Electric or Delivered FuelExisting Building RetrofitRCx_HVAC | K160: 0 | L160: OM_HVAC | N160: 2 | O160: 0 | P160: 0 | Q160: 0.269
A161: Electric or Delivered Fuel | B161: Existing Building Retrofit | C161: Other | D161: OTHR | E161: 1 | F161: 5 | G161: 0.9 | H161: 0.5 | I161: Dual Baseline with Default OYF | J161: Electric or Delivered FuelExisting Building RetrofitOTHR | K161: 1 | L161: OTHR | N161: 2 | O161: 0 | P161: 0 | Q161: 0.065
A162: Electric or Delivered Fuel | B162: Existing Building Retrofit | C162: Other | D162: OTHR | E162: 1 | F162: 6 | G162: 0.9 | H162: 0.5 | I162: Dual Baseline with Default OYF | J162: Electric or Delivered FuelExisting Building RetrofitOTHR | K162: 1 | L162: OTHR | N162: 2 | O162: 0 | P162: 0 | Q162: 0.065
A163: Electric or Delivered Fuel | B163: Existing Building Retrofit | C163: Other | D163: OTHR | E163: 1 | F163: 7 | G163: 0.9 | H163: 0.5 | I163: Dual Baseline with Default OYF | J163: Electric or Delivered FuelExisting Building RetrofitOTHR | K163: 1 | L163: OTHR | N163: 2 | O163: 0 | P163: 0 | Q163: 0.065
A164: Electric or Delivered Fuel | B164: Existing Building Retrofit | C164: Other | D164: OTHR | E164: 1 | F164: 8 | G164: 0.9 | H164: 0.5 | I164: Dual Baseline with Default OYF | J164: Electric or Delivered FuelExisting Building RetrofitOTHR | K164: 1 | L164: OTHR | N164: 2 | O164: 0 | P164: 0 | Q164: 0.065
A165: Electric or Delivered Fuel | B165: Existing Building Retrofit | C165: Other | D165: OTHR | E165: 1 | F165: 9 | G165: 0.9 | H165: 0.5 | I165: Dual Baseline with Default OYF | J165: Electric or Delivered FuelExisting Building RetrofitOTHR | K165: 1 | L165: OTHR | N165: 2 | O165: 0 | P165: 0 | Q165: 0.065
A166: Electric or Delivered Fuel | B166: Existing Building Retrofit | C166: Other | D166: OTHR | E166: 1 | F166: 10 | G166: 0.9 | H166: 0.5 | I166: Dual Baseline with Default OYF | J166: Electric or Delivered FuelExisting Building RetrofitOTHR | K166: 1 | L166: OTHR | N166: 2 | O166: 0 | P166: 0 | Q166: 0.065
A167: Electric or Delivered Fuel | B167: Existing Building Retrofit | C167: Other | D167: OTHR | E167: 1 | F167: 11 | G167: 0.9 | H167: 0.5 | I167: Dual Baseline with Default OYF | J167: Electric or Delivered FuelExisting Building RetrofitOTHR | K167: 1 | L167: OTHR | N167: 2 | O167: 0 | P167: 0 | Q167: 0.065
A168: Electric or Delivered Fuel | B168: Existing Building Retrofit | C168: Other | D168: OTHR | E168: 1 | F168: 12 | G168: 0.9 | H168: 0.5 | I168: Dual Baseline with Default OYF | J168: Electric or Delivered FuelExisting Building RetrofitOTHR | K168: 1 | L168: OTHR | N168: 2 | O168: 0 | P168: 0 | Q168: 0.065
A169: Electric or Delivered Fuel | B169: Existing Building Retrofit | C169: Other | D169: OTHR | E169: 1 | F169: 15 | G169: 0.9 | H169: 0.5 | I169: Dual Baseline with Default OYF | J169: Electric or Delivered FuelExisting Building RetrofitOTHR | K169: 1 | L169: OTHR | N169: 2 | O169: 0 | P169: 0 | Q169: 0.065
A170: Electric or Delivered Fuel | B170: Existing Building Retrofit | C170: Other | D170: OTHR | E170: 1 | F170: 14 | G170: 0.9 | H170: 0.5 | I170: Dual Baseline with Default OYF | J170: Electric or Delivered FuelExisting Building RetrofitOTHR | K170: 1 | L170: OTHR | N170: 2 | O170: 0 | P170: 0 | Q170: 0.065
A171: Electric or Delivered Fuel | B171: Existing Building Retrofit | C171: Other | D171: OTHR | E171: 1 | F171: 15 | G171: 0.9 | H171: 0.5 | I171: Dual Baseline with Default OYF | J171: Electric or Delivered FuelExisting Building RetrofitOTHR | K171: 1 | L171: OTHR | N171: 2 | O171: 0 | P171: 0 | Q171: 0.065
A172: Electric or Delivered Fuel | B172: Existing Building Retrofit | C172: Other | D172: OTHR | E172: 1 | F172: 16 | G172: 0.9 | H172: 0.5 | I172: Dual Baseline with Default OYF | J172: Electric or Delivered FuelExisting Building RetrofitOTHR | K172: 1 | L172: OTHR | N172: 2 | O172: 0 | P172: 0 | Q172: 0.065
A173: Electric or Delivered Fuel | B173: Existing Building Retrofit | C173: Other | D173: OTHR | E173: 1 | F173: 17 | G173: 0.9 | H173: 0.5 | I173: Dual Baseline with Default OYF | J173: Electric or Delivered FuelExisting Building RetrofitOTHR | K173: 1 | L173: OTHR | N173: 2 | O173: 0 | P173: 0 | Q173: 0.065
A174: Electric or Delivered Fuel | B174: Existing Building Retrofit | C174: Other | D174: OTHR | E174: 1 | F174: 18 | G174: 0.9 | H174: 0.5 | I174: Dual Baseline with Default OYF | J174: Electric or Delivered FuelExisting Building RetrofitOTHR | K174: 1 | L174: OTHR | N174: 2 | O174: 0 | P174: 0 | Q174: 0.065
A175: Electric or Delivered Fuel | B175: Existing Building Retrofit | C175: Other | D175: OTHR | E175: 1 | F175: 19 | G175: 0.9 | H175: 0.5 | I175: Dual Baseline with Default OYF | J175: Electric or Delivered FuelExisting Building RetrofitOTHR | K175: 1 | L175: OTHR | N175: 2 | O175: 0 | P175: 0 | Q175: 0.065
A176: Electric or Delivered Fuel | B176: Existing Building Retrofit | C176: Other | D176: OTHR | E176: 1 | F176: 20 | G176: 0.9 | H176: 0.5 | I176: Dual Baseline with Default OYF | J176: Electric or Delivered FuelExisting Building RetrofitOTHR | K176: 1 | L176: OTHR | N176: 2 | O176: 0 | P176: 0 | Q176: 0.065
A177: Electric or Delivered Fuel | B177: Existing Building Retrofit | C177: Other | D177: OTHR | E177: 1 | F177: 21 | G177: 0.9 | H177: 0.5 | I177: Dual Baseline with Default OYF | J177: Electric or Delivered FuelExisting Building RetrofitOTHR | K177: 1 | L177: OTHR | N177: 2 | O177: 0 | P177: 0 | Q177: 0.065
A178: Electric or Delivered Fuel | B178: Existing Building Retrofit | C178: Other | D178: OTHR | E178: 1 | F178: 22 | G178: 0.9 | H178: 0.5 | I178: Dual Baseline with Default OYF | J178: Electric or Delivered FuelExisting Building RetrofitOTHR | K178: 1 | L178: OTHR | N178: 2 | O178: 0 | P178: 0 | Q178: 0.065
A179: Electric or Delivered Fuel | B179: Existing Building Retrofit | C179: Other | D179: OTHR | E179: 1 | F179: 23 | G179: 0.9 | H179: 0.5 | I179: Dual Baseline with Default OYF | J179: Electric or Delivered FuelExisting Building RetrofitOTHR | K179: 1 | L179: OTHR | N179: 2 | O179: 0 | P179: 0 | Q179: 0.065
A180: Electric or Delivered Fuel | B180: Existing Building Retrofit | C180: Other | D180: OTHR | E180: 1 | F180: 24 | G180: 0.9 | H180: 0.5 | I180: Dual Baseline with Default OYF | J180: Electric or Delivered FuelExisting Building RetrofitOTHR | K180: 1 | L180: OTHR | N180: 2 | O180: 0 | P180: 0 | Q180: 0.065
A181: Electric or Delivered Fuel | B181: Existing Building Retrofit | C181: Other | D181: OTHR | E181: 1 | F181: 25 | G181: 0.9 | H181: 0.5 | I181: Dual Baseline with Default OYF | J181: Electric or Delivered FuelExisting Building RetrofitOTHR | K181: 1 | L181: OTHR | N181: 2 | O181: 0 | P181: 0 | Q181: 0.065
A182: Electric or Delivered Fuel | B182: Existing Building Retrofit | C182: Pipe Insulation | D182: INSL_PIPE | E182: 1 | F182: 15 | G182: 0.9 | H182: 0.57 | I182: Add on dual baseline | J182: Electric or Delivered FuelExisting Building RetrofitINSL_PIPE | K182: 1 | L182: HVAC | N182: 2 | O182: 0 | P182: 0 | Q182: 0.149
A183: Electric or Delivered Fuel | B183: Existing Building Retrofit | C183: Process Equipment | D183: PROC_equip | E183: 1 | F183: 15 | G183: 0.9 | H183: 0.33 | I183: Dual Baseline with Default OYF | J183: Electric or Delivered FuelExisting Building RetrofitPROC_equip | K183: 1 | L183: PROC | N183: 2 | O183: 0 | P183: 0 | Q183: 0.098
A184: Electric or Delivered Fuel | B184: Existing Building Retrofit | C184: Process Equipment and Controls | D184: PROC_syst | E184: 1 | F184: 5 | G184: 0.9 | H184: 0.33 | I184: Dual Baseline with Default OYF | J184: Electric or Delivered FuelExisting Building RetrofitPROC_syst | K184: 1 | L184: PROC | N184: 2 | O184: 0 | P184: 0 | Q184: 0.098
A185: Electric or Delivered Fuel | B185: Existing Building Retrofit | C185: Process Equipment and Controls | D185: PROC_syst | E185: 1 | F185: 10 | G185: 0.9 | H185: 0.33 | I185: Dual Baseline with Default OYF | J185: Electric or Delivered FuelExisting Building RetrofitPROC_syst | K185: 1 | L185: PROC | N185: 2 | O185: 0 | P185: 0 | Q185: 0.098
A186: Electric or Delivered Fuel | B186: Existing Building Retrofit | C186: Refrigeration, Commercial | D186: REFG_C | E186: 1 | F186: 15 | G186: 0.9 | H186: 0.33 | I186: Dual Baseline with Default OYF | J186: Electric or Delivered FuelExisting Building RetrofitREFG_C | K186: 1 | L186: REFG | N186: 2 | O186: 0 | P186: 0 | Q186: 0.077
A187: Electric or Delivered Fuel | B187: Existing Building Retrofit | C187: Refrigeration, Industrial | D187: REFG_I | E187: 1 | F187: 20 | G187: 0.9 | H187: 0.33 | I187: Dual Baseline with Default OYF | J187: Electric or Delivered FuelExisting Building RetrofitREFG_I | K187: 1 | L187: REFG | N187: 2 | O187: 0 | P187: 0 | Q187: 0.077
A188: Electric or Delivered Fuel | B188: Existing Building Retrofit | C188: Transformer Replacement | D188: TRNS | E188: 1 | F188: 20 | G188: 0.9 | H188: 0.33 | I188: Dual Baseline with Default OYF | J188: Electric or Delivered FuelExisting Building RetrofitTRNS | K188: 1 | L188: TRNS | N188: 2 | O188: 0 | P188: 0 | Q188: 0.065
A189: Electric or Delivered Fuel | B189: Existing Building Retrofit | C189: Transformer Replacement | D189: TRNS | E189: 1 | F189: 25 | G189: 0.9 | H189: 0.33 | I189: Dual Baseline with Default OYF | J189: Electric or Delivered FuelExisting Building RetrofitTRNS | K189: 1 | L189: TRNS | N189: 2 | O189: 0 | P189: 0 | Q189: 0.065
A190: Electric or Delivered Fuel | B190: Existing Building Retrofit | C190: Transformer Replacement | D190: TRNS | E190: 1 | F190: 30 | G190: 0.9 | H190: 0.33 | I190: Dual Baseline with Default OYF | J190: Electric or Delivered FuelExisting Building RetrofitTRNS | K190: 1 | L190: TRNS | N190: 2 | O190: 0 | P190: 0 | Q190: 0.065
A191: Electric or Delivered Fuel | B191: Existing Building Retrofit | C191: Verified savings, HVAC | D191: VSV_HVAC | E191: 1 | F191: 10 | G191: 0.9 | H191: 0.67 | I191: Dual Baseline with Default OYF | J191: Electric or Delivered FuelExisting Building RetrofitVSV_HVAC | K191: 1 | L191: VSAV | N191: 2 | O191: 0 | P191: 0 | Q191: 0.149
A192: Electric or Delivered Fuel | B192: Existing Building Retrofit | C192: Verified savings, HVAC | D192: VSV_HVAC | E192: 1 | F192: 15 | G192: 0.9 | H192: 0.67 | I192: Dual Baseline with Default OYF | J192: Electric or Delivered FuelExisting Building RetrofitVSV_HVAC | K192: 1 | L192: VSAV | N192: 2 | O192: 0 | P192: 0 | Q192: 0.149
A193: Electric or Delivered Fuel | B193: Existing Building Retrofit | C193: Verified savings, non-HVAC | D193: VSV_NHVAC | E193: 1 | F193: 10 | G193: 0.9 | H193: 0.33 | I193: Dual Baseline with Default OYF | J193: Electric or Delivered FuelExisting Building RetrofitVSV_NHVAC | K193: 1 | L193: VSAV | N193: 2 | O193: 0 | P193: 0 | Q193: 0.065
A194: Electric or Delivered Fuel | B194: Existing Building Retrofit | C194: Verified savings, non-HVAC | D194: VSV_NHVAC | E194: 1 | F194: 15 | G194: 0.9 | H194: 0.33 | I194: Dual Baseline with Default OYF | J194: Electric or Delivered FuelExisting Building RetrofitVSV_NHVAC | K194: 1 | L194: VSAV | N194: 2 | O194: 0 | P194: 0 | Q194: 0.065
A195: Electric or Delivered Fuel | B195: Existing Building Retrofit | C195: VFD on HVAC Equipment | D195: HVAC_VFD | E195: 0 | F195: 15 | G195: 1 | H195: 0.67 | I195: Add on single baseline | J195: Electric or Delivered FuelExisting Building RetrofitHVAC_VFD | K195: 0 | L195: VSDH | N195: 2 | O195: 0 | P195: 0 | Q195: 0.018
A196: Electric or Delivered Fuel | B196: Existing Building Retrofit | C196: VFD on non-HVAC Equipment | D196: MOTR_VFD | E196: 0 | F196: 15 | G196: 1 | H196: 0.33 | I196: Add on single baseline | J196: Electric or Delivered FuelExisting Building RetrofitMOTR_VFD | K196: 0 | L196: VSDO | N196: 2 | O196: 0 | P196: 0 | Q196: 0.018
A197: Gas | B197: Existing Building Retrofit | C197: Boiler, HVAC - Approved Exception | D197: BLR_HVAC | E197: 1 | F197: 5 | G197: 0.9 | H197: 0 | I197: Dual Baseline with Default OYF | J197: GasExisting Building RetrofitBLR_HVAC | K197: 1 | M197: BOILC_S | N197: 2 | O197: 1 | P197: 0 | R197: -0.037
A198: Gas | B198: Existing Building Retrofit | C198: Boiler, HVAC - Approved Exception | D198: BLR_HVAC | E198: 1 | F198: 10 | G198: 0.9 | H198: 0 | I198: Dual Baseline with Default OYF | J198: GasExisting Building RetrofitBLR_HVAC | K198: 1 | M198: BOILC_S | N198: 2 | O198: 1 | P198: 0 | R198: -0.037
A199: Gas | B199: Existing Building Retrofit | C199: Boiler, HVAC - Approved Exception | D199: BLR_HVAC | E199: 1 | F199: 15 | G199: 0.9 | H199: 0 | I199: Dual Baseline with Default OYF | J199: =CONCATENATE(A199,B199,D199) -> GasExisting Building RetrofitBLR_HVAC | K199: =E199 -> 1 | M199: BOILC_S | N199: 2 | O199: 1 | P199: 0 | R199: -0.037
A200: Gas | B200: Existing Building Retrofit | C200: Boiler, HVAC - Approved Exception | D200: BLR_HVAC | E200: 1 | F200: 20 | G200: 0.9 | H200: 0 | I200: Dual Baseline with Default OYF | J200: GasExisting Building RetrofitBLR_HVAC | K200: 1 | M200: BOILC_S | N200: 2 | O200: 1 | P200: 0 | R200: -0.037
... 641 more rows

Sheet Full $ Benefit (Not in Use) (hidden)
B2: Information from Screening Tool Tab
B3: Measure Label | C3: ='Screening Tool'!D33 -> ECM 1 | D3: ='Screening Tool'!E33 -> ECM 2 | E3: ='Screening Tool'!F33 -> ECM 3 | F3: ='Screening Tool'!G33 -> ECM 4 | G3: ='Screening Tool'!H33 -> ECM 5 | H3: ='Screening Tool'!I33 -> ECM 6 | I3: ='Screening Tool'!J33 -> ECM 7 | J3: ='Screening Tool'!K33 -> ECM 8 | K3: ='Screening Tool'!L33 -> ECM 9 | L3: ='Screening Tool'!M33 -> ECM 10
B4: Measure | C4: ='Screening Tool'!D37 -> 0 | D4: ='Screening Tool'!E37 -> 0 | E4: ='Screening Tool'!F37 -> 0 | F4: ='Screening Tool'!G37 -> 0 | G4: ='Screening Tool'!H37 -> 0 | H4: ='Screening Tool'!I37 -> 0 | I4: ='Screening Tool'!J37 -> 0 | J4: ='Screening Tool'!K37 -> 0 | K4: ='Screening Tool'!L37 -> 0 | L4: ='Screening Tool'!M37 -> 0
B5: Unique Measure Name | C5: =Screening!E15 ->  | D5: =Screening!F15 ->  | E5: =Screening!G15 ->  | F5: =Screening!H15 ->  | G5: =Screening!I15 ->  | H5: =Screening!J15 ->  | I5: =Screening!K15 ->  | J5: =Screening!L15 ->  | K5: =Screening!M15 ->  | L5: =Screening!N15 -> 
B6: Project Cost (Incremental) | C6: ='Screening Tool'!D31 ->  | D6: ='Screening Tool'!E31 ->  | E6: ='Screening Tool'!F31 ->  | F6: ='Screening Tool'!G31 ->  | G6: ='Screening Tool'!H31 ->  | H6: ='Screening Tool'!I31 ->  | I6: ='Screening Tool'!J31 ->  | J6: ='Screening Tool'!K31 ->  | K6: ='Screening Tool'!L31 ->  | L6: ='Screening Tool'!M31 -> 
B7: Gross Annual Energy Savings (kWh) | C7: ='Screening Tool'!D43 -> 0 | D7: ='Screening Tool'!E43 -> 0 | E7: ='Screening Tool'!F43 -> 0 | F7: ='Screening Tool'!G43 -> 0 | G7: ='Screening Tool'!H43 -> 0 | H7: ='Screening Tool'!I43 -> 0 | I7: ='Screening Tool'!J43 -> 0 | J7: ='Screening Tool'!K43 -> 0 | K7: ='Screening Tool'!L43 -> 0 | L7: ='Screening Tool'!M43 -> 0
B8: BCR | C8: ='Screening Tool'!D21 -> 0 | D8: ='Screening Tool'!E21 -> 0 | E8: ='Screening Tool'!F21 -> 0 | F8: ='Screening Tool'!G21 -> 0 | G8: ='Screening Tool'!H21 -> 0 | H8: ='Screening Tool'!I21 -> 0 | I8: ='Screening Tool'!J21 -> 0 | J8: ='Screening Tool'!K21 -> 0 | K8: ='Screening Tool'!L21 -> 0 | L8: ='Screening Tool'!M21 -> 0
B9: Impact Factors
A10: 11 | B10: NTG Value | C10: =VLOOKUP('Full $ Benefit (Not in Use)'!C$5,Measures!$J$6:$AB$840,$A10,FALSE) ->  | D10: =VLOOKUP('Full $ Benefit (Not in Use)'!D$5,Measures!$J$6:$AB$840,$A10,FALSE) ->  | E10: =VLOOKUP('Full $ Benefit (Not in Use)'!E$5,Measures!$J$6:$AB$840,$A10,FALSE) ->  | F10: =VLOOKUP('Full $ Benefit (Not in Use)'!F$5,Measures!$J$6:$AB$840,$A10,FALSE) ->  | G10: =VLOOKUP('Full $ Benefit (Not in Use)'!G$5,Measures!$J$6:$AB$840,$A10,FALSE) ->  | H10: =VLOOKUP('Full $ Benefit (Not in Use)'!H$5,Measures!$J$6:$AB$840,$A10,FALSE) ->  | I10: =VLOOKUP('Full $ Benefit (Not in Use)'!I$5,Measures!$J$6:$AB$840,$A10,FALSE) ->  | J10: =VLOOKUP('Full $ Benefit (Not in Use)'!J$5,Measures!$J$6:$AB$840,$A10,FALSE) ->  | K10: =VLOOKUP('Full $ Benefit (Not in Use)'!K$5,Measures!$J$6:$AB$840,$A10,FALSE) ->  | L10: =VLOOKUP('Full $ Benefit (Not in Use)'!L$5,Measures!$J$6:$AB$840,$A10,FALSE) -> 
A11: 12 | B11: In-Service Rate | C11: =VLOOKUP('Full $ Benefit (Not in Use)'!C$5,Measures!$J$6:$AB$840,$A11,FALSE) ->  | D11: =VLOOKUP('Full $ Benefit (Not in Use)'!D$5,Measures!$J$6:$AB$840,$A11,FALSE) ->  | E11: =VLOOKUP('Full $ Benefit (Not in Use)'!E$5,Measures!$J$6:$AB$840,$A11,FALSE) ->  | F11: =VLOOKUP('Full $ Benefit (Not in Use)'!F$5,Measures!$J$6:$AB$840,$A11,FALSE) ->  | G11: =VLOOKUP('Full $ Benefit (Not in Use)'!G$5,Measures!$J$6:$AB$840,$A11,FALSE) ->  | H11: =VLOOKUP('Full $ Benefit (Not in Use)'!H$5,Measures!$J$6:$AB$840,$A11,FALSE) ->  | I11: =VLOOKUP('Full $ Benefit (Not in Use)'!I$5,Measures!$J$6:$AB$840,$A11,FALSE) ->  | J11: =VLOOKUP('Full $ Benefit (Not in Use)'!J$5,Measures!$J$6:$AB$840,$A11,FALSE) ->  | K11: =VLOOKUP('Full $ Benefit (Not in Use)'!K$5,Measures!$J$6:$AB$840,$A11,FALSE) ->  | L11: =VLOOKUP('Full $ Benefit (Not in Use)'!L$5,Measures!$J$6:$AB$840,$A11,FALSE) -> 
A12: 13 | B12: kWh Realization Rate | C12: =VLOOKUP('Full $ Benefit (Not in Use)'!C$5,Measures!$J$6:$AB$840,$A12,FALSE) ->  | D12: =VLOOKUP('Full $ Benefit (Not in Use)'!D$5,Measures!$J$6:$AB$840,$A12,FALSE) ->  | E12: =VLOOKUP('Full $ Benefit (Not in Use)'!E$5,Measures!$J$6:$AB$840,$A12,FALSE) ->  | F12: =VLOOKUP('Full $ Benefit (Not in Use)'!F$5,Measures!$J$6:$AB$840,$A12,FALSE) ->  | G12: =VLOOKUP('Full $ Benefit (Not in Use)'!G$5,Measures!$J$6:$AB$840,$A12,FALSE) ->  | H12: =VLOOKUP('Full $ Benefit (Not in Use)'!H$5,Measures!$J$6:$AB$840,$A12,FALSE) ->  | I12: =VLOOKUP('Full $ Benefit (Not in Use)'!I$5,Measures!$J$6:$AB$840,$A12,FALSE) ->  | J12: =VLOOKUP('Full $ Benefit (Not in Use)'!J$5,Measures!$J$6:$AB$840,$A12,FALSE) ->  | K12: =VLOOKUP('Full $ Benefit (Not in Use)'!K$5,Measures!$J$6:$AB$840,$A12,FALSE) ->  | L12: =VLOOKUP('Full $ Benefit (Not in Use)'!L$5,Measures!$J$6:$AB$840,$A12,FALSE) -> 
A13: 14 | B13: kW Summer Realization Rate | C13: =VLOOKUP('Full $ Benefit (Not in Use)'!C$5,Measures!$J$6:$AB$840,$A13,FALSE) ->  | D13: =VLOOKUP('Full $ Benefit (Not in Use)'!D$5,Measures!$J$6:$AB$840,$A13,FALSE) ->  | E13: =VLOOKUP('Full $ Benefit (Not in Use)'!E$5,Measures!$J$6:$AB$840,$A13,FALSE) ->  | F13: =VLOOKUP('Full $ Benefit (Not in Use)'!F$5,Measures!$J$6:$AB$840,$A13,FALSE) ->  | G13: =VLOOKUP('Full $ Benefit (Not in Use)'!G$5,Measures!$J$6:$AB$840,$A13,FALSE) ->  | H13: =VLOOKUP('Full $ Benefit (Not in Use)'!H$5,Measures!$J$6:$AB$840,$A13,FALSE) ->  | I13: =VLOOKUP('Full $ Benefit (Not in Use)'!I$5,Measures!$J$6:$AB$840,$A13,FALSE) ->  | J13: =VLOOKUP('Full $ Benefit (Not in Use)'!J$5,Measures!$J$6:$AB$840,$A13,FALSE) ->  | K13: =VLOOKUP('Full $ Benefit (Not in Use)'!K$5,Measures!$J$6:$AB$840,$A13,FALSE) ->  | L13: =VLOOKUP('Full $ Benefit (Not in Use)'!L$5,Measures!$J$6:$AB$840,$A13,FALSE) -> 
A14: 15 | B14: kW Winter Realization Rate | C14: =VLOOKUP('Full $ Benefit (Not in Use)'!C$5,Measures!$J$6:$AB$840,$A14,FALSE) ->  | D14: =VLOOKUP('Full $ Benefit (Not in Use)'!D$5,Measures!$J$6:$AB$840,$A14,FALSE) ->  | E14: =VLOOKUP('Full $ Benefit (Not in Use)'!E$5,Measures!$J$6:$AB$840,$A14,FALSE) ->  | F14: =VLOOKUP('Full $ Benefit (Not in Use)'!F$5,Measures!$J$6:$AB$840,$A14,FALSE) ->  | G14: =VLOOKUP('Full $ Benefit (Not in Use)'!G$5,Measures!$J$6:$AB$840,$A14,FALSE) ->  | H14: =VLOOKUP('Full $ Benefit (Not in Use)'!H$5,Measures!$J$6:$AB$840,$A14,FALSE) ->  | I14: =VLOOKUP('Full $ Benefit (Not in Use)'!I$5,Measures!$J$6:$AB$840,$A14,FALSE) ->  | J14: =VLOOKUP('Full $ Benefit (Not in Use)'!J$5,Measures!$J$6:$AB$840,$A14,FALSE) ->  | K14: =VLOOKUP('Full $ Benefit (Not in Use)'!K$5,Measures!$J$6:$AB$840,$A14,FALSE) ->  | L14: =VLOOKUP('Full $ Benefit (Not in Use)'!L$5,Measures!$J$6:$AB$840,$A14,FALSE) -> 
A15: 16 | B15: Non-Electric Realization Rate | C15: =VLOOKUP('Full $ Benefit (Not in Use)'!C$5,Measures!$J$6:$AB$840,$A15,FALSE) ->  | D15: =VLOOKUP('Full $ Benefit (Not in Use)'!D$5,Measures!$J$6:$AB$840,$A15,FALSE) ->  | E15: =VLOOKUP('Full $ Benefit (Not in Use)'!E$5,Measures!$J$6:$AB$840,$A15,FALSE) ->  | F15: =VLOOKUP('Full $ Benefit (Not in Use)'!F$5,Measures!$J$6:$AB$840,$A15,FALSE) ->  | G15: =VLOOKUP('Full $ Benefit (Not in Use)'!G$5,Measures!$J$6:$AB$840,$A15,FALSE) ->  | H15: =VLOOKUP('Full $ Benefit (Not in Use)'!H$5,Measures!$J$6:$AB$840,$A15,FALSE) ->  | I15: =VLOOKUP('Full $ Benefit (Not in Use)'!I$5,Measures!$J$6:$AB$840,$A15,FALSE) ->  | J15: =VLOOKUP('Full $ Benefit (Not in Use)'!J$5,Measures!$J$6:$AB$840,$A15,FALSE) ->  | K15: =VLOOKUP('Full $ Benefit (Not in Use)'!K$5,Measures!$J$6:$AB$840,$A15,FALSE) ->  | L15: =VLOOKUP('Full $ Benefit (Not in Use)'!L$5,Measures!$J$6:$AB$840,$A15,FALSE) -> 
A16: 17 | B16: Lifetime Adjustment Factor | C16: =VLOOKUP('Full $ Benefit (Not in Use)'!C$5,Measures!$J$6:$AB$840,$A16,FALSE) ->  | D16: =VLOOKUP('Full $ Benefit (Not in Use)'!D$5,Measures!$J$6:$AB$840,$A16,FALSE) ->  | E16: =VLOOKUP('Full $ Benefit (Not in Use)'!E$5,Measures!$J$6:$AB$840,$A16,FALSE) ->  | F16: =VLOOKUP('Full $ Benefit (Not in Use)'!F$5,Measures!$J$6:$AB$840,$A16,FALSE) ->  | G16: =VLOOKUP('Full $ Benefit (Not in Use)'!G$5,Measures!$J$6:$AB$840,$A16,FALSE) ->  | H16: =VLOOKUP('Full $ Benefit (Not in Use)'!H$5,Measures!$J$6:$AB$840,$A16,FALSE) ->  | I16: =VLOOKUP('Full $ Benefit (Not in Use)'!I$5,Measures!$J$6:$AB$840,$A16,FALSE) ->  | J16: =VLOOKUP('Full $ Benefit (Not in Use)'!J$5,Measures!$J$6:$AB$840,$A16,FALSE) ->  | K16: =VLOOKUP('Full $ Benefit (Not in Use)'!K$5,Measures!$J$6:$AB$840,$A16,FALSE) ->  | L16: =VLOOKUP('Full $ Benefit (Not in Use)'!L$5,Measures!$J$6:$AB$840,$A16,FALSE) -> 
A17: 18 | B17: Benefits Component | C17: =VLOOKUP('Full $ Benefit (Not in Use)'!C$5,Measures!$J$6:$AB$840,$A17,FALSE) ->  | D17: =VLOOKUP('Full $ Benefit (Not in Use)'!D$5,Measures!$J$6:$AB$840,$A17,FALSE) ->  | E17: =VLOOKUP('Full $ Benefit (Not in Use)'!E$5,Measures!$J$6:$AB$840,$A17,FALSE) ->  | F17: =VLOOKUP('Full $ Benefit (Not in Use)'!F$5,Measures!$J$6:$AB$840,$A17,FALSE) ->  | G17: =VLOOKUP('Full $ Benefit (Not in Use)'!G$5,Measures!$J$6:$AB$840,$A17,FALSE) ->  | H17: =VLOOKUP('Full $ Benefit (Not in Use)'!H$5,Measures!$J$6:$AB$840,$A17,FALSE) ->  | I17: =VLOOKUP('Full $ Benefit (Not in Use)'!I$5,Measures!$J$6:$AB$840,$A17,FALSE) ->  | J17: =VLOOKUP('Full $ Benefit (Not in Use)'!J$5,Measures!$J$6:$AB$840,$A17,FALSE) ->  | K17: =VLOOKUP('Full $ Benefit (Not in Use)'!K$5,Measures!$J$6:$AB$840,$A17,FALSE) ->  | L17: =VLOOKUP('Full $ Benefit (Not in Use)'!L$5,Measures!$J$6:$AB$840,$A17,FALSE) -> 
A18: 19 | B18: Value Component | C18: =VLOOKUP('Full $ Benefit (Not in Use)'!C$5,Measures!$J$6:$AB$840,$A18,FALSE) ->  | D18: =VLOOKUP('Full $ Benefit (Not in Use)'!D$5,Measures!$J$6:$AB$840,$A18,FALSE) ->  | E18: =VLOOKUP('Full $ Benefit (Not in Use)'!E$5,Measures!$J$6:$AB$840,$A18,FALSE) ->  | F18: =VLOOKUP('Full $ Benefit (Not in Use)'!F$5,Measures!$J$6:$AB$840,$A18,FALSE) ->  | G18: =VLOOKUP('Full $ Benefit (Not in Use)'!G$5,Measures!$J$6:$AB$840,$A18,FALSE) ->  | H18: =VLOOKUP('Full $ Benefit (Not in Use)'!H$5,Measures!$J$6:$AB$840,$A18,FALSE) ->  | I18: =VLOOKUP('Full $ Benefit (Not in Use)'!I$5,Measures!$J$6:$AB$840,$A18,FALSE) ->  | J18: =VLOOKUP('Full $ Benefit (Not in Use)'!J$5,Measures!$J$6:$AB$840,$A18,FALSE) ->  | K18: =VLOOKUP('Full $ Benefit (Not in Use)'!K$5,Measures!$J$6:$AB$840,$A18,FALSE) ->  | L18: =VLOOKUP('Full $ Benefit (Not in Use)'!L$5,Measures!$J$6:$AB$840,$A18,FALSE) -> 
B19: Results
B20: Dollar Benefit Estimate | C20: =C8*C10*C15*C6 ->  | D20: =D8*D10*D15*D6 -> 
B21: Incentive | C21: ='PA Results'!D19 -> 5000 | D21: ='PA Results'!E19 -> 5000 | E21: ='PA Results'!F19 -> 0 | F21: ='PA Results'!G19 -> 0 | G21: ='PA Results'!H19 -> 0 | H21: ='PA Results'!I19 -> 0 | I21: ='PA Results'!J19 -> 0 | J21: ='PA Results'!K19 -> 0 | K21: ='PA Results'!L19 -> 0 | L21: ='PA Results'!M19 -> 0
B22: OBR
B23: Total PI Contribution | C23: =(C20*C17)+((C20-C21-C22)*C18) ->  | D23: =(D20*D17)+((D20-D21-D22)*D18) -> 

Sheet AESC (hidden)
A1: Directions to update: 1) Copy/paste new cumulative avoided cost values into table. The updated table will be pulled into the simplified table (row 53) used directly in the BCR calculations. 2) Check and update "Other Assumptions" based on most recent BC models 3) Update "Tool Year" to line up with year the tool is released
A3: Other Assumptions:
B4: Real Discount Rate | C4: 0.00871 | D4: 2025-2027 Plan BC Model- SWref Tab
B5: Inflation | C5: 0.0237134558 | D5: 2025-2027 Plan BC Model- SWref Tab
B6: Reference year | C6: 2024 | D6: 2025-2027 Plan BC Model- SWref Tab
B7: Tool Year | C7: 2025
B8: Avoided Distribution Costs (retail value) - PAref Tab
C9: The avoided cost column matches calculations on the AESC tab
C10: PA | D10: Distribution Values | E10: Annual Avoided Cost
C11: National Grid Electric - MA | D11: 193.1 | E11: =D11*(1+$C$5)^($C$7-$C$6) -> 197.6790683 | F11: updated for 2025 per Steve Menges, National Grid
C12: Eversource | D12: 159.6 | E12: =D12*(1+$C$5)^($C$7-$C$6) -> 163.3846675 | F12: updated for 2025 per Steve Menges, National Grid
C13: Unitil Electric | D13: 153.59 | E13: 157.2321497 | F13: updated for 2025 per Steve Menges, National Grid
C14: Cape Light Compact | D14: 159.6 | E14: 163.3846675 | F14: updated for 2025 per Steve Menges, National Grid
C15: None/Default/Muni | D15: 166.74 | E15: 170.6939816 | F15: not updated
B17: Cumulative Avoided Costs (2025$)
B18: Years | E18: Energy ($/kWh) | I18: Energy DRIPE ($/kWh) | M18: Electric Cross DRIPE ($/kWh) | N18: Electric Environmental Compliance Cost ($/kWh) - SOCIAL COST OF CO2 | R18: Electric Environmental Compliance Cost ($/kWh) - NEW ENGLAND MAC | V18: Capacity ($/kW) | Z18: Capacity DRIPE ($/kW) | AD18: Reliability ($/kW) | AH18: T&D ($/kW) | AL18: Natural Gas ($/MMBtu) | AS18: Gas DRIPE ($/MMBtu) | AT18: Gas to Electric Cross DRIPE ($/MMBtu) | BA18: Natural Gas Environmental Compliance Cost ($/MMBtu) | BE18: Fuel Oil ($/MMBtu) | BH18: Oil DRIPE ($/MMBtu) | BI18: Oil Environmental Compliance Cost ($/MMBtu) | BO18: Propane ($/MMBtu) | BR18: Wood ($/MMBtu) | BX18: Motor Gasoline ($/MMBtu) | CB18: Motor Diesel ($/MMBtu) | CF18: Water ($/Gallon) | CG18: Non-Energy Avoided CO2e ($/Metric Ton) | CI18: NEBs ($/$) | CK18: Key
B19: Measure Life | C19: Program Year | D19: Benefit Year | E19: Winter Peak | F19: Winter Off-Peak | G19: Summer Peak | H19: Summer Off-Peak | I19: Winter Peak | J19: Winter Off-Peak | K19: Summer Peak | L19: Summer Off-Peak | N19: Winter Peak | O19: Winter Off-Peak | P19: Summer Peak | Q19: Summer Off-Peak | R19: Winter Peak | S19: Winter Off-Peak | T19: Summer Peak | U19: Summer Off-Peak | V19: Summer Cleared | W19: Summer Uncleared | X19: Winter Cleared | Y19: Winter Uncleared | Z19: Summer Cleared | AA19: Summer Uncleared | AB19: Winter Cleared | AC19: Winter Uncleared | AD19: Summer Cleared | AE19: Summer Uncleared | AF19: Winter Cleared | AG19: Winter Uncleared | AH19: Summer PTF | AI19: Winter PTF | AJ19: Local Transmission | AK19: Distribution | AL19: NG - Res Non-Heating | AM19: NG - Res Hot Water | AN19: NG - Res Heating | AO19: NG - Res All | AP19: NG - C&I Non-Heating | AQ19: NG - C&I Heating | AR19: NG - C&I All | AS19: Gas Supply | AT19: NG - Res Non-Heating | AU19: NG - Res Hot Water | AV19: NG - Res Heating | AW19: NG - Res All | AX19: NG - C&I Non-Heating | AY19: NG - C&I Heating | AZ19: NG - C&I All | BA19: Residential | BC19: Commercial | BE19: Fuel Oil - Res Distillate | BF19: Fuel Oil - Com Fuel Oil | BG19: Fuel Oil - Industrial Oil | BI19: Fuel Oil - Res Distillate | BK19: Fuel Oil - Com Fuel Oil | BM19: Fuel Oil - Industrial Oil | BO19: Propane | BP19: Environmental Compliance | BR19: Cord Wood | BS19: Environmental Compliance - SCC | BT19: Environmental Compliance - MAC | BU19: Wood Pellets | BV19: Environmental Compliance - SCC | BW19: Environmental Compliance - MAC | BX19: Motor Gasoline | BY19: Motor Gasoline DRIPE | BZ19: Environmental Compliance | CB19: Motor Diesel | CC19: Motor Diesel DRIPE | CD19: Environmental Compliance | CG19: Environmental Compliance | CI19: Non-Resource
W20: See Uncleared Tab | AA20: See Uncleared Tab | BA20: SCC | BB20: NE MAC | BC20: SCC | BD20: NE MAC | BI20: SCC | BJ20: NE MAC | BK20: SCC | BL20: NE MAC | BM20: SCC | BN20: NE MAC | BP20: SCC | BQ20: NE MAC | BS20: SCC | BT20: NE MAC | BV20: SCC | BW20: NE MAC | BZ20: SCC | CA20: NE MAC | CD20: SCC | CE20: NE MAC | CG20: SCC | CH20: NE MAC
B21: 1 | C21: 2025 | D21: 2025 | E21: 0.1175779605 | F21: 0.113451459 | G21: 0.07031278788 | H21: 0.06894387866 | I21: 0.02487689229 | J21: 0.02179282118 | K21: 0.01279779406 | L21: 0.007556189926 | M21: 0.009160468449 | N21: 0.2433235443 | O21: 0.2003759185 | P21: 0.1695787485 | Q21: 0.1138343045 | R21: 0.08973106694 | S21: 0.07351325159 | T21: 0.0618709083 | U21: 0.04080760598 | V21: 37.27170322 | W21: 35.91187517 | X21: 0 | Z21: 21.27617149 | AA21: 38.26688419 | AD21: 1.630554739 | AE21: 6.672589352 | AH21: 81.51225282 | AI21: 0 | AJ21: 0 | AL21: 7.101526077 | AM21: 7.148138461 | AN21: 10.15882572 | AO21: 9.230411513 | AP21: 7.653994993 | AQ21: 9.932653032 | AR21: 9.269246261 | AS21: 0.01647638334 | AT21: 1.831149554 | AU21: 1.831149554 | AV21: 4.021655522 | AW21: 3.347653686 | AX21: 1.831149554 | AY21: 4.021655522 | AZ21: 3.383913278 | BA21: 29.56012178 | BB21: 11.51508764 | BC21: 29.56012178 | BD21: 11.51508764 | BE21: 32.32604684 | BF21: 33.50615391 | BG21: 32.28534463 | BH21: 0.06197391194 | BI21: 39.05294279 | BJ21: 15.64650569 | BK21: 38.99408319 | BL21: 15.6232311 | BM21: 38.93558746 | BN21: 15.60010039 | BO21: 61.37934003 | BP21: 34.53720524 | BQ21: 13.81330619 | BR21: 31.02593636 | BS21: 42.57481543 | BT21: 16.98345749 | BU21: 32.46122315 | BV21: 42.57481543 | BW21: 16.98345749 | BX21: 27.85805373 | BY21: 0.05102414207 | BZ21: 39.27195323 | CA21: 15.72407748 | CB21: 31.59356581 | CC21: 0.07982415047 | CD21: 38.99932731 | CE21: 15.6247456 | CF21: 0.0223515145 | CG21: 357.768204 | CH21: 145.2018738 | CI21: 1 | CK21: 20251
B22: 2 | C22: 2025 | D22: 2026 | E22: 0.2173848498 | F22: 0.2104531254 | G22: 0.1335095384 | H22: 0.1306474553 | I22: 0.05681295092 | J22: 0.04988531313 | K22: 0.02951395672 | L22: 0.01722776607 | M22: 0.02383037474 | N22: 0.4880895959 | O22: 0.4017832751 | P22: 0.3398947862 | Q22: 0.2278729675 | R22: 0.2072409225 | S22: 0.1698156605 | T22: 0.1429490489 | U22: 0.09434203306 | V22: 72.41886284 | W22: 90.3585047 | X22: 0 | Z22: 21.27663427 | AA22: 104.0086562 | AD22: 1.630574217 | AE22: 29.7013936 | AH22: 162.671822 | AI22: 0 | AJ22: 0 | AL22: 12.96528146 | AM22: 13.05714485 | AN22: 19.00284383 | AO22: 17.16936004 | AP22: 14.04397265 | AQ22: 18.55068621 | AR22: 17.23860504 | AS22: 0.03702362405 | AT22: 4.115375896 | AU22: 4.115375896 | AV22: 9.054235898 | AW22: 7.534586667 | AX22: 4.115375896 | AY22: 9.054235898 | AZ22: 7.616339948 | BA22: 59.42145207 | BB22: 26.42245883 | BC22: 59.42145207 | BD22: 26.42245883 | BE22: 64.03102473 | BF22: 65.02445121 | BG22: 62.6705502 | BH22: 0.1222448963 | BI22: 78.48427643 | BJ22: 35.90238871 | BK22: 78.36597537 | BL22: 35.84898295 | BM22: 78.24840566 | BN22: 35.79590734 | BO22: 121.5794204 | BP22: 69.40989578 | BQ22: 31.69593888 | BR22: 61.45578232 | BS22: 85.55665667 | BT22: 38.97015118 | BU22: 64.29878025 | BV22: 85.55665667 | BW22: 38.97015118 | BX22: 55.22479593 | BY22: 0.1006462358 | BZ22: 78.92474671 | CA22: 36.08038452 | CB22: 61.98270052 | CC22: 0.1574548821 | CD22: 78.376536 | CE22: 35.85245812 | CF22: 0.04460631946 | CG22: 718.9359354 | CH22: 333.179447 | CI22: 1.995673244 | CK22: 20252
B23: 3 | C23: 2025 | D23: 2027 | E23: 0.3140702449 | F23: 0.3043818041 | G23: 0.1943865137 | H23: 0.1905001282 | I23: 0.08829212402 | J23: 0.0776632105 | K23: 0.04558278708 | L23: 0.02661301262 | M23: 0.03911304037 | N23: 0.7185643017 | O23: 0.6214311268 | P23: 0.5313652181 | Q23: 0.3956451166 | R23: 0.3196128903 | S23: 0.2768677161 | T23: 0.2361194512 | U23: 0.175842886 | V23: 107.2623679 | W23: 153.1709609 | X23: 0 | Z23: 21.27703415 | AA23: 168.8113043 | AD23: 1.63058715 | AE23: 49.16497747 | AH23: 243.1305953 | AI23: 0 | AJ23: 0 | AL23: 18.55332035 | AM23: 18.68942133 | AN23: 27.51114929 | AO23: 24.79078899 | AP23: 20.14394151 | AQ23: 26.83819587 | AR23: 24.88923574 | AS23: 0.05736888705 | AT23: 5.867054241 | AU23: 5.867054241 | AV23: 12.91448696 | AW23: 10.74604613 | AX23: 5.867054241 | AY23: 12.91448696 | AZ23: 10.86270275 | BA23: 89.45075682 | BB23: 41.51150421 | BC23: 89.45075682 | BD23: 41.51150421 | BE23: 95.00027584 | BF23: 94.46671677 | BG23: 91.06891565 | BH23: 0.1809667022 | BI23: 118.1179102 | BJ23: 56.40512754 | BK23: 117.9398512 | BL23: 56.32122341 | BM23: 117.7628929 | BN23: 56.23783797 | BO23: 180.3825337 | BP23: 104.4623445 | BQ23: 49.79650489 | BR23: 91.17949147 | BS23: 128.7534944 | BT23: 61.22479385 | BU23: 95.39753403 | BV23: 128.7534944 | BW23: 61.22479385 | BX23: 82.16928263 | BY23: 0.1489928654 | BZ23: 118.7813028 | CA23: 56.68477122 | CB23: 91.04485459 | CC23: 0.233090228 | CD23: 117.9557771 | CE23: 56.32668314 | CF23: 0.06666895882 | CG23: 1081.889842 | CH23: 523.4478785 | CI23: 2.982749058 | CK23: 20253
B24: 4 | C24: 2025 | D24: 2028 | E24: 0.4111943562 | F24: 0.3993035836 | G24: 0.2570916367 | H24: 0.2528532118 | I24: 0.1194456778 | J24: 0.1053767365 | K24: 0.06166749358 | L24: 0.03633914864 | M24: 0.05333237621 | N24: 0.9502915908 | O24: 0.8422799455 | P24: 0.7239034349 | Q24: 0.5643728672 | R24: 0.4169056026 | S24: 0.3695477508 | T24: 0.3167632741 | U24: 0.2463685214 | V24: 143.1099556 | W24: 227.3022982 | X24: 0 | Z24: 67.15426587 | AA24: 226.5277476 | AD24: 2.578675344 | AE24: 58.20465811 | AH24: 322.8946239 | AI24: 0 | AJ24: 0 | AL24: 24.02233475 | AM24: 24.20180074 | AN24: 35.84822131 | AO24: 32.25681867 | AP24: 26.11255678 | AQ24: 34.95851941 | AR24: 32.38311257 | AS24: 0.07757732142 | AT24: 7.474849584 | AU24: 7.474849584 | AV24: 16.45848732 | AW24: 13.69429109 | AX24: 7.474849584 | AY24: 16.45848732 | AZ24: 13.84299785 | BA24: 119.6424939 | BB24: 54.69887043 | BC24: 119.6424939 | BD24: 54.69887043 | BE24: 125.4346264 | BF24: 122.0207254 | BG24: 117.6778309 | BH24: 0.2383017476 | BI24: 157.9472662 | BJ24: 74.32389698 | BK24: 157.7091432 | BL24: 74.2133382 | BM24: 157.4724922 | BN24: 74.1034629 | BO24: 238.1700003 | BP24: 139.6887028 | BQ24: 65.61584843 | BR24: 120.3898131 | BS24: 172.1583997 | BT24: 80.67467391 | BU24: 125.9591505 | BV24: 172.1583997 | BW24: 80.67467391 | BX24: 108.9102323 | BY24: 0.1961977523 | BZ24: 158.8349948 | CA24: 74.69237781 | CB24: 118.9980078 | CC24: 0.3069393872 | CD24: 157.7304815 | CE24: 74.22053238 | CF24: 0.08854109191 | CG24: 1446.572147 | CH24: 689.736694 | CI24: 3.961301678 | CK24: 20254
B25: 5 | C25: 2025 | D25: 2029 | E25: 0.5043551302 | F25: 0.4899451343 | G25: 0.3171220812 | H25: 0.3122415191 | I25: 0.1494863678 | J25: 0.1318604031 | K25: 0.07736402499 | L25: 0.04572367264 | M25: 0.06613486438 | N25: 1.183140527 | O25: 1.064200718 | P25: 0.9173854327 | Q25: 0.7339364279 | R25: 0.5151625657 | S25: 0.4631501113 | T25: 0.3982200248 | U25: 0.3176151198 | V25: 182.2385495 | W25: 306.3942936 | X25: 0 | Z25: 97.40142123 | AA25: 275.6635849 | AD25: 3.27296091 | AE25: 63.49236831 | AH25: 401.9699068 | AI25: 0 | AJ25: 0 | AL25: 29.53568711 | AM25: 29.75752075 | AN25: 44.17059281 | AO25: 39.72605048 | AP25: 32.11112732 | AQ25: 43.06895248 | AR25: 39.87869959 | AS25: 0.09762596647 | AT25: 8.62409726 | AU25: 8.62409726 | AV25: 18.98653516 | AW25: 15.79809273 | AX25: 8.62409726 | AY25: 18.98653516 | AZ25: 15.96962286 | BA25: 149.8892234 | BB25: 67.97899368 | BC25: 149.8892234 | BD25: 67.97899368 | BE25: 155.7070411 | BF25: 149.4305933 | BG25: 144.1531849 | BH25: 0.294198078 | BI25: 197.9801838 | BJ25: 92.4356631 | BK25: 197.6819359 | BL25: 92.29827692 | BM25: 197.3855318 | BN25: 92.16174007 | BO25: 295.6499249 | BP25: 175.0834977 | BQ25: 81.60023454 | BR25: 149.443546 | BS25: 215.7645768 | BT25: 100.3274738 | BU25: 156.3569344 | BV25: 215.7645768 | BW25: 100.3274738 | BX25: 135.4756185 | BY25: 0.2422181214 | BZ25: 199.0795976 | CA25: 92.88785703 | CB25: 146.7980921 | CC25: 0.3789354409 | CD25: 197.6944666 | CE25: 92.30106742 | CF25: 0.1102243637 | CG25: 1812.925942 | CH25: 857.760394 | CI25: 4.931404701 | CK25: 20255
B26: 6 | C26: 2025 | D26: 2030 | E26: 0.5963160818 | F26: 0.5786417628 | G26: 0.3782937667 | H26: 0.3723451492 | I26: 0.1781128405 | J26: 0.156644477 | K26: 0.09291854021 | L26: 0.05485664084 | M26: 0.07530044611 | N26: 1.396053311 | O26: 1.260606742 | P26: 1.125186751 | Q26: 0.9510756662 | R26: 0.5988544833 | S26: 0.5402344271 | T26: 0.4798678433 | U26: 0.4030065933 | V26: 240.4246422 | W26: 388.5061818 | X26: 0 | Z26: 117.4424543 | AA26: 300.351921 | AD26: 3.940715482 | AE26: 65.69778206 | AH26: 480.3623911 | AI26: 0 | AJ26: 0 | AL26: 35.82312123 | AM26: 36.08514635 | AN26: 53.14318192 | AO26: 47.883038 | AP26: 38.85013191 | AQ26: 51.84083539 | AR26: 48.05873185 | AS26: 0.1175232564 | AT26: 9.329339541 | AU26: 9.329339541 | AV26: 20.52911855 | AW26: 17.0830327 | AX26: 9.329339541 | AY26: 20.52911855 | AZ26: 17.2684234 | BA26: 179.3168862 | BB26: 80.16838138 | BC26: 179.3168862 | BD26: 80.16838138 | BE26: 185.7446629 | BF26: 176.6280265 | BG26: 170.4248175 | BH26: 0.3485256568 | BI26: 238.2152339 | BJ26: 109.6117302 | BK26: 237.8587835 | BL26: 109.4498415 | BM26: 237.5045366 | BN26: 109.2889536 | BO26: 352.6834758 | BP26: 210.5501278 | BQ26: 96.71496275 | BR26: 178.2619016 | BS26: 259.4535051 | BT26: 118.9110294 | BU26: 186.5084521 | BV26: 259.4535051 | BW26: 118.9110294 | BX26: 161.9048257 | BY26: 0.2869469115 | BZ26: 239.4051774 | CA26: 110.09338 | CB26: 174.3842895 | CC26: 0.4489108981 | CD26: 237.7385082 | CE26: 109.3979 | CF26: 0.131720405 | CG26: 2179.939406 | CH26: 1016.642477 | CI26: 5.893131088 | CK26: 20256
B27: 7 | C27: 2025 | D27: 2031 | E27: 0.691824479 | F27: 0.671299034 | G27: 0.4436511736 | H27: 0.4364807206 | I27: 0.206101031 | J27: 0.1810214621 | K27: 0.1086502122 | L27: 0.06402794553 | M27: 0.08102212524 | N27: 1.609728772 | O27: 1.457703753 | P27: 1.333728457 | Q27: 1.168995586 | R27: 0.6924241661 | S27: 0.626428796 | T27: 0.5711559308 | U27: 0.4984732969 | V27: 298.1083119 | W27: 469.7355481 | X27: 0 | Z27: 117.4424543 | AA27: 327.6109322 | AD27: 3.940715482 | AE27: 65.69778206 | AH27: 558.0779727 | AI27: 0 | AJ27: 0 | AL27: 43.30865531 | AM27: 43.60821568 | AN27: 63.16362853 | AO27: 57.13341093 | AP27: 46.74577606 | AQ27: 61.67456227 | AR27: 57.32820679 | AS27: 0.1372807209 | AT27: 9.827423294 | AU27: 9.827423294 | AV27: 21.61508158 | AW27: 17.9881098 | AX27: 9.827423294 | AY27: 21.61508158 | AZ27: 18.1832317 | BA27: 207.6292575 | BB27: 93.14683386 | BC27: 207.6292575 | BD27: 93.14683386 | BE27: 215.7265818 | BF27: 203.7938579 | BG27: 196.6732648 | BH27: 0.4013539293 | BI27: 278.8023933 | BJ27: 128.7876997 | BK27: 278.3903665 | BL27: 128.5999177 | BM27: 277.980887 | BN27: 128.4132965 | BO27: 409.6104868 | BP27: 246.1769637 | BQ27: 113.5212648 | BR27: 207.0129128 | BS27: 303.3315309 | BT27: 139.5743747 | BU27: 216.5895101 | BV27: 303.3315309 | BW27: 139.5743747 | BX27: 188.0877241 | BY27: 0.3304412981 | BZ27: 279.9121581 | CA27: 129.2244694 | CB27: 201.9037403 | CC27: 0.5169552065 | CD27: 277.9623149 | CE27: 128.4081348 | CF27: 0.1530308324 | CG27: 2548.521341 | CH27: 1193.305943 | CI27: 6.846553168 | CK27: 20257
B28: 8 | C28: 2025 | D28: 2032 | E28: 0.7812705928 | F28: 0.7550022719 | G28: 0.5059594628 | H28: 0.4971712714 | I28: 0.2315290994 | J28: 0.2023166465 | K28: 0.1237346325 | L28: 0.07274988634 | M28: 0.08509581959 | N28: 1.82445595 | O28: 1.655784063 | P28: 1.543300603 | Q28: 1.387984394 | R28: 0.7755584116 | S28: 0.7029976847 | T28: 0.6522591458 | U28: 0.5832962323 | V28: 374.3557672 | W28: 555.6881702 | X28: 0 | Z28: 117.4424543 | AA28: 673.9069822 | AD28: 3.940715482 | AE28: 65.69778206 | AH28: 635.1224966 | AI28: 0 | AJ28: 0 | AL28: 51.87286016 | AM28: 52.20778381 | AN28: 74.13918484 | AO28: 67.37633953 | AP28: 55.68646144 | AQ28: 72.47475045 | AR28: 67.58702074 | AS28: 0.156899504 | AT28: 10.12880688 | AU28: 10.12880688 | AV28: 22.26422678 | AW28: 18.53025143 | AX28: 10.12880688 | AY28: 22.26422678 | AZ28: 18.73112985 | BA28: 235.064966 | BB28: 104.3844276 | BC28: 235.064966 | BD28: 104.3844276 | BE28: 245.557403 | BF28: 230.8257525 | BG28: 222.7980594 | BH28: 0.4528890858 | BI28: 319.7016788 | BJ28: 146.056212 | BK28: 319.2361505 | BL28: 145.8461561 | BM28: 318.7735 | BN28: 145.6373989 | BO28: 466.2499954 | BP28: 281.9585934 | BQ28: 128.6070563 | BR28: 235.6080545 | BS28: 347.3921245 | BT28: 158.1223527 | BU28: 246.507488 | BV28: 347.3921245 | BW28: 158.1223527 | BX28: 214.2101853 | BY28: 0.3728710409 | BZ28: 320.5943991 | CA28: 146.3970529 | CB28: 229.2920879 | CC28: 0.5833339448 | CD28: 318.3597956 | CE28: 145.4722359 | CF28: 0.1741572488 | CG28: 2918.617299 | CH28: 1351.88385 | CI28: 7.791742647 | CK28: 20258
B29: 9 | C29: 2025 | D29: 2033 | E29: 0.8702035088 | F29: 0.8391807262 | G29: 0.5701684966 | H29: 0.5605076868 | I29: 0.2545591971 | J29: 0.2216731838 | K29: 0.1379905169 | L29: 0.08121575064 | M29: 0.08763684403 | N29: 2.027077808 | O29: 1.834321577 | P29: 1.764739462 | Q29: 1.611664698 | R29: 0.8518155249 | S29: 0.7699928938 | T29: 0.7357539199 | U29: 0.6676529253 | V29: 449.9448449 | W29: 636.9016138 | X29: 0 | Z29: 117.4424543 | AA29: 679.4545338 | AD29: 3.940715482 | AE29: 65.69778206 | AH29: 711.501757 | AI29: 0 | AJ29: 0 | AL29: 61.96366471 | AM29: 62.33136477 | AN29: 86.49498602 | AO29: 79.04386299 | AP29: 66.11333952 | AQ29: 84.66888681 | AR29: 79.26663887 | AS29: 0.1764092186 | AT29: 10.26021501 | AU29: 10.26021501 | AV29: 22.53642244 | AW29: 18.75912785 | AX29: 10.26021501 | AY29: 22.53642244 | AZ29: 18.96233673 | BA29: 261.2062915 | BB29: 114.846266 | BC29: 261.2062915 | BD29: 114.846266 | BE29: 275.2782954 | BF29: 257.7532247 | BG29: 248.8326828 | BH29: 0.5031266261 | BI29: 360.851725 | BJ29: 163.0323479 | BK29: 360.3357021 | BL29: 162.8017538 | BM29: 359.8228693 | BN29: 162.5725853 | BO29: 522.6799775 | BP29: 317.8009618 | BQ29: 143.3739597 | BR29: 264.0833667 | BS29: 391.5199376 | BT29: 176.2782578 | BU29: 276.3000929 | BV29: 391.5199376 | BW29: 176.2782578 | BX29: 240.1781265 | BY29: 0.414232435 | BZ29: 361.344867 | CA29: 163.2066371 | CB29: 256.5646614 | CC29: 0.6480413169 | CD29: 358.824609 | CE29: 162.1756309 | CF29: 0.1951012429 | CG29: 3289.24243 | CH29: 1507.109689 | CI29: 8.728770613 | CK29: 20259
B30: 10 | C30: 2025 | D30: 2034 | E30: 0.9588728585 | F30: 0.9244365231 | G30: 0.6365794682 | H30: 0.6258486847 | I30: 0.2733104657 | J30: 0.2376728995 | K30: 0.1501210881 | L30: 0.0884209023 | M30: 0.0888249633 | N30: 2.230533784 | O30: 2.013603718 | P30: 1.9870823 | Q30: 1.836257312 | R30: 0.9268571855 | S30: 0.8359236028 | T30: 0.8179152803 | U30: 0.7506621568 | V30: 543.6153246 | W30: 721.5237792 | X30: 0 | Z30: 117.4424543 | AA30: 681.1795951 | AD30: 3.940715482 | AE30: 65.69778206 | AH30: 787.2214985 | AI30: 0 | AJ30: 0 | AL30: 73.56371415 | AM30: 73.96182836 | AN30: 100.2260692 | AO30: 92.1272648 | AP30: 78.01271121 | AQ30: 98.25081169 | AR30: 92.35870649 | AS30: 0.1958159673 | AT30: 10.26921472 | AU30: 10.26921472 | AV30: 22.54016508 | AW30: 18.76448804 | AX30: 10.26921472 | AY30: 22.54016508 | AZ30: 18.96760991 | BA30: 286.2102605 | BB30: 124.6829014 | BC30: 286.2102605 | BD30: 124.6829014 | BE30: 304.8003293 | BF30: 284.5235062 | BG30: 274.711756 | BH30: 0.5521874682 | BI30: 402.3353389 | BJ30: 179.8543706 | BK30: 401.7714853 | BL30: 179.6046549 | BM30: 401.2111176 | BN30: 179.356483 | BO30: 578.731655 | BP30: 353.7883115 | BQ30: 157.9493284 | BR30: 292.3548859 | BS30: 435.8185075 | BT30: 194.198671 | BU30: 305.8794771 | BV30: 435.8185075 | BW30: 194.198671 | BX30: 266.0515259 | BY30: 0.454625034 | BZ30: 402.259465 | CA30: 179.7981919 | CB30: 283.6444066 | CC30: 0.7112330683 | CD30: 399.4520568 | CE30: 178.6623738 | CF30: 0.2158643901 | CG30: 3661.283181 | CH30: 1660.322166 | CI30: 9.657707539 | CK30: 202510
B31: 11 | C31: 2025 | D31: 2035 | E31: 1.049084381 | F31: 1.0104276 | G31: 0.7054321291 | H31: 0.6929766363 | I31: 0.2862934899 | J31: 0.2485668741 | K31: 0.1587493755 | L31: 0.09342217547 | M31: 0.08904426194 | N31: 2.434762729 | O31: 2.193573978 | P31: 2.210264343 | Q31: 2.061697032 | R31: 1.00586992 | S31: 0.9053657651 | T31: 0.9044068818 | U31: 0.8380444019 | V31: 617.9046508 | W31: 820.7119697 | X31: 0 | Z31: 117.4424543 | AA31: 681.1795951 | AD31: 3.940715482 | AE31: 65.69778206 | AH31: 862.2874159 | AI31: 0 | AJ31: 0 | AL31: 86.77798256 | AM31: 87.20416624 | AN31: 115.4384112 | AO31: 106.7322179 | AP31: 91.48992893 | AQ31: 113.3266199 | AR31: 106.9691022 | AS31: 0.2151160305 | AT31: 10.26921472 | AU31: 10.26921472 | AV31: 22.54016508 | AW31: 18.76448804 | AX31: 10.26921472 | AY31: 22.54016508 | AZ31: 18.96760991 | BA31: 310.0438834 | BB31: 134.4864201 | BC31: 310.0438834 | BD31: 134.4864201 | BE31: 334.2759166 | BF31: 311.2342165 | BG31: 300.551519 | BH31: 0.6000307929 | BI31: 444.1497038 | BJ31: 197.5810661 | BK31: 443.5407549 | BL31: 197.3125048 | BM31: 442.9355706 | BN31: 197.0456038 | BO31: 634.6944231 | BP31: 389.9154674 | BQ31: 173.2476123 | BR31: 320.5689349 | BS31: 480.2816018 | BT31: 213.0079084 | BU31: 335.3987326 | BV31: 480.2816018 | BW31: 213.0079084 | BX31: 291.7576673 | BY31: 0.494015231 | BZ31: 443.3323213 | CA31: 197.2126616 | CB31: 310.6962971 | CC31: 0.772856623 | CD31: 440.2363143 | CE31: 195.9668331 | CF31: 0.2364482518 | CG31: 4034.687471 | CH31: 1821.133739 | CI31: 10.57862329 | CK31: 202511
B32: 12 | C32: 2025 | D32: 2036 | E32: 1.139508739 | F32: 1.095642165 | G32: 0.7775505497 | H32: 0.7622882448 | I32: 0.2862934899 | J32: 0.2485668741 | K32: 0.1587493755 | L32: 0.09342217547 | M32: 0.08919160492 | N32: 2.604883568 | O32: 2.341842821 | P32: 2.386651955 | Q32: 2.23808045 | R32: 1.074847968 | S32: 0.9652777192 | T32: 0.9759846221 | U32: 0.9096198978 | V32: 673.1405334 | W32: 917.2577968 | X32: 0 | Z32: 117.4424543 | AA32: 681.1795951 | AD32: 3.940715482 | AE32: 65.69778206 | AH32: 936.7051548 | AI32: 0 | AJ32: 0 | AL32: 101.1972626 | AM32: 101.6495981 | AN32: 131.7463398 | AO32: 122.465921 | AP32: 106.1427532 | AQ32: 129.5083246 | AR32: 122.7056899 | AS32: 0.2343154562 | AT32: 10.26921472 | AU32: 10.26921472 | AV32: 22.54016508 | AW32: 18.76448804 | AX32: 10.26921472 | AY32: 22.54016508 | AZ32: 18.96760991 | BA32: 332.9124585 | BB32: 144.3620749 | BC32: 332.9124585 | BD32: 144.3620749 | BE32: 363.5201842 | BF32: 337.7606658 | BG32: 326.2066989 | BH32: 0.6468834204 | BI32: 486.1526842 | BJ32: 216.2763374 | BK32: 485.5008808 | BL32: 215.9889762 | BM32: 484.8531068 | BN32: 215.7033915 | BO32: 690.2174231 | BP32: 426.0910174 | BQ32: 189.3315387 | BR32: 348.5511351 | BS32: 524.7969473 | BT32: 232.783093 | BU32: 364.6754137 | BV32: 524.7969473 | BW32: 232.783093 | BX32: 317.5731115 | BY32: 0.5325897706 | BZ32: 484.4593981 | CA32: 215.5214504 | CB32: 337.5207474 | CC32: 0.8332041317 | CD32: 481.0740108 | CE32: 214.1599619 | CF32: 0.2568543762 | CG32: 4408.496709 | CH32: 1990.20378 | CI32: 11.49158712 | CK32: 202512
B33: 13 | C33: 2025 | D33: 2037 | E33: 1.231873612 | F33: 1.180342121 | G33: 0.8507307355 | H33: 0.8316903052 | I33: 0.2862934899 | J33: 0.2485668741 | K33: 0.1587493755 | L33: 0.09342217547 | M33: 0.08933813852 | N33: 2.775445095 | O33: 2.490483911 | P33: 2.563499893 | Q33: 2.4149242 | R33: 1.148481814 | S33: 1.029244281 | T33: 1.052390551 | U33: 0.9860234337 | V33: 764.4054422 | W33: 1009.241192 | X33: 0 | Z33: 117.4424543 | AA33: 681.1795951 | AD33: 3.940715482 | AE33: 65.69778206 | AH33: 1010.480312 | AI33: 0 | AJ33: 0 | AL33: 117.4379645 | AM33: 117.914038 | AN33: 149.7389839 | AO33: 139.9257665 | AP33: 122.5795177 | AQ33: 147.3879113 | AR33: 140.1652144 | AS33: 0.253409415 | AT33: 10.26921472 | AU33: 10.26921472 | AV33: 22.54016508 | AW33: 18.76448804 | AX33: 10.26921472 | AY33: 22.54016508 | AZ33: 18.96760991 | BA33: 354.4427927 | BB33: 154.2264404 | BC33: 354.4427927 | BD33: 154.2264404 | BE33: 392.6575707 | BF33: 364.1932216 | BG33: 351.7790929 | BH33: 0.6927210474 | BI33: 528.4957408 | BJ33: 236.2644986 | BK33: 527.8041945 | BL33: 235.9586482 | BM33: 527.1169233 | BN33: 235.6546886 | BO33: 745.5367054 | BP33: 462.3970012 | BQ33: 206.4525074 | BR33: 376.4168172 | BS33: 569.4655392 | BT33: 253.833321 | BU33: 393.8301865 | BV33: 569.4655392 | BW33: 253.833321 | BX33: 343.2189993 | BY33: 0.5703286436 | BZ33: 525.7341025 | CA33: 235.0107338 | CB33: 364.2470504 | CC33: 0.892244291 | CD33: 522.057973 | CE33: 233.5261279 | CF33: 0.277084298 | CG33: 4783.575531 | CH33: 2170.17494 | CI33: 12.3966677 | CK33: 202513
B34: 14 | C34: 2025 | D34: 2038 | E34: 1.326056534 | F34: 1.261794596 | G34: 0.9273410872 | H34: 0.903144022 | I34: 0.2862934899 | J34: 0.2485668741 | K34: 0.1587493755 | L34: 0.09342217547 | M34: 0.08948383265 | N34: 2.946442757 | O34: 2.639497082 | P34: 2.740802347 | Q34: 2.592222471 | R34: 1.220004095 | S34: 1.091357276 | T34: 1.126610935 | U34: 1.060241488 | V34: 854.8823109 | W34: 1110.009019 | X34: 0 | Z34: 117.4424543 | AA34: 681.1795951 | AD34: 3.940715482 | AE34: 65.69778206 | AH34: 1083.618436 | AI34: 0 | AJ34: 0 | AL34: 134.9162621 | AM34: 135.4145908 | AN34: 168.8837942 | AO34: 158.5636732 | AP34: 140.2314066 | AQ34: 166.4275286 | AR34: 158.8008096 | AS34: 0.2723939874 | AT34: 10.26921472 | AU34: 10.26921472 | AV34: 22.54016508 | AW34: 18.76448804 | AX34: 10.26921472 | AY34: 22.54016508 | AZ34: 18.96760991 | BA34: 375.236408 | BB34: 163.505215 | BC34: 375.236408 | BD34: 163.505215 | BE34: 421.6451884 | BF34: 390.4962643 | BG34: 377.2303646 | BH34: 0.7375583265 | BI34: 571.091403 | BJ34: 255.8473223 | BK34: 570.3618451 | BL34: 255.5242522 | BM34: 569.6367974 | BN34: 255.2031793 | BO34: 800.571198 | BP34: 498.8283359 | BQ34: 223.1844877 | BR34: 404.131311 | BS34: 614.2813948 | BT34: 274.4052877 | BU34: 422.8267769 | BV34: 614.2813948 | BW34: 274.4052877 | BX34: 368.7309918 | BY34: 0.6072439137 | BZ34: 567.1506787 | CA34: 254.0572206 | CB34: 390.8431853 | CC34: 0.949995974 | CD34: 563.182497 | CE34: 252.4522946 | CF34: 0.2971395386 | CG34: 5159.874139 | CH34: 2346.057155 | CI34: 13.29393311 | CK34: 202514
B35: 15 | C35: 2025 | D35: 2039 | E35: 1.417121289 | F35: 1.338188292 | G35: 1.002955845 | H35: 0.9740189684 | I35: 0.2862934899 | J35: 0.2485668741 | K35: 0.1587493755 | L35: 0.09342217547 | M35: 0.08948383265 | N35: 3.087343071 | O35: 2.763722626 | P35: 2.892740209 | Q35: 2.736075692 | R35: 1.281982804 | S35: 1.145815178 | T35: 1.193573939 | U35: 1.123557293 | V35: 926.6388087 | W35: 1199.956023 | X35: 0 | Z35: 117.4424543 | AA35: 681.1795951 | AD35: 3.940715482 | AE35: 65.69778206 | AH35: 1156.125028 | AI35: 0 | AJ35: 0 | AL35: 153.7980538 | AM35: 154.3169262 | AN35: 189.3341046 | AO35: 178.5367806 | AP35: 159.2607603 | AQ35: 186.7820354 | AR35: 178.7695123 | AS35: 0.2912710405 | AT35: 10.26921472 | AU35: 10.26921472 | AV35: 22.54016508 | AW35: 18.76448804 | AX35: 10.26921472 | AY35: 22.54016508 | AZ35: 18.96760991 | BA35: 395.080546 | BB35: 172.8272168 | BC35: 395.080546 | BD35: 172.8272168 | BE35: 450.4379023 | BF35: 416.6297385 | BG35: 402.5186914 | BH35: 0.7814465959 | BI35: 613.8569938 | BJ35: 276.5419946 | BK35: 613.0916194 | BL35: 276.2018492 | BM35: 612.3309765 | BN35: 275.8638066 | BO35: 855.2351196 | BP35: 535.2961852 | BQ35: 240.8140332 | BR35: 431.6498408 | BS35: 659.1352605 | BT35: 296.0808108 | BU35: 451.6183377 | BV35: 659.1352605 | BW35: 296.0808108 | BX35: 394.1452909 | BY35: 0.6433778485 | BZ35: 608.6080081 | CA35: 274.1254313 | CB35: 417.2491059 | CC35: 1.006525306 | CD35: 604.3471065 | CE35: 272.3937308 | CF35: 0.3170216064 | CG35: 5536.459501 | CH35: 2531.374342 | CI35: 14.18345081 | CK35: 202515
B36: 16 | C36: 2025 | D36: 2040 | E36: 1.505914248 | F36: 1.419686815 | G36: 1.080768707 | H36: 1.046181983 | I36: 0.2862934899 | J36: 0.2485668741 | K36: 0.1587493755 | L36: 0.09342217547 | M36: 0.08948383265 | N36: 3.228676121 | O36: 2.888337903 | P36: 3.045139098 | Q36: 2.880369112 | R36: 1.341296549 | S36: 1.197924218 | T36: 1.257662487 | U36: 1.184151934 | V36: 1058.953434 | W36: 1292.906001 | X36: 0 | Z36: 117.4424543 | AA36: 681.1795951 | AD36: 3.940715482 | AE36: 65.69778206 | AH36: 1228.005541 | AI36: 0 | AJ36: 0 | AL36: 174.7595673 | AM36: 175.2969397 | AN36: 211.7479148 | AO36: 200.5086094 | AP36: 180.3382508 | AQ36: 209.1112 | AR36: 200.7342654 | AS36: 0.3100410158 | AT36: 10.26921472 | AU36: 10.26921472 | AV36: 22.54016508 | AW36: 18.76448804 | AX36: 10.26921472 | AY36: 22.54016508 | AZ36: 18.96760991 | BA36: 413.6556255 | BB36: 181.2089499 | BC36: 413.6556255 | BD36: 181.2089499 | BE36: 479.0440602 | BF36: 442.6045607 | BG36: 427.6539758 | BH36: 0.8244945308 | BI36: 656.9340482 | BJ36: 296.5537276 | BK36: 656.1357995 | BL36: 296.1985381 | BM36: 655.3424856 | BN36: 295.8455445 | BO36: 909.5441328 | BP36: 571.8805716 | BQ36: 257.7932123 | BR36: 458.9770505 | BS36: 704.125636 | BT36: 316.9567084 | BU36: 480.2097279 | BV36: 704.125636 | BW36: 316.9567084 | BX36: 419.391144 | BY36: 0.678819922 | BZ36: 650.1972011 | CA36: 293.4533115 | CB36: 443.4697723 | CC36: 1.061972263 | CD36: 645.6423457 | CE36: 291.5995132 | CF36: 0.3367319967 | CG36: 5914.174976 | CH36: 2709.855047 | CI36: 15.06528771 | CK36: 202516
B37: 17 | C37: 2025 | D37: 2041 | E37: 1.593524071 | F37: 1.497765877 | G37: 1.15759825 | H37: 1.116132486 | I37: 0.2862934899 | J37: 0.2485668741 | K37: 0.1587493755 | L37: 0.09342217547 | M37: 0.08948383265 | N37: 3.370373422 | O37: 3.013276075 | P37: 3.197929415 | Q37: 3.025033936 | R37: 1.402709063 | S37: 1.251889806 | T37: 1.324010333 | U37: 1.246888409 | V37: 1147.106745 | W37: 1397.160979 | X37: 0 | Z37: 117.4424543 | AA37: 681.1795951 | AD37: 3.940715482 | AE37: 65.69778206 | AH37: 1299.26538 | AI37: 0 | AJ37: 0 | AL37: 198.0228486 | AM37: 198.577284 | AN37: 236.3806702 | AO37: 224.7244883 | AP37: 203.6958019 | AQ37: 233.6671278 | AR37: 224.9412988 | AS37: 0.3287043221 | AT37: 10.26921472 | AU37: 10.26921472 | AV37: 22.54016508 | AW37: 18.76448804 | AX37: 10.26921472 | AY37: 22.54016508 | AZ37: 18.96760991 | BA37: 431.4003748 | BB37: 189.4643031 | BC37: 431.4003748 | BD37: 189.4643031 | BE37: 507.5651375 | BF37: 468.519715 | BG37: 452.7359737 | BH37: 0.8667619938 | BI37: 700.2590833 | BJ37: 317.2989548 | BK37: 699.4298981 | BL37: 316.9291761 | BM37: 698.6058389 | BN37: 316.5616833 | BO37: 963.6911727 | BP37: 608.5778359 | BQ37: 275.3477304 | BR37: 486.2149543 | BS37: 749.2480937 | BT37: 338.5399853 | BU37: 508.7076808 | BV37: 749.2480937 | BW37: 338.5399853 | BX37: 444.4354209 | BY37: 0.7136194202 | BZ37: 691.9140177 | CA37: 313.4361165 | CB37: 469.6255121 | CC37: 1.11641395 | CD37: 687.0639598 | CE37: 311.4560831 | CF37: 0.3562721919 | CG37: 6292.972971 | CH37: 2894.383565 | CI37: 15.93951013 | CK37: 202517
B38: 18 | C38: 2025 | D38: 2042 | E38: 1.682093157 | F38: 1.575508006 | G38: 1.234804812 | H38: 1.187386925 | I38: 0.2862934899 | J38: 0.2485668741 | K38: 0.1587493755 | L38: 0.09342217547 | M38: 0.08948383265 | N38: 3.499702755 | O38: 3.12434363 | P38: 3.334290371 | Q38: 3.148899715 | R38: 1.45918563 | S38: 1.300181025 | T38: 1.383642047 | U38: 1.300919073 | V38: 1217.02045 | W38: 1504.544565 | X38: 0 | Z38: 117.4424543 | AA38: 681.1795951 | AD38: 3.940715482 | AE38: 65.69778206 | AH38: 1369.909905 | AI38: 0 | AJ38: 0 | AL38: 224.5158968 | AM38: 225.0854191 | AN38: 264.130747 | AO38: 252.091766 | AP38: 230.2527154 | AQ38: 261.3513721 | AR38: 252.2973328 | AS38: 0.3472625728 | AT38: 10.26921472 | AU38: 10.26921472 | AV38: 22.54016508 | AW38: 18.76448804 | AX38: 10.26921472 | AY38: 22.54016508 | AZ38: 18.96760991 | BA38: 447.8475084 | BB38: 197.1998129 | BC38: 447.8475084 | BD38: 197.1998129 | BE38: 535.8504929 | BF38: 494.2285575 | BG38: 477.6165694 | BH38: 0.9082526837 | BI38: 743.8877989 | BJ38: 338.4008234 | BK38: 743.0306791 | BL38: 338.0177399 | BM38: 742.178858 | BN38: 337.6370246 | BO38: 1017.389968 | BP38: 645.3834287 | BQ38: 293.1323007 | BR38: 513.2146794 | BS38: 794.4970082 | BT38: 360.4061113 | BU38: 536.9564367 | BV38: 794.4970082 | BW38: 360.4061113 | BX38: 469.3416897 | BY38: 0.7477793884 | BZ38: 733.7532871 | CA38: 333.6807963 | CB38: 495.5639851 | CC38: 1.169855131 | CD38: 728.6068149 | CE38: 331.5728736 | CF38: 0.3756436616 | CG38: 6672.806629 | CH38: 3081.330331 | CI38: 16.80618383 | CK38: 202518
B39: 19 | C39: 2025 | D39: 2043 | E39: 1.769721816 | F39: 1.650812569 | G39: 1.311734913 | H39: 1.257808038 | I39: 0.2862934899 | J39: 0.2485668741 | K39: 0.1587493755 | L39: 0.09342217547 | M39: 0.08948383265 | N39: 3.629344938 | O39: 3.235685762 | P39: 3.470978811 | Q39: 3.273066803 | R39: 1.517249111 | S39: 1.349845087 | T39: 1.44494319 | U39: 1.356472683 | V39: 1303.657977 | W39: 1613.849828 | X39: 0 | Z39: 117.4424543 | AA39: 681.1795951 | AD39: 3.940715482 | AE39: 65.69778206 | AH39: 1439.94443 | AI39: 0 | AJ39: 0 | AL39: 252.7877325 | AM39: 253.371008 | AN39: 293.5825363 | AO39: 281.1841199 | AP39: 258.5684023 | AQ39: 290.7446632 | AR39: 281.376891 | AS39: 0.3657176415 | AT39: 10.26921472 | AU39: 10.26921472 | AV39: 22.54016508 | AW39: 18.76448804 | AX39: 10.26921472 | AY39: 22.54016508 | AZ39: 18.96760991 | BA39: 463.4680342 | BB39: 204.7275535 | BC39: 463.4680342 | BD39: 204.7275535 | BE39: 564.0113541 | BF39: 519.8365688 | BG39: 502.4030671 | BH39: 0.9489332489 | BI39: 787.7514304 | BJ39: 360.1277885 | BK39: 786.8682988 | BL39: 359.7320199 | BM39: 785.9906267 | BN39: 359.3386979 | BO39: 1070.851983 | BP39: 682.2926155 | BQ39: 311.3963375 | BR39: 540.0878046 | BS39: 839.8668151 | BT39: 382.8617413 | BU39: 565.0727361 | BV39: 839.8668151 | BW39: 382.8617413 | BX39: 493.9438605 | BY39: 0.7812723674 | BZ39: 775.7096505 | CA39: 354.4712664 | CB39: 521.3871102 | CC39: 1.222252849 | CD39: 770.2656016 | CE39: 352.2320065 | CF39: 0.3948478627 | CG39: 7053.629821 | CH39: 3273.317125 | CI39: 17.66537398 | CK39: 202519
B40: 20 | C40: 2025 | D40: 2044 | E40: 1.860731521 | F40: 1.723819658 | G40: 1.389107613 | H40: 1.329199022 | I40: 0.2862934899 | J40: 0.2485668741 | K40: 0.1587493755 | L40: 0.09342217547 | M40: 0.08948383265 | N40: 3.759342963 | O40: 3.347348826 | P40: 3.608036433 | Q40: 3.3975792 | R40: 1.575088531 | S40: 1.399330481 | T40: 1.506002777 | U40: 1.411815797 | V40: 1389.54741 | W40: 1714.820885 | X40: 0 | Z40: 117.4424543 | AA40: 681.1795951 | AD40: 3.940715482 | AE40: 65.69778206 | AH40: 1509.374221 | AI40: 0 | AJ40: 0 | AL40: 283.6424624 | AM40: 284.2377006 | AN40: 325.5150519 | AO40: 312.7881641 | AP40: 289.4395563 | AQ40: 322.6286944 | AR40: 312.9660339 | AS40: 0.384066826 | AT40: 10.26921472 | AU40: 10.26921472 | AV40: 22.54016508 | AW40: 18.76448804 | AX40: 10.26921472 | AY40: 22.54016508 | AZ40: 18.96760991 | BA40: 477.8277905 | BB40: 211.6217419 | BC40: 477.8277905 | BD40: 211.6217419 | BE40: 591.8597681 | BF40: 545.1567959 | BG40: 526.9078915 | BH40: 0.9889206637 | BI40: 831.9011969 | BJ40: 381.8878239 | BK40: 830.9949639 | BL40: 381.4808475 | BM40: 830.0943333 | BN40: 381.076387 | BO40: 1123.720124 | BP40: 719.3008642 | BQ40: 329.6182539 | BR40: 566.6500481 | BS40: 885.3520591 | BT40: 405.2655843 | BU40: 592.863772 | BV40: 885.3520591 | BW40: 405.2655843 | BX40: 518.4993918 | BY40: 0.8141946644 | BZ40: 817.777967 | CA40: 375.2137898 | CB40: 546.8954356 | CC40: 1.27375777 | CD40: 812.0352211 | CE40: 372.8434955 | CF40: 0.4138862396 | CG40: 7435.397137 | CH40: 3464.861161 | CI40: 18.5171452 | CK40: 202520
B41: 21 | C41: 2025 | D41: 2045 | E41: 1.949482713 | F41: 1.801047585 | G41: 1.467690909 | H41: 1.402332065 | I41: 0.2862934899 | J41: 0.2485668741 | K41: 0.1587493755 | L41: 0.09342217547 | M41: 0.08948383265 | N41: 3.868888033 | O41: 3.452374819 | P41: 3.722757524 | Q41: 3.506782376 | R41: 1.623418118 | S41: 1.445593834 | T41: 1.556694616 | U41: 1.460006674 | V41: 1503.986053 | W41: 1806.499358 | X41: 0 | Z41: 117.4424543 | AA41: 681.1795951 | AD41: 3.940715482 | AE41: 65.69778206 | AH41: 1578.204501 | AI41: 0 | AJ41: 0 | AL41: 316.4920669 | AM41: 317.0980128 | AN41: 359.3697654 | AO41: 346.3364373 | AP41: 322.2868073 | AQ41: 356.4418838 | AR41: 346.4980008 | AS41: 0.4022970494 | AT41: 10.26921472 | AU41: 10.26921472 | AV41: 22.54016508 | AW41: 18.76448804 | AX41: 10.26921472 | AY41: 22.54016508 | AZ41: 18.96760991 | BA41: 491.3248669 | BB41: 218.0968192 | BC41: 491.3248669 | BD41: 218.0968192 | BE41: 619.5132251 | BF41: 570.3271828 | BG41: 551.2622021 | BH41: 1.028213903 | BI41: 876.2785229 | BJ41: 403.7233842 | BK41: 875.3511876 | BL41: 403.306189 | BM41: 874.4295851 | BN41: 402.8915728 | BO41: 1176.217698 | BP41: 756.4037118 | BQ41: 347.8553891 | BR41: 593.0181817 | BS41: 930.9473638 | BT41: 427.6881387 | BU41: 620.4517185 | BV41: 930.9473638 | BW41: 427.6881387 | BX41: 542.8433281 | BY41: 0.8465454349 | BZ41: 859.9531752 | CA41: 395.973637 | CB41: 572.2140832 | CC41: 1.324368572 | CD41: 853.9106534 | CE41: 393.472199 | CF41: 0.432760224 | CG41: 7818.06388 | CH41: 3656.565171 | CI41: 19.36156156 | CK41: 202521
B42: 22 | C42: 2025 | D42: 2046 | E42: 2.032521588 | F42: 1.87592538 | G42: 1.543651595 | H42: 1.472912719 | I42: 0.2862934899 | J42: 0.2485668741 | K42: 0.1587493755 | L42: 0.09342217547 | M42: 0.08948383265 | N42: 3.979045173 | O42: 3.557996585 | P42: 3.838109452 | Q42: 3.616595987 | R42: 1.671889599 | S42: 1.492001423 | T42: 1.607525673 | U42: 1.508339603 | V42: 1617.436546 | W42: 1880.260826 | X42: 0 | Z42: 117.4424543 | AA42: 681.1795951 | AD42: 3.940715482 | AE42: 65.69778206 | AH42: 1646.440445 | AI42: 0 | AJ42: 0 | AL42: 350.5512317 | AM42: 351.1666135 | AN42: 394.3604733 | AO42: 381.0430052 | AP42: 356.3245483 | AQ42: 391.3981455 | AR42: 381.186845 | AS42: 0.4204208715 | AT42: 10.26921472 | AU42: 10.26921472 | AV42: 22.54016508 | AW42: 18.76448804 | AX42: 10.26921472 | AY42: 22.54016508 | AZ42: 18.96760991 | BA42: 503.9258382 | BB42: 224.1336864 | BC42: 503.9258382 | BD42: 224.1336864 | BE42: 647.1270623 | BF42: 595.484935 | BG42: 575.6089551 | BH42: 1.067096223 | BI42: 920.980458 | BJ42: 425.6606299 | BK42: 920.0341127 | BL42: 425.2342549 | BM42: 919.0936178 | BN42: 424.8105158 | BO42: 1228.639635 | BP42: 793.6760323 | BQ42: 366.126681 | BR42: 619.3409441 | BS42: 976.7447539 | BT42: 450.1526889 | BU42: 647.9921947 | BV42: 976.7447539 | BW42: 450.1526889 | BX42: 567.3298888 | BY42: 0.8785578897 | BZ42: 902.3205129 | CA42: 416.7723658 | CB42: 597.5063854 | CC42: 1.3744501 | CD42: 895.9766021 | CE42: 414.1395385 | CF42: 0.4514712356 | CG42: 8202.417988 | CH42: 3848.62823 | CI42: 20.19868656 | CK42: 202522
B43: 23 | C43: 2025 | D43: 2047 | E43: 2.119973949 | F43: 1.958232946 | G43: 1.621831511 | H43: 1.544309689 | I43: 0.2862934899 | J43: 0.2485668741 | K43: 0.1587493755 | L43: 0.09342217547 | M43: 0.08948383265 | N43: 4.089450083 | O43: 3.663860499 | P43: 3.953715706 | Q43: 3.726656468 | R43: 1.713549196 | S43: 1.531877571 | T43: 1.651224224 | U43: 1.549879473 | V43: 1741.957868 | W43: 1947.069469 | X43: 16.73673812 | Z43: 117.4424543 | AA43: 681.1795951 | AD43: 3.940715482 | AE43: 65.69778206 | AH43: 1714.087187 | AI43: 0 | AJ43: 0 | AL43: 385.90615 | AM43: 386.5296442 | AN43: 430.5705537 | AO43: 416.9920983 | AP43: 391.638124 | AQ43: 427.5811904 | AR43: 417.1167533 | AS43: 0.4384430369 | AT43: 10.26921472 | AU43: 10.26921472 | AV43: 22.54016508 | AW43: 18.76448804 | AX43: 10.26921472 | AY43: 22.54016508 | AZ43: 18.96760991 | BA43: 515.5135404 | BB43: 229.0057612 | BC43: 515.5135404 | BD43: 229.0057612 | BE43: 674.5449174 | BF43: 620.4610807 | BG43: 599.7832766 | BH43: 1.105476343 | BI43: 965.9172182 | BJ43: 444.9818397 | BK43: 964.9541997 | BL43: 444.548412 | BM43: 963.9971346 | BN43: 444.1176638 | BO43: 1280.689006 | BP43: 831.0335493 | BQ43: 382.1708787 | BR43: 645.4676588 | BS43: 1022.640857 | BT43: 469.879027 | BU43: 675.327554 | BV43: 1022.640857 | BW43: 469.879027 | BX43: 591.6226187 | BY43: 0.910156874 | BZ43: 944.7840752 | CA43: 435.0359303 | CB43: 622.6106477 | CC43: 1.423884779 | CD43: 938.1377829 | CE43: 432.2877286 | CF43: 0.4700206814 | CG43: 8587.577036 | CH43: 4017.280653 | CI43: 21.02858316 | CK43: 202523
B44: 24 | C44: 2025 | D44: 2048 | E44: 2.204587249 | F44: 2.029831011 | G44: 1.699094262 | H44: 1.615898621 | I44: 0.2862934899 | J44: 0.2485668741 | K44: 0.1587493755 | L44: 0.09342217547 | M44: 0.08948383265 | N44: 4.198050328 | O44: 3.760853164 | P44: 4.053342862 | Q44: 3.823544049 | R44: 1.76022511 | S44: 1.573453293 | T44: 1.693959389 | U44: 1.591410551 | V44: 1824.918963 | W44: 2004.421442 | X44: 33.32895686 | Z44: 117.4424543 | AA44: 681.1795951 | AD44: 3.940715482 | AE44: 65.69778206 | AH44: 1781.149813 | AI44: 0 | AJ44: 0 | AL44: 423.0012658 | AM44: 423.6312678 | AN44: 468.4290076 | AO44: 454.6173952 | AP44: 428.6674125 | AQ44: 465.4217026 | AR44: 454.7210865 | AS44: 0.4563525273 | AT44: 10.26921472 | AU44: 10.26921472 | AV44: 22.54016508 | AW44: 18.76448804 | AX44: 10.26921472 | AY44: 22.54016508 | AZ44: 18.96760991 | BA44: 525.7824342 | BB44: 233.8601071 | BC44: 525.7824342 | BD44: 233.8601071 | BE44: 701.7730073 | BF44: 645.2697918 | BG44: 623.7967884 | BH44: 1.143426871 | BI44: 1011.123083 | BJ44: 466.7714975 | BK44: 1010.146421 | BL44: 466.3316013 | BM44: 1009.175797 | BN44: 465.8944246 | BO44: 1332.377475 | BP44: 868.4720134 | BQ44: 400.1954622 | BR44: 671.4017603 | BS44: 1068.630561 | BT44: 492.0402493 | BU44: 702.4613896 | BV44: 1068.630561 | BW44: 492.0402493 | BX44: 615.9276167 | BY44: 0.9414021691 | BZ44: 987.3390422 | CA44: 455.553824 | CB44: 647.5393477 | CC44: 1.472766133 | CD44: 980.3894154 | CE44: 452.676007 | CF44: 0.4884099567 | CG44: 8973.498468 | CH44: 4206.750377 | CI44: 21.85131377 | CK44: 202524
B45: 25 | C45: 2025 | D45: 2049 | E45: 2.287845211 | F45: 2.097633039 | G45: 1.777632175 | H45: 1.68613989 | I45: 0.2862934899 | J45: 0.2485668741 | K45: 0.1587493755 | L45: 0.09342217547 | M45: 0.08948383265 | N45: 4.306899001 | O45: 3.858082605 | P45: 4.15320939 | Q45: 3.92066826 | R45: 1.80430755 | S45: 1.612721104 | T45: 1.734321725 | U45: 1.630636218 | V45: 1907.163716 | W45: 2055.68432 | X45: 49.77790629 | Z45: 117.4424543 | AA45: 681.1795951 | AD45: 3.940715482 | AE45: 65.69778206 | AH45: 1847.633367 | AI45: 0 | AJ45: 0 | AL45: 461.1176724 | AM45: 461.7530617 | AN45: 507.2436015 | AO45: 493.2185831 | AP45: 466.7013349 | AQ45: 504.2246551 | AR45: 493.3001441 | AS45: 0.4741443135 | AT45: 10.26921472 | AU45: 10.26921472 | AV45: 22.54016508 | AW45: 18.76448804 | AX45: 10.26921472 | AY45: 22.54016508 | AZ45: 18.96760991 | BA45: 535.1302651 | BB45: 238.070304 | BC45: 535.1302651 | BD45: 238.070304 | BE45: 728.8387042 | BF45: 669.9400016 | BG45: 647.6777059 | BH45: 1.18098039 | BI45: 1056.540317 | BJ45: 487.5760737 | BK45: 1055.552133 | BL45: 487.1309869 | BM45: 1054.570057 | BN45: 486.6886516 | BO45: 1383.757227 | BP45: 905.9872412 | BQ45: 417.3591413 | BR45: 697.1733234 | BS45: 1114.708826 | BT45: 513.1429896 | BU45: 729.4251676 | BV45: 1114.708826 | BW45: 513.1429896 | BX45: 640.0765017 | BY45: 0.9723205995 | BZ45: 1029.98067 | CA45: 475.0917258 | CB45: 672.3088267 | CC45: 1.521136127 | CD45: 1022.726794 | CE45: 472.0904843 | CF45: 0.5066404444 | CG45: 9360.140399 | CH45: 4387.170497 | CI45: 22.66694028 | CK45: 202525
B46: 26 | C46: 2025 | D46: 2050 | E46: 2.372997974 | F46: 2.165159658 | G46: 1.857940903 | H46: 1.757845067 | I46: 0.2862934899 | J46: 0.2485668741 | K46: 0.1587493755 | L46: 0.09342217547 | M46: 0.08948383265 | N46: 4.415973552 | O46: 3.955528247 | P46: 4.253294265 | Q46: 4.018008544 | R46: 1.848276968 | S46: 1.651902126 | T46: 1.774591309 | U46: 1.669775325 | V46: 1972.391386 | W46: 2101.363526 | X46: 66.08482373 | Z46: 117.4424543 | AA46: 681.1795951 | AD46: 3.940715482 | AE46: 65.69778206 | AH46: 1913.542849 | AI46: 0 | AJ46: 0 | AL46: 500.4124704 | AM46: 501.0520462 | AN46: 547.1670477 | AO46: 532.9497032 | AP46: 505.8956644 | AQ46: 544.1432471 | AR46: 533.0078749 | AS46: 0.4918321395 | AT46: 10.26921472 | AU46: 10.26921472 | AV46: 22.54016508 | AW46: 18.76448804 | AX46: 10.26921472 | AY46: 22.54016508 | AZ46: 18.96760991 | BA46: 543.4345421 | BB46: 241.8123333 | BC46: 543.4345421 | BD46: 241.8123333 | BE46: 755.6868792 | BF46: 694.4145219 | BG46: 671.3692129 | BH46: 1.218093617 | BI46: 1102.179446 | BJ46: 508.4153447 | BK46: 1101.182136 | BL46: 507.9661611 | BM46: 1100.190992 | BN46: 507.5197544 | BO46: 1434.723535 | BP46: 943.575234 | BQ46: 434.4999324 | BR46: 722.7285399 | BS46: 1160.870698 | BT46: 534.2175892 | BU46: 756.1625906 | BV46: 1160.870698 | BW46: 534.2175892 | BX46: 664.2344266 | BY46: 1.00287653 | BZ46: 1072.704412 | CA46: 494.6035735 | CB46: 696.8737098 | CC46: 1.568939013 | CD46: 1065.145406 | CE46: 491.4790721 | CF46: 0.5247135157 | CG46: 9747.461612 | CH46: 4567.350024 | CI46: 23.47552403 | CK46: 202526
B47: 27 | C47: 2025 | D47: 2051 | E47: 2.457707009 | F47: 2.230599547 | G47: 1.938960298 | H47: 1.829490328 | I47: 0.2862934899 | J47: 0.2485668741 | K47: 0.1587493755 | L47: 0.09342217547 | M47: 0.08948383265 | N47: 4.524817604 | O47: 4.051015928 | P47: 4.349829902 | Q47: 4.112415865 | R47: 1.891432193 | S47: 1.689645772 | T47: 1.812742184 | U47: 1.707069258 | V47: 2030.514306 | W47: 2142.067247 | X47: 93.08671823 | Z47: 117.4424543 | AA47: 681.1795951 | AD47: 3.940715482 | AE47: 65.69778206 | AH47: 1978.883217 | AI47: 0 | AJ47: 0 | AL47: 539.103892 | AM47: 540.2803797 | AN47: 586.8564047 | AO47: 572.4865 | AP47: 544.972969 | AQ47: 583.8365477 | AR47: 572.5167976 | AS47: 0.5094127615 | AT47: 10.26921472 | AU47: 10.26921472 | AV47: 22.54016508 | AW47: 18.76448804 | AX47: 10.26921472 | AY47: 22.54016508 | AZ47: 18.96760991 | BA47: 550.959796 | BB47: 245.160702 | BC47: 550.959796 | BD47: 245.160702 | BE47: 782.3610594 | BF47: 718.73603 | BG47: 694.9143367 | BH47: 1.254784076 | BI47: 1148.071792 | BJ47: 529.0903648 | BK47: 1147.06788 | BL47: 528.6382707 | BM47: 1146.070175 | BN47: 528.1889719 | BO47: 1485.359547 | BP47: 981.2562014 | BQ47: 451.4522145 | BR47: 748.1181407 | BS47: 1207.140831 | BT47: 555.060417 | BU47: 782.7267364 | BV47: 1207.140831 | BW47: 555.060417 | BX47: 688.3373859 | BY47: 1.033084389 | BZ47: 1115.533237 | CA47: 513.9008362 | CB47: 721.2840265 | CC47: 1.616197361 | CD47: 1107.668055 | CE47: 510.6544304 | CF47: 0.5426305298 | CG47: 10134.70675 | CH47: 4746.282967 | CI47: 24.27712582 | CK47: 202527
B48: 28 | C48: 2025 | D48: 2052 | E48: 2.542012234 | F48: 2.294019756 | G48: 2.020773321 | H48: 1.901127229 | I48: 0.2862934899 | J48: 0.2485668741 | K48: 0.1587493755 | L48: 0.09342217547 | M48: 0.08948383265 | N48: 4.633431644 | O48: 4.144584988 | P48: 4.442942166 | Q48: 4.203978596 | R48: 1.933788301 | S48: 1.726004772 | T48: 1.848885822 | U48: 1.742605005 | V48: 2082.306343 | W48: 2178.337425 | X48: 137.7979464 | Z48: 117.4424543 | AA48: 681.1795951 | AD48: 3.940715482 | AE48: 65.69778206 | AH48: 2043.659385 | AI48: 0 | AJ48: 0 | AL48: 577.2012021 | AM48: 579.4381893 | AN48: 626.3130452 | AO48: 611.8299239 | AP48: 583.9335979 | AQ48: 623.3058285 | AR48: 611.8279077 | AS48: 0.5268868295 | AT48: 10.26921472 | AU48: 10.26921472 | AV48: 22.54016508 | AW48: 18.76448804 | AX48: 10.26921472 | AY48: 22.54016508 | AZ48: 18.96760991 | BA48: 557.7791067 | BB48: 248.1568231 | BC48: 557.7791067 | BD48: 248.1568231 | BE48: 808.8623724 | BF48: 742.9054825 | BG48: 718.3139818 | BH48: 1.291056582 | BI48: 1194.218762 | BJ48: 549.6024288 | BK48: 1193.210798 | BL48: 549.148592 | BM48: 1192.209068 | BN48: 548.6975622 | BO48: 1535.667402 | BP48: 1019.030373 | BQ48: 468.2180609 | BR48: 773.3431993 | BS48: 1253.519479 | BT48: 575.6740222 | BU48: 809.1187281 | BV48: 1253.519479 | BW48: 575.6740222 | BX48: 712.3855046 | BY48: 1.062948141 | BZ48: 1158.467403 | CA48: 532.9858737 | CB48: 745.5407494 | CC48: 1.662917374 | CD48: 1150.294997 | CE48: 529.6189043 | CF48: 0.5603928342 | CG48: 10521.87582 | CH48: 4923.97795 | CI48: 25.07180595 | CK48: 202528
B49: 29 | C49: 2025 | D49: 2053 | E49: 2.625952166 | F49: 2.355485097 | G49: 2.103462847 | H49: 1.972806171 | I49: 0.2862934899 | J49: 0.2485668741 | K49: 0.1587493755 | L49: 0.09342217547 | M49: 0.08948383265 | N49: 4.741816159 | O49: 4.236273978 | P49: 4.532752456 | Q49: 4.292782447 | R49: 1.97536009 | S49: 1.761029922 | T49: 1.883127831 | U49: 1.776465456 | V49: 2128.457071 | W49: 2210.65697 | X49: 211.8332672 | Z49: 117.4424543 | AA49: 681.1795951 | AD49: 3.940715482 | AE49: 65.69778206 | AH49: 2107.876224 | AI49: 0 | AJ49: 0 | AL49: 614.7135234 | AM49: 618.5256018 | AN49: 665.5383337 | AO49: 650.9809207 | AP49: 622.7778996 | AQ49: 662.5523537 | AR49: 650.9421954 | AS49: 0.5442549891 | AT49: 10.26921472 | AU49: 10.26921472 | AV49: 22.54016508 | AW49: 18.76448804 | AX49: 10.26921472 | AY49: 22.54016508 | AZ49: 18.96760991 | BA49: 563.9586988 | BB49: 250.8377529 | BC49: 563.9586988 | BD49: 250.8377529 | BE49: 835.1919384 | BF49: 766.92383 | BG49: 741.5690471 | BH49: 1.326915897 | BI49: 1240.621767 | BJ49: 569.9528209 | BK49: 1239.612332 | BL49: 569.4983912 | BM49: 1238.609143 | BN49: 569.0467735 | BO49: 1585.649226 | BP49: 1056.89798 | BQ49: 484.7995219 | BR49: 798.4047819 | BS49: 1300.006896 | BT49: 596.0609255 | BU49: 835.3396814 | BV49: 1300.006896 | BW49: 596.0609255 | BX49: 736.3789075 | BY49: 1.092471705 | BZ49: 1201.50717 | CA49: 551.8610202 | CB49: 769.6448449 | CC49: 1.709105185 | CD49: 1193.026486 | CE49: 548.374813 | CF49: 0.5780017648 | CG49: 10908.96884 | CH49: 5100.443537 | CI49: 25.85962418 | CK49: 202529
B50: 30 | C50: 2025 | D50: 2054 | E50: 2.709563979 | F50: 2.415058215 | G50: 2.187111754 | H50: 2.044576466 | I50: 0.2862934899 | J50: 0.2485668741 | K50: 0.1587493755 | L50: 0.09342217547 | M50: 0.08948383265 | N50: 4.849971634 | O50: 4.326120674 | P50: 4.619377868 | Q50: 4.378910545 | R50: 2.016162083 | S50: 1.794770157 | T50: 1.91556826 | U50: 1.808729589 | V50: 2169.580954 | W50: 2239.456195 | X50: 334.4250402 | Z50: 117.4424543 | AA50: 681.1795951 | AD50: 3.940715482 | AE50: 65.69778206 | AH50: 2171.538564 | AI50: 0 | AJ50: 0 | AL50: 651.6498383 | AM50: 657.5427436 | AN50: 704.5336267 | AO50: 689.9404315 | AP50: 661.5062214 | AQ50: 701.5773805 | AR50: 689.8606464 | AS50: 0.5615178822 | AT50: 10.26921472 | AU50: 10.26921472 | AV50: 22.54016508 | AW50: 18.76448804 | AX50: 10.26921472 | AY50: 22.54016508 | AZ50: 18.96760991 | BA50: 569.5585842 | BB50: 253.2366495 | BC50: 569.5585842 | BD50: 253.2366495 | BE50: 861.3508705 | BF50: 790.7920173 | BG50: 764.6804258 | BH50: 1.362366728 | BI50: 1287.282228 | BJ50: 590.1428154 | BK50: 1286.27393 | BL50: 589.6889246 | BM50: 1285.271877 | BN50: 589.2378446 | BO50: 1635.307134 | BP50: 1094.859253 | BQ50: 501.1986253 | BR50: 823.3039481 | BS50: 1346.603337 | BT50: 616.2236202 | BU50: 861.3907046 | BV50: 1346.603337 | BW50: 616.2236202 | BX50: 760.3177191 | BY50: 1.121658957 | BZ50: 1244.652798 | CA50: 570.5285838 | CB50: 793.5972735 | CC50: 1.754766857 | CD50: 1235.86278 | CE50: 566.9244502 | CF50: 0.595458646 | CG50: 11295.98583 | CH50: 5275.688235 | CI50: 26.64063976 | CK50: 202530
A52: Conversion of BC Model for application in CST
C53: Electric Energy | H53: Capacity - Electrification (Elx uses uncleared, EE uses cleared) | N53: Natural Gas | T53: Other Energy | Y53: Non Energy | AC53: PA T&D
A54: Benefit type | C54: DRIPE | D54: Energy + DRIPE + SCC | H54: Cleared - Capacity + DRIPE + Reliability | J54: Uncleared - Capacity + DRIPE + Reliability | L54: Distribution | M54: Transmission | N54: DRIPE | O54: Gas + Gas to Electric DRIPE | R54: Gas SCC | S54: Gas MAC | T54: Commercial Oil + Oil SCC + Oil DRIPE | U54: Propane + Propane SCC | V54: Diesel + diesel SCC + DRIPE | W54: Motor Gas + motor gas SCC | X54: Wood + SCC | Y54: Water | Z54: Non-Energy GHG | AA54: NEIs | AC54: Distribution, non inflated
A55: savings stream | C55: Annual kWh | D55: Summer Peak | E55: Summer Off-Peak | F55: Winter Peak | G55: Winter Off-Peak | H55: Summer kW | I55: Winter kW | J55: Summer kW | K55: Winter kW | L55: Summer kW | M55: Summer kW | N55: Total Therms | O55: Space Heating | P55: Base Load | Q55: Other | R55: Total Therm | S55: Total Therm | T55: Oil | U55: Propane | V55: Diesel | W55: Motor Gas | X55: Wood | Y55: water | Z55: Non energy GHG | AA55: NEI
